Workbook

Sheet Firing Range (hidden)
E2: Pupils | M2: Other Grants | O2: Year 1 | T2: Year 2 | AB2: Year 3
B3: DFE | C3: School Name | D3: Errors | E3: MLD&SLCN | F3: BESD | G3: SLD | H3: PD&PMLD | I3: ASD | J3: WeekdayPD&PMLD | K3: WeekendPD&PMLD | L3: WeekdayASD | M3: FTE | N3: Amount | O3: Pre 1 | P3: Pre 2 | Q3: Post 1 | R3: Post 2 | S3: Pooled funding total | T3: MLD&SLCN | U3: BESD | V3: SLD | W3: PD&PMLD | X3: ASD | Y3: WeekdayPD&PMLD | Z3: WeekdayASD | AA3: WeekendPD&PMLD | AB3: MLD&SLCN | AC3: BESD | AD3: SLD | AE3: PD&PMLD | AF3: ASD | AG3: WeekdayPD&PMLD | AH3: WeekdayASD | AI3: WeekendPD&PMLD | AK3: Pupils | AS3: Other Grants | AU3: Year 1 | BA3: Pupils | BI3: Other Grants | BK3: Year 1
B4: Live Link | E4: =Pupils!$G$4 -> 0 | F4: =Pupils!$G$5 -> 0 | G4: =Pupils!$G$6 -> 0 | H4: =Pupils!$G$7 -> 0 | I4: =Pupils!$G$8 -> 0 | J4: =Pupils!$G$9 -> 0 | K4: =Pupils!$G$10 -> 0 | L4: =Pupils!$G$11 -> 0 | M4: ='Other Grants'!$E$18 -> 0 | N4: =('Other Grants'!$K$19+'Other Grants'!$L$19+'Other Grants'!$M$19)/3 -> 0 | O4: =ROUND('Year 1'!$I$18,0) -> 0 | P4: =ROUND('Year 1'!$I$22,0) -> 0 | Q4: =ROUND('Year 1'!$I$29,0) -> 0 | R4: =ROUND('Year 1'!$I$33,0) -> 0 | S4: ='Year 1'!$I$80 -> 0 | T4: ='Year 2'!$H$40 -> 0 | U4: ='Year 2'!$H$41 -> 0 | V4: ='Year 2'!$H$42 -> 0 | W4: ='Year 2'!$H$43 -> 0 | X4: ='Year 2'!$H$44 -> 0 | Y4: ='Year 2'!$H$45 -> 0 | Z4: ='Year 2'!$H$46 -> 0 | AA4: ='Year 2'!$H$47 -> 0 | AB4: ='Year 3'!$H$40 -> 0 | AC4: ='Year 3'!$H$41 -> 0 | AD4: ='Year 3'!$H$42 -> 0 | AE4: ='Year 3'!$H$43 -> 0 | AF4: ='Year 3'!$H$44 -> 0 | AG4: ='Year 3'!$H$45 -> 0 | AH4: ='Year 3'!$H$46 -> 0 | AI4: ='Year 3'!$H$47 -> 0 | AK4: MLD&SLCN | AL4: BESD | AM4: SLD | AN4: PD&PMLD | AO4: ASD | AP4: WeekdayPD&PMLD | AQ4: WeekdayASD | AR4: WeekendPD&PMLD | AS4: FTE | AT4: Cash | AU4: Pre 1 | AV4: Pre 2 | AW4: Post 1 | AX4: Post 2 | AY4: Pooled funding total | BA4: MLD&SLCN | BB4: BESD | BC4: SLD | BD4: PD&PMLD | BE4: ASD | BF4: WeekdayPD&PMLD | BG4: WeekdayASD | BH4: WeekendPD&PMLD | BI4: FTE | BJ4: CASH | BK4: Pre 1 | BL4: Pre 2 | BM4: Post 1 | BN4: Post 2 | BO4: Pooled funding total
B5: 7032 | C5: Bower Grove School | D5: =COUNTIF(BA5:BO5,"ERROR") -> 0 | E5: 2050.221262 | F5: 4446.487686 | G5: 6072.775123 | H5: 12776.3361 | I5: 8104.915921 | J5: 0 | K5: 0 | L5: 0 | M5: 0 | N5: 0 | O5: 856000 | P5: 1284000 | Q5: 0 | R5: 0 | S5: 5093.2 | T5: 2050.221262 | U5: 4446.487686 | V5: 6072.775123 | W5: 12776.3361 | X5: 8104.915921 | Y5: 0 | Z5: 0 | AA5: 0 | AB5: 2050.221262 | AC5: 4446.487686 | AD5: 6072.775123 | AE5: 12776.3361 | AF5: 8104.915921 | AG5: 0 | AH5: 0 | AI5: 0 | AK5: 2050.221262 | AL5: 4446.487686 | AM5: 6072.775123 | AN5: 12776.3361 | AO5: 8104.915921 | AP5: 0 | AQ5: 0 | AR5: 0 | AS5: 0 | AT5: 0 | AU5: 856000 | AV5: 1284000 | AW5: 0 | AX5: 0 | AY5: 5093.2 | BA5: =IF(AND(AK5=AB5,AB5=T5,T5=E5),"OK","ERROR") -> OK | BB5: =IF(AND(AL5=AC5,AC5=U5,U5=F5),"OK","ERROR") -> OK | BC5: =IF(AND(AM5=AD5,AD5=V5,V5=G5),"OK","ERROR") -> OK | BD5: =IF(AND(AN5=AE5,AE5=W5,W5=H5),"OK","ERROR") -> OK | BE5: =IF(AND(AO5=AF5,AF5=X5,X5=I5),"OK","ERROR") -> OK | BF5: =IF(AND(AP5=AG5,AG5=Y5,Y5=J5),"OK","ERROR") -> OK | BG5: =IF(AND(AQ5=AH5,AH5=Z5,Z5=L5),"OK","ERROR") -> OK | BH5: =IF(AND(AR5=AI5,AI5=AA5,AA5=K5),"OK","ERROR") -> OK | BI5: =IF(AS5=M5,"OK","ERROR") -> OK | BJ5: =IF(ROUND(AT5,0)=ROUND(N5,0),"OK","ERROR") -> OK | BK5: =IF(O5=AU5,"OK","ERROR") -> OK | BL5: =IF(P5=AV5,"OK","ERROR") -> OK | BM5: =IF(Q5=AW5,"OK","ERROR") -> OK | BN5: =IF(R5=AX5,"OK","ERROR") -> OK | BO5: =IF(AY5=S5,"OK","ERROR") -> OK
B6: 7033 | C6: St Anthony's School | D6: =COUNTIF(BA6:BO6,"ERROR") -> 0 | E6: 4706.977173 | F6: 7037.883463 | G6: 8729.531033 | H6: 15433.09201 | I6: 10761.67183 | J6: 0 | K6: 0 | L6: 0 | M6: 0 | N6: 0 | O6: 392000 | P6: 588000 | Q6: 0 | R6: 0 | S6: 2332.4 | T6: 4706.977173 | U6: 7037.883463 | V6: 8729.531033 | W6: 15433.09201 | X6: 10761.67183 | Y6: 0 | Z6: 0 | AA6: 0 | AB6: 4706.977173 | AC6: 7037.883463 | AD6: 8729.531033 | AE6: 15433.09201 | AF6: 10761.67183 | AG6: 0 | AH6: 0 | AI6: 0 | AK6: 4706.977173 | AL6: 7037.883463 | AM6: 8729.531033 | AN6: 15433.09201 | AO6: 10761.67183 | AP6: 0 | AQ6: 0 | AR6: 0 | AS6: 0 | AT6: 0 | AU6: 392000 | AV6: 588000 | AW6: 0 | AX6: 0 | AY6: 2332.4 | BA6: OK | BB6: OK | BC6: OK | BD6: OK | BE6: OK | BF6: OK | BG6: OK | BH6: OK | BI6: =IF(AS6=M6,"OK","ERROR") -> OK | BJ6: =IF(ROUND(AT6,0)=ROUND(N6,0),"OK","ERROR") -> OK | BK6: OK | BL6: OK | BM6: OK | BN6: OK | BO6: OK
B7: 7044 | C7: Rowhill School | D7: 0 | E7: 4536.096072 | F7: 6972.644019 | G7: 8636.815147 | H7: 15470.55614 | I7: 10714.41882 | J7: 0 | K7: 0 | L7: 0 | M7: 0 | N7: 0 | O7: 440000 | P7: 660000 | Q7: 0 | R7: 0 | S7: 2618 | T7: 4536.096072 | U7: 6972.644019 | V7: 8636.815147 | W7: 15470.55614 | X7: 10714.41882 | Y7: 0 | Z7: 0 | AA7: 0 | AB7: 4536.096072 | AC7: 6972.644019 | AD7: 8636.815147 | AE7: 15470.55614 | AF7: 10714.41882 | AG7: 0 | AH7: 0 | AI7: 0 | AK7: 4536.096072 | AL7: 6972.644019 | AM7: 8636.815147 | AN7: 15470.55614 | AO7: 10714.41882 | AP7: 0 | AQ7: 0 | AR7: 0 | AS7: 0 | AT7: 0 | AU7: 440000 | AV7: 660000 | AW7: 0 | AX7: 0 | AY7: 2618 | BA7: OK | BB7: OK | BC7: OK | BD7: OK | BE7: OK | BF7: OK | BG7: OK | BH7: OK | BI7: OK | BJ7: OK | BK7: OK | BL7: OK | BM7: OK | BN7: OK | BO7: OK
B8: 7045 | C8: Elms School | D8: 0 | E8: 3048.917283 | F8: 5260.263829 | G8: 6858.73993 | H8: 13440.76015 | I8: 8783.411743 | J8: 0 | K8: 0 | L8: 0 | M8: 0 | N8: 0 | O8: 632000 | P8: 948000 | Q8: 0 | R8: 0 | S8: 3760.4 | T8: 3048.917283 | U8: 5260.263829 | V8: 6858.73993 | W8: 13440.76015 | X8: 8783.411743 | Y8: 0 | Z8: 0 | AA8: 0 | AB8: 3048.917283 | AC8: 5260.263829 | AD8: 6858.73993 | AE8: 13440.76015 | AF8: 8783.411743 | AG8: 0 | AH8: 0 | AI8: 0 | AK8: 3048.917283 | AL8: 5260.263829 | AM8: 6858.73993 | AN8: 13440.76015 | AO8: 8783.411743 | AP8: 0 | AQ8: 0 | AR8: 0 | AS8: 0 | AT8: 0 | AU8: 632000 | AV8: 948000 | AW8: 0 | AX8: 0 | AY8: 3760.4 | BA8: OK | BB8: OK | BC8: OK | BD8: OK | BE8: OK | BF8: OK | BG8: OK | BH8: OK | BI8: OK | BJ8: OK | BK8: OK | BL8: OK | BM8: OK | BN8: OK | BO8: OK
B9: 7062 | C9: The Orchard School | D9: 0 | E9: 5171.586578 | F9: 7461.693509 | G9: 9194.140438 | H9: 15897.70141 | I9: 11226.28124 | J9: 0 | K9: 0 | L9: 0 | M9: 0 | N9: 0 | O9: 332000 | P9: 498000 | Q9: 0 | R9: 0 | S9: 1975.4 | T9: 5171.586578 | U9: 7461.693509 | V9: 9194.140438 | W9: 15897.70141 | X9: 11226.28124 | Y9: 0 | Z9: 0 | AA9: 0 | AB9: 5171.586578 | AC9: 7461.693509 | AD9: 9194.140438 | AE9: 15897.70141 | AF9: 11226.28124 | AG9: 0 | AH9: 0 | AI9: 0 | AK9: 5171.586578 | AL9: 7461.693509 | AM9: 9194.140438 | AN9: 15897.70141 | AO9: 11226.28124 | AP9: 0 | AQ9: 0 | AR9: 0 | AS9: 0 | AT9: 0 | AU9: 332000 | AV9: 498000 | AW9: 0 | AX9: 0 | AY9: 1975.4 | BA9: OK | BB9: OK | BC9: OK | BD9: OK | BE9: OK | BF9: OK | BG9: OK | BH9: OK | BI9: OK | BJ9: OK | BK9: OK | BL9: OK | BM9: OK | BN9: OK | BO9: OK
B10: 7041 | C10: Goldwyn School | D10: 0 | E10: 4106.033266 | F10: 8665.474062 | G10: 7649.92526 | H10: 14353.48623 | I10: 9682.066057 | J10: 0 | K10: 0 | L10: 0 | M10: 0 | N10: 0 | O10: 600000 | P10: 900000 | Q10: 0 | R10: 0 | S10: 3570 | T10: 4106.033266 | U10: 8665.474062 | V10: 7649.92526 | W10: 14353.48623 | X10: 9682.066057 | Y10: 0 | Z10: 0 | AA10: 0 | AB10: 4106.033266 | AC10: 8665.474062 | AD10: 7649.92526 | AE10: 14353.48623 | AF10: 9682.066057 | AG10: 0 | AH10: 0 | AI10: 0 | AK10: 4106.033266 | AL10: 8665.474062 | AM10: 7649.92526 | AN10: 14353.48623 | AO10: 9682.066057 | AP10: 0 | AQ10: 0 | AR10: 0 | AS10: 0 | AT10: 0 | AU10: 600000 | AV10: 900000 | AW10: 0 | AX10: 0 | AY10: 3570 | BA10: OK | BB10: OK | BC10: OK | BD10: OK | BE10: OK | BF10: OK | BG10: OK | BH10: OK | BI10: OK | BJ10: OK | BK10: OK | BL10: OK | BM10: OK | BN10: OK | BO10: OK
B11: 7067 | C11: Portal House School | D11: 0 | E11: 6589.670146 | F11: 11361.33469 | G11: 10399.49279 | H11: 16748.53852 | I11: 12324.16461 | J11: 0 | K11: 0 | L11: 0 | M11: 0 | N11: 0 | O11: 320000 | P11: 480000 | Q11: 0 | R11: 0 | S11: 1904 | T11: 6589.670146 | U11: 11361.33469 | V11: 10399.49279 | W11: 16748.53852 | X11: 12324.16461 | Y11: 0 | Z11: 0 | AA11: 0 | AB11: 6589.670146 | AC11: 11361.33469 | AD11: 10399.49279 | AE11: 16748.53852 | AF11: 12324.16461 | AG11: 0 | AH11: 0 | AI11: 0 | AK11: 6589.670146 | AL11: 11361.33469 | AM11: 10399.49279 | AN11: 16748.53852 | AO11: 12324.16461 | AP11: 0 | AQ11: 0 | AR11: 0 | AS11: 0 | AT11: 0 | AU11: 320000 | AV11: 480000 | AW11: 0 | AX11: 0 | AY11: 1904 | BA11: OK | BB11: OK | BC11: OK | BD11: OK | BE11: OK | BF11: OK | BG11: OK | BH11: OK | BI11: OK | BJ11: OK | BK11: OK | BL11: OK | BM11: OK | BN11: OK | BO11: OK
B12: 7021 | C12: Valence School | D12: 0 | E12: 6230.930072 | F12: 8267.239966 | G12: 10331.64915 | H12: 17165.39014 | I12: 12409.25282 | J12: 65376.90555 | K12: 91427.99373 | L12: 0 | M12: 0 | N12: 0 | O12: 288000 | P12: 432000 | Q12: 132000 | R12: 198000 | S12: 2499 | T12: 6230.930072 | U12: 8267.239966 | V12: 10331.64915 | W12: 17165.39014 | X12: 12409.25282 | Y12: 65376.90555 | Z12: 0 | AA12: 91427.99373 | AB12: 6230.930072 | AC12: 8267.239966 | AD12: 10331.64915 | AE12: 17165.39014 | AF12: 12409.25282 | AG12: 65376.90555 | AH12: 0 | AI12: 91427.99373 | AK12: 6230.930072 | AL12: 8267.239966 | AM12: 10331.64915 | AN12: 17165.39014 | AO12: 12409.25282 | AP12: 65376.90555 | AQ12: 0 | AR12: 91427.99373 | AS12: 0 | AT12: 0 | AU12: 288000 | AV12: 432000 | AW12: 132000 | AX12: 198000 | AY12: 2499 | BA12: OK | BB12: OK | BC12: OK | BD12: OK | BE12: OK | BF12: OK | BG12: OK | BH12: OK | BI12: OK | BJ12: OK | BK12: OK | BL12: OK | BM12: OK | BN12: OK | BO12: OK
B13: 7002 | C13: Broomhill Bank School | D13: 0 | E13: 4529.831195 | F13: 5687.057906 | G13: 8083.41318 | H13: 14009.60845 | I13: 10545.70571 | J13: 0 | K13: 0 | L13: 49779.3956 | M13: 0 | N13: 0 | O13: 797000 | P13: 1195500 | Q13: 349333 | R13: 524000 | S13: 6820.683333 | T13: 4529.831195 | U13: 5687.057906 | V13: 8083.41318 | W13: 14009.60845 | X13: 10545.70571 | Y13: 0 | Z13: 49779.3956 | AA13: 0 | AB13: 4529.831195 | AC13: 5687.057906 | AD13: 8083.41318 | AE13: 14009.60845 | AF13: 10545.70571 | AG13: 0 | AH13: 49779.3956 | AI13: 0 | AK13: 4529.831195 | AL13: 5687.057906 | AM13: 8083.41318 | AN13: 14009.60845 | AO13: 10545.70571 | AP13: 0 | AQ13: 49779.3956 | AR13: 0 | AS13: 0 | AT13: 0 | AU13: 797000 | AV13: 1195500 | AW13: 349333 | AX13: 524000 | AY13: 6820.683333 | BA13: OK | BB13: OK | BC13: OK | BD13: OK | BE13: OK | BF13: OK | BG13: OK | BH13: OK | BI13: OK | BJ13: OK | BK13: OK | BL13: OK | BM13: OK | BN13: OK | BO13: OK
B14: 7052 | C14: Grange Park School | D14: 0 | E14: 2861.065093 | F14: 4744.239879 | G14: 6670.88774 | H14: 13196.61538 | I14: 9294.784527 | J14: 0 | K14: 0 | L14: 0 | M14: 0 | N14: 0 | O14: 411667 | P14: 617500 | Q14: 200000 | R14: 300000 | S14: 3639.416667 | T14: 2861.065093 | U14: 4744.239879 | V14: 6670.88774 | W14: 13196.61538 | X14: 9294.784527 | Y14: 0 | Z14: 0 | AA14: 0 | AB14: 2861.065093 | AC14: 4744.239879 | AD14: 6670.88774 | AE14: 13196.61538 | AF14: 9294.784527 | AG14: 0 | AH14: 0 | AI14: 0 | AK14: 2861.065093 | AL14: 4744.239879 | AM14: 6670.88774 | AN14: 13196.61538 | AO14: 9294.784527 | AP14: 0 | AQ14: 0 | AR14: 0 | AS14: 0 | AT14: 0 | AU14: 411667 | AV14: 617500 | AW14: 200000 | AX14: 300000 | AY14: 3639.416667 | BA14: OK | BB14: OK | BC14: OK | BD14: OK | BE14: OK | BF14: OK | BG14: OK | BH14: OK | BI14: OK | BJ14: OK | BK14: OK | BL14: OK | BM14: OK | BN14: OK | BO14: OK
B15: 7058 | C15: Stone Bay School | D15: 0 | E15: 6536.410515 | F15: 8448.26309 | G15: 10404.25077 | H15: 16850.62301 | I15: 19561.88276 | J15: 63383.57638 | K15: 0 | L15: 66094.83614 | M15: 0 | N15: 0 | O15: 226667 | P15: 340000 | Q15: 60000 | R15: 90000 | S15: 1705.666667 | T15: 6536.410515 | U15: 8448.26309 | V15: 10404.25077 | W15: 16850.62301 | X15: 19561.88276 | Y15: 63383.57638 | Z15: 66094.83614 | AA15: 0 | AB15: 6536.410515 | AC15: 8448.26309 | AD15: 10404.25077 | AE15: 16850.62301 | AF15: 19561.88276 | AG15: 63383.57638 | AH15: 66094.83614 | AI15: 0 | AK15: 6536.410515 | AL15: 8448.26309 | AM15: 10404.25077 | AN15: 16850.62301 | AO15: 19561.88276 | AP15: 63383.57638 | AQ15: 66094.83614 | AR15: 0 | AS15: 0 | AT15: 0 | AU15: 226667 | AV15: 340000 | AW15: 60000 | AX15: 90000 | AY15: 1705.666667 | BA15: OK | BB15: OK | BC15: OK | BD15: OK | BE15: OK | BF15: OK | BG15: OK | BH15: OK | BI15: OK | BJ15: OK | BK15: OK | BL15: OK | BM15: OK | BN15: OK | BO15: OK
B16: 7073 | C16: Laleham Gap School | D16: 0 | E16: 2312.927088 | F16: 4301.253766 | G16: 6335.480949 | H16: 13039.04192 | I16: 9105.889739 | J16: 82865.01624 | K16: 0 | L16: 78931.86406 | M16: 0 | N16: 0 | O16: 784000 | P16: 1176000 | Q16: 0 | R16: 0 | S16: 4664.8 | T16: 2312.927088 | U16: 4301.253766 | V16: 6335.480949 | W16: 13039.04192 | X16: 9105.889739 | Y16: 82865.01624 | Z16: 78931.86406 | AA16: 0 | AB16: 2312.927088 | AC16: 4301.253766 | AD16: 6335.480949 | AE16: 13039.04192 | AF16: 9105.889739 | AG16: 82865.01624 | AH16: 78931.86406 | AI16: 0 | AK16: 2312.927088 | AL16: 4301.253766 | AM16: 6335.480949 | AN16: 13039.04192 | AO16: 9105.889739 | AP16: 82865.01624 | AQ16: 78931.86406 | AR16: 0 | AS16: 0 | AT16: 0 | AU16: 784000 | AV16: 1176000 | AW16: 0 | AX16: 0 | AY16: 4664.8 | BA16: OK | BB16: OK | BC16: OK | BD16: OK | BE16: OK | BF16: OK | BG16: OK | BH16: OK | BI16: OK | BJ16: OK | BK16: OK | BL16: OK | BM16: OK | BN16: OK | BO16: OK
B17: 7039 | C17: The Ifield School | D17: 0 | E17: 1853.761073 | F17: 3842.087751 | G17: 5876.314934 | H17: 12579.87591 | I17: 8646.723724 | J17: 0 | K17: 0 | L17: 0 | M17: 6 | N17: 106174 | O17: 840000 | P17: 1260000 | Q17: 160000 | R17: 240000 | S17: 5950 | T17: 1853.761073 | U17: 3842.087751 | V17: 5876.314934 | W17: 12579.87591 | X17: 8646.723724 | Y17: 0 | Z17: 0 | AA17: 0 | AB17: 1853.761073 | AC17: 3842.087751 | AD17: 5876.314934 | AE17: 12579.87591 | AF17: 8646.723724 | AG17: 0 | AH17: 0 | AI17: 0 | AK17: 1853.761073 | AL17: 3842.087751 | AM17: 5876.314934 | AN17: 12579.87591 | AO17: 8646.723724 | AP17: 0 | AQ17: 0 | AR17: 0 | AS17: 6 | AT17: 106174 | AU17: 840000 | AV17: 1260000 | AW17: 160000 | AX17: 240000 | AY17: 5950 | BA17: OK | BB17: OK | BC17: OK | BD17: OK | BE17: OK | BF17: OK | BG17: OK | BH17: OK | BI17: OK | BJ17: OK | BK17: OK | BL17: OK | BM17: OK | BN17: OK | BO17: OK
B18: 7040 | C18: Foreland Fields School | D18: 0 | E18: 2016.332049 | F18: 4004.658728 | G18: 6038.88591 | H18: 12742.44688 | I18: 8809.294701 | J18: 0 | K18: 0 | L18: 0 | M18: 10 | N18: 194290 | O18: 752000 | P18: 1128000 | Q18: 128000 | R18: 192000 | S18: 5236 | T18: 2016.332049 | U18: 4004.658728 | V18: 6038.88591 | W18: 12742.44688 | X18: 8809.294701 | Y18: 0 | Z18: 0 | AA18: 0 | AB18: 2016.332049 | AC18: 4004.658728 | AD18: 6038.88591 | AE18: 12742.44688 | AF18: 8809.294701 | AG18: 0 | AH18: 0 | AI18: 0 | AK18: 2016.332049 | AL18: 4004.658728 | AM18: 6038.88591 | AN18: 12742.44688 | AO18: 8809.294701 | AP18: 0 | AQ18: 0 | AR18: 0 | AS18: 10 | AT18: 194290 | AU18: 752000 | AV18: 1128000 | AW18: 128000 | AX18: 192000 | AY18: 5236 | BA18: OK | BB18: OK | BC18: OK | BD18: OK | BE18: OK | BF18: OK | BG18: OK | BH18: OK | BI18: OK | BJ18: OK | BK18: OK | BL18: OK | BM18: OK | BN18: OK | BO18: OK
B19: 7043 | C19: The Beacon Folkestone | D19: 0 | E19: 1771.354798 | F19: 3531.597272 | G19: 5381.765664 | H19: 11949.23027 | I19: 8016.078087 | J19: 0 | K19: 0 | L19: 0 | M19: 10 | N19: 194290 | O19: 1247333 | P19: 1871000 | Q19: 256000 | R19: 384000 | S19: 8944.833333 | T19: 1771.354798 | U19: 3531.597272 | V19: 5381.765664 | W19: 11949.23027 | X19: 8016.078087 | Y19: 0 | Z19: 0 | AA19: 0 | AB19: 1771.354798 | AC19: 3531.597272 | AD19: 5381.765664 | AE19: 11949.23027 | AF19: 8016.078087 | AG19: 0 | AH19: 0 | AI19: 0 | AK19: 1771.354798 | AL19: 3531.597272 | AM19: 5381.765664 | AN19: 11949.23027 | AO19: 8016.078087 | AP19: 0 | AQ19: 0 | AR19: 0 | AS19: 10 | AT19: 194290 | AU19: 1247333 | AV19: 1871000 | AW19: 256000 | AX19: 384000 | AY19: 8944.833333 | BA19: OK | BB19: OK | BC19: OK | BD19: OK | BE19: OK | BF19: OK | BG19: OK | BH19: OK | BI19: OK | BJ19: OK | BK19: OK | BL19: OK | BM19: OK | BN19: OK | BO19: OK
B20: 7051 | C20: Nexus School | D20: 0 | E20: 2773.076948 | F20: 4600.180205 | G20: 6588.396252 | H20: 13291.95722 | I20: 9358.805042 | J20: 0 | K20: 0 | L20: 0 | M20: 8 | N20: 124232 | O20: 776667 | P20: 1165000 | Q20: 93333 | R20: 140000 | S20: 5176.5 | T20: 2773.076948 | U20: 4600.180205 | V20: 6588.396252 | W20: 13291.95722 | X20: 9358.805042 | Y20: 0 | Z20: 0 | AA20: 0 | AB20: 2773.076948 | AC20: 4600.180205 | AD20: 6588.396252 | AE20: 13291.95722 | AF20: 9358.805042 | AG20: 0 | AH20: 0 | AI20: 0 | AK20: 2773.076948 | AL20: 4600.180205 | AM20: 6588.396252 | AN20: 13291.95722 | AO20: 9358.805042 | AP20: 0 | AQ20: 0 | AR20: 0 | AS20: 8 | AT20: 124232 | AU20: 776667 | AV20: 1165000 | AW20: 93333 | AX20: 140000 | AY20: 5176.5 | BA20: OK | BB20: OK | BC20: OK | BD20: OK | BE20: OK | BF20: OK | BG20: OK | BH20: OK | BI20: OK | BJ20: OK | BK20: OK | BL20: OK | BM20: OK | BN20: OK | BO20: OK
B21: 7056 | C21: Five Acre Wood School | D21: 0 | E21: 1254.39 | F21: 3042.079118 | G21: 5076.3063 | H21: 11779.86727 | I21: 7846.715091 | J21: 0 | K21: 0 | L21: 0 | M21: 15 | N21: 239435 | O21: 1666667 | P21: 2500000 | Q21: 210667 | R21: 316000 | S21: 11170.13333 | T21: 1254.39 | U21: 3042.079118 | V21: 5076.3063 | W21: 11779.86727 | X21: 7846.715091 | Y21: 0 | Z21: 0 | AA21: 0 | AB21: 1254.39 | AC21: 3042.079118 | AD21: 5076.3063 | AE21: 11779.86727 | AF21: 7846.715091 | AG21: 0 | AH21: 0 | AI21: 0 | AK21: 1254.39 | AL21: 3042.079118 | AM21: 5076.3063 | AN21: 11779.86727 | AO21: 7846.715091 | AP21: 0 | AQ21: 0 | AR21: 0 | AS21: 15 | AT21: 239435 | AU21: 1666667 | AV21: 2500000 | AW21: 210667 | AX21: 316000 | AY21: 11170.13333 | BA21: OK | BB21: OK | BC21: OK | BD21: OK | BE21: OK | BF21: OK | BG21: OK | BH21: OK | BI21: OK | BJ21: OK | BK21: OK | BL21: OK | BM21: OK | BN21: OK | BO21: OK
B22: 7063 | C22: St Nicholas' School | D22: 0 | E22: 1849.682846 | F22: 3838.009524 | G22: 5872.236707 | H22: 12575.79768 | I22: 8642.645497 | J22: 0 | K22: 0 | L22: 0 | M22: 6 | N22: 106174 | O22: 962667 | P22: 1444000 | Q22: 172000 | R22: 258000 | S22: 6751.266667 | T22: 1849.682846 | U22: 3838.009524 | V22: 5872.236707 | W22: 12575.79768 | X22: 8642.645497 | Y22: 0 | Z22: 0 | AA22: 0 | AB22: 1849.682846 | AC22: 3838.009524 | AD22: 5872.236707 | AE22: 12575.79768 | AF22: 8642.645497 | AG22: 0 | AH22: 0 | AI22: 0 | AK22: 1849.682846 | AL22: 3838.009524 | AM22: 5872.236707 | AN22: 12575.79768 | AO22: 8642.645497 | AP22: 0 | AQ22: 0 | AR22: 0 | AS22: 6 | AT22: 106174 | AU22: 962667 | AV22: 1444000 | AW22: 172000 | AX22: 258000 | AY22: 6751.266667 | BA22: OK | BB22: OK | BC22: OK | BD22: OK | BE22: OK | BF22: OK | BG22: OK | BH22: OK | BI22: OK | BJ22: OK | BK22: OK | BL22: OK | BM22: OK | BN22: OK | BO22: OK
B23: 7066 | C23: Milestone Academy | D23: 0 | E23: 1954.581569 | F23: 3990.891463 | G23: 6055.300644 | H23: 12889.04164 | I23: 8884.905992 | J23: 0 | K23: 0 | L23: 0 | M23: 12 | N23: 212348 | O23: 0 | P23: 0 | Q23: 0 | R23: 0 | S23: 0 | T23: 1954.581569 | U23: 3990.891463 | V23: 6055.300644 | W23: 12889.04164 | X23: 8884.905992 | Y23: 0 | Z23: 0 | AA23: 0 | AB23: 1954.581569 | AC23: 3990.891463 | AD23: 6055.300644 | AE23: 12889.04164 | AF23: 8884.905992 | AG23: 0 | AH23: 0 | AI23: 0 | AK23: 1954.581569 | AL23: 3990.891463 | AM23: 6055.300644 | AN23: 12889.04164 | AO23: 8884.905992 | AP23: 0 | AQ23: 0 | AR23: 0 | AS23: 12 | AT23: 212348 | AU23: 0 | AV23: 0 | AW23: 0 | AX23: 0 | AY23: 0 | BA23: OK | BB23: OK | BC23: OK | BD23: OK | BE23: OK | BF23: OK | BG23: OK | BH23: OK | BI23: OK | BJ23: OK | BK23: OK | BL23: OK | BM23: OK | BN23: OK | BO23: OK
B24: 7069 | C24: The Wyvern School | D24: 0 | E24: 1692.780056 | F24: 3681.106735 | G24: 5715.333917 | H24: 12418.89489 | I24: 8485.742708 | J24: 0 | K24: 0 | L24: 0 | M24: 5 | N24: 97145 | O24: 986667 | P24: 1480000 | Q24: 140000 | R24: 210000 | S24: 6703.666667 | T24: 1692.780056 | U24: 3681.106735 | V24: 5715.333917 | W24: 12418.89489 | X24: 8485.742708 | Y24: 0 | Z24: 0 | AA24: 0 | AB24: 1692.780056 | AC24: 3681.106735 | AD24: 5715.333917 | AE24: 12418.89489 | AF24: 8485.742708 | AG24: 0 | AH24: 0 | AI24: 0 | AK24: 1692.780056 | AL24: 3681.106735 | AM24: 5715.333917 | AN24: 12418.89489 | AO24: 8485.742708 | AP24: 0 | AQ24: 0 | AR24: 0 | AS24: 5 | AT24: 97145 | AU24: 986667 | AV24: 1480000 | AW24: 140000 | AX24: 210000 | AY24: 6703.666667 | BA24: OK | BB24: OK | BC24: OK | BD24: OK | BE24: OK | BF24: OK | BG24: OK | BH24: OK | BI24: OK | BJ24: OK | BK24: OK | BL24: OK | BM24: OK | BN24: OK | BO24: OK
B25: 7070 | C25: Oakley School | D25: 0 | E25: 2081.418866 | F25: 4069.745544 | G25: 6103.972727 | H25: 12807.5337 | I25: 8874.381517 | J25: 0 | K25: 0 | L25: 0 | M25: 12 | N25: 212348 | O25: 730000 | P25: 1095000 | Q25: 194667 | R25: 292000 | S25: 5501.766667 | T25: 2081.418866 | U25: 4069.745544 | V25: 6103.972727 | W25: 12807.5337 | X25: 8874.381517 | Y25: 0 | Z25: 0 | AA25: 0 | AB25: 2081.418866 | AC25: 4069.745544 | AD25: 6103.972727 | AE25: 12807.5337 | AF25: 8874.381517 | AG25: 0 | AH25: 0 | AI25: 0 | AK25: 2081.418866 | AL25: 4069.745544 | AM25: 6103.972727 | AN25: 12807.5337 | AO25: 8874.381517 | AP25: 0 | AQ25: 0 | AR25: 0 | AS25: 12 | AT25: 212348 | AU25: 730000 | AV25: 1095000 | AW25: 194667 | AX25: 292000 | AY25: 5501.766667 | BA25: OK | BB25: OK | BC25: OK | BD25: OK | BE25: OK | BF25: OK | BG25: OK | BH25: OK | BI25: OK | BJ25: OK | BK25: OK | BL25: OK | BM25: OK | BN25: OK | BO25: OK
B26: 7072 | C26: Meadowfield School | D26: 0 | E26: 1420.638679 | F26: 3408.965357 | G26: 5443.192539 | H26: 12146.75351 | I26: 8213.60133 | J26: 0 | K26: 0 | L26: 0 | M26: 6 | N26: 106174 | O26: 1145333 | P26: 1718000 | Q26: 200000 | R26: 300000 | S26: 8004.733333 | T26: 1420.638679 | U26: 3408.965357 | V26: 5443.192539 | W26: 12146.75351 | X26: 8213.60133 | Y26: 0 | Z26: 0 | AA26: 0 | AB26: 1420.638679 | AC26: 3408.965357 | AD26: 5443.192539 | AE26: 12146.75351 | AF26: 8213.60133 | AG26: 0 | AH26: 0 | AI26: 0 | AK26: 1420.638679 | AL26: 3408.965357 | AM26: 5443.192539 | AN26: 12146.75351 | AO26: 8213.60133 | AP26: 0 | AQ26: 0 | AR26: 0 | AS26: 6 | AT26: 106174 | AU26: 1145333 | AV26: 1718000 | AW26: 200000 | AX26: 300000 | AY26: 8004.733333 | BA26: OK | BB26: OK | BC26: OK | BD26: OK | BE26: OK | BF26: OK | BG26: OK | BH26: OK | BI26: OK | BJ26: OK | BK26: OK | BL26: OK | BM26: OK | BN26: OK | BO26: OK

Sheet Lookups (hidden)
B2: DFE | C2: School Name | D2: Type | E2: Nursery FTE | F2: Fringe | G2: Place Funding Provider | H2: Residential Weekday Summer | I2: Residential Weekend Summer | J2: Places Summer Pre-16 | K2: Places Summer Post-16 | L2: Places Winter Pre-16 | M2: Places Winter Post-16 | N2: Residential Weekday Winter | O2: Residential Weekend Winter | Q2: Needs | S2: Rate Key | T2: Rate
B3: 7032 | C3: Bower Grove School | D3: Day | E3: 0 | F3: 0 | G3: KCC | H3: 0 | I3: 0 | J3: 214 | K3: 0 | L3: 214 | M3: 0 | N3: 0 | O3: 0 | Q3: MLD&SLCN | S3: 7032MLD&SLCN | T3: 2050.221262
B4: 7033 | C4: St Anthony's School | D4: Day | E4: 0 | F4: 0 | G4: KCC | H4: 0 | I4: 0 | J4: 98 | K4: 0 | L4: 98 | M4: 0 | N4: 0 | O4: 0 | Q4: BESD | S4: 7032BESD | T4: 4446.487686
B5: 7044 | C5: Rowhill School | D5: Day | E5: 0 | F5: 1 | G5: KCC | H5: 0 | I5: 0 | J5: 110 | K5: 0 | L5: 110 | M5: 0 | N5: 0 | O5: 0 | Q5: SLD | S5: 7032SLD | T5: 6072.775123
B6: 7045 | C6: Elms School | D6: Day | E6: 0 | F6: 0 | G6: KCC | H6: 0 | I6: 0 | J6: 158 | K6: 0 | L6: 158 | M6: 0 | N6: 0 | O6: 0 | Q6: PD&PMLD | S6: 7032PD&PMLD | T6: 12776.3361
B7: 7062 | C7: The Orchard School | D7: Day | E7: 0 | F7: 0 | G7: KCC | H7: 0 | I7: 0 | J7: 83 | K7: 0 | L7: 83 | M7: 0 | N7: 0 | O7: 0 | Q7: ASD | S7: 7032ASD | T7: 8104.915921
B8: 7041 | C8: Goldwyn School | D8: Day | E8: 0 | F8: 0 | G8: KCC | H8: 0 | I8: 0 | J8: 150 | K8: 0 | L8: 150 | M8: 0 | N8: 0 | O8: 0 | Q8: WeekdayPD&PMLD | S8: 7033MLD&SLCN | T8: 4706.977173
B9: 7067 | C9: Portal House School | D9: Day | E9: 0 | F9: 0 | G9: KCC | H9: 0 | I9: 0 | J9: 80 | K9: 0 | L9: 80 | M9: 0 | N9: 0 | O9: 0 | Q9: WeekendPD&PMLD | S9: 7033BESD | T9: 7037.883463
B10: 7021 | C10: Valence School | D10: Residential | E10: 0 | F10: 1 | G10: KCC | H10: 46 | I10: 16 | J10: 72 | K10: 33 | L10: 72 | M10: 33 | N10: 46 | O10: 18 | Q10: WeekdayASD | S10: 7033SLD | T10: 8729.531033
B11: 7002 | C11: Broomhill Bank School | D11: Residential | E11: 0 | F11: 1 | G11: KCC | H11: 23 | I11: 0 | J11: 173 | K11: 62 | L11: 218 | M11: 100 | N11: 23 | O11: 0 | S11: 7033PD&PMLD | T11: 15433.09201
B12: 7052 | C12: Grange Park School | D12: Day | E12: 0 | F12: 0 | G12: KCC | H12: 0 | I12: 0 | J12: 107 | K12: 50 | L12: 100 | M12: 50 | N12: 0 | O12: 0 | S12: 7033ASD | T12: 10761.67183
B13: 7058 | C13: Stone Bay School | D13: Residential | E13: 0 | F13: 0 | G13: KCC | H13: 18 | I13: 0 | J13: 45 | K13: 15 | L13: 65 | M13: 15 | N13: 18 | O13: 0 | S13: 7039MLD&SLCN | T13: 1853.761073
B14: 7073 | C14: Laleham Gap School | D14: Residential | E14: 0 | F14: 0 | G14: KCC | H14: 4 | I14: 0 | J14: 196 | K14: 0 | L14: 196 | M14: 0 | N14: 0 | O14: 0 | S14: 7039BESD | T14: 3842.087751
B15: 7039 | C15: The Ifield School | D15: Day | E15: 6 | F15: 0 | G15: KCC | H15: 0 | I15: 0 | J15: 210 | K15: 40 | L15: 210 | M15: 40 | N15: 0 | O15: 0 | S15: 7039SLD | T15: 5876.314934
B16: 7040 | C16: Foreland Fields School | D16: Day | E16: 10 | F16: 0 | G16: KCC | H16: 0 | I16: 0 | J16: 188 | K16: 32 | L16: 188 | M16: 32 | N16: 0 | O16: 0 | S16: 7039PD&PMLD | T16: 12579.87591
B17: 7043 | C17: The Beacon Folkestone | D17: Day | E17: 10 | F17: 0 | G17: KCC | H17: 0 | I17: 0 | J17: 306 | K17: 64 | L17: 316 | M17: 64 | N17: 0 | O17: 0 | S17: 7039ASD | T17: 8646.723724
B18: 7051 | C18: Nexus School | D18: Day | E18: 8 | F18: 0 | G18: KCC | H18: 0 | I18: 0 | J18: 186 | K18: 14 | L18: 200 | M18: 28 | N18: 0 | O18: 0 | S18: 7040MLD&SLCN | T18: 2016.332049
B19: 7056 | C19: Five Acre Wood School | D19: Day | E19: 15 | F19: 0 | G19: KCC | H19: 0 | I19: 0 | J19: 412 | K19: 58 | L19: 420 | M19: 50 | N19: 0 | O19: 0 | S19: 7040BESD | T19: 4004.658728
B20: 7063 | C20: St Nicholas' School | D20: Day | E20: 6 | F20: 0 | G20: KCC | H20: 0 | I20: 0 | J20: 229 | K20: 43 | L20: 249 | M20: 43 | N20: 0 | O20: 0 | S20: 7040SLD | T20: 6038.88591
B21: 7066 | C21: Milestone Academy | D21: Day | E21: 12 | F21: 1 | G21: ESFA | H21: 0 | I21: 0 | J21: 275 | K21: 55 | L21: 285 | M21: 55 | N21: 0 | O21: 0 | S21: 7040PD&PMLD | T21: 12742.44688
B22: 7069 | C22: The Wyvern School | D22: Day | E22: 5 | F22: 0 | G22: KCC | H22: 0 | I22: 0 | J22: 235 | K22: 35 | L22: 255 | M22: 35 | N22: 0 | O22: 0 | S22: 7040ASD | T22: 8809.294701
B23: 7070 | C23: Oakley School | D23: Day | E23: 12 | F23: 0 | G23: KCC | H23: 0 | I23: 0 | J23: 158 | K23: 42 | L23: 200 | M23: 52 | N23: 0 | O23: 0 | S23: 7041MLD&SLCN | T23: 4106.033266
B24: 7072 | C24: Meadowfield School | D24: Day | E24: 6 | F24: 0 | G24: KCC | H24: 0 | I24: 0 | J24: 270 | K24: 50 | L24: 298 | M24: 50 | N24: 0 | O24: 0 | S24: 7041BESD | T24: 8665.474062
B25: 7111 | C25: Snowfields | D25: Day | E25: 0 | F25: 0 | G25: ESFA | H25: 0 | I25: 0 | J25: 0 | K25: 0 | L25: 60 | M25: 0 | N25: 0 | O25: 0 | S25: 7041SLD | T25: 7649.92526
B26: 7222 | C26: Aspire | D26: Day | E26: 0 | F26: 0 | G26: ESFA | H26: 0 | I26: 0 | J26: 0 | K26: 0 | L26: 32 | M26: 0 | N26: 0 | O26: 0 | S26: 7041PD&PMLD | T26: 14353.48623
S27: 7041ASD | T27: 9682.066057
S28: 7043MLD&SLCN | T28: 1771.354798
S29: 7043BESD | T29: 3531.597272
S30: 7043SLD | T30: 5381.765664
S31: 7043PD&PMLD | T31: 11949.23027
S32: 7043ASD | T32: 8016.078087
S33: 7044MLD&SLCN | T33: 4536.096072
S34: 7044BESD | T34: 6972.644019
S35: 7044SLD | T35: 8636.815147
S36: 7044PD&PMLD | T36: 15470.55614
S37: 7044ASD | T37: 10714.41882
S38: 7045MLD&SLCN | T38: 3048.917283
S39: 7045BESD | T39: 5260.263829
S40: 7045SLD | T40: 6858.73993
S41: 7045PD&PMLD | T41: 13440.76015
S42: 7045ASD | T42: 8783.411743
S43: 7051MLD&SLCN | T43: 2773.076948
S44: 7051BESD | T44: 4600.180205
S45: 7051SLD | T45: 6588.396252
S46: 7051PD&PMLD | T46: 13291.95722
S47: 7051ASD | T47: 9358.805042
S48: 7052MLD&SLCN | T48: 2861.065093
S49: 7052BESD | T49: 4744.239879
S50: 7052SLD | T50: 6670.88774
S51: 7052PD&PMLD | T51: 13196.61538
S52: 7052ASD | T52: 9294.784527
S53: 7056MLD&SLCN | T53: 1254.39
S54: 7056BESD | T54: 3042.079118
S55: 7056SLD | T55: 5076.3063
S56: 7056PD&PMLD | T56: 11779.86727
S57: 7056ASD | T57: 7846.715091
S58: 7062MLD&SLCN | T58: 5171.586578
S59: 7062BESD | T59: 7461.693509
S60: 7062SLD | T60: 9194.140438
S61: 7062PD&PMLD | T61: 15897.70141
S62: 7062ASD | T62: 11226.28124
S63: 7063MLD&SLCN | T63: 1849.682846
S64: 7063BESD | T64: 3838.009524
S65: 7063SLD | T65: 5872.236707
S66: 7063PD&PMLD | T66: 12575.79768
S67: 7063ASD | T67: 8642.645497
S68: 7066MLD&SLCN | T68: 1954.581569
S69: 7066BESD | T69: 3990.891463
S70: 7066SLD | T70: 6055.300644
S71: 7066PD&PMLD | T71: 12889.04164
S72: 7066ASD | T72: 8884.905992
S73: 7067MLD&SLCN | T73: 6589.670146
S74: 7067BESD | T74: 11361.33469
S75: 7067SLD | T75: 10399.49279
S76: 7067PD&PMLD | T76: 16748.53852
S77: 7067ASD | T77: 12324.16461
S78: 7069MLD&SLCN | T78: 1692.780056
S79: 7069BESD | T79: 3681.106735
S80: 7069SLD | T80: 5715.333917
S81: 7069PD&PMLD | T81: 12418.89489
S82: 7069ASD | T82: 8485.742708
S83: 7070MLD&SLCN | T83: 2081.418866
S84: 7070BESD | T84: 4069.745544
S85: 7070SLD | T85: 6103.972727
S86: 7070PD&PMLD | T86: 12807.5337
S87: 7070ASD | T87: 8874.381517
S88: 7072MLD&SLCN | T88: 1420.638679
S89: 7072BESD | T89: 3408.965357
S90: 7072SLD | T90: 5443.192539
S91: 7072PD&PMLD | T91: 12146.75351
S92: 7072ASD | T92: 8213.60133
S93: 7002MLD&SLCN | T93: 4529.831195
S94: 7002BESD | T94: 5687.057906
S95: 7002SLD | T95: 8083.41318
S96: 7002PD&PMLD | T96: 14009.60845
S97: 7002ASD | T97: 10545.70571
S98: 7002WeekdayASD | T98: 49779.3956
S99: 7021MLD&SLCN | T99: 6230.930072
S100: 7021BESD | T100: 8267.239966
S101: 7021SLD | T101: 10331.64915
S102: 7021PD&PMLD | T102: 17165.39014
S103: 7021ASD | T103: 12409.25282
S104: 7021WeekdayPD&PMLD | T104: 65376.90555
S105: 7021WeekendPD&PMLD | T105: 91427.99373
S106: 7058MLD&SLCN | T106: 6536.410515
S107: 7058BESD | T107: 8448.26309
S108: 7058SLD | T108: 10404.25077
S109: 7058PD&PMLD | T109: 16850.62301
S110: 7058ASD | T110: 19561.88276
S111: 7058WeekdayPD&PMLD | T111: 63383.57638
S112: 7058WeekdayASD | T112: 66094.83614
S113: 7073MLD&SLCN | T113: 2312.927088
S114: 7073BESD | T114: 4301.253766
S115: 7073SLD | T115: 6335.480949
S116: 7073PD&PMLD | T116: 13039.04192
S117: 7073ASD | T117: 9105.889739
S118: 7073WeekdayPD&PMLD | T118: 82865.01624
S119: 7073WeekdayASD | T119: 78931.86406
S120: 7111MLD&SLCN | T120: 7643.896147
S121: 7111BESD | T121: 9632.222825
S122: 7111SLD | T122: 11666.45001
S123: 7111PD&PMLD | T123: 18370.01098
S124: 7111ASD | T124: 14436.8588
S125: 7222MLD&SLCN | T125: 14477.25792
S126: 7222BESD | T126: 16465.5846
S127: 7222SLD | T127: 18499.81178
S128: 7222PD&PMLD | T128: 25203.37276
S129: 7222ASD | T129: 21270.22057

Sheet Contents
A1: Contents
A3: Pupils | B3: Input pupil details in order to calculate element 3 for 2020-21
A4: Year 1 | B4: This is the summary of all funding streams for 2020-21. The following funding is summarised on this tab, Element 3, Place funding, excess place funding, Pupil Premium (PP) and Universal Infant Free School Meals (UIFSM). It also details the amount of pooled funding that will passed back to the LA.
A5: Other Grants | B5: Various Grants are recorded on this tab that have not been included in Years 1, 2 & 3.
A6: Excess E1 & E2 | B6: This tab provides the detailed calculation of additional place funding for excess places. The total excess place funding is then fed into the Year 1 tab.
A7: Year 2 & 3 | B7: This input sheet is where your schools estimated pupil numbers for 2021-22 (year 2) and 2022-23 (year 3) are input. The numbers in this sheet will determine your element 3 funding for 2021-22 and 2022-23 which will then be shown in the relevant Year 2 and Year 3 tab.
A8: Year 2 | B8: This is the summary of all funding streams for 2021-22. The following funding is summarised on this tab, Element 3, Place funding, Pupil Premium (PP) and Universal Infant Free School Meals (UIFSM). It also details the amount of pooled funding that will passed back to the LA.
A9: Year 3 | B9: This is the summary of all funding streams for 2022-23. The following funding is summarised on this tab, Element 3, Place funding, Pupil Premium (PP) and Universal Infant Free School Meals (UIFSM). It also details the amount of pooled funding that will passed back to the LA.
A10: Monthly Statement | B10: This sheet is the monthly list of pupils funded through the schools advances system and will be populated by the template user.
A11: Reconcilation | B11: This tab, reconciles the information on the pupils tab and the monthly statement.
A12: BPS Summary | B12: This tab will be populated with the outputs from tabs Year 1, 2 and 3 and will be subsequently input into the BPS financial tool.

Sheet Pupils
H1: =SUM(H4:H800) -> 0 | I1: =SUM(I4:I800) -> 0 | J1: 0 | K1: 0 | L1: 0 | M1: 0 | N1: 0 | O1: 0 | P1: 0 | Q1: 0 | R1: 0 | S1: 0 | T1: 0
A3: Pupil Key | B3: Pupil Surname | C3: Pupil Forename | D3: Need Type | E3: Placement START Date | F3: Placement END Date | G3: Annual Rate | H3: April (March Pupils) | I3: May (April Pupils) | J3: June (May Pupils) | K3: July (June Pupils) | L3: August (July Pupils) | M3: September (July Pupils) | N3: October (September Pupils) | O3: November (October Pupils) | P3: December (November Pupils) | Q3: January (December Pupils) | R3: February (January Pupils) | S3: March (February Pupils) | T3: Total For Pupil
G4: =IFERROR(VLOOKUP(dfenum&D4,rates,2,0),0) -> 0 | H4: =IF(AND($E4<DATE(2020,4,1),$F4>DATE(2020,2,29)),$G4/12,0) -> 0 | I4: =IF(AND($E4<DATE(2020,5,1),$F4>DATE(2020,3,31)),$G4/12,0) -> 0 | J4: =IF(AND($E4<DATE(2020,6,1),$F4>DATE(2020,4,30)),$G4/12,0) -> 0 | K4: =IF(AND($E4<DATE(2020,7,1),$F4>DATE(2020,5,31)),$G4/12,0) -> 0 | L4: =IF(AND($E4<DATE(2020,8,1),$F4>DATE(2020,6,30)),$G4/12,0) -> 0 | M4: 0 | N4: =IF(AND($E4<DATE(2020,10,1),$F4>DATE(2020,8,31)),$G4/12,0) -> 0 | O4: =IF(AND($E4<DATE(2020,11,1),$F4>DATE(2020,9,30)),$G4/12,0) -> 0 | P4: =IF(AND($E4<DATE(2020,12,1),$F4>DATE(2020,10,31)),$G4/12,0) -> 0 | Q4: =IF(AND($E4<DATE(2021,1,1),$F4>DATE(2020,11,30)),$G4/12,0) -> 0 | R4: =IF(AND($E4<DATE(2021,2,1),$F4>DATE(2020,12,31)),$G4/12,0) -> 0 | S4: =IF(AND($E4<DATE(2021,3,1),$F4>DATE(2021,1,31)),$G4/12,0) -> 0 | T4: =SUM(H4:S4) -> 0
G5: 0 | H5: 0 | I5: 0 | J5: 0 | K5: 0 | L5: 0 | M5: 0 | N5: 0 | O5: 0 | P5: 0 | Q5: 0 | R5: 0 | S5: 0 | T5: 0
G6: 0 | H6: 0 | I6: 0 | J6: 0 | K6: 0 | L6: 0 | M6: 0 | N6: 0 | O6: 0 | P6: 0 | Q6: 0 | R6: 0 | S6: 0 | T6: 0
G7: 0 | H7: 0 | I7: 0 | J7: 0 | K7: 0 | L7: 0 | M7: 0 | N7: 0 | O7: 0 | P7: 0 | Q7: 0 | R7: 0 | S7: 0 | T7: 0
G8: 0 | H8: 0 | I8: 0 | J8: 0 | K8: 0 | L8: 0 | M8: 0 | N8: 0 | O8: 0 | P8: 0 | Q8: 0 | R8: 0 | S8: 0 | T8: 0
G9: 0 | H9: 0 | I9: 0 | J9: 0 | K9: 0 | L9: 0 | M9: 0 | N9: 0 | O9: 0 | P9: 0 | Q9: 0 | R9: 0 | S9: 0 | T9: 0
G10: 0 | H10: 0 | I10: 0 | J10: 0 | K10: 0 | L10: 0 | M10: 0 | N10: 0 | O10: 0 | P10: 0 | Q10: 0 | R10: 0 | S10: 0 | T10: 0
G11: 0 | H11: 0 | I11: 0 | J11: 0 | K11: 0 | L11: 0 | M11: 0 | N11: 0 | O11: 0 | P11: 0 | Q11: 0 | R11: 0 | S11: 0 | T11: 0
G12: 0 | H12: 0 | I12: 0 | J12: 0 | K12: 0 | L12: 0 | M12: 0 | N12: 0 | O12: 0 | P12: 0 | Q12: 0 | R12: 0 | S12: 0 | T12: 0
G13: 0 | H13: 0 | I13: 0 | J13: 0 | K13: 0 | L13: 0 | M13: 0 | N13: 0 | O13: 0 | P13: 0 | Q13: 0 | R13: 0 | S13: 0 | T13: 0
G14: 0 | H14: 0 | I14: 0 | J14: 0 | K14: 0 | L14: 0 | M14: 0 | N14: 0 | O14: 0 | P14: 0 | Q14: 0 | R14: 0 | S14: 0 | T14: 0
G15: 0 | H15: 0 | I15: 0 | J15: 0 | K15: 0 | L15: 0 | M15: 0 | N15: 0 | O15: 0 | P15: 0 | Q15: 0 | R15: 0 | S15: 0 | T15: 0
G16: 0 | H16: 0 | I16: 0 | J16: 0 | K16: 0 | L16: 0 | M16: 0 | N16: 0 | O16: 0 | P16: 0 | Q16: 0 | R16: 0 | S16: 0 | T16: 0
G17: 0 | H17: 0 | I17: 0 | J17: 0 | K17: 0 | L17: 0 | M17: 0 | N17: 0 | O17: 0 | P17: 0 | Q17: 0 | R17: 0 | S17: 0 | T17: 0
G18: 0 | H18: 0 | I18: 0 | J18: 0 | K18: 0 | L18: 0 | M18: 0 | N18: 0 | O18: 0 | P18: 0 | Q18: 0 | R18: 0 | S18: 0 | T18: 0
G19: 0 | H19: 0 | I19: 0 | J19: 0 | K19: 0 | L19: 0 | M19: 0 | N19: 0 | O19: 0 | P19: 0 | Q19: 0 | R19: 0 | S19: 0 | T19: 0
G20: 0 | H20: 0 | I20: 0 | J20: 0 | K20: 0 | L20: 0 | M20: 0 | N20: 0 | O20: 0 | P20: 0 | Q20: 0 | R20: 0 | S20: 0 | T20: 0
G21: 0 | H21: 0 | I21: 0 | J21: 0 | K21: 0 | L21: 0 | M21: 0 | N21: 0 | O21: 0 | P21: 0 | Q21: 0 | R21: 0 | S21: 0 | T21: 0
G22: 0 | H22: 0 | I22: 0 | J22: 0 | K22: 0 | L22: 0 | M22: 0 | N22: 0 | O22: 0 | P22: 0 | Q22: 0 | R22: 0 | S22: 0 | T22: 0
G23: 0 | H23: 0 | I23: 0 | J23: 0 | K23: 0 | L23: 0 | M23: 0 | N23: 0 | O23: 0 | P23: 0 | Q23: 0 | R23: 0 | S23: 0 | T23: 0
G24: 0 | H24: 0 | I24: 0 | J24: 0 | K24: 0 | L24: =IF(AND($E24<DATE(2020,8,1),$F24>DATE(2020,6,30)),$G24/12,0) -> 0 | M24: 0 | N24: 0 | O24: 0 | P24: 0 | Q24: 0 | R24: 0 | S24: 0 | T24: 0
G25: 0 | H25: 0 | I25: 0 | J25: 0 | K25: 0 | L25: 0 | M25: 0 | N25: 0 | O25: 0 | P25: 0 | Q25: 0 | R25: 0 | S25: 0 | T25: 0
G26: 0 | H26: 0 | I26: 0 | J26: 0 | K26: 0 | L26: 0 | M26: 0 | N26: 0 | O26: 0 | P26: 0 | Q26: 0 | R26: 0 | S26: 0 | T26: 0
G27: 0 | H27: 0 | I27: 0 | J27: 0 | K27: 0 | L27: 0 | M27: 0 | N27: 0 | O27: 0 | P27: 0 | Q27: 0 | R27: 0 | S27: 0 | T27: 0
G28: 0 | H28: 0 | I28: 0 | J28: 0 | K28: 0 | L28: 0 | M28: 0 | N28: 0 | O28: 0 | P28: 0 | Q28: 0 | R28: 0 | S28: 0 | T28: 0
G29: 0 | H29: 0 | I29: 0 | J29: 0 | K29: 0 | L29: 0 | M29: 0 | N29: 0 | O29: 0 | P29: 0 | Q29: 0 | R29: 0 | S29: 0 | T29: 0
G30: 0 | H30: 0 | I30: 0 | J30: 0 | K30: 0 | L30: 0 | M30: 0 | N30: 0 | O30: 0 | P30: 0 | Q30: 0 | R30: 0 | S30: 0 | T30: 0
G31: 0 | H31: 0 | I31: 0 | J31: 0 | K31: 0 | L31: 0 | M31: 0 | N31: 0 | O31: 0 | P31: 0 | Q31: 0 | R31: 0 | S31: 0 | T31: 0
G32: 0 | H32: 0 | I32: 0 | J32: 0 | K32: 0 | L32: 0 | M32: 0 | N32: 0 | O32: 0 | P32: 0 | Q32: 0 | R32: 0 | S32: 0 | T32: 0
G33: 0 | H33: 0 | I33: 0 | J33: 0 | K33: 0 | L33: 0 | M33: 0 | N33: 0 | O33: 0 | P33: 0 | Q33: 0 | R33: 0 | S33: 0 | T33: 0
G34: 0 | H34: 0 | I34: 0 | J34: 0 | K34: 0 | L34: 0 | M34: 0 | N34: 0 | O34: 0 | P34: 0 | Q34: 0 | R34: 0 | S34: 0 | T34: 0
G35: 0 | H35: 0 | I35: 0 | J35: 0 | K35: 0 | L35: 0 | M35: 0 | N35: 0 | O35: 0 | P35: 0 | Q35: 0 | R35: 0 | S35: 0 | T35: 0
G36: 0 | H36: 0 | I36: 0 | J36: 0 | K36: 0 | L36: 0 | M36: 0 | N36: 0 | O36: 0 | P36: 0 | Q36: 0 | R36: 0 | S36: 0 | T36: 0
G37: 0 | H37: 0 | I37: 0 | J37: 0 | K37: 0 | L37: 0 | M37: 0 | N37: 0 | O37: 0 | P37: 0 | Q37: 0 | R37: 0 | S37: 0 | T37: 0
G38: 0 | H38: 0 | I38: 0 | J38: 0 | K38: 0 | L38: 0 | M38: 0 | N38: 0 | O38: 0 | P38: 0 | Q38: 0 | R38: 0 | S38: 0 | T38: 0
G39: 0 | H39: 0 | I39: 0 | J39: 0 | K39: 0 | L39: 0 | M39: 0 | N39: 0 | O39: 0 | P39: 0 | Q39: 0 | R39: 0 | S39: 0 | T39: 0
G40: 0 | H40: 0 | I40: 0 | J40: 0 | K40: 0 | L40: 0 | M40: 0 | N40: 0 | O40: 0 | P40: 0 | Q40: 0 | R40: 0 | S40: 0 | T40: 0
G41: 0 | H41: 0 | I41: 0 | J41: 0 | K41: 0 | L41: 0 | M41: 0 | N41: 0 | O41: 0 | P41: 0 | Q41: 0 | R41: 0 | S41: 0 | T41: 0
G42: 0 | H42: 0 | I42: 0 | J42: 0 | K42: 0 | L42: 0 | M42: 0 | N42: 0 | O42: 0 | P42: 0 | Q42: 0 | R42: 0 | S42: 0 | T42: 0
G43: 0 | H43: 0 | I43: 0 | J43: 0 | K43: 0 | L43: 0 | M43: 0 | N43: 0 | O43: 0 | P43: 0 | Q43: 0 | R43: 0 | S43: 0 | T43: 0
G44: 0 | H44: 0 | I44: 0 | J44: 0 | K44: 0 | L44: =IF(AND($E44<DATE(2020,8,1),$F44>DATE(2020,6,30)),$G44/12,0) -> 0 | M44: 0 | N44: 0 | O44: 0 | P44: 0 | Q44: 0 | R44: 0 | S44: 0 | T44: 0
G45: 0 | H45: 0 | I45: 0 | J45: 0 | K45: 0 | L45: 0 | M45: 0 | N45: 0 | O45: 0 | P45: 0 | Q45: 0 | R45: 0 | S45: 0 | T45: 0
G46: 0 | H46: 0 | I46: 0 | J46: 0 | K46: 0 | L46: 0 | M46: 0 | N46: 0 | O46: 0 | P46: 0 | Q46: 0 | R46: 0 | S46: 0 | T46: 0
G47: 0 | H47: 0 | I47: 0 | J47: 0 | K47: 0 | L47: 0 | M47: 0 | N47: 0 | O47: 0 | P47: 0 | Q47: 0 | R47: 0 | S47: 0 | T47: 0
G48: 0 | H48: 0 | I48: 0 | J48: 0 | K48: 0 | L48: 0 | M48: 0 | N48: 0 | O48: 0 | P48: 0 | Q48: 0 | R48: 0 | S48: 0 | T48: 0
G49: 0 | H49: 0 | I49: 0 | J49: 0 | K49: 0 | L49: 0 | M49: 0 | N49: 0 | O49: 0 | P49: 0 | Q49: 0 | R49: 0 | S49: 0 | T49: 0
G50: 0 | H50: 0 | I50: 0 | J50: 0 | K50: 0 | L50: 0 | M50: 0 | N50: 0 | O50: 0 | P50: 0 | Q50: 0 | R50: 0 | S50: 0 | T50: 0
G51: 0 | H51: 0 | I51: 0 | J51: 0 | K51: 0 | L51: 0 | M51: 0 | N51: 0 | O51: 0 | P51: 0 | Q51: 0 | R51: 0 | S51: 0 | T51: 0
G52: 0 | H52: 0 | I52: 0 | J52: 0 | K52: 0 | L52: 0 | M52: 0 | N52: 0 | O52: 0 | P52: 0 | Q52: 0 | R52: 0 | S52: 0 | T52: 0
G53: 0 | H53: 0 | I53: 0 | J53: 0 | K53: 0 | L53: 0 | M53: 0 | N53: 0 | O53: 0 | P53: 0 | Q53: 0 | R53: 0 | S53: 0 | T53: 0
G54: 0 | H54: 0 | I54: 0 | J54: 0 | K54: 0 | L54: 0 | M54: 0 | N54: 0 | O54: 0 | P54: 0 | Q54: 0 | R54: 0 | S54: 0 | T54: 0
G55: 0 | H55: 0 | I55: 0 | J55: 0 | K55: 0 | L55: 0 | M55: 0 | N55: 0 | O55: 0 | P55: 0 | Q55: 0 | R55: 0 | S55: 0 | T55: 0
G56: 0 | H56: 0 | I56: 0 | J56: 0 | K56: 0 | L56: 0 | M56: 0 | N56: 0 | O56: 0 | P56: 0 | Q56: 0 | R56: 0 | S56: 0 | T56: 0
G57: 0 | H57: 0 | I57: 0 | J57: 0 | K57: 0 | L57: 0 | M57: 0 | N57: 0 | O57: 0 | P57: 0 | Q57: 0 | R57: 0 | S57: 0 | T57: 0
G58: 0 | H58: 0 | I58: 0 | J58: 0 | K58: 0 | L58: 0 | M58: 0 | N58: 0 | O58: 0 | P58: 0 | Q58: 0 | R58: 0 | S58: 0 | T58: 0
G59: 0 | H59: 0 | I59: 0 | J59: 0 | K59: 0 | L59: 0 | M59: 0 | N59: 0 | O59: 0 | P59: 0 | Q59: 0 | R59: 0 | S59: 0 | T59: 0
G60: 0 | H60: 0 | I60: 0 | J60: 0 | K60: 0 | L60: 0 | M60: 0 | N60: 0 | O60: 0 | P60: 0 | Q60: 0 | R60: 0 | S60: 0 | T60: 0
G61: 0 | H61: 0 | I61: 0 | J61: 0 | K61: 0 | L61: 0 | M61: 0 | N61: 0 | O61: 0 | P61: 0 | Q61: 0 | R61: 0 | S61: 0 | T61: 0
G62: 0 | H62: 0 | I62: 0 | J62: 0 | K62: 0 | L62: 0 | M62: 0 | N62: 0 | O62: 0 | P62: 0 | Q62: 0 | R62: 0 | S62: 0 | T62: 0
G63: 0 | H63: 0 | I63: 0 | J63: 0 | K63: 0 | L63: 0 | M63: 0 | N63: 0 | O63: 0 | P63: 0 | Q63: 0 | R63: 0 | S63: 0 | T63: 0
G64: 0 | H64: 0 | I64: 0 | J64: 0 | K64: 0 | L64: =IF(AND($E64<DATE(2020,8,1),$F64>DATE(2020,6,30)),$G64/12,0) -> 0 | M64: 0 | N64: 0 | O64: 0 | P64: 0 | Q64: 0 | R64: 0 | S64: 0 | T64: 0
G65: 0 | H65: 0 | I65: 0 | J65: 0 | K65: 0 | L65: 0 | M65: 0 | N65: 0 | O65: 0 | P65: 0 | Q65: 0 | R65: 0 | S65: 0 | T65: 0
G66: 0 | H66: 0 | I66: 0 | J66: 0 | K66: 0 | L66: 0 | M66: 0 | N66: 0 | O66: 0 | P66: 0 | Q66: 0 | R66: 0 | S66: 0 | T66: 0
G67: 0 | H67: 0 | I67: 0 | J67: 0 | K67: 0 | L67: 0 | M67: 0 | N67: 0 | O67: 0 | P67: 0 | Q67: 0 | R67: 0 | S67: 0 | T67: 0
G68: =IFERROR(VLOOKUP(dfenum&D68,rates,2,0),0) -> 0 | H68: =IF(AND($E68<DATE(2020,4,1),$F68>DATE(2020,2,29)),$G68/12,0) -> 0 | I68: =IF(AND($E68<DATE(2020,5,1),$F68>DATE(2020,3,31)),$G68/12,0) -> 0 | J68: =IF(AND($E68<DATE(2020,6,1),$F68>DATE(2020,4,30)),$G68/12,0) -> 0 | K68: =IF(AND($E68<DATE(2020,7,1),$F68>DATE(2020,5,31)),$G68/12,0) -> 0 | L68: 0 | M68: 0 | N68: =IF(AND($E68<DATE(2020,10,1),$F68>DATE(2020,8,31)),$G68/12,0) -> 0 | O68: =IF(AND($E68<DATE(2020,11,1),$F68>DATE(2020,9,30)),$G68/12,0) -> 0 | P68: =IF(AND($E68<DATE(2020,12,1),$F68>DATE(2020,10,31)),$G68/12,0) -> 0 | Q68: =IF(AND($E68<DATE(2021,1,1),$F68>DATE(2020,11,30)),$G68/12,0) -> 0 | R68: =IF(AND($E68<DATE(2021,2,1),$F68>DATE(2020,12,31)),$G68/12,0) -> 0 | S68: =IF(AND($E68<DATE(2021,3,1),$F68>DATE(2021,1,31)),$G68/12,0) -> 0 | T68: =SUM(H68:S68) -> 0
G69: 0 | H69: 0 | I69: 0 | J69: 0 | K69: 0 | L69: 0 | M69: 0 | N69: 0 | O69: 0 | P69: 0 | Q69: 0 | R69: 0 | S69: 0 | T69: 0
G70: 0 | H70: 0 | I70: 0 | J70: 0 | K70: 0 | L70: 0 | M70: 0 | N70: 0 | O70: 0 | P70: 0 | Q70: 0 | R70: 0 | S70: 0 | T70: 0
G71: 0 | H71: 0 | I71: 0 | J71: 0 | K71: 0 | L71: 0 | M71: 0 | N71: 0 | O71: 0 | P71: 0 | Q71: 0 | R71: 0 | S71: 0 | T71: 0
G72: 0 | H72: 0 | I72: 0 | J72: 0 | K72: 0 | L72: 0 | M72: 0 | N72: 0 | O72: 0 | P72: 0 | Q72: 0 | R72: 0 | S72: 0 | T72: 0
G73: 0 | H73: 0 | I73: 0 | J73: 0 | K73: 0 | L73: 0 | M73: 0 | N73: 0 | O73: 0 | P73: 0 | Q73: 0 | R73: 0 | S73: 0 | T73: 0
G74: 0 | H74: 0 | I74: 0 | J74: 0 | K74: 0 | L74: 0 | M74: 0 | N74: 0 | O74: 0 | P74: 0 | Q74: 0 | R74: 0 | S74: 0 | T74: 0
G75: 0 | H75: 0 | I75: 0 | J75: 0 | K75: 0 | L75: 0 | M75: 0 | N75: 0 | O75: 0 | P75: 0 | Q75: 0 | R75: 0 | S75: 0 | T75: 0
G76: 0 | H76: 0 | I76: 0 | J76: 0 | K76: 0 | L76: 0 | M76: 0 | N76: 0 | O76: 0 | P76: 0 | Q76: 0 | R76: 0 | S76: 0 | T76: 0
G77: 0 | H77: 0 | I77: 0 | J77: 0 | K77: 0 | L77: 0 | M77: 0 | N77: 0 | O77: 0 | P77: 0 | Q77: 0 | R77: 0 | S77: 0 | T77: 0
G78: 0 | H78: 0 | I78: 0 | J78: 0 | K78: 0 | L78: 0 | M78: 0 | N78: 0 | O78: 0 | P78: 0 | Q78: 0 | R78: 0 | S78: 0 | T78: 0
G79: 0 | H79: 0 | I79: 0 | J79: 0 | K79: 0 | L79: 0 | M79: 0 | N79: 0 | O79: 0 | P79: 0 | Q79: 0 | R79: 0 | S79: 0 | T79: 0
G80: 0 | H80: 0 | I80: 0 | J80: 0 | K80: 0 | L80: 0 | M80: 0 | N80: 0 | O80: 0 | P80: 0 | Q80: 0 | R80: 0 | S80: 0 | T80: 0
G81: 0 | H81: 0 | I81: 0 | J81: 0 | K81: 0 | L81: 0 | M81: 0 | N81: 0 | O81: 0 | P81: 0 | Q81: 0 | R81: 0 | S81: 0 | T81: 0
G82: 0 | H82: 0 | I82: 0 | J82: 0 | K82: 0 | L82: 0 | M82: 0 | N82: 0 | O82: 0 | P82: 0 | Q82: 0 | R82: 0 | S82: 0 | T82: 0
G83: 0 | H83: 0 | I83: 0 | J83: 0 | K83: 0 | L83: 0 | M83: 0 | N83: 0 | O83: 0 | P83: 0 | Q83: 0 | R83: 0 | S83: 0 | T83: 0
G84: 0 | H84: 0 | I84: 0 | J84: 0 | K84: 0 | L84: =IF(AND($E84<DATE(2020,8,1),$F84>DATE(2020,6,30)),$G84/12,0) -> 0 | M84: 0 | N84: 0 | O84: 0 | P84: 0 | Q84: 0 | R84: 0 | S84: 0 | T84: 0
G85: 0 | H85: 0 | I85: 0 | J85: 0 | K85: 0 | L85: 0 | M85: 0 | N85: 0 | O85: 0 | P85: 0 | Q85: 0 | R85: 0 | S85: 0 | T85: 0
G86: 0 | H86: 0 | I86: 0 | J86: 0 | K86: 0 | L86: 0 | M86: 0 | N86: 0 | O86: 0 | P86: 0 | Q86: 0 | R86: 0 | S86: 0 | T86: 0
G87: 0 | H87: 0 | I87: 0 | J87: 0 | K87: 0 | L87: 0 | M87: 0 | N87: 0 | O87: 0 | P87: 0 | Q87: 0 | R87: 0 | S87: 0 | T87: 0
G88: 0 | H88: 0 | I88: 0 | J88: 0 | K88: 0 | L88: 0 | M88: 0 | N88: 0 | O88: 0 | P88: 0 | Q88: 0 | R88: 0 | S88: 0 | T88: 0
G89: 0 | H89: 0 | I89: 0 | J89: 0 | K89: 0 | L89: 0 | M89: 0 | N89: 0 | O89: 0 | P89: 0 | Q89: 0 | R89: 0 | S89: 0 | T89: 0
G90: 0 | H90: 0 | I90: 0 | J90: 0 | K90: 0 | L90: 0 | M90: 0 | N90: 0 | O90: 0 | P90: 0 | Q90: 0 | R90: 0 | S90: 0 | T90: 0
G91: 0 | H91: 0 | I91: 0 | J91: 0 | K91: 0 | L91: 0 | M91: 0 | N91: 0 | O91: 0 | P91: 0 | Q91: 0 | R91: 0 | S91: 0 | T91: 0
G92: 0 | H92: 0 | I92: 0 | J92: 0 | K92: 0 | L92: 0 | M92: 0 | N92: 0 | O92: 0 | P92: 0 | Q92: 0 | R92: 0 | S92: 0 | T92: 0
G93: 0 | H93: 0 | I93: 0 | J93: 0 | K93: 0 | L93: 0 | M93: 0 | N93: 0 | O93: 0 | P93: 0 | Q93: 0 | R93: 0 | S93: 0 | T93: 0
G94: 0 | H94: 0 | I94: 0 | J94: 0 | K94: 0 | L94: 0 | M94: 0 | N94: 0 | O94: 0 | P94: 0 | Q94: 0 | R94: 0 | S94: 0 | T94: 0
G95: 0 | H95: 0 | I95: 0 | J95: 0 | K95: 0 | L95: 0 | M95: 0 | N95: 0 | O95: 0 | P95: 0 | Q95: 0 | R95: 0 | S95: 0 | T95: 0
G96: 0 | H96: 0 | I96: 0 | J96: 0 | K96: 0 | L96: 0 | M96: 0 | N96: 0 | O96: 0 | P96: 0 | Q96: 0 | R96: 0 | S96: 0 | T96: 0
G97: 0 | H97: 0 | I97: 0 | J97: 0 | K97: 0 | L97: 0 | M97: 0 | N97: 0 | O97: 0 | P97: 0 | Q97: 0 | R97: 0 | S97: 0 | T97: 0
G98: 0 | H98: 0 | I98: 0 | J98: 0 | K98: 0 | L98: 0 | M98: 0 | N98: 0 | O98: 0 | P98: 0 | Q98: 0 | R98: 0 | S98: 0 | T98: 0
G99: 0 | H99: 0 | I99: 0 | J99: 0 | K99: 0 | L99: 0 | M99: 0 | N99: 0 | O99: 0 | P99: 0 | Q99: 0 | R99: 0 | S99: 0 | T99: 0
G100: 0 | H100: 0 | I100: 0 | J100: 0 | K100: 0 | L100: 0 | M100: 0 | N100: 0 | O100: 0 | P100: 0 | Q100: 0 | R100: 0 | S100: 0 | T100: 0
G101: 0 | H101: 0 | I101: 0 | J101: 0 | K101: 0 | L101: 0 | M101: 0 | N101: 0 | O101: 0 | P101: 0 | Q101: 0 | R101: 0 | S101: 0 | T101: 0
G102: 0 | H102: 0 | I102: 0 | J102: 0 | K102: 0 | L102: 0 | M102: 0 | N102: 0 | O102: 0 | P102: 0 | Q102: 0 | R102: 0 | S102: 0 | T102: 0
G103: 0 | H103: 0 | I103: 0 | J103: 0 | K103: 0 | L103: 0 | M103: 0 | N103: 0 | O103: 0 | P103: 0 | Q103: 0 | R103: 0 | S103: 0 | T103: 0
G104: 0 | H104: 0 | I104: 0 | J104: 0 | K104: 0 | L104: =IF(AND($E104<DATE(2020,8,1),$F104>DATE(2020,6,30)),$G104/12,0) -> 0 | M104: 0 | N104: 0 | O104: 0 | P104: 0 | Q104: 0 | R104: 0 | S104: 0 | T104: 0
G105: 0 | H105: 0 | I105: 0 | J105: 0 | K105: 0 | L105: 0 | M105: 0 | N105: 0 | O105: 0 | P105: 0 | Q105: 0 | R105: 0 | S105: 0 | T105: 0
G106: 0 | H106: 0 | I106: 0 | J106: 0 | K106: 0 | L106: 0 | M106: 0 | N106: 0 | O106: 0 | P106: 0 | Q106: 0 | R106: 0 | S106: 0 | T106: 0
G107: 0 | H107: 0 | I107: 0 | J107: 0 | K107: 0 | L107: 0 | M107: 0 | N107: 0 | O107: 0 | P107: 0 | Q107: 0 | R107: 0 | S107: 0 | T107: 0
G108: 0 | H108: 0 | I108: 0 | J108: 0 | K108: 0 | L108: 0 | M108: 0 | N108: 0 | O108: 0 | P108: 0 | Q108: 0 | R108: 0 | S108: 0 | T108: 0
G109: 0 | H109: 0 | I109: 0 | J109: 0 | K109: 0 | L109: 0 | M109: 0 | N109: 0 | O109: 0 | P109: 0 | Q109: 0 | R109: 0 | S109: 0 | T109: 0
G110: 0 | H110: 0 | I110: 0 | J110: 0 | K110: 0 | L110: 0 | M110: 0 | N110: 0 | O110: 0 | P110: 0 | Q110: 0 | R110: 0 | S110: 0 | T110: 0
G111: 0 | H111: 0 | I111: 0 | J111: 0 | K111: 0 | L111: 0 | M111: 0 | N111: 0 | O111: 0 | P111: 0 | Q111: 0 | R111: 0 | S111: 0 | T111: 0
G112: 0 | H112: 0 | I112: 0 | J112: 0 | K112: 0 | L112: 0 | M112: 0 | N112: 0 | O112: 0 | P112: 0 | Q112: 0 | R112: 0 | S112: 0 | T112: 0
G113: 0 | H113: 0 | I113: 0 | J113: 0 | K113: 0 | L113: 0 | M113: 0 | N113: 0 | O113: 0 | P113: 0 | Q113: 0 | R113: 0 | S113: 0 | T113: 0
G114: 0 | H114: 0 | I114: 0 | J114: 0 | K114: 0 | L114: 0 | M114: 0 | N114: 0 | O114: 0 | P114: 0 | Q114: 0 | R114: 0 | S114: 0 | T114: 0
G115: 0 | H115: 0 | I115: 0 | J115: 0 | K115: 0 | L115: 0 | M115: 0 | N115: 0 | O115: 0 | P115: 0 | Q115: 0 | R115: 0 | S115: 0 | T115: 0
G116: 0 | H116: 0 | I116: 0 | J116: 0 | K116: 0 | L116: 0 | M116: 0 | N116: 0 | O116: 0 | P116: 0 | Q116: 0 | R116: 0 | S116: 0 | T116: 0
G117: 0 | H117: 0 | I117: 0 | J117: 0 | K117: 0 | L117: 0 | M117: 0 | N117: 0 | O117: 0 | P117: 0 | Q117: 0 | R117: 0 | S117: 0 | T117: 0
G118: 0 | H118: 0 | I118: 0 | J118: 0 | K118: 0 | L118: 0 | M118: 0 | N118: 0 | O118: 0 | P118: 0 | Q118: 0 | R118: 0 | S118: 0 | T118: 0
G119: 0 | H119: 0 | I119: 0 | J119: 0 | K119: 0 | L119: 0 | M119: 0 | N119: 0 | O119: 0 | P119: 0 | Q119: 0 | R119: 0 | S119: 0 | T119: 0
G120: 0 | H120: 0 | I120: 0 | J120: 0 | K120: 0 | L120: 0 | M120: 0 | N120: 0 | O120: 0 | P120: 0 | Q120: 0 | R120: 0 | S120: 0 | T120: 0
G121: 0 | H121: 0 | I121: 0 | J121: 0 | K121: 0 | L121: 0 | M121: 0 | N121: 0 | O121: 0 | P121: 0 | Q121: 0 | R121: 0 | S121: 0 | T121: 0
G122: 0 | H122: 0 | I122: 0 | J122: 0 | K122: 0 | L122: 0 | M122: 0 | N122: 0 | O122: 0 | P122: 0 | Q122: 0 | R122: 0 | S122: 0 | T122: 0
G123: 0 | H123: 0 | I123: 0 | J123: 0 | K123: 0 | L123: 0 | M123: 0 | N123: 0 | O123: 0 | P123: 0 | Q123: 0 | R123: 0 | S123: 0 | T123: 0
G124: 0 | H124: 0 | I124: 0 | J124: 0 | K124: 0 | L124: =IF(AND($E124<DATE(2020,8,1),$F124>DATE(2020,6,30)),$G124/12,0) -> 0 | M124: 0 | N124: 0 | O124: 0 | P124: 0 | Q124: 0 | R124: 0 | S124: 0 | T124: 0
G125: 0 | H125: 0 | I125: 0 | J125: 0 | K125: 0 | L125: 0 | M125: 0 | N125: 0 | O125: 0 | P125: 0 | Q125: 0 | R125: 0 | S125: 0 | T125: 0
G126: 0 | H126: 0 | I126: 0 | J126: 0 | K126: 0 | L126: 0 | M126: 0 | N126: 0 | O126: 0 | P126: 0 | Q126: 0 | R126: 0 | S126: 0 | T126: 0
G127: 0 | H127: 0 | I127: 0 | J127: 0 | K127: 0 | L127: 0 | M127: 0 | N127: 0 | O127: 0 | P127: 0 | Q127: 0 | R127: 0 | S127: 0 | T127: 0
G128: 0 | H128: 0 | I128: 0 | J128: 0 | K128: 0 | L128: 0 | M128: 0 | N128: 0 | O128: 0 | P128: 0 | Q128: 0 | R128: 0 | S128: 0 | T128: 0
G129: 0 | H129: 0 | I129: 0 | J129: 0 | K129: 0 | L129: 0 | M129: 0 | N129: 0 | O129: 0 | P129: 0 | Q129: 0 | R129: 0 | S129: 0 | T129: 0
G130: 0 | H130: 0 | I130: 0 | J130: 0 | K130: 0 | L130: 0 | M130: 0 | N130: 0 | O130: 0 | P130: 0 | Q130: 0 | R130: 0 | S130: 0 | T130: 0
G131: 0 | H131: 0 | I131: 0 | J131: 0 | K131: 0 | L131: 0 | M131: 0 | N131: 0 | O131: 0 | P131: 0 | Q131: 0 | R131: 0 | S131: 0 | T131: 0
G132: =IFERROR(VLOOKUP(dfenum&D132,rates,2,0),0) -> 0 | H132: =IF(AND($E132<DATE(2020,4,1),$F132>DATE(2020,2,29)),$G132/12,0) -> 0 | I132: =IF(AND($E132<DATE(2020,5,1),$F132>DATE(2020,3,31)),$G132/12,0) -> 0 | J132: =IF(AND($E132<DATE(2020,6,1),$F132>DATE(2020,4,30)),$G132/12,0) -> 0 | K132: =IF(AND($E132<DATE(2020,7,1),$F132>DATE(2020,5,31)),$G132/12,0) -> 0 | L132: 0 | M132: 0 | N132: =IF(AND($E132<DATE(2020,10,1),$F132>DATE(2020,8,31)),$G132/12,0) -> 0 | O132: =IF(AND($E132<DATE(2020,11,1),$F132>DATE(2020,9,30)),$G132/12,0) -> 0 | P132: =IF(AND($E132<DATE(2020,12,1),$F132>DATE(2020,10,31)),$G132/12,0) -> 0 | Q132: =IF(AND($E132<DATE(2021,1,1),$F132>DATE(2020,11,30)),$G132/12,0) -> 0 | R132: =IF(AND($E132<DATE(2021,2,1),$F132>DATE(2020,12,31)),$G132/12,0) -> 0 | S132: =IF(AND($E132<DATE(2021,3,1),$F132>DATE(2021,1,31)),$G132/12,0) -> 0 | T132: =SUM(H132:S132) -> 0
G133: 0 | H133: 0 | I133: 0 | J133: 0 | K133: 0 | L133: 0 | M133: 0 | N133: 0 | O133: 0 | P133: 0 | Q133: 0 | R133: 0 | S133: 0 | T133: 0
G134: 0 | H134: 0 | I134: 0 | J134: 0 | K134: 0 | L134: 0 | M134: 0 | N134: 0 | O134: 0 | P134: 0 | Q134: 0 | R134: 0 | S134: 0 | T134: 0
G135: 0 | H135: 0 | I135: 0 | J135: 0 | K135: 0 | L135: 0 | M135: 0 | N135: 0 | O135: 0 | P135: 0 | Q135: 0 | R135: 0 | S135: 0 | T135: 0
G136: 0 | H136: 0 | I136: 0 | J136: 0 | K136: 0 | L136: 0 | M136: 0 | N136: 0 | O136: 0 | P136: 0 | Q136: 0 | R136: 0 | S136: 0 | T136: 0
G137: 0 | H137: 0 | I137: 0 | J137: 0 | K137: 0 | L137: 0 | M137: 0 | N137: 0 | O137: 0 | P137: 0 | Q137: 0 | R137: 0 | S137: 0 | T137: 0
G138: 0 | H138: 0 | I138: 0 | J138: 0 | K138: 0 | L138: 0 | M138: 0 | N138: 0 | O138: 0 | P138: 0 | Q138: 0 | R138: 0 | S138: 0 | T138: 0
G139: 0 | H139: 0 | I139: 0 | J139: 0 | K139: 0 | L139: 0 | M139: 0 | N139: 0 | O139: 0 | P139: 0 | Q139: 0 | R139: 0 | S139: 0 | T139: 0
G140: 0 | H140: 0 | I140: 0 | J140: 0 | K140: 0 | L140: 0 | M140: 0 | N140: 0 | O140: 0 | P140: 0 | Q140: 0 | R140: 0 | S140: 0 | T140: 0
G141: 0 | H141: 0 | I141: 0 | J141: 0 | K141: 0 | L141: 0 | M141: 0 | N141: 0 | O141: 0 | P141: 0 | Q141: 0 | R141: 0 | S141: 0 | T141: 0
G142: 0 | H142: 0 | I142: 0 | J142: 0 | K142: 0 | L142: 0 | M142: 0 | N142: 0 | O142: 0 | P142: 0 | Q142: 0 | R142: 0 | S142: 0 | T142: 0
G143: 0 | H143: 0 | I143: 0 | J143: 0 | K143: 0 | L143: 0 | M143: 0 | N143: 0 | O143: 0 | P143: 0 | Q143: 0 | R143: 0 | S143: 0 | T143: 0
G144: 0 | H144: 0 | I144: 0 | J144: 0 | K144: 0 | L144: =IF(AND($E144<DATE(2020,8,1),$F144>DATE(2020,6,30)),$G144/12,0) -> 0 | M144: 0 | N144: 0 | O144: 0 | P144: 0 | Q144: 0 | R144: 0 | S144: 0 | T144: 0
G145: 0 | H145: 0 | I145: 0 | J145: 0 | K145: 0 | L145: 0 | M145: 0 | N145: 0 | O145: 0 | P145: 0 | Q145: 0 | R145: 0 | S145: 0 | T145: 0
G146: 0 | H146: 0 | I146: 0 | J146: 0 | K146: 0 | L146: 0 | M146: 0 | N146: 0 | O146: 0 | P146: 0 | Q146: 0 | R146: 0 | S146: 0 | T146: 0
G147: 0 | H147: 0 | I147: 0 | J147: 0 | K147: 0 | L147: 0 | M147: 0 | N147: 0 | O147: 0 | P147: 0 | Q147: 0 | R147: 0 | S147: 0 | T147: 0
G148: 0 | H148: 0 | I148: 0 | J148: 0 | K148: 0 | L148: 0 | M148: 0 | N148: 0 | O148: 0 | P148: 0 | Q148: 0 | R148: 0 | S148: 0 | T148: 0
G149: 0 | H149: 0 | I149: 0 | J149: 0 | K149: 0 | L149: 0 | M149: 0 | N149: 0 | O149: 0 | P149: 0 | Q149: 0 | R149: 0 | S149: 0 | T149: 0
G150: 0 | H150: 0 | I150: 0 | J150: 0 | K150: 0 | L150: 0 | M150: 0 | N150: 0 | O150: 0 | P150: 0 | Q150: 0 | R150: 0 | S150: 0 | T150: 0
G151: 0 | H151: 0 | I151: 0 | J151: 0 | K151: 0 | L151: 0 | M151: 0 | N151: 0 | O151: 0 | P151: 0 | Q151: 0 | R151: 0 | S151: 0 | T151: 0
G152: 0 | H152: 0 | I152: 0 | J152: 0 | K152: 0 | L152: 0 | M152: 0 | N152: 0 | O152: 0 | P152: 0 | Q152: 0 | R152: 0 | S152: 0 | T152: 0
G153: 0 | H153: 0 | I153: 0 | J153: 0 | K153: 0 | L153: 0 | M153: 0 | N153: 0 | O153: 0 | P153: 0 | Q153: 0 | R153: 0 | S153: 0 | T153: 0
G154: 0 | H154: 0 | I154: 0 | J154: 0 | K154: 0 | L154: 0 | M154: 0 | N154: 0 | O154: 0 | P154: 0 | Q154: 0 | R154: 0 | S154: 0 | T154: 0
G155: 0 | H155: 0 | I155: 0 | J155: 0 | K155: 0 | L155: 0 | M155: 0 | N155: 0 | O155: 0 | P155: 0 | Q155: 0 | R155: 0 | S155: 0 | T155: 0
G156: 0 | H156: 0 | I156: 0 | J156: 0 | K156: 0 | L156: 0 | M156: 0 | N156: 0 | O156: 0 | P156: 0 | Q156: 0 | R156: 0 | S156: 0 | T156: 0
G157: 0 | H157: 0 | I157: 0 | J157: 0 | K157: 0 | L157: 0 | M157: 0 | N157: 0 | O157: 0 | P157: 0 | Q157: 0 | R157: 0 | S157: 0 | T157: 0
G158: 0 | H158: 0 | I158: 0 | J158: 0 | K158: 0 | L158: 0 | M158: 0 | N158: 0 | O158: 0 | P158: 0 | Q158: 0 | R158: 0 | S158: 0 | T158: 0
G159: 0 | H159: 0 | I159: 0 | J159: 0 | K159: 0 | L159: 0 | M159: 0 | N159: 0 | O159: 0 | P159: 0 | Q159: 0 | R159: 0 | S159: 0 | T159: 0
G160: 0 | H160: 0 | I160: 0 | J160: 0 | K160: 0 | L160: 0 | M160: 0 | N160: 0 | O160: 0 | P160: 0 | Q160: 0 | R160: 0 | S160: 0 | T160: 0
G161: 0 | H161: 0 | I161: 0 | J161: 0 | K161: 0 | L161: 0 | M161: 0 | N161: 0 | O161: 0 | P161: 0 | Q161: 0 | R161: 0 | S161: 0 | T161: 0
G162: 0 | H162: 0 | I162: 0 | J162: 0 | K162: 0 | L162: 0 | M162: 0 | N162: 0 | O162: 0 | P162: 0 | Q162: 0 | R162: 0 | S162: 0 | T162: 0
G163: 0 | H163: 0 | I163: 0 | J163: 0 | K163: 0 | L163: 0 | M163: 0 | N163: 0 | O163: 0 | P163: 0 | Q163: 0 | R163: 0 | S163: 0 | T163: 0
G164: 0 | H164: 0 | I164: 0 | J164: 0 | K164: 0 | L164: =IF(AND($E164<DATE(2020,8,1),$F164>DATE(2020,6,30)),$G164/12,0) -> 0 | M164: 0 | N164: 0 | O164: 0 | P164: 0 | Q164: 0 | R164: 0 | S164: 0 | T164: 0
G165: 0 | H165: 0 | I165: 0 | J165: 0 | K165: 0 | L165: 0 | M165: 0 | N165: 0 | O165: 0 | P165: 0 | Q165: 0 | R165: 0 | S165: 0 | T165: 0
G166: 0 | H166: 0 | I166: 0 | J166: 0 | K166: 0 | L166: 0 | M166: 0 | N166: 0 | O166: 0 | P166: 0 | Q166: 0 | R166: 0 | S166: 0 | T166: 0
G167: 0 | H167: 0 | I167: 0 | J167: 0 | K167: 0 | L167: 0 | M167: 0 | N167: 0 | O167: 0 | P167: 0 | Q167: 0 | R167: 0 | S167: 0 | T167: 0
G168: 0 | H168: 0 | I168: 0 | J168: 0 | K168: 0 | L168: 0 | M168: 0 | N168: 0 | O168: 0 | P168: 0 | Q168: 0 | R168: 0 | S168: 0 | T168: 0
G169: 0 | H169: 0 | I169: 0 | J169: 0 | K169: 0 | L169: 0 | M169: 0 | N169: 0 | O169: 0 | P169: 0 | Q169: 0 | R169: 0 | S169: 0 | T169: 0
G170: 0 | H170: 0 | I170: 0 | J170: 0 | K170: 0 | L170: 0 | M170: 0 | N170: 0 | O170: 0 | P170: 0 | Q170: 0 | R170: 0 | S170: 0 | T170: 0
G171: 0 | H171: 0 | I171: 0 | J171: 0 | K171: 0 | L171: 0 | M171: 0 | N171: 0 | O171: 0 | P171: 0 | Q171: 0 | R171: 0 | S171: 0 | T171: 0
G172: 0 | H172: 0 | I172: 0 | J172: 0 | K172: 0 | L172: 0 | M172: 0 | N172: 0 | O172: 0 | P172: 0 | Q172: 0 | R172: 0 | S172: 0 | T172: 0
G173: 0 | H173: 0 | I173: 0 | J173: 0 | K173: 0 | L173: 0 | M173: 0 | N173: 0 | O173: 0 | P173: 0 | Q173: 0 | R173: 0 | S173: 0 | T173: 0
G174: 0 | H174: 0 | I174: 0 | J174: 0 | K174: 0 | L174: 0 | M174: 0 | N174: 0 | O174: 0 | P174: 0 | Q174: 0 | R174: 0 | S174: 0 | T174: 0
G175: 0 | H175: 0 | I175: 0 | J175: 0 | K175: 0 | L175: 0 | M175: 0 | N175: 0 | O175: 0 | P175: 0 | Q175: 0 | R175: 0 | S175: 0 | T175: 0
G176: 0 | H176: 0 | I176: 0 | J176: 0 | K176: 0 | L176: 0 | M176: 0 | N176: 0 | O176: 0 | P176: 0 | Q176: 0 | R176: 0 | S176: 0 | T176: 0
G177: 0 | H177: 0 | I177: 0 | J177: 0 | K177: 0 | L177: 0 | M177: 0 | N177: 0 | O177: 0 | P177: 0 | Q177: 0 | R177: 0 | S177: 0 | T177: 0
G178: 0 | H178: 0 | I178: 0 | J178: 0 | K178: 0 | L178: 0 | M178: 0 | N178: 0 | O178: 0 | P178: 0 | Q178: 0 | R178: 0 | S178: 0 | T178: 0
G179: 0 | H179: 0 | I179: 0 | J179: 0 | K179: 0 | L179: 0 | M179: 0 | N179: 0 | O179: 0 | P179: 0 | Q179: 0 | R179: 0 | S179: 0 | T179: 0
G180: 0 | H180: 0 | I180: 0 | J180: 0 | K180: 0 | L180: 0 | M180: 0 | N180: 0 | O180: 0 | P180: 0 | Q180: 0 | R180: 0 | S180: 0 | T180: 0
G181: 0 | H181: 0 | I181: 0 | J181: 0 | K181: 0 | L181: 0 | M181: 0 | N181: 0 | O181: 0 | P181: 0 | Q181: 0 | R181: 0 | S181: 0 | T181: 0
G182: 0 | H182: 0 | I182: 0 | J182: 0 | K182: 0 | L182: 0 | M182: 0 | N182: 0 | O182: 0 | P182: 0 | Q182: 0 | R182: 0 | S182: 0 | T182: 0
G183: 0 | H183: 0 | I183: 0 | J183: 0 | K183: 0 | L183: 0 | M183: 0 | N183: 0 | O183: 0 | P183: 0 | Q183: 0 | R183: 0 | S183: 0 | T183: 0
G184: 0 | H184: 0 | I184: 0 | J184: 0 | K184: 0 | L184: =IF(AND($E184<DATE(2020,8,1),$F184>DATE(2020,6,30)),$G184/12,0) -> 0 | M184: 0 | N184: 0 | O184: 0 | P184: 0 | Q184: 0 | R184: 0 | S184: 0 | T184: 0
G185: 0 | H185: 0 | I185: 0 | J185: 0 | K185: 0 | L185: 0 | M185: 0 | N185: 0 | O185: 0 | P185: 0 | Q185: 0 | R185: 0 | S185: 0 | T185: 0
G186: 0 | H186: 0 | I186: 0 | J186: 0 | K186: 0 | L186: 0 | M186: 0 | N186: 0 | O186: 0 | P186: 0 | Q186: 0 | R186: 0 | S186: 0 | T186: 0
G187: 0 | H187: 0 | I187: 0 | J187: 0 | K187: 0 | L187: 0 | M187: 0 | N187: 0 | O187: 0 | P187: 0 | Q187: 0 | R187: 0 | S187: 0 | T187: 0
G188: 0 | H188: 0 | I188: 0 | J188: 0 | K188: 0 | L188: 0 | M188: 0 | N188: 0 | O188: 0 | P188: 0 | Q188: 0 | R188: 0 | S188: 0 | T188: 0
G189: 0 | H189: 0 | I189: 0 | J189: 0 | K189: 0 | L189: 0 | M189: 0 | N189: 0 | O189: 0 | P189: 0 | Q189: 0 | R189: 0 | S189: 0 | T189: 0
G190: 0 | H190: 0 | I190: 0 | J190: 0 | K190: 0 | L190: 0 | M190: 0 | N190: 0 | O190: 0 | P190: 0 | Q190: 0 | R190: 0 | S190: 0 | T190: 0
G191: 0 | H191: 0 | I191: 0 | J191: 0 | K191: 0 | L191: 0 | M191: 0 | N191: 0 | O191: 0 | P191: 0 | Q191: 0 | R191: 0 | S191: 0 | T191: 0
G192: 0 | H192: 0 | I192: 0 | J192: 0 | K192: 0 | L192: 0 | M192: 0 | N192: 0 | O192: 0 | P192: 0 | Q192: 0 | R192: 0 | S192: 0 | T192: 0
G193: 0 | H193: 0 | I193: 0 | J193: 0 | K193: 0 | L193: 0 | M193: 0 | N193: 0 | O193: 0 | P193: 0 | Q193: 0 | R193: 0 | S193: 0 | T193: 0
G194: 0 | H194: 0 | I194: 0 | J194: 0 | K194: 0 | L194: 0 | M194: 0 | N194: 0 | O194: 0 | P194: 0 | Q194: 0 | R194: 0 | S194: 0 | T194: 0
G195: 0 | H195: 0 | I195: 0 | J195: 0 | K195: 0 | L195: 0 | M195: 0 | N195: 0 | O195: 0 | P195: 0 | Q195: 0 | R195: 0 | S195: 0 | T195: 0
G196: =IFERROR(VLOOKUP(dfenum&D196,rates,2,0),0) -> 0 | H196: =IF(AND($E196<DATE(2020,4,1),$F196>DATE(2020,2,29)),$G196/12,0) -> 0 | I196: =IF(AND($E196<DATE(2020,5,1),$F196>DATE(2020,3,31)),$G196/12,0) -> 0 | J196: =IF(AND($E196<DATE(2020,6,1),$F196>DATE(2020,4,30)),$G196/12,0) -> 0 | K196: =IF(AND($E196<DATE(2020,7,1),$F196>DATE(2020,5,31)),$G196/12,0) -> 0 | L196: 0 | M196: 0 | N196: =IF(AND($E196<DATE(2020,10,1),$F196>DATE(2020,8,31)),$G196/12,0) -> 0 | O196: =IF(AND($E196<DATE(2020,11,1),$F196>DATE(2020,9,30)),$G196/12,0) -> 0 | P196: =IF(AND($E196<DATE(2020,12,1),$F196>DATE(2020,10,31)),$G196/12,0) -> 0 | Q196: =IF(AND($E196<DATE(2021,1,1),$F196>DATE(2020,11,30)),$G196/12,0) -> 0 | R196: =IF(AND($E196<DATE(2021,2,1),$F196>DATE(2020,12,31)),$G196/12,0) -> 0 | S196: =IF(AND($E196<DATE(2021,3,1),$F196>DATE(2021,1,31)),$G196/12,0) -> 0 | T196: =SUM(H196:S196) -> 0
G197: 0 | H197: 0 | I197: 0 | J197: 0 | K197: 0 | L197: 0 | M197: 0 | N197: 0 | O197: 0 | P197: 0 | Q197: 0 | R197: 0 | S197: 0 | T197: 0
G198: 0 | H198: 0 | I198: 0 | J198: 0 | K198: 0 | L198: 0 | M198: 0 | N198: 0 | O198: 0 | P198: 0 | Q198: 0 | R198: 0 | S198: 0 | T198: 0
G199: 0 | H199: 0 | I199: 0 | J199: 0 | K199: 0 | L199: 0 | M199: 0 | N199: 0 | O199: 0 | P199: 0 | Q199: 0 | R199: 0 | S199: 0 | T199: 0
G200: 0 | H200: 0 | I200: 0 | J200: 0 | K200: 0 | L200: 0 | M200: 0 | N200: 0 | O200: 0 | P200: 0 | Q200: 0 | R200: 0 | S200: 0 | T200: 0
G201: 0 | H201: 0 | I201: 0 | J201: 0 | K201: 0 | L201: 0 | M201: 0 | N201: 0 | O201: 0 | P201: 0 | Q201: 0 | R201: 0 | S201: 0 | T201: 0
... 599 more rows

Sheet Year 1
H2: DFE number:
I5: =IFERROR(VLOOKUP(dfenumber,#REF!,2,0),"") -> 
B12: Place Plus Funding 2020/2021
D13: =IFERROR(IF(VLOOKUP(dfenum,fundbod,6,0)="ESFA","Place funding provided by ESFA for this institution",""),"") -> 
C14: Pre-16
G15: Places | H15: Rate | I15: Total
D16: Element 1 | F16: Apr to Aug | G16: =IF(LEN($D$13)=0,IFERROR(VLOOKUP(dfenum,places,9,0),0),0) -> 0 | H16: =4000*(5/12) -> 1666.666667 | I16: =G16*H16 -> 0
F17: Sep to Mar | G17: =IF(LEN($D$13)=0,IFERROR(VLOOKUP(dfenum,places,11,0),0),0) -> 0 | H17: =4000*(7/12) -> 2333.333333 | I17: =G17*H17 -> 0
I18: =SUM(I16:I17) -> 0
D20: Element 2 | F20: Apr to Aug | G20: =IF(LEN($D$13)=0,IFERROR(VLOOKUP(dfenum,places,9,0),0),0) -> 0 | H20: =6000*(5/12) -> 2500 | I20: =G20*H20 -> 0
F21: Sep to Mar | G21: =IF(LEN($D$13)=0,IFERROR(VLOOKUP(dfenum,places,11,0),0),0) -> 0 | H21: =6000*(7/12) -> 3500 | I21: =G21*H21 -> 0
I22: =SUM(I20:I21) -> 0
H24: =SUM(H16:H21) -> 10000 | I24: =SUM(I18+I22) -> 0
C26: Post-16 | G26: Places | H26: Rate | I26: Total
D27: Element 1 | F27: Apr to Jul | G27: =IF(LEN($D$13)=0,IFERROR(VLOOKUP(dfenum,places,10,0),0),0) -> 0 | H27: =4000*(4/12) -> 1333.333333 | I27: =G27*H27 -> 0
F28: Aug to Mar | G28: =IF(LEN($D$13)=0,IFERROR(VLOOKUP(dfenum,places,12,0),0),0) -> 0 | H28: =4000*(8/12) -> 2666.666667 | I28: =G28*H28 -> 0
I29: =SUM(I27:I28) -> 0
D31: Element 2 | F31: Apr to Jul | G31: =IF(LEN($D$13)=0,IFERROR(VLOOKUP(dfenum,places,10,0),0),0) -> 0 | H31: =6000*(4/12) -> 2000 | I31: =G31*H31 -> 0
F32: Aug to Mar | G32: =IF(LEN($D$13)=0,IFERROR(VLOOKUP(dfenum,places,12,0),0),0) -> 0 | H32: =6000*(8/12) -> 4000 | I32: =G32*H32 -> 0
I33: =SUM(I31:I32) -> 0
H35: =SUM(H27:H32) -> 10000 | I35: =SUM(I29+I33) -> 0
C37: Excess Element 1 & 2 Funding | I37: ='Excess E1&E2'!P18 -> 0
C39: Element 3 | I39: Total
H40: April | I40: =Pupils!$H$1 -> 0
H41: May | I41: =Pupils!$I$1 -> 0
H42: June | I42: =Pupils!$J$1 -> 0
H43: July | I43: =Pupils!$K$1 -> 0
H44: August | I44: =Pupils!$L$1 -> 0
H45: September | I45: =Pupils!$M$1 -> 0
H46: October | I46: =Pupils!$N$1 -> 0
H47: November | I47: =Pupils!$O$1 -> 0
H48: December | I48: =Pupils!$P$1 -> 0
H49: January | I49: =Pupils!$Q$1 -> 0
H50: February | I50: =Pupils!$R$1 -> 0
H51: March | I51: =Pupils!$S$1 -> 0
I52: =SUM(I40:I51) -> 0
C54: Total Place Plus Funding 2020/21 | I54: =SUM(I52,I35,I24,I37) -> 0
B57: Other Grants
C59: PE & Sport Premium Grant | I59: ='Other Grants'!K39 -> 0
C60: Pupil Premium (PP) | I60: ='Other Grants'!K13 -> 0
C61: Special Nursery (Observation and Assessment Centre) | I61: ='Other Grants'!K19 -> 0
C62: Teachers Pay Grant | I62: ='Other Grants'!K37 -> 0
C63: Teacher's Pension Grant | I63: ='Other Grants'!K38 -> 0
C64: Universal Infant Free School Meal (UIFSM) | I64: ='Other Grants'!K34 -> 0
C65: Year 7 Catch Up | I65: ='Other Grants'!K40 -> 0
C67: Other Grants | I67: =SUM(I59:I66) -> 0
C69: Overall total estimated funding 2020/21 | I69: =I67+I54 -> 0
B72: Pooled Funding Arrangement
G73: Rate | H73: Places
C74: Schools in financial difficulties | G74: 16.95 | H74: =(G16*(5/12))+(G17*(7/12))+(G27*(4/12))+(G28*(8/12)) -> 0 | I74: =G74*H74 -> 0
C75: Free School Meals Eligibility | G75: 0.57 | H75: =(G16*(5/12))+(G17*(7/12))+(G27*(4/12))+(G28*(8/12)) -> 0 | I75: =G75*H75 -> 0
C76: Licences and Subscriptions (SIMS) | G76: 3.63 | H76: =(G16*(5/12))+(G17*(7/12))+(G27*(4/12))+(G28*(8/12)) -> 0 | I76: 0
C77: Trade Union Duties | G77: 1.85 | H77: =(G16*(5/12))+(G17*(7/12))+(G27*(4/12))+(G28*(8/12)) -> 0 | I77: 0
C78: Schools Personnel Service | G78: 0.8 | H78: =(G16*(5/12))+(G17*(7/12))+(G27*(4/12))+(G28*(8/12)) -> 0 | I78: 0
I80: =SUM(I74:I78) -> 0

Sheet Other Grants
B2: Other Grants
D5: Units | I5: Rate | K5: Total Funding
B6: Grant | D6: 2019/20 | E6: 2020/21 | F6: 2021/22 | G6: 2022/23 | K6: 2020/21 | L6: 2021/22 | M6: 2022/23
B7: Pupil Premium
B8: Free School Meals Ever 6 Primary (January census) | I8: =IFERROR(IF(VLOOKUP(dfenum,Lookups!B:G,6,0)="KCC",1345,0),0) -> 0 | K8: =E8*$I8 -> 0 | L8: 0 | M8: 0
B9: Free School Meals Ever 6 Secondary (January census) | I9: =IFERROR(IF(VLOOKUP(dfenum,Lookups!B:G,6,0)="KCC",955,0),0) -> 0 | K9: 0 | L9: 0 | M9: 0
B10: Adopted (Post-LAC) pupils (January census) | I10: =IFERROR(IF(VLOOKUP(dfenum,Lookups!B:G,6,0)="KCC",2345,0),0) -> 0 | K10: 0 | L10: 0 | M10: 0
B11: Children in Care (CiC)
B12: Service Children Ever 6 (January census) | I12: =IFERROR(IF(VLOOKUP(dfenum,Lookups!B:G,6,0)="KCC",310,0),0) -> 0 | K12: =E12*$I12 -> 0 | L12: =F12*$I12 -> 0 | M12: =G12*$I12 -> 0
B13: Total Pupil Premium | K13: =SUM(K8:K12) -> 0 | L13: =SUM(L8:L12) -> 0 | M13: =SUM(M8:M12) -> 0
B15: Observation & Assessment
B17: Leadership Lump Sum | E17: =IF(E18>9,2,IF(E18>0,1,0)) -> 0 | F17: =IF(F18>9,2,IF(F18>0,1,0)) -> 0 | G17: 0 | I17: 52000 | K17: =E17*I17 -> 0 | L17: =F17*I17 -> 0 | M17: =G17*I17 -> 0
B18: Day Rate | E18: =IFERROR(VLOOKUP(dfenum,Lookups!B:E,4,0),0) -> 0 | F18: =E18 -> 0 | G18: =F18 -> 0 | I18: 9029 | K18: =E18*I18 -> 0 | L18: =F18*I18 -> 0 | M18: =G18*I18 -> 0
B19: Total Observation & Assessment | K19: =K18+K17 -> 0 | L19: =L18+L17 -> 0 | M19: 0
B21: Universal Infant Free School Meals
B22: The DfE have not yet confirmed how this will be calculated. However, we have assumed this is on the same basis as 2019/20 guidance.
D23: Academic Year
B24: October Taken meals year R
B25: January Taken meals year R
B26: October Taken meals years 1 & 2
B27: January Taken meals years 1 & 2
B28: Qualifying pupils | D28: =((D26+D27)/2)+MAX(D25,((D24+D25)/2)) -> 0 | E28: =((E26+E27)/2)+MAX(E25,((E24+E25)/2)) -> 0 | F28: =((F26+F27)/2)+MAX(F25,((F24+F25)/2)) -> 0 | G28: =((G26+G27)/2)+MAX(G25,((G24+G25)/2)) -> 0
B29: *190 meals (qualifying pupils X 190) | D29: =D28*190 -> 0 | E29: =E28*190 -> 0 | F29: =F28*190 -> 0 | G29: =G28*190 -> 0
B30: Rate per meal | D30: =IFERROR(IF(VLOOKUP(dfenum,Lookups!B:G,6,0)="KCC",2.3,0),0) -> 0 | E30: =IFERROR(IF(VLOOKUP(dfenum,Lookups!B:G,6,0)="KCC",2.3,0),0) -> 0 | F30: =IFERROR(IF(VLOOKUP(dfenum,Lookups!B:G,6,0)="KCC",2.3,0),0) -> 0 | G30: =IFERROR(IF(VLOOKUP(dfenum,Lookups!B:G,6,0)="KCC",2.3,0),0) -> 0
B31: Academic Year Allocation | D31: =D30*D29 -> 0 | E31: =E30*E29 -> 0 | F31: =F30*F29 -> 0 | G31: =G30*G29 -> 0
B32: UIFSM's April to August | K32: =(D31/12*5) -> 0 | L32: =(E31/12*5) -> 0 | M32: =(F31/12*5) -> 0
B33: UIFSM's September to March | K33: =(E31/12*7) -> 0 | L33: =(F31/12*7) -> 0 | M33: =(G31/12*7) -> 0 | Q33: Special
B34: Total Universal Infant Free School Meals | K34: =(D31/12*5)+(E31/12*7) -> 0 | L34: =(E31/12*5)+(F31/12*7) -> 0 | M34: =(F31/12*5)+(G31/12*7) -> 0 | P34: Kent | Q34: =IFERROR(IF(VLOOKUP(dfenum,Lookups!B:G,6,0)="KCC",14.58,0),0) -> 0
P35: Fringe | Q35: =IFERROR(IF(VLOOKUP(dfenum,Lookups!B:G,6,0)="KCC",15.02,0),0) -> 0
B36: Additional Grants | C36: Code | P36: this one | Q36: =IFERROR(IF(VLOOKUP(dfenum,Lookups!B:F,5,0)=1,Q35,Q34),0) -> 0
B37: Teachers Pay Grant | C37: I01 | K37: =S38+S39 -> 0 | L37: =S40+S41 -> 0 | M37: =S42+S43 -> 0 | P37: Period | Q37: Rate | R37: Places | S37: Total
B38: Teachers Pension Grant | C38: I01 | P38: Apr 20 - Aug 2020 | Q38: =$Q$36*5 -> 0 | R38: =IFERROR(VLOOKUP(dfenum,Lookups!B:M,9,0)+VLOOKUP(dfenum,Lookups!B:M,10,0),0) -> 0 | S38: =Q38*R38 -> 0
B39: PE & Sport Premium Grant | C39: I18 | P39: Sep 20 - Mar 2021 | Q39: =$Q$36*7 -> 0 | R39: =IFERROR(VLOOKUP(dfenum,Lookups!B:M,11,0)+VLOOKUP(dfenum,Lookups!B:M,12,0),0) -> 0 | S39: 0
B40: Year 7 Catch Up | C40: I06 | P40: Apr 21 - Aug 2020 | Q40: =$Q$36*5 -> 0 | R40: ='Year 2'!G16+'Year 2'!G28 -> 0 | S40: 0
B41: Total Additional Grants | K41: =SUM(K37:K40) -> 0 | L41: =SUM(L37:L40) -> 0 | M41: =SUM(M37:M40) -> 0 | P41: Sep 21 - Mar 2022 | Q41: =$Q$36*7 -> 0 | R41: ='Year 2'!G17+'Year 2'!G29 -> 0 | S41: 0
P42: Apr 22 - Aug 2022 | Q42: =$Q$36*5 -> 0 | R42: ='Year 3'!G16+'Year 3'!G28 -> 0 | S42: 0
P43: Sep 22 - Mar 2023 | Q43: =$Q$36*7 -> 0 | R43: ='Year 3'!G17+'Year 3'!G29 -> 0 | S43: 0

Sheet Excess E1&E2
B2: Year 1 Excess Element 1 and 2
B4: Protected Cash Advance | C4: 0
C6: April 2020 - March 2021
C7: April | D7: May | E7: June | F7: July | G7: August | H7: September | I7: October | J7: November | K7: December | L7: January | M7: February | N7: March
B8: Places - Pre-16 | C8: =IFERROR(VLOOKUP(dfenum,places,9,0),0) -> 0 | D8: 0 | E8: 0 | F8: 0 | G8: 0 | H8: 0 | I8: =IFERROR(VLOOKUP(dfenum,places,11,0),0) -> 0 | J8: 0 | K8: 0 | L8: 0 | M8: 0 | N8: 0
B9: Places - Post-16 | C9: =IFERROR(VLOOKUP(dfenum,places,10,0),0) -> 0 | D9: 0 | E9: 0 | F9: 0 | G9: 0 | H9: =IFERROR(VLOOKUP(dfenum,places,12,0),0) -> 0 | I9: =IFERROR(VLOOKUP(dfenum,places,12,0),0) -> 0 | J9: 0 | K9: 0 | L9: 0 | M9: 0 | N9: 0
B10: Total Commissioned Places | C10: =SUM(C8:C9) -> 0 | D10: =SUM(D8:D9) -> 0 | E10: 0 | F10: 0 | G10: 0 | H10: 0 | I10: 0 | J10: 0 | K10: 0 | L10: 0 | M10: 0 | N10: 0
B11: Actual | C11: =COUNTIF(Pupils!H4:H800,">0") -> 0 | D11: =COUNTIF(Pupils!I4:I800,">0") -> 0 | E11: =COUNTIF(Pupils!J4:J800,">0") -> 0 | F11: =COUNTIF(Pupils!K4:K800,">0") -> 0 | G11: =COUNTIF(Pupils!L4:L800,">0") -> 0 | H11: =COUNTIF(Pupils!M4:M800,">0") -> 0 | I11: =COUNTIF(Pupils!N4:N800,">0") -> 0 | J11: =COUNTIF(Pupils!O4:O800,">0") -> 0 | K11: =COUNTIF(Pupils!P4:P800,">0") -> 0 | L11: =COUNTIF(Pupils!Q4:Q800,">0") -> 0 | M11: =COUNTIF(Pupils!R4:R800,">0") -> 0 | N11: =COUNTIF(Pupils!S4:S800,">0") -> 0
B12: Excess places | C12: =IF(C11<=C10,0,C11-C10) -> 0 | D12: =IF(D11<=D10,0,D11-D10) -> 0 | E12: 0 | F12: 0 | G12: 0 | H12: 0 | I12: 0 | J12: 0 | K12: 0 | L12: 0 | M12: 0 | N12: 0
P14: Total
B15: Excess place unit cost (£) | C15: 833.33 | D15: 833.33 | E15: 833.33 | F15: 833.33 | G15: 833.33 | H15: 833.33 | I15: 833.33 | J15: 833.33 | K15: 833.33 | L15: 833.33 | M15: 833.33 | N15: 833.37 | P15: =SUM(C15:N15) -> 10000
B16: Excess places Total (£) | C16: =C12*C15 -> 0 | D16: =D12*D15 -> 0 | E16: 0 | F16: 0 | G16: 0 | H16: 0 | I16: 0 | J16: 0 | K16: 0 | L16: 0 | M16: 0 | N16: 0 | P16: =SUM(C16:N16) -> 0
B17: Protection period | C17: March to July actuals | I17: September to February actuals
B18: Protected balance (£) | C18: =IF(C16>C4,C16,C4) -> 0 | D18: =IF(D16>C18,D16,C18) -> 0 | E18: =IF(E16>D18,E16,D18) -> 0 | F18: 0 | G18: 0 | H18: 0 | I18: =I16 -> 0 | J18: =IF(J16>I18,J16,I18) -> 0 | K18: 0 | L18: 0 | M18: 0 | N18: 0 | P18: =SUM(C18:N18) -> 0

Sheet Year 2 & 3 Pupils
B2: Year 2 Element 3 pupil data
B3: * Each month's pupil numbers generates funding in the following month
C4: March 2021 - February 2022
B5: Need Type | C5: March | D5: April | E5: May | F5: June | G5: July | H5: August | I5: September | J5: October | K5: November | L5: December | M5: January | N5: February | O5: FTE Pupils
B6: MLD&SLCN | C6: =COUNTIFS(Pupils!F:F,">="&DATE(2021,3,1),Pupils!D:D,"="&B6) -> 0 | H6: =G6 -> 0 | O6: =SUM(C6:N6)/12 -> 0
B7: BESD | C7: =COUNTIFS(Pupils!F:F,">="&DATE(2021,3,1),Pupils!D:D,"="&B7) -> 0 | H7: =G7 -> 0 | O7: =SUM(C7:N7)/12 -> 0
B8: SLD | C8: =COUNTIFS(Pupils!F:F,">="&DATE(2021,3,1),Pupils!D:D,"="&B8) -> 0 | H8: 0 | O8: 0
B9: PD&PMLD | C9: =COUNTIFS(Pupils!F:F,">="&DATE(2021,3,1),Pupils!D:D,"="&B9) -> 0 | H9: 0 | O9: 0
B10: ASD | C10: =COUNTIFS(Pupils!F:F,">="&DATE(2021,3,1),Pupils!D:D,"="&B10) -> 0 | H10: 0 | O10: 0
B11: WeekdayPD&PMLD | C11: =COUNTIFS(Pupils!F:F,">="&DATE(2021,3,1),Pupils!D:D,"="&B11) -> 0 | H11: 0 | O11: 0
B12: WeekdayASD | C12: =COUNTIFS(Pupils!F:F,">="&DATE(2021,3,1),Pupils!D:D,"="&B12) -> 0 | H12: 0 | O12: 0
B13: WeekendPD&PMLD | C13: =COUNTIFS(Pupils!F:F,">="&DATE(2021,3,1),Pupils!D:D,"="&B13) -> 0 | H13: 0 | O13: 0
C14: =SUM(C6:C13) -> 0 | D14: =SUM(D6:D13) -> 0 | E14: 0 | F14: 0 | G14: 0 | H14: 0 | I14: 0 | J14: 0 | K14: 0 | L14: 0 | M14: 0 | N14: 0
B16: Year 3 Element 3 pupil data
B17: * Each month's pupil numbers generates funding in the following month
C18: March 2022 - February 2023
B19: Need Type | C19: March | D19: April | E19: May | F19: June | G19: July | H19: August | I19: September | J19: October | K19: November | L19: December | M19: January | N19: February | O19: FTE Pupils
B20: MLD&SLCN | H20: =G20 -> 0 | O20: =SUM(C20:N20)/12 -> 0
B21: BESD | H21: =G21 -> 0 | O21: 0
B22: SLD | H22: 0 | O22: 0
B23: PD&PMLD | H23: 0 | O23: 0
B24: ASD | H24: 0 | O24: 0
B25: WeekdayPD&PMLD | H25: 0 | O25: 0
B26: WeekdayASD | H26: 0 | O26: 0
B27: WeekendPD&PMLD | H27: 0 | O27: 0
C28: =SUM(C20:C27) -> 0 | D28: =SUM(D20:D27) -> 0 | E28: 0 | F28: 0 | G28: 0 | H28: 0 | I28: 0 | J28: 0 | K28: 0 | L28: 0 | M28: 0 | N28: 0

Sheet Year 2
H2: DFE number: | I2: =dfenum -> 0
I5: =IFERROR(VLOOKUP(dfenumber,#REF!,2,0),"") -> 
B12: Place Plus Funding 2021/22
C14: Pre-16
G15: Places | H15: Rate | I15: Total
D16: Element 1 | F16: Apr to Aug | G16: ='Year 1'!G17 -> 0 | H16: =4000*(5/12) -> 1666.666667 | I16: =G16*H16 -> 0
F17: Sep to Mar | G17: =G16 -> 0 | H17: =4000*(7/12) -> 2333.333333 | I17: =G17*H17 -> 0
I18: =SUM(I16:I17) -> 0
D20: Element 2 | F20: Apr to Aug | G20: =G16 -> 0 | H20: =6000*(5/12) -> 2500 | I20: 0
F21: Sep to Mar | G21: =G17 -> 0 | H21: =6000*(7/12) -> 3500 | I21: 0
I22: =SUM(I20:I21) -> 0
H24: =SUM(H16:H21) -> 10000 | I24: =I18+I22 -> 0
C26: Post-16
G27: Places | H27: Rate | I27: Total
D28: Element 1 | F28: Apr to Jul | G28: ='Year 1'!G28 -> 0 | H28: =4000*(4/12) -> 1333.333333 | I28: =G28*H28 -> 0
F29: Aug to Mar | G29: =G28 -> 0 | H29: =4000*(8/12) -> 2666.666667 | I29: =G29*H29 -> 0
I30: =SUM(I28:I29) -> 0
D32: Element 2 | F32: Apr to Jul | G32: =G28 -> 0 | H32: =6000*(4/12) -> 2000 | I32: =G32*H32 -> 0
F33: Aug to Mar | G33: =G29 -> 0 | H33: =6000*(8/12) -> 4000 | I33: =G33*H33 -> 0
I34: =SUM(I32:I33) -> 0
H36: =SUM(H28:H33) -> 10000 | I36: =I30+I34 -> 0
C38: Element 3
G39: Pupils | H39: Rate | I39: Total
E40: MLD&SLCN | G40: ='Year 2 & 3 Pupils'!O6 -> 0 | H40: =IFERROR(VLOOKUP(dfenum&E40,rates,2,0),0) -> 0 | I40: =G40*H40 -> 0
E41: BESD | G41: ='Year 2 & 3 Pupils'!O7 -> 0 | H41: 0 | I41: =G41*H41 -> 0
E42: SLD | G42: ='Year 2 & 3 Pupils'!O8 -> 0 | H42: 0 | I42: 0
E43: PD&PMLD | G43: ='Year 2 & 3 Pupils'!O9 -> 0 | H43: 0 | I43: 0
E44: ASD | G44: ='Year 2 & 3 Pupils'!O10 -> 0 | H44: 0 | I44: 0
E45: WeekdayPD&PMLD | G45: ='Year 2 & 3 Pupils'!O11 -> 0 | H45: 0 | I45: 0
E46: WeekdayASD | G46: ='Year 2 & 3 Pupils'!O12 -> 0 | H46: 0 | I46: 0
E47: WeekendPD&PMLD | G47: ='Year 2 & 3 Pupils'!O13 -> 0 | H47: 0 | I47: 0
I48: =SUM(I40:I47) -> 0
C50: Total Place Plus Funding 2020/21 | I50: =I36+I24+I48 -> 0
B53: Other Grants
C55: PE & Sport Premium Grant | I55: ='Other Grants'!L39 -> 0
C56: Pupil Premium (PP) | I56: ='Other Grants'!L13 -> 0
C57: Special Nursery (Observation and Assessment Centre) | I57: ='Other Grants'!L19 -> 0
C58: Teachers Pay Grant | I58: ='Other Grants'!L37 -> 0
C59: Teacher's Pension Grant | I59: ='Other Grants'!L38 -> 0
C60: Universal Infant Free School Meal (UIFSM) | I60: ='Other Grants'!L34 -> 0
C61: Year 7 Catch Up | I61: ='Other Grants'!L40 -> 0
C63: Other Grants | I63: =SUM(I55:I62) -> 0
C65: Overall total estimated funding 2021/22 | I65: =I50+I63 -> 0
B68: Pooled Funding Arrangement
G69: Rate | H69: Places
C70: Schools in financial difficulties | G70: ='Year 1'!G74 -> 16.95 | H70: =(G16*(5/12))+(G17*(7/12))+(G28*(4/12))+(G29*(8/12)) -> 0 | I70: =G70*H70 -> 0
C71: Free School Meals Eligibility | G71: ='Year 1'!G75 -> 0.57 | H71: =(G16*(5/12))+(G17*(7/12))+(G28*(4/12))+(G29*(8/12)) -> 0 | I71: =G71*H71 -> 0
C72: Licences and Subscriptions (SIMS) | G72: ='Year 1'!G76 -> 3.63 | H72: =(G16*(5/12))+(G17*(7/12))+(G28*(4/12))+(G29*(8/12)) -> 0 | I72: 0
C73: Trade Union Duties | G73: ='Year 1'!G77 -> 1.85 | H73: =(G16*(5/12))+(G17*(7/12))+(G28*(4/12))+(G29*(8/12)) -> 0 | I73: 0
C74: Schools Personnel Service | G74: ='Year 1'!G78 -> 0.8 | H74: =(G16*(5/12))+(G17*(7/12))+(G28*(4/12))+(G29*(8/12)) -> 0 | I74: 0
I76: =SUM(I70:I74) -> 0

Sheet Year 3
H2: DFE number: | I2: =dfenum -> 0
I5: =IFERROR(VLOOKUP(dfenumber,#REF!,2,0),"") -> 
B12: Place Plus Funding 2022/23
C14: Pre-16
G15: Places | H15: Rate | I15: Total
D16: Element 1 | F16: Apr to Aug | G16: ='Year 2'!G17 -> 0 | H16: 1666.666667 | I16: =G16*H16 -> 0
F17: Sep to Mar | G17: =G16 -> 0 | H17: 2333.333333 | I17: =G17*H17 -> 0
I18: =SUM(I16:I17) -> 0
D20: Element 2 | F20: Apr to Aug | G20: =G16 -> 0 | H20: 2500 | I20: =G20*H20 -> 0
F21: Sep to Mar | G21: =G17 -> 0 | H21: 3500 | I21: =G21*H21 -> 0
I22: =SUM(I20:I21) -> 0
H24: =SUM(H16:H21) -> 10000 | I24: =I18+I22 -> 0
C26: Post-16
G27: Places | H27: Rate | I27: Total
D28: Element 1 | F28: Apr to Jul | G28: ='Year 2'!G29 -> 0 | H28: 1333.333333 | I28: =G28*H28 -> 0
F29: Aug to Mar | G29: =G28 -> 0 | H29: 2666.666667 | I29: =G29*H29 -> 0
I30: =SUM(I28:I29) -> 0
D32: Element 2 | F32: Apr to Jul | G32: =G28 -> 0 | H32: 2000 | I32: =G32*H32 -> 0
F33: Aug to Mar | G33: =G29 -> 0 | H33: 4000 | I33: =G33*H33 -> 0
I34: =SUM(I32:I33) -> 0
H36: =SUM(H28:H33) -> 10000 | I36: =I30+I34 -> 0
C38: Element 3
G39: Pupils | H39: Rate | I39: Total
E40: MLD&SLCN | G40: ='Year 2 & 3 Pupils'!O20 -> 0 | H40: =IFERROR(VLOOKUP(dfenum&E40,rates,2,0),0) -> 0 | I40: =G40*H40 -> 0
E41: BESD | G41: ='Year 2 & 3 Pupils'!O21 -> 0 | H41: 0 | I41: =G41*H41 -> 0
E42: SLD | G42: ='Year 2 & 3 Pupils'!O22 -> 0 | H42: 0 | I42: 0
E43: PD&PMLD | G43: ='Year 2 & 3 Pupils'!O23 -> 0 | H43: 0 | I43: 0
E44: ASD | G44: ='Year 2 & 3 Pupils'!O24 -> 0 | H44: 0 | I44: 0
E45: WeekdayPD&PMLD | G45: ='Year 2 & 3 Pupils'!O25 -> 0 | H45: 0 | I45: 0
E46: WeekdayASD | G46: ='Year 2 & 3 Pupils'!O26 -> 0 | H46: 0 | I46: 0
E47: WeekendPD&PMLD | G47: ='Year 2 & 3 Pupils'!O27 -> 0 | H47: 0 | I47: 0
I48: =SUM(I40:I47) -> 0
C50: Total Place Plus Funding 2022/23 | I50: =I36+I24+I48 -> 0
B53: Other Grants
C55: PE & Sport Premium Grant | I55: ='Other Grants'!M39 -> 0
C56: Pupil Premium (PP) | I56: ='Other Grants'!M13 -> 0
C57: Special Nursery (Observation and Assessment Centre) | I57: ='Other Grants'!M19 -> 0
C58: Teachers Pay Grant | I58: ='Other Grants'!M37 -> 0
C59: Teacher's Pension Grant | I59: ='Other Grants'!M38 -> 0
C60: Universal Infant Free School Meal (UIFSM) | I60: ='Other Grants'!M34 -> 0
C61: Year 7 Catch Up | I61: ='Other Grants'!M40 -> 0
C63: Other Grants | I63: =SUM(I55:I62) -> 0
C65: Overall total estimated funding 2022/23 | I65: =I50+I63 -> 0
B68: Pooled Funding Arrangement
G69: Rate | H69: Places
C70: Schools in financial difficulties | G70: ='Year 1'!G74 -> 16.95 | H70: =(G16*(5/12))+(G17*(7/12))+(G28*(4/12))+(G29*(8/12)) -> 0 | I70: =G70*H70 -> 0
C71: Free School Meals Eligibility | G71: ='Year 1'!G75 -> 0.57 | H71: =(G16*(5/12))+(G17*(7/12))+(G28*(4/12))+(G29*(8/12)) -> 0 | I71: =G71*H71 -> 0
C72: Licences and Subscriptions (SIMS) | G72: ='Year 1'!G76 -> 3.63 | H72: =(G16*(5/12))+(G17*(7/12))+(G28*(4/12))+(G29*(8/12)) -> 0 | I72: 0
C73: Trade Union Duties | G73: ='Year 1'!G77 -> 1.85 | H73: =(G16*(5/12))+(G17*(7/12))+(G28*(4/12))+(G29*(8/12)) -> 0 | I73: 0
C74: Schools Personnel Service | G74: ='Year 1'!G78 -> 0.8 | H74: =(G16*(5/12))+(G17*(7/12))+(G28*(4/12))+(G29*(8/12)) -> 0 | I74: 0
I76: =SUM(I70:I74) -> 0

Sheet Monthly Statement

Sheet Reconciliation
A1: Select statement month: | F1: Number of pupils entered on Pupils tab by school: | G1: =COUNTA(Pupils!B4:B800) -> 0
F2: Number of pupils on reconciliation sheet: | G2: =COUNTIF(A6:A800,"<>0") -> 0
C3: =IF(A3="April",1, IF(A3="May",2, IF(A3="June",3, IF(A3="July",4, IF(A3="August",5, IF(A3="September",6, IF(A3="October",7, IF(A3="November",8, IF(A3="December",9, IF(A3="January",10, IF(A3="February",11, IF(A3="March",12,)))))))))))) -> 0 | F3: Number of pupils on latest statement: | G3: =COUNTA('Monthly Statement'!B2:B800) -> 0 | H3: April | K3: May | N3: June | Q3: July | T3: August | W3: September | Z3: October | AC3: November | AF3: December | AI3: January | AL3: February | AO3: March
H4: =SUM(H6:H800) -> 0 | I4: =SUM(I6:I800) -> 0 | J4: 0 | K4: 0 | L4: 0 | M4: 0 | N4: 0 | O4: 0 | P4: 0 | Q4: 0 | R4: 0 | S4: 0 | T4: 0 | U4: 0 | V4: 0 | W4: 0 | X4: 0 | Y4: 0 | Z4: 0 | AA4: 0 | AB4: 0 | AC4: 0 | AD4: 0 | AE4: 0 | AF4: 0 | AG4: 0 | AH4: 0 | AI4: 0 | AJ4: 0 | AK4: 0 | AL4: 0 | AM4: 0 | AN4: 0 | AO4: 0 | AP4: 0 | AQ4: 0
A5: Pupil Key | B5: Pupil Surname | C5: Pupil Forename | D5: Need Type | E5: Placement START Date | F5: Placement END Date | G5: Variance to date | H5: Forecast | I5: Actual | J5: Variance | K5: Forecast | L5: Actual | M5: Variance | N5: Forecast | O5: Actual | P5: Variance | Q5: Forecast | R5: Actual | S5: Variance | T5: Forecast | U5: Actual | V5: Variance | W5: Forecast | X5: Actual | Y5: Variance | Z5: Forecast | AA5: Actual | AB5: Variance | AC5: Forecast | AD5: Actual | AE5: Variance | AF5: Forecast | AG5: Actual | AH5: Variance | AI5: Forecast | AJ5: Actual | AK5: Variance | AL5: Forecast | AM5: Actual | AN5: Variance | AO5: Forecast | AP5: Actual | AQ5: Variance
A6: ='Monthly Statement'!A2 -> 0 | B6: =IFERROR(VLOOKUP(A6,'Monthly Statement'!A:X,4,0),"") ->  | C6: =IFERROR(VLOOKUP(A6,'Monthly Statement'!A:X,5,0),"") ->  | D6: =IFERROR(VLOOKUP(A6,'Monthly Statement'!A:X,7,0),"") ->  | E6: =IFERROR(VLOOKUP(A6,'Monthly Statement'!A:X,9,0),"") ->  | F6: =IFERROR(VLOOKUP(A6,'Monthly Statement'!A:X,10,0),"") ->  | G6: =J6+M6+P6+S6+V6+Y6+AB6+AE6+AH6+AK6+AN6+AQ6 -> 0 | H6: =IFERROR(VLOOKUP($A6,Pupils!$A$4:$T$800,8,0),0) -> 0 | I6: =IFERROR(VLOOKUP($A6,'Monthly Statement'!$A$2:$V$800,13,0),0) -> 0 | J6: =IF($C$3>0,ROUND(SUM(I6-H6),2),0) -> 0 | K6: =IFERROR(VLOOKUP($A6,Pupils!$A$4:$T$800,9,0),0) -> 0 | L6: =IFERROR(VLOOKUP($A6,'Monthly Statement'!$A$2:$V$800,14,0),0) -> 0 | M6: =IF($C$3>1,ROUND(SUM(L6-K6),2),0) -> 0 | N6: =IFERROR(VLOOKUP($A6,Pupils!$A$4:$T$800,10,0),0) -> 0 | O6: =IFERROR(VLOOKUP($A6,'Monthly Statement'!$A$2:$V$800,15,0),0) -> 0 | P6: =IF($C$3>2,ROUND(SUM(O6-N6),2),0) -> 0 | Q6: =IFERROR(VLOOKUP($A6,Pupils!$A$4:$T$800,11,0),0) -> 0 | R6: =IFERROR(VLOOKUP($A6,'Monthly Statement'!$A$2:$V$800,16,0),0) -> 0 | S6: =IF($C$3>3,ROUND(SUM(R6-Q6),2),0) -> 0 | T6: =IFERROR(VLOOKUP($A6,Pupils!$A$4:$T$800,12,0),0) -> 0 | U6: =IFERROR(VLOOKUP($A6,'Monthly Statement'!$A$2:$V$800,17,0),0) -> 0 | V6: =IF($C$3>4,ROUND(SUM(U6-T6),2),0) -> 0 | W6: =IFERROR(VLOOKUP($A6,Pupils!$A$4:$T$800,13,0),0) -> 0 | X6: =IFERROR(VLOOKUP($A6,'Monthly Statement'!$A$2:$V$800,18,0),0) -> 0 | Y6: =IF($C$3>5,ROUND(SUM(X6-W6),2),0) -> 0 | Z6: =IFERROR(VLOOKUP($A6,Pupils!$A$4:$T$800,14,0),0) -> 0 | AA6: =IFERROR(VLOOKUP($A6,'Monthly Statement'!$A$2:$V$800,19,0),0) -> 0 | AB6: =IF($C$3>6,ROUND(SUM(AA6-Z6),2),0) -> 0 | AC6: =IFERROR(VLOOKUP($A6,Pupils!$A$4:$T$800,15,0),0) -> 0 | AD6: =IFERROR(VLOOKUP($A6,'Monthly Statement'!$A$2:$V$800,20,0),0) -> 0 | AE6: =IF($C$3>7,ROUND(SUM(AD6-AC6),2),0) -> 0 | AF6: =IFERROR(VLOOKUP($A6,Pupils!$A$4:$T$800,16,0),0) -> 0 | AG6: =IFERROR(VLOOKUP($A6,'Monthly Statement'!$A$2:$V$800,21,0),0) -> 0 | AH6: =IF($C$3>8,ROUND(SUM(AG6-AF6),2),0) -> 0 | AI6: =IFERROR(VLOOKUP($A6,Pupils!$A$4:$T$800,17,0),0) -> 0 | AJ6: =IFERROR(VLOOKUP($A6,'Monthly Statement'!$A$2:$V$800,22,0),0) -> 0 | AK6: =IF($C$3>9,ROUND(SUM(AJ6-AI6),2),0) -> 0 | AL6: =IFERROR(VLOOKUP($A6,Pupils!$A$4:$T$800,18,0),0) -> 0 | AM6: =IFERROR(VLOOKUP($A6,'Monthly Statement'!$A$2:$V$800,23,0),0) -> 0 | AN6: =IF($C$3>10,ROUND(SUM(AM6-AL6),2),0) -> 0 | AO6: =IFERROR(VLOOKUP($A6,Pupils!$A$4:$T$800,19,0),0) -> 0 | AP6: =IFERROR(VLOOKUP($A6,'Monthly Statement'!$A$2:$V$800,24,0),0) -> 0 | AQ6: =IF($C$3>11,ROUND(SUM(AP6-AO6),2),0) -> 0
A7: ='Monthly Statement'!A3 -> 0 | B7: =IFERROR(VLOOKUP(A7,'Monthly Statement'!A:X,4,0),"") ->  | C7: =IFERROR(VLOOKUP(A7,'Monthly Statement'!A:X,5,0),"") ->  | D7: =IFERROR(VLOOKUP(A7,'Monthly Statement'!A:X,7,0),"") ->  | E7: =IFERROR(VLOOKUP(A7,'Monthly Statement'!A:X,9,0),"") ->  | F7: =IFERROR(VLOOKUP(A7,'Monthly Statement'!A:X,10,0),"") ->  | G7: =J7+M7+P7+S7+V7+Y7+AB7+AE7+AH7+AK7+AN7+AQ7 -> 0 | H7: =IFERROR(VLOOKUP($A7,Pupils!$A$4:$T$800,8,0),0) -> 0 | I7: =IFERROR(VLOOKUP($A7,'Monthly Statement'!$A$2:$V$800,13,0),0) -> 0 | J7: =IF($C$3>0,ROUND(SUM(I7-H7),2),0) -> 0 | K7: =IFERROR(VLOOKUP($A7,Pupils!$A$4:$T$800,9,0),0) -> 0 | L7: =IFERROR(VLOOKUP($A7,'Monthly Statement'!$A$2:$V$800,14,0),0) -> 0 | M7: =IF($C$3>1,ROUND(SUM(L7-K7),2),0) -> 0 | N7: =IFERROR(VLOOKUP($A7,Pupils!$A$4:$T$800,10,0),0) -> 0 | O7: =IFERROR(VLOOKUP($A7,'Monthly Statement'!$A$2:$V$800,15,0),0) -> 0 | P7: =IF($C$3>2,ROUND(SUM(O7-N7),2),0) -> 0 | Q7: =IFERROR(VLOOKUP($A7,Pupils!$A$4:$T$800,11,0),0) -> 0 | R7: =IFERROR(VLOOKUP($A7,'Monthly Statement'!$A$2:$V$800,16,0),0) -> 0 | S7: =IF($C$3>3,ROUND(SUM(R7-Q7),2),0) -> 0 | T7: =IFERROR(VLOOKUP($A7,Pupils!$A$4:$T$800,12,0),0) -> 0 | U7: =IFERROR(VLOOKUP($A7,'Monthly Statement'!$A$2:$V$800,17,0),0) -> 0 | V7: =IF($C$3>4,ROUND(SUM(U7-T7),2),0) -> 0 | W7: =IFERROR(VLOOKUP($A7,Pupils!$A$4:$T$800,13,0),0) -> 0 | X7: =IFERROR(VLOOKUP($A7,'Monthly Statement'!$A$2:$V$800,18,0),0) -> 0 | Y7: =IF($C$3>5,ROUND(SUM(X7-W7),2),0) -> 0 | Z7: =IFERROR(VLOOKUP($A7,Pupils!$A$4:$T$800,14,0),0) -> 0 | AA7: =IFERROR(VLOOKUP($A7,'Monthly Statement'!$A$2:$V$800,19,0),0) -> 0 | AB7: =IF($C$3>6,ROUND(SUM(AA7-Z7),2),0) -> 0 | AC7: =IFERROR(VLOOKUP($A7,Pupils!$A$4:$T$800,15,0),0) -> 0 | AD7: =IFERROR(VLOOKUP($A7,'Monthly Statement'!$A$2:$V$800,20,0),0) -> 0 | AE7: =IF($C$3>7,ROUND(SUM(AD7-AC7),2),0) -> 0 | AF7: =IFERROR(VLOOKUP($A7,Pupils!$A$4:$T$800,16,0),0) -> 0 | AG7: =IFERROR(VLOOKUP($A7,'Monthly Statement'!$A$2:$V$800,21,0),0) -> 0 | AH7: =IF($C$3>8,ROUND(SUM(AG7-AF7),2),0) -> 0 | AI7: =IFERROR(VLOOKUP($A7,Pupils!$A$4:$T$800,17,0),0) -> 0 | AJ7: =IFERROR(VLOOKUP($A7,'Monthly Statement'!$A$2:$V$800,22,0),0) -> 0 | AK7: =IF($C$3>9,ROUND(SUM(AJ7-AI7),2),0) -> 0 | AL7: =IFERROR(VLOOKUP($A7,Pupils!$A$4:$T$800,18,0),0) -> 0 | AM7: =IFERROR(VLOOKUP($A7,'Monthly Statement'!$A$2:$V$800,23,0),0) -> 0 | AN7: =IF($C$3>10,ROUND(SUM(AM7-AL7),2),0) -> 0 | AO7: =IFERROR(VLOOKUP($A7,Pupils!$A$4:$T$800,19,0),0) -> 0 | AP7: =IFERROR(VLOOKUP($A7,'Monthly Statement'!$A$2:$V$800,24,0),0) -> 0 | AQ7: =IF($C$3>11,ROUND(SUM(AP7-AO7),2),0) -> 0
A8: ='Monthly Statement'!A4 -> 0 | B8: =IFERROR(VLOOKUP(A8,'Monthly Statement'!A:X,4,0),"") ->  | C8: =IFERROR(VLOOKUP(A8,'Monthly Statement'!A:X,5,0),"") ->  | D8: =IFERROR(VLOOKUP(A8,'Monthly Statement'!A:X,7,0),"") ->  | E8: =IFERROR(VLOOKUP(A8,'Monthly Statement'!A:X,9,0),"") ->  | F8: =IFERROR(VLOOKUP(A8,'Monthly Statement'!A:X,10,0),"") ->  | G8: 0 | H8: =IFERROR(VLOOKUP($A8,Pupils!$A$4:$T$800,8,0),0) -> 0 | I8: =IFERROR(VLOOKUP($A8,'Monthly Statement'!$A$2:$V$800,13,0),0) -> 0 | J8: 0 | K8: =IFERROR(VLOOKUP($A8,Pupils!$A$4:$T$800,9,0),0) -> 0 | L8: =IFERROR(VLOOKUP($A8,'Monthly Statement'!$A$2:$V$800,14,0),0) -> 0 | M8: 0 | N8: =IFERROR(VLOOKUP($A8,Pupils!$A$4:$T$800,10,0),0) -> 0 | O8: =IFERROR(VLOOKUP($A8,'Monthly Statement'!$A$2:$V$800,15,0),0) -> 0 | P8: 0 | Q8: =IFERROR(VLOOKUP($A8,Pupils!$A$4:$T$800,11,0),0) -> 0 | R8: =IFERROR(VLOOKUP($A8,'Monthly Statement'!$A$2:$V$800,16,0),0) -> 0 | S8: 0 | T8: =IFERROR(VLOOKUP($A8,Pupils!$A$4:$T$800,12,0),0) -> 0 | U8: =IFERROR(VLOOKUP($A8,'Monthly Statement'!$A$2:$V$800,17,0),0) -> 0 | V8: 0 | W8: =IFERROR(VLOOKUP($A8,Pupils!$A$4:$T$800,13,0),0) -> 0 | X8: =IFERROR(VLOOKUP($A8,'Monthly Statement'!$A$2:$V$800,18,0),0) -> 0 | Y8: 0 | Z8: =IFERROR(VLOOKUP($A8,Pupils!$A$4:$T$800,14,0),0) -> 0 | AA8: =IFERROR(VLOOKUP($A8,'Monthly Statement'!$A$2:$V$800,19,0),0) -> 0 | AB8: 0 | AC8: =IFERROR(VLOOKUP($A8,Pupils!$A$4:$T$800,15,0),0) -> 0 | AD8: =IFERROR(VLOOKUP($A8,'Monthly Statement'!$A$2:$V$800,20,0),0) -> 0 | AE8: 0 | AF8: =IFERROR(VLOOKUP($A8,Pupils!$A$4:$T$800,16,0),0) -> 0 | AG8: =IFERROR(VLOOKUP($A8,'Monthly Statement'!$A$2:$V$800,21,0),0) -> 0 | AH8: 0 | AI8: =IFERROR(VLOOKUP($A8,Pupils!$A$4:$T$800,17,0),0) -> 0 | AJ8: =IFERROR(VLOOKUP($A8,'Monthly Statement'!$A$2:$V$800,22,0),0) -> 0 | AK8: 0 | AL8: =IFERROR(VLOOKUP($A8,Pupils!$A$4:$T$800,18,0),0) -> 0 | AM8: =IFERROR(VLOOKUP($A8,'Monthly Statement'!$A$2:$V$800,23,0),0) -> 0 | AN8: 0 | AO8: =IFERROR(VLOOKUP($A8,Pupils!$A$4:$T$800,19,0),0) -> 0 | AP8: =IFERROR(VLOOKUP($A8,'Monthly Statement'!$A$2:$V$800,24,0),0) -> 0 | AQ8: 0
A9: ='Monthly Statement'!A5 -> 0 | B9: =IFERROR(VLOOKUP(A9,'Monthly Statement'!A:X,4,0),"") ->  | C9: =IFERROR(VLOOKUP(A9,'Monthly Statement'!A:X,5,0),"") ->  | D9: =IFERROR(VLOOKUP(A9,'Monthly Statement'!A:X,7,0),"") ->  | E9: =IFERROR(VLOOKUP(A9,'Monthly Statement'!A:X,9,0),"") ->  | F9: =IFERROR(VLOOKUP(A9,'Monthly Statement'!A:X,10,0),"") ->  | G9: 0 | H9: =IFERROR(VLOOKUP($A9,Pupils!$A$4:$T$800,8,0),0) -> 0 | I9: =IFERROR(VLOOKUP($A9,'Monthly Statement'!$A$2:$V$800,13,0),0) -> 0 | J9: 0 | K9: =IFERROR(VLOOKUP($A9,Pupils!$A$4:$T$800,9,0),0) -> 0 | L9: =IFERROR(VLOOKUP($A9,'Monthly Statement'!$A$2:$V$800,14,0),0) -> 0 | M9: 0 | N9: =IFERROR(VLOOKUP($A9,Pupils!$A$4:$T$800,10,0),0) -> 0 | O9: =IFERROR(VLOOKUP($A9,'Monthly Statement'!$A$2:$V$800,15,0),0) -> 0 | P9: 0 | Q9: =IFERROR(VLOOKUP($A9,Pupils!$A$4:$T$800,11,0),0) -> 0 | R9: =IFERROR(VLOOKUP($A9,'Monthly Statement'!$A$2:$V$800,16,0),0) -> 0 | S9: 0 | T9: =IFERROR(VLOOKUP($A9,Pupils!$A$4:$T$800,12,0),0) -> 0 | U9: =IFERROR(VLOOKUP($A9,'Monthly Statement'!$A$2:$V$800,17,0),0) -> 0 | V9: 0 | W9: =IFERROR(VLOOKUP($A9,Pupils!$A$4:$T$800,13,0),0) -> 0 | X9: =IFERROR(VLOOKUP($A9,'Monthly Statement'!$A$2:$V$800,18,0),0) -> 0 | Y9: 0 | Z9: =IFERROR(VLOOKUP($A9,Pupils!$A$4:$T$800,14,0),0) -> 0 | AA9: =IFERROR(VLOOKUP($A9,'Monthly Statement'!$A$2:$V$800,19,0),0) -> 0 | AB9: 0 | AC9: =IFERROR(VLOOKUP($A9,Pupils!$A$4:$T$800,15,0),0) -> 0 | AD9: =IFERROR(VLOOKUP($A9,'Monthly Statement'!$A$2:$V$800,20,0),0) -> 0 | AE9: 0 | AF9: =IFERROR(VLOOKUP($A9,Pupils!$A$4:$T$800,16,0),0) -> 0 | AG9: =IFERROR(VLOOKUP($A9,'Monthly Statement'!$A$2:$V$800,21,0),0) -> 0 | AH9: 0 | AI9: =IFERROR(VLOOKUP($A9,Pupils!$A$4:$T$800,17,0),0) -> 0 | AJ9: =IFERROR(VLOOKUP($A9,'Monthly Statement'!$A$2:$V$800,22,0),0) -> 0 | AK9: 0 | AL9: =IFERROR(VLOOKUP($A9,Pupils!$A$4:$T$800,18,0),0) -> 0 | AM9: =IFERROR(VLOOKUP($A9,'Monthly Statement'!$A$2:$V$800,23,0),0) -> 0 | AN9: 0 | AO9: =IFERROR(VLOOKUP($A9,Pupils!$A$4:$T$800,19,0),0) -> 0 | AP9: =IFERROR(VLOOKUP($A9,'Monthly Statement'!$A$2:$V$800,24,0),0) -> 0 | AQ9: 0
A10: ='Monthly Statement'!A6 -> 0 | B10: =IFERROR(VLOOKUP(A10,'Monthly Statement'!A:X,4,0),"") ->  | C10: =IFERROR(VLOOKUP(A10,'Monthly Statement'!A:X,5,0),"") ->  | D10: =IFERROR(VLOOKUP(A10,'Monthly Statement'!A:X,7,0),"") ->  | E10: =IFERROR(VLOOKUP(A10,'Monthly Statement'!A:X,9,0),"") ->  | F10: =IFERROR(VLOOKUP(A10,'Monthly Statement'!A:X,10,0),"") ->  | G10: 0 | H10: =IFERROR(VLOOKUP($A10,Pupils!$A$4:$T$800,8,0),0) -> 0 | I10: =IFERROR(VLOOKUP($A10,'Monthly Statement'!$A$2:$V$800,13,0),0) -> 0 | J10: 0 | K10: =IFERROR(VLOOKUP($A10,Pupils!$A$4:$T$800,9,0),0) -> 0 | L10: =IFERROR(VLOOKUP($A10,'Monthly Statement'!$A$2:$V$800,14,0),0) -> 0 | M10: 0 | N10: =IFERROR(VLOOKUP($A10,Pupils!$A$4:$T$800,10,0),0) -> 0 | O10: =IFERROR(VLOOKUP($A10,'Monthly Statement'!$A$2:$V$800,15,0),0) -> 0 | P10: 0 | Q10: =IFERROR(VLOOKUP($A10,Pupils!$A$4:$T$800,11,0),0) -> 0 | R10: =IFERROR(VLOOKUP($A10,'Monthly Statement'!$A$2:$V$800,16,0),0) -> 0 | S10: 0 | T10: =IFERROR(VLOOKUP($A10,Pupils!$A$4:$T$800,12,0),0) -> 0 | U10: =IFERROR(VLOOKUP($A10,'Monthly Statement'!$A$2:$V$800,17,0),0) -> 0 | V10: 0 | W10: =IFERROR(VLOOKUP($A10,Pupils!$A$4:$T$800,13,0),0) -> 0 | X10: =IFERROR(VLOOKUP($A10,'Monthly Statement'!$A$2:$V$800,18,0),0) -> 0 | Y10: 0 | Z10: =IFERROR(VLOOKUP($A10,Pupils!$A$4:$T$800,14,0),0) -> 0 | AA10: =IFERROR(VLOOKUP($A10,'Monthly Statement'!$A$2:$V$800,19,0),0) -> 0 | AB10: 0 | AC10: =IFERROR(VLOOKUP($A10,Pupils!$A$4:$T$800,15,0),0) -> 0 | AD10: =IFERROR(VLOOKUP($A10,'Monthly Statement'!$A$2:$V$800,20,0),0) -> 0 | AE10: 0 | AF10: =IFERROR(VLOOKUP($A10,Pupils!$A$4:$T$800,16,0),0) -> 0 | AG10: =IFERROR(VLOOKUP($A10,'Monthly Statement'!$A$2:$V$800,21,0),0) -> 0 | AH10: 0 | AI10: =IFERROR(VLOOKUP($A10,Pupils!$A$4:$T$800,17,0),0) -> 0 | AJ10: =IFERROR(VLOOKUP($A10,'Monthly Statement'!$A$2:$V$800,22,0),0) -> 0 | AK10: 0 | AL10: =IFERROR(VLOOKUP($A10,Pupils!$A$4:$T$800,18,0),0) -> 0 | AM10: =IFERROR(VLOOKUP($A10,'Monthly Statement'!$A$2:$V$800,23,0),0) -> 0 | AN10: 0 | AO10: =IFERROR(VLOOKUP($A10,Pupils!$A$4:$T$800,19,0),0) -> 0 | AP10: =IFERROR(VLOOKUP($A10,'Monthly Statement'!$A$2:$V$800,24,0),0) -> 0 | AQ10: 0
A11: ='Monthly Statement'!A7 -> 0 | B11: =IFERROR(VLOOKUP(A11,'Monthly Statement'!A:X,4,0),"") ->  | C11: =IFERROR(VLOOKUP(A11,'Monthly Statement'!A:X,5,0),"") ->  | D11: =IFERROR(VLOOKUP(A11,'Monthly Statement'!A:X,7,0),"") ->  | E11: =IFERROR(VLOOKUP(A11,'Monthly Statement'!A:X,9,0),"") ->  | F11: =IFERROR(VLOOKUP(A11,'Monthly Statement'!A:X,10,0),"") ->  | G11: 0 | H11: =IFERROR(VLOOKUP($A11,Pupils!$A$4:$T$800,8,0),0) -> 0 | I11: =IFERROR(VLOOKUP($A11,'Monthly Statement'!$A$2:$V$800,13,0),0) -> 0 | J11: 0 | K11: =IFERROR(VLOOKUP($A11,Pupils!$A$4:$T$800,9,0),0) -> 0 | L11: =IFERROR(VLOOKUP($A11,'Monthly Statement'!$A$2:$V$800,14,0),0) -> 0 | M11: 0 | N11: =IFERROR(VLOOKUP($A11,Pupils!$A$4:$T$800,10,0),0) -> 0 | O11: =IFERROR(VLOOKUP($A11,'Monthly Statement'!$A$2:$V$800,15,0),0) -> 0 | P11: 0 | Q11: =IFERROR(VLOOKUP($A11,Pupils!$A$4:$T$800,11,0),0) -> 0 | R11: =IFERROR(VLOOKUP($A11,'Monthly Statement'!$A$2:$V$800,16,0),0) -> 0 | S11: 0 | T11: =IFERROR(VLOOKUP($A11,Pupils!$A$4:$T$800,12,0),0) -> 0 | U11: =IFERROR(VLOOKUP($A11,'Monthly Statement'!$A$2:$V$800,17,0),0) -> 0 | V11: 0 | W11: =IFERROR(VLOOKUP($A11,Pupils!$A$4:$T$800,13,0),0) -> 0 | X11: =IFERROR(VLOOKUP($A11,'Monthly Statement'!$A$2:$V$800,18,0),0) -> 0 | Y11: 0 | Z11: =IFERROR(VLOOKUP($A11,Pupils!$A$4:$T$800,14,0),0) -> 0 | AA11: =IFERROR(VLOOKUP($A11,'Monthly Statement'!$A$2:$V$800,19,0),0) -> 0 | AB11: 0 | AC11: =IFERROR(VLOOKUP($A11,Pupils!$A$4:$T$800,15,0),0) -> 0 | AD11: =IFERROR(VLOOKUP($A11,'Monthly Statement'!$A$2:$V$800,20,0),0) -> 0 | AE11: 0 | AF11: =IFERROR(VLOOKUP($A11,Pupils!$A$4:$T$800,16,0),0) -> 0 | AG11: =IFERROR(VLOOKUP($A11,'Monthly Statement'!$A$2:$V$800,21,0),0) -> 0 | AH11: 0 | AI11: =IFERROR(VLOOKUP($A11,Pupils!$A$4:$T$800,17,0),0) -> 0 | AJ11: =IFERROR(VLOOKUP($A11,'Monthly Statement'!$A$2:$V$800,22,0),0) -> 0 | AK11: 0 | AL11: =IFERROR(VLOOKUP($A11,Pupils!$A$4:$T$800,18,0),0) -> 0 | AM11: =IFERROR(VLOOKUP($A11,'Monthly Statement'!$A$2:$V$800,23,0),0) -> 0 | AN11: 0 | AO11: =IFERROR(VLOOKUP($A11,Pupils!$A$4:$T$800,19,0),0) -> 0 | AP11: =IFERROR(VLOOKUP($A11,'Monthly Statement'!$A$2:$V$800,24,0),0) -> 0 | AQ11: 0
A12: ='Monthly Statement'!A8 -> 0 | B12: =IFERROR(VLOOKUP(A12,'Monthly Statement'!A:X,4,0),"") ->  | C12: =IFERROR(VLOOKUP(A12,'Monthly Statement'!A:X,5,0),"") ->  | D12: =IFERROR(VLOOKUP(A12,'Monthly Statement'!A:X,7,0),"") ->  | E12: =IFERROR(VLOOKUP(A12,'Monthly Statement'!A:X,9,0),"") ->  | F12: =IFERROR(VLOOKUP(A12,'Monthly Statement'!A:X,10,0),"") ->  | G12: 0 | H12: =IFERROR(VLOOKUP($A12,Pupils!$A$4:$T$800,8,0),0) -> 0 | I12: =IFERROR(VLOOKUP($A12,'Monthly Statement'!$A$2:$V$800,13,0),0) -> 0 | J12: 0 | K12: =IFERROR(VLOOKUP($A12,Pupils!$A$4:$T$800,9,0),0) -> 0 | L12: =IFERROR(VLOOKUP($A12,'Monthly Statement'!$A$2:$V$800,14,0),0) -> 0 | M12: 0 | N12: =IFERROR(VLOOKUP($A12,Pupils!$A$4:$T$800,10,0),0) -> 0 | O12: =IFERROR(VLOOKUP($A12,'Monthly Statement'!$A$2:$V$800,15,0),0) -> 0 | P12: 0 | Q12: =IFERROR(VLOOKUP($A12,Pupils!$A$4:$T$800,11,0),0) -> 0 | R12: =IFERROR(VLOOKUP($A12,'Monthly Statement'!$A$2:$V$800,16,0),0) -> 0 | S12: 0 | T12: =IFERROR(VLOOKUP($A12,Pupils!$A$4:$T$800,12,0),0) -> 0 | U12: =IFERROR(VLOOKUP($A12,'Monthly Statement'!$A$2:$V$800,17,0),0) -> 0 | V12: 0 | W12: =IFERROR(VLOOKUP($A12,Pupils!$A$4:$T$800,13,0),0) -> 0 | X12: =IFERROR(VLOOKUP($A12,'Monthly Statement'!$A$2:$V$800,18,0),0) -> 0 | Y12: 0 | Z12: =IFERROR(VLOOKUP($A12,Pupils!$A$4:$T$800,14,0),0) -> 0 | AA12: =IFERROR(VLOOKUP($A12,'Monthly Statement'!$A$2:$V$800,19,0),0) -> 0 | AB12: 0 | AC12: =IFERROR(VLOOKUP($A12,Pupils!$A$4:$T$800,15,0),0) -> 0 | AD12: =IFERROR(VLOOKUP($A12,'Monthly Statement'!$A$2:$V$800,20,0),0) -> 0 | AE12: 0 | AF12: =IFERROR(VLOOKUP($A12,Pupils!$A$4:$T$800,16,0),0) -> 0 | AG12: =IFERROR(VLOOKUP($A12,'Monthly Statement'!$A$2:$V$800,21,0),0) -> 0 | AH12: 0 | AI12: =IFERROR(VLOOKUP($A12,Pupils!$A$4:$T$800,17,0),0) -> 0 | AJ12: =IFERROR(VLOOKUP($A12,'Monthly Statement'!$A$2:$V$800,22,0),0) -> 0 | AK12: 0 | AL12: =IFERROR(VLOOKUP($A12,Pupils!$A$4:$T$800,18,0),0) -> 0 | AM12: =IFERROR(VLOOKUP($A12,'Monthly Statement'!$A$2:$V$800,23,0),0) -> 0 | AN12: 0 | AO12: =IFERROR(VLOOKUP($A12,Pupils!$A$4:$T$800,19,0),0) -> 0 | AP12: =IFERROR(VLOOKUP($A12,'Monthly Statement'!$A$2:$V$800,24,0),0) -> 0 | AQ12: 0
A13: ='Monthly Statement'!A9 -> 0 | B13: =IFERROR(VLOOKUP(A13,'Monthly Statement'!A:X,4,0),"") ->  | C13: =IFERROR(VLOOKUP(A13,'Monthly Statement'!A:X,5,0),"") ->  | D13: =IFERROR(VLOOKUP(A13,'Monthly Statement'!A:X,7,0),"") ->  | E13: =IFERROR(VLOOKUP(A13,'Monthly Statement'!A:X,9,0),"") ->  | F13: =IFERROR(VLOOKUP(A13,'Monthly Statement'!A:X,10,0),"") ->  | G13: 0 | H13: =IFERROR(VLOOKUP($A13,Pupils!$A$4:$T$800,8,0),0) -> 0 | I13: =IFERROR(VLOOKUP($A13,'Monthly Statement'!$A$2:$V$800,13,0),0) -> 0 | J13: 0 | K13: =IFERROR(VLOOKUP($A13,Pupils!$A$4:$T$800,9,0),0) -> 0 | L13: =IFERROR(VLOOKUP($A13,'Monthly Statement'!$A$2:$V$800,14,0),0) -> 0 | M13: 0 | N13: =IFERROR(VLOOKUP($A13,Pupils!$A$4:$T$800,10,0),0) -> 0 | O13: =IFERROR(VLOOKUP($A13,'Monthly Statement'!$A$2:$V$800,15,0),0) -> 0 | P13: 0 | Q13: =IFERROR(VLOOKUP($A13,Pupils!$A$4:$T$800,11,0),0) -> 0 | R13: =IFERROR(VLOOKUP($A13,'Monthly Statement'!$A$2:$V$800,16,0),0) -> 0 | S13: 0 | T13: =IFERROR(VLOOKUP($A13,Pupils!$A$4:$T$800,12,0),0) -> 0 | U13: =IFERROR(VLOOKUP($A13,'Monthly Statement'!$A$2:$V$800,17,0),0) -> 0 | V13: 0 | W13: =IFERROR(VLOOKUP($A13,Pupils!$A$4:$T$800,13,0),0) -> 0 | X13: =IFERROR(VLOOKUP($A13,'Monthly Statement'!$A$2:$V$800,18,0),0) -> 0 | Y13: 0 | Z13: =IFERROR(VLOOKUP($A13,Pupils!$A$4:$T$800,14,0),0) -> 0 | AA13: =IFERROR(VLOOKUP($A13,'Monthly Statement'!$A$2:$V$800,19,0),0) -> 0 | AB13: 0 | AC13: =IFERROR(VLOOKUP($A13,Pupils!$A$4:$T$800,15,0),0) -> 0 | AD13: =IFERROR(VLOOKUP($A13,'Monthly Statement'!$A$2:$V$800,20,0),0) -> 0 | AE13: 0 | AF13: =IFERROR(VLOOKUP($A13,Pupils!$A$4:$T$800,16,0),0) -> 0 | AG13: =IFERROR(VLOOKUP($A13,'Monthly Statement'!$A$2:$V$800,21,0),0) -> 0 | AH13: 0 | AI13: =IFERROR(VLOOKUP($A13,Pupils!$A$4:$T$800,17,0),0) -> 0 | AJ13: =IFERROR(VLOOKUP($A13,'Monthly Statement'!$A$2:$V$800,22,0),0) -> 0 | AK13: 0 | AL13: =IFERROR(VLOOKUP($A13,Pupils!$A$4:$T$800,18,0),0) -> 0 | AM13: =IFERROR(VLOOKUP($A13,'Monthly Statement'!$A$2:$V$800,23,0),0) -> 0 | AN13: 0 | AO13: =IFERROR(VLOOKUP($A13,Pupils!$A$4:$T$800,19,0),0) -> 0 | AP13: =IFERROR(VLOOKUP($A13,'Monthly Statement'!$A$2:$V$800,24,0),0) -> 0 | AQ13: 0
A14: ='Monthly Statement'!A10 -> 0 | B14: =IFERROR(VLOOKUP(A14,'Monthly Statement'!A:X,4,0),"") ->  | C14: =IFERROR(VLOOKUP(A14,'Monthly Statement'!A:X,5,0),"") ->  | D14: =IFERROR(VLOOKUP(A14,'Monthly Statement'!A:X,7,0),"") ->  | E14: =IFERROR(VLOOKUP(A14,'Monthly Statement'!A:X,9,0),"") ->  | F14: =IFERROR(VLOOKUP(A14,'Monthly Statement'!A:X,10,0),"") ->  | G14: 0 | H14: =IFERROR(VLOOKUP($A14,Pupils!$A$4:$T$800,8,0),0) -> 0 | I14: =IFERROR(VLOOKUP($A14,'Monthly Statement'!$A$2:$V$800,13,0),0) -> 0 | J14: 0 | K14: =IFERROR(VLOOKUP($A14,Pupils!$A$4:$T$800,9,0),0) -> 0 | L14: =IFERROR(VLOOKUP($A14,'Monthly Statement'!$A$2:$V$800,14,0),0) -> 0 | M14: 0 | N14: =IFERROR(VLOOKUP($A14,Pupils!$A$4:$T$800,10,0),0) -> 0 | O14: =IFERROR(VLOOKUP($A14,'Monthly Statement'!$A$2:$V$800,15,0),0) -> 0 | P14: 0 | Q14: =IFERROR(VLOOKUP($A14,Pupils!$A$4:$T$800,11,0),0) -> 0 | R14: =IFERROR(VLOOKUP($A14,'Monthly Statement'!$A$2:$V$800,16,0),0) -> 0 | S14: 0 | T14: =IFERROR(VLOOKUP($A14,Pupils!$A$4:$T$800,12,0),0) -> 0 | U14: =IFERROR(VLOOKUP($A14,'Monthly Statement'!$A$2:$V$800,17,0),0) -> 0 | V14: 0 | W14: =IFERROR(VLOOKUP($A14,Pupils!$A$4:$T$800,13,0),0) -> 0 | X14: =IFERROR(VLOOKUP($A14,'Monthly Statement'!$A$2:$V$800,18,0),0) -> 0 | Y14: 0 | Z14: =IFERROR(VLOOKUP($A14,Pupils!$A$4:$T$800,14,0),0) -> 0 | AA14: =IFERROR(VLOOKUP($A14,'Monthly Statement'!$A$2:$V$800,19,0),0) -> 0 | AB14: 0 | AC14: =IFERROR(VLOOKUP($A14,Pupils!$A$4:$T$800,15,0),0) -> 0 | AD14: =IFERROR(VLOOKUP($A14,'Monthly Statement'!$A$2:$V$800,20,0),0) -> 0 | AE14: 0 | AF14: =IFERROR(VLOOKUP($A14,Pupils!$A$4:$T$800,16,0),0) -> 0 | AG14: =IFERROR(VLOOKUP($A14,'Monthly Statement'!$A$2:$V$800,21,0),0) -> 0 | AH14: 0 | AI14: =IFERROR(VLOOKUP($A14,Pupils!$A$4:$T$800,17,0),0) -> 0 | AJ14: =IFERROR(VLOOKUP($A14,'Monthly Statement'!$A$2:$V$800,22,0),0) -> 0 | AK14: 0 | AL14: =IFERROR(VLOOKUP($A14,Pupils!$A$4:$T$800,18,0),0) -> 0 | AM14: =IFERROR(VLOOKUP($A14,'Monthly Statement'!$A$2:$V$800,23,0),0) -> 0 | AN14: 0 | AO14: =IFERROR(VLOOKUP($A14,Pupils!$A$4:$T$800,19,0),0) -> 0 | AP14: =IFERROR(VLOOKUP($A14,'Monthly Statement'!$A$2:$V$800,24,0),0) -> 0 | AQ14: 0
A15: ='Monthly Statement'!A11 -> 0 | B15: =IFERROR(VLOOKUP(A15,'Monthly Statement'!A:X,4,0),"") ->  | C15: =IFERROR(VLOOKUP(A15,'Monthly Statement'!A:X,5,0),"") ->  | D15: =IFERROR(VLOOKUP(A15,'Monthly Statement'!A:X,7,0),"") ->  | E15: =IFERROR(VLOOKUP(A15,'Monthly Statement'!A:X,9,0),"") ->  | F15: =IFERROR(VLOOKUP(A15,'Monthly Statement'!A:X,10,0),"") ->  | G15: 0 | H15: =IFERROR(VLOOKUP($A15,Pupils!$A$4:$T$800,8,0),0) -> 0 | I15: =IFERROR(VLOOKUP($A15,'Monthly Statement'!$A$2:$V$800,13,0),0) -> 0 | J15: 0 | K15: =IFERROR(VLOOKUP($A15,Pupils!$A$4:$T$800,9,0),0) -> 0 | L15: =IFERROR(VLOOKUP($A15,'Monthly Statement'!$A$2:$V$800,14,0),0) -> 0 | M15: 0 | N15: =IFERROR(VLOOKUP($A15,Pupils!$A$4:$T$800,10,0),0) -> 0 | O15: =IFERROR(VLOOKUP($A15,'Monthly Statement'!$A$2:$V$800,15,0),0) -> 0 | P15: 0 | Q15: =IFERROR(VLOOKUP($A15,Pupils!$A$4:$T$800,11,0),0) -> 0 | R15: =IFERROR(VLOOKUP($A15,'Monthly Statement'!$A$2:$V$800,16,0),0) -> 0 | S15: 0 | T15: =IFERROR(VLOOKUP($A15,Pupils!$A$4:$T$800,12,0),0) -> 0 | U15: =IFERROR(VLOOKUP($A15,'Monthly Statement'!$A$2:$V$800,17,0),0) -> 0 | V15: 0 | W15: =IFERROR(VLOOKUP($A15,Pupils!$A$4:$T$800,13,0),0) -> 0 | X15: =IFERROR(VLOOKUP($A15,'Monthly Statement'!$A$2:$V$800,18,0),0) -> 0 | Y15: 0 | Z15: =IFERROR(VLOOKUP($A15,Pupils!$A$4:$T$800,14,0),0) -> 0 | AA15: =IFERROR(VLOOKUP($A15,'Monthly Statement'!$A$2:$V$800,19,0),0) -> 0 | AB15: 0 | AC15: =IFERROR(VLOOKUP($A15,Pupils!$A$4:$T$800,15,0),0) -> 0 | AD15: =IFERROR(VLOOKUP($A15,'Monthly Statement'!$A$2:$V$800,20,0),0) -> 0 | AE15: 0 | AF15: =IFERROR(VLOOKUP($A15,Pupils!$A$4:$T$800,16,0),0) -> 0 | AG15: =IFERROR(VLOOKUP($A15,'Monthly Statement'!$A$2:$V$800,21,0),0) -> 0 | AH15: 0 | AI15: =IFERROR(VLOOKUP($A15,Pupils!$A$4:$T$800,17,0),0) -> 0 | AJ15: =IFERROR(VLOOKUP($A15,'Monthly Statement'!$A$2:$V$800,22,0),0) -> 0 | AK15: 0 | AL15: =IFERROR(VLOOKUP($A15,Pupils!$A$4:$T$800,18,0),0) -> 0 | AM15: =IFERROR(VLOOKUP($A15,'Monthly Statement'!$A$2:$V$800,23,0),0) -> 0 | AN15: 0 | AO15: =IFERROR(VLOOKUP($A15,Pupils!$A$4:$T$800,19,0),0) -> 0 | AP15: =IFERROR(VLOOKUP($A15,'Monthly Statement'!$A$2:$V$800,24,0),0) -> 0 | AQ15: 0
A16: ='Monthly Statement'!A12 -> 0 | B16: =IFERROR(VLOOKUP(A16,'Monthly Statement'!A:X,4,0),"") ->  | C16: =IFERROR(VLOOKUP(A16,'Monthly Statement'!A:X,5,0),"") ->  | D16: =IFERROR(VLOOKUP(A16,'Monthly Statement'!A:X,7,0),"") ->  | E16: =IFERROR(VLOOKUP(A16,'Monthly Statement'!A:X,9,0),"") ->  | F16: =IFERROR(VLOOKUP(A16,'Monthly Statement'!A:X,10,0),"") ->  | G16: 0 | H16: =IFERROR(VLOOKUP($A16,Pupils!$A$4:$T$800,8,0),0) -> 0 | I16: =IFERROR(VLOOKUP($A16,'Monthly Statement'!$A$2:$V$800,13,0),0) -> 0 | J16: 0 | K16: =IFERROR(VLOOKUP($A16,Pupils!$A$4:$T$800,9,0),0) -> 0 | L16: =IFERROR(VLOOKUP($A16,'Monthly Statement'!$A$2:$V$800,14,0),0) -> 0 | M16: 0 | N16: =IFERROR(VLOOKUP($A16,Pupils!$A$4:$T$800,10,0),0) -> 0 | O16: =IFERROR(VLOOKUP($A16,'Monthly Statement'!$A$2:$V$800,15,0),0) -> 0 | P16: 0 | Q16: =IFERROR(VLOOKUP($A16,Pupils!$A$4:$T$800,11,0),0) -> 0 | R16: =IFERROR(VLOOKUP($A16,'Monthly Statement'!$A$2:$V$800,16,0),0) -> 0 | S16: 0 | T16: =IFERROR(VLOOKUP($A16,Pupils!$A$4:$T$800,12,0),0) -> 0 | U16: =IFERROR(VLOOKUP($A16,'Monthly Statement'!$A$2:$V$800,17,0),0) -> 0 | V16: 0 | W16: =IFERROR(VLOOKUP($A16,Pupils!$A$4:$T$800,13,0),0) -> 0 | X16: =IFERROR(VLOOKUP($A16,'Monthly Statement'!$A$2:$V$800,18,0),0) -> 0 | Y16: 0 | Z16: =IFERROR(VLOOKUP($A16,Pupils!$A$4:$T$800,14,0),0) -> 0 | AA16: =IFERROR(VLOOKUP($A16,'Monthly Statement'!$A$2:$V$800,19,0),0) -> 0 | AB16: 0 | AC16: =IFERROR(VLOOKUP($A16,Pupils!$A$4:$T$800,15,0),0) -> 0 | AD16: =IFERROR(VLOOKUP($A16,'Monthly Statement'!$A$2:$V$800,20,0),0) -> 0 | AE16: 0 | AF16: =IFERROR(VLOOKUP($A16,Pupils!$A$4:$T$800,16,0),0) -> 0 | AG16: =IFERROR(VLOOKUP($A16,'Monthly Statement'!$A$2:$V$800,21,0),0) -> 0 | AH16: 0 | AI16: =IFERROR(VLOOKUP($A16,Pupils!$A$4:$T$800,17,0),0) -> 0 | AJ16: =IFERROR(VLOOKUP($A16,'Monthly Statement'!$A$2:$V$800,22,0),0) -> 0 | AK16: 0 | AL16: =IFERROR(VLOOKUP($A16,Pupils!$A$4:$T$800,18,0),0) -> 0 | AM16: =IFERROR(VLOOKUP($A16,'Monthly Statement'!$A$2:$V$800,23,0),0) -> 0 | AN16: 0 | AO16: =IFERROR(VLOOKUP($A16,Pupils!$A$4:$T$800,19,0),0) -> 0 | AP16: =IFERROR(VLOOKUP($A16,'Monthly Statement'!$A$2:$V$800,24,0),0) -> 0 | AQ16: 0
A17: ='Monthly Statement'!A13 -> 0 | B17: =IFERROR(VLOOKUP(A17,'Monthly Statement'!A:X,4,0),"") ->  | C17: =IFERROR(VLOOKUP(A17,'Monthly Statement'!A:X,5,0),"") ->  | D17: =IFERROR(VLOOKUP(A17,'Monthly Statement'!A:X,7,0),"") ->  | E17: =IFERROR(VLOOKUP(A17,'Monthly Statement'!A:X,9,0),"") ->  | F17: =IFERROR(VLOOKUP(A17,'Monthly Statement'!A:X,10,0),"") ->  | G17: 0 | H17: =IFERROR(VLOOKUP($A17,Pupils!$A$4:$T$800,8,0),0) -> 0 | I17: =IFERROR(VLOOKUP($A17,'Monthly Statement'!$A$2:$V$800,13,0),0) -> 0 | J17: 0 | K17: =IFERROR(VLOOKUP($A17,Pupils!$A$4:$T$800,9,0),0) -> 0 | L17: =IFERROR(VLOOKUP($A17,'Monthly Statement'!$A$2:$V$800,14,0),0) -> 0 | M17: 0 | N17: =IFERROR(VLOOKUP($A17,Pupils!$A$4:$T$800,10,0),0) -> 0 | O17: =IFERROR(VLOOKUP($A17,'Monthly Statement'!$A$2:$V$800,15,0),0) -> 0 | P17: 0 | Q17: =IFERROR(VLOOKUP($A17,Pupils!$A$4:$T$800,11,0),0) -> 0 | R17: =IFERROR(VLOOKUP($A17,'Monthly Statement'!$A$2:$V$800,16,0),0) -> 0 | S17: 0 | T17: =IFERROR(VLOOKUP($A17,Pupils!$A$4:$T$800,12,0),0) -> 0 | U17: =IFERROR(VLOOKUP($A17,'Monthly Statement'!$A$2:$V$800,17,0),0) -> 0 | V17: 0 | W17: =IFERROR(VLOOKUP($A17,Pupils!$A$4:$T$800,13,0),0) -> 0 | X17: =IFERROR(VLOOKUP($A17,'Monthly Statement'!$A$2:$V$800,18,0),0) -> 0 | Y17: 0 | Z17: =IFERROR(VLOOKUP($A17,Pupils!$A$4:$T$800,14,0),0) -> 0 | AA17: =IFERROR(VLOOKUP($A17,'Monthly Statement'!$A$2:$V$800,19,0),0) -> 0 | AB17: 0 | AC17: =IFERROR(VLOOKUP($A17,Pupils!$A$4:$T$800,15,0),0) -> 0 | AD17: =IFERROR(VLOOKUP($A17,'Monthly Statement'!$A$2:$V$800,20,0),0) -> 0 | AE17: 0 | AF17: =IFERROR(VLOOKUP($A17,Pupils!$A$4:$T$800,16,0),0) -> 0 | AG17: =IFERROR(VLOOKUP($A17,'Monthly Statement'!$A$2:$V$800,21,0),0) -> 0 | AH17: 0 | AI17: =IFERROR(VLOOKUP($A17,Pupils!$A$4:$T$800,17,0),0) -> 0 | AJ17: =IFERROR(VLOOKUP($A17,'Monthly Statement'!$A$2:$V$800,22,0),0) -> 0 | AK17: 0 | AL17: =IFERROR(VLOOKUP($A17,Pupils!$A$4:$T$800,18,0),0) -> 0 | AM17: =IFERROR(VLOOKUP($A17,'Monthly Statement'!$A$2:$V$800,23,0),0) -> 0 | AN17: 0 | AO17: =IFERROR(VLOOKUP($A17,Pupils!$A$4:$T$800,19,0),0) -> 0 | AP17: =IFERROR(VLOOKUP($A17,'Monthly Statement'!$A$2:$V$800,24,0),0) -> 0 | AQ17: 0
A18: ='Monthly Statement'!A14 -> 0 | B18: =IFERROR(VLOOKUP(A18,'Monthly Statement'!A:X,4,0),"") ->  | C18: =IFERROR(VLOOKUP(A18,'Monthly Statement'!A:X,5,0),"") ->  | D18: =IFERROR(VLOOKUP(A18,'Monthly Statement'!A:X,7,0),"") ->  | E18: =IFERROR(VLOOKUP(A18,'Monthly Statement'!A:X,9,0),"") ->  | F18: =IFERROR(VLOOKUP(A18,'Monthly Statement'!A:X,10,0),"") ->  | G18: 0 | H18: =IFERROR(VLOOKUP($A18,Pupils!$A$4:$T$800,8,0),0) -> 0 | I18: =IFERROR(VLOOKUP($A18,'Monthly Statement'!$A$2:$V$800,13,0),0) -> 0 | J18: 0 | K18: =IFERROR(VLOOKUP($A18,Pupils!$A$4:$T$800,9,0),0) -> 0 | L18: =IFERROR(VLOOKUP($A18,'Monthly Statement'!$A$2:$V$800,14,0),0) -> 0 | M18: 0 | N18: =IFERROR(VLOOKUP($A18,Pupils!$A$4:$T$800,10,0),0) -> 0 | O18: =IFERROR(VLOOKUP($A18,'Monthly Statement'!$A$2:$V$800,15,0),0) -> 0 | P18: 0 | Q18: =IFERROR(VLOOKUP($A18,Pupils!$A$4:$T$800,11,0),0) -> 0 | R18: =IFERROR(VLOOKUP($A18,'Monthly Statement'!$A$2:$V$800,16,0),0) -> 0 | S18: 0 | T18: =IFERROR(VLOOKUP($A18,Pupils!$A$4:$T$800,12,0),0) -> 0 | U18: =IFERROR(VLOOKUP($A18,'Monthly Statement'!$A$2:$V$800,17,0),0) -> 0 | V18: 0 | W18: =IFERROR(VLOOKUP($A18,Pupils!$A$4:$T$800,13,0),0) -> 0 | X18: =IFERROR(VLOOKUP($A18,'Monthly Statement'!$A$2:$V$800,18,0),0) -> 0 | Y18: 0 | Z18: =IFERROR(VLOOKUP($A18,Pupils!$A$4:$T$800,14,0),0) -> 0 | AA18: =IFERROR(VLOOKUP($A18,'Monthly Statement'!$A$2:$V$800,19,0),0) -> 0 | AB18: 0 | AC18: =IFERROR(VLOOKUP($A18,Pupils!$A$4:$T$800,15,0),0) -> 0 | AD18: =IFERROR(VLOOKUP($A18,'Monthly Statement'!$A$2:$V$800,20,0),0) -> 0 | AE18: 0 | AF18: =IFERROR(VLOOKUP($A18,Pupils!$A$4:$T$800,16,0),0) -> 0 | AG18: =IFERROR(VLOOKUP($A18,'Monthly Statement'!$A$2:$V$800,21,0),0) -> 0 | AH18: 0 | AI18: =IFERROR(VLOOKUP($A18,Pupils!$A$4:$T$800,17,0),0) -> 0 | AJ18: =IFERROR(VLOOKUP($A18,'Monthly Statement'!$A$2:$V$800,22,0),0) -> 0 | AK18: 0 | AL18: =IFERROR(VLOOKUP($A18,Pupils!$A$4:$T$800,18,0),0) -> 0 | AM18: =IFERROR(VLOOKUP($A18,'Monthly Statement'!$A$2:$V$800,23,0),0) -> 0 | AN18: 0 | AO18: =IFERROR(VLOOKUP($A18,Pupils!$A$4:$T$800,19,0),0) -> 0 | AP18: =IFERROR(VLOOKUP($A18,'Monthly Statement'!$A$2:$V$800,24,0),0) -> 0 | AQ18: 0
A19: ='Monthly Statement'!A15 -> 0 | B19: =IFERROR(VLOOKUP(A19,'Monthly Statement'!A:X,4,0),"") ->  | C19: =IFERROR(VLOOKUP(A19,'Monthly Statement'!A:X,5,0),"") ->  | D19: =IFERROR(VLOOKUP(A19,'Monthly Statement'!A:X,7,0),"") ->  | E19: =IFERROR(VLOOKUP(A19,'Monthly Statement'!A:X,9,0),"") ->  | F19: =IFERROR(VLOOKUP(A19,'Monthly Statement'!A:X,10,0),"") ->  | G19: 0 | H19: =IFERROR(VLOOKUP($A19,Pupils!$A$4:$T$800,8,0),0) -> 0 | I19: =IFERROR(VLOOKUP($A19,'Monthly Statement'!$A$2:$V$800,13,0),0) -> 0 | J19: 0 | K19: =IFERROR(VLOOKUP($A19,Pupils!$A$4:$T$800,9,0),0) -> 0 | L19: =IFERROR(VLOOKUP($A19,'Monthly Statement'!$A$2:$V$800,14,0),0) -> 0 | M19: 0 | N19: =IFERROR(VLOOKUP($A19,Pupils!$A$4:$T$800,10,0),0) -> 0 | O19: =IFERROR(VLOOKUP($A19,'Monthly Statement'!$A$2:$V$800,15,0),0) -> 0 | P19: 0 | Q19: =IFERROR(VLOOKUP($A19,Pupils!$A$4:$T$800,11,0),0) -> 0 | R19: =IFERROR(VLOOKUP($A19,'Monthly Statement'!$A$2:$V$800,16,0),0) -> 0 | S19: 0 | T19: =IFERROR(VLOOKUP($A19,Pupils!$A$4:$T$800,12,0),0) -> 0 | U19: =IFERROR(VLOOKUP($A19,'Monthly Statement'!$A$2:$V$800,17,0),0) -> 0 | V19: 0 | W19: =IFERROR(VLOOKUP($A19,Pupils!$A$4:$T$800,13,0),0) -> 0 | X19: =IFERROR(VLOOKUP($A19,'Monthly Statement'!$A$2:$V$800,18,0),0) -> 0 | Y19: 0 | Z19: =IFERROR(VLOOKUP($A19,Pupils!$A$4:$T$800,14,0),0) -> 0 | AA19: =IFERROR(VLOOKUP($A19,'Monthly Statement'!$A$2:$V$800,19,0),0) -> 0 | AB19: 0 | AC19: =IFERROR(VLOOKUP($A19,Pupils!$A$4:$T$800,15,0),0) -> 0 | AD19: =IFERROR(VLOOKUP($A19,'Monthly Statement'!$A$2:$V$800,20,0),0) -> 0 | AE19: 0 | AF19: =IFERROR(VLOOKUP($A19,Pupils!$A$4:$T$800,16,0),0) -> 0 | AG19: =IFERROR(VLOOKUP($A19,'Monthly Statement'!$A$2:$V$800,21,0),0) -> 0 | AH19: 0 | AI19: =IFERROR(VLOOKUP($A19,Pupils!$A$4:$T$800,17,0),0) -> 0 | AJ19: =IFERROR(VLOOKUP($A19,'Monthly Statement'!$A$2:$V$800,22,0),0) -> 0 | AK19: 0 | AL19: =IFERROR(VLOOKUP($A19,Pupils!$A$4:$T$800,18,0),0) -> 0 | AM19: =IFERROR(VLOOKUP($A19,'Monthly Statement'!$A$2:$V$800,23,0),0) -> 0 | AN19: 0 | AO19: =IFERROR(VLOOKUP($A19,Pupils!$A$4:$T$800,19,0),0) -> 0 | AP19: =IFERROR(VLOOKUP($A19,'Monthly Statement'!$A$2:$V$800,24,0),0) -> 0 | AQ19: 0
A20: ='Monthly Statement'!A16 -> 0 | B20: =IFERROR(VLOOKUP(A20,'Monthly Statement'!A:X,4,0),"") ->  | C20: =IFERROR(VLOOKUP(A20,'Monthly Statement'!A:X,5,0),"") ->  | D20: =IFERROR(VLOOKUP(A20,'Monthly Statement'!A:X,7,0),"") ->  | E20: =IFERROR(VLOOKUP(A20,'Monthly Statement'!A:X,9,0),"") ->  | F20: =IFERROR(VLOOKUP(A20,'Monthly Statement'!A:X,10,0),"") ->  | G20: 0 | H20: =IFERROR(VLOOKUP($A20,Pupils!$A$4:$T$800,8,0),0) -> 0 | I20: =IFERROR(VLOOKUP($A20,'Monthly Statement'!$A$2:$V$800,13,0),0) -> 0 | J20: 0 | K20: =IFERROR(VLOOKUP($A20,Pupils!$A$4:$T$800,9,0),0) -> 0 | L20: =IFERROR(VLOOKUP($A20,'Monthly Statement'!$A$2:$V$800,14,0),0) -> 0 | M20: 0 | N20: =IFERROR(VLOOKUP($A20,Pupils!$A$4:$T$800,10,0),0) -> 0 | O20: =IFERROR(VLOOKUP($A20,'Monthly Statement'!$A$2:$V$800,15,0),0) -> 0 | P20: 0 | Q20: =IFERROR(VLOOKUP($A20,Pupils!$A$4:$T$800,11,0),0) -> 0 | R20: =IFERROR(VLOOKUP($A20,'Monthly Statement'!$A$2:$V$800,16,0),0) -> 0 | S20: 0 | T20: =IFERROR(VLOOKUP($A20,Pupils!$A$4:$T$800,12,0),0) -> 0 | U20: =IFERROR(VLOOKUP($A20,'Monthly Statement'!$A$2:$V$800,17,0),0) -> 0 | V20: 0 | W20: =IFERROR(VLOOKUP($A20,Pupils!$A$4:$T$800,13,0),0) -> 0 | X20: =IFERROR(VLOOKUP($A20,'Monthly Statement'!$A$2:$V$800,18,0),0) -> 0 | Y20: 0 | Z20: =IFERROR(VLOOKUP($A20,Pupils!$A$4:$T$800,14,0),0) -> 0 | AA20: =IFERROR(VLOOKUP($A20,'Monthly Statement'!$A$2:$V$800,19,0),0) -> 0 | AB20: 0 | AC20: =IFERROR(VLOOKUP($A20,Pupils!$A$4:$T$800,15,0),0) -> 0 | AD20: =IFERROR(VLOOKUP($A20,'Monthly Statement'!$A$2:$V$800,20,0),0) -> 0 | AE20: 0 | AF20: =IFERROR(VLOOKUP($A20,Pupils!$A$4:$T$800,16,0),0) -> 0 | AG20: =IFERROR(VLOOKUP($A20,'Monthly Statement'!$A$2:$V$800,21,0),0) -> 0 | AH20: 0 | AI20: =IFERROR(VLOOKUP($A20,Pupils!$A$4:$T$800,17,0),0) -> 0 | AJ20: =IFERROR(VLOOKUP($A20,'Monthly Statement'!$A$2:$V$800,22,0),0) -> 0 | AK20: 0 | AL20: =IFERROR(VLOOKUP($A20,Pupils!$A$4:$T$800,18,0),0) -> 0 | AM20: =IFERROR(VLOOKUP($A20,'Monthly Statement'!$A$2:$V$800,23,0),0) -> 0 | AN20: 0 | AO20: =IFERROR(VLOOKUP($A20,Pupils!$A$4:$T$800,19,0),0) -> 0 | AP20: =IFERROR(VLOOKUP($A20,'Monthly Statement'!$A$2:$V$800,24,0),0) -> 0 | AQ20: 0
A21: ='Monthly Statement'!A17 -> 0 | B21: =IFERROR(VLOOKUP(A21,'Monthly Statement'!A:X,4,0),"") ->  | C21: =IFERROR(VLOOKUP(A21,'Monthly Statement'!A:X,5,0),"") ->  | D21: =IFERROR(VLOOKUP(A21,'Monthly Statement'!A:X,7,0),"") ->  | E21: =IFERROR(VLOOKUP(A21,'Monthly Statement'!A:X,9,0),"") ->  | F21: =IFERROR(VLOOKUP(A21,'Monthly Statement'!A:X,10,0),"") ->  | G21: 0 | H21: =IFERROR(VLOOKUP($A21,Pupils!$A$4:$T$800,8,0),0) -> 0 | I21: =IFERROR(VLOOKUP($A21,'Monthly Statement'!$A$2:$V$800,13,0),0) -> 0 | J21: 0 | K21: =IFERROR(VLOOKUP($A21,Pupils!$A$4:$T$800,9,0),0) -> 0 | L21: =IFERROR(VLOOKUP($A21,'Monthly Statement'!$A$2:$V$800,14,0),0) -> 0 | M21: 0 | N21: =IFERROR(VLOOKUP($A21,Pupils!$A$4:$T$800,10,0),0) -> 0 | O21: =IFERROR(VLOOKUP($A21,'Monthly Statement'!$A$2:$V$800,15,0),0) -> 0 | P21: 0 | Q21: =IFERROR(VLOOKUP($A21,Pupils!$A$4:$T$800,11,0),0) -> 0 | R21: =IFERROR(VLOOKUP($A21,'Monthly Statement'!$A$2:$V$800,16,0),0) -> 0 | S21: 0 | T21: =IFERROR(VLOOKUP($A21,Pupils!$A$4:$T$800,12,0),0) -> 0 | U21: =IFERROR(VLOOKUP($A21,'Monthly Statement'!$A$2:$V$800,17,0),0) -> 0 | V21: 0 | W21: =IFERROR(VLOOKUP($A21,Pupils!$A$4:$T$800,13,0),0) -> 0 | X21: =IFERROR(VLOOKUP($A21,'Monthly Statement'!$A$2:$V$800,18,0),0) -> 0 | Y21: 0 | Z21: =IFERROR(VLOOKUP($A21,Pupils!$A$4:$T$800,14,0),0) -> 0 | AA21: =IFERROR(VLOOKUP($A21,'Monthly Statement'!$A$2:$V$800,19,0),0) -> 0 | AB21: 0 | AC21: =IFERROR(VLOOKUP($A21,Pupils!$A$4:$T$800,15,0),0) -> 0 | AD21: =IFERROR(VLOOKUP($A21,'Monthly Statement'!$A$2:$V$800,20,0),0) -> 0 | AE21: 0 | AF21: =IFERROR(VLOOKUP($A21,Pupils!$A$4:$T$800,16,0),0) -> 0 | AG21: =IFERROR(VLOOKUP($A21,'Monthly Statement'!$A$2:$V$800,21,0),0) -> 0 | AH21: 0 | AI21: =IFERROR(VLOOKUP($A21,Pupils!$A$4:$T$800,17,0),0) -> 0 | AJ21: =IFERROR(VLOOKUP($A21,'Monthly Statement'!$A$2:$V$800,22,0),0) -> 0 | AK21: 0 | AL21: =IFERROR(VLOOKUP($A21,Pupils!$A$4:$T$800,18,0),0) -> 0 | AM21: =IFERROR(VLOOKUP($A21,'Monthly Statement'!$A$2:$V$800,23,0),0) -> 0 | AN21: 0 | AO21: =IFERROR(VLOOKUP($A21,Pupils!$A$4:$T$800,19,0),0) -> 0 | AP21: =IFERROR(VLOOKUP($A21,'Monthly Statement'!$A$2:$V$800,24,0),0) -> 0 | AQ21: 0
A22: ='Monthly Statement'!A18 -> 0 | B22: =IFERROR(VLOOKUP(A22,'Monthly Statement'!A:X,4,0),"") ->  | C22: =IFERROR(VLOOKUP(A22,'Monthly Statement'!A:X,5,0),"") ->  | D22: =IFERROR(VLOOKUP(A22,'Monthly Statement'!A:X,7,0),"") ->  | E22: =IFERROR(VLOOKUP(A22,'Monthly Statement'!A:X,9,0),"") ->  | F22: =IFERROR(VLOOKUP(A22,'Monthly Statement'!A:X,10,0),"") ->  | G22: 0 | H22: =IFERROR(VLOOKUP($A22,Pupils!$A$4:$T$800,8,0),0) -> 0 | I22: =IFERROR(VLOOKUP($A22,'Monthly Statement'!$A$2:$V$800,13,0),0) -> 0 | J22: 0 | K22: =IFERROR(VLOOKUP($A22,Pupils!$A$4:$T$800,9,0),0) -> 0 | L22: =IFERROR(VLOOKUP($A22,'Monthly Statement'!$A$2:$V$800,14,0),0) -> 0 | M22: 0 | N22: =IFERROR(VLOOKUP($A22,Pupils!$A$4:$T$800,10,0),0) -> 0 | O22: =IFERROR(VLOOKUP($A22,'Monthly Statement'!$A$2:$V$800,15,0),0) -> 0 | P22: 0 | Q22: =IFERROR(VLOOKUP($A22,Pupils!$A$4:$T$800,11,0),0) -> 0 | R22: =IFERROR(VLOOKUP($A22,'Monthly Statement'!$A$2:$V$800,16,0),0) -> 0 | S22: 0 | T22: =IFERROR(VLOOKUP($A22,Pupils!$A$4:$T$800,12,0),0) -> 0 | U22: =IFERROR(VLOOKUP($A22,'Monthly Statement'!$A$2:$V$800,17,0),0) -> 0 | V22: 0 | W22: =IFERROR(VLOOKUP($A22,Pupils!$A$4:$T$800,13,0),0) -> 0 | X22: =IFERROR(VLOOKUP($A22,'Monthly Statement'!$A$2:$V$800,18,0),0) -> 0 | Y22: 0 | Z22: =IFERROR(VLOOKUP($A22,Pupils!$A$4:$T$800,14,0),0) -> 0 | AA22: =IFERROR(VLOOKUP($A22,'Monthly Statement'!$A$2:$V$800,19,0),0) -> 0 | AB22: 0 | AC22: =IFERROR(VLOOKUP($A22,Pupils!$A$4:$T$800,15,0),0) -> 0 | AD22: =IFERROR(VLOOKUP($A22,'Monthly Statement'!$A$2:$V$800,20,0),0) -> 0 | AE22: 0 | AF22: =IFERROR(VLOOKUP($A22,Pupils!$A$4:$T$800,16,0),0) -> 0 | AG22: =IFERROR(VLOOKUP($A22,'Monthly Statement'!$A$2:$V$800,21,0),0) -> 0 | AH22: 0 | AI22: =IFERROR(VLOOKUP($A22,Pupils!$A$4:$T$800,17,0),0) -> 0 | AJ22: =IFERROR(VLOOKUP($A22,'Monthly Statement'!$A$2:$V$800,22,0),0) -> 0 | AK22: 0 | AL22: =IFERROR(VLOOKUP($A22,Pupils!$A$4:$T$800,18,0),0) -> 0 | AM22: =IFERROR(VLOOKUP($A22,'Monthly Statement'!$A$2:$V$800,23,0),0) -> 0 | AN22: 0 | AO22: =IFERROR(VLOOKUP($A22,Pupils!$A$4:$T$800,19,0),0) -> 0 | AP22: =IFERROR(VLOOKUP($A22,'Monthly Statement'!$A$2:$V$800,24,0),0) -> 0 | AQ22: 0
A23: ='Monthly Statement'!A19 -> 0 | B23: =IFERROR(VLOOKUP(A23,'Monthly Statement'!A:X,4,0),"") ->  | C23: =IFERROR(VLOOKUP(A23,'Monthly Statement'!A:X,5,0),"") ->  | D23: =IFERROR(VLOOKUP(A23,'Monthly Statement'!A:X,7,0),"") ->  | E23: =IFERROR(VLOOKUP(A23,'Monthly Statement'!A:X,9,0),"") ->  | F23: =IFERROR(VLOOKUP(A23,'Monthly Statement'!A:X,10,0),"") ->  | G23: 0 | H23: =IFERROR(VLOOKUP($A23,Pupils!$A$4:$T$800,8,0),0) -> 0 | I23: =IFERROR(VLOOKUP($A23,'Monthly Statement'!$A$2:$V$800,13,0),0) -> 0 | J23: 0 | K23: =IFERROR(VLOOKUP($A23,Pupils!$A$4:$T$800,9,0),0) -> 0 | L23: =IFERROR(VLOOKUP($A23,'Monthly Statement'!$A$2:$V$800,14,0),0) -> 0 | M23: 0 | N23: =IFERROR(VLOOKUP($A23,Pupils!$A$4:$T$800,10,0),0) -> 0 | O23: =IFERROR(VLOOKUP($A23,'Monthly Statement'!$A$2:$V$800,15,0),0) -> 0 | P23: 0 | Q23: =IFERROR(VLOOKUP($A23,Pupils!$A$4:$T$800,11,0),0) -> 0 | R23: =IFERROR(VLOOKUP($A23,'Monthly Statement'!$A$2:$V$800,16,0),0) -> 0 | S23: 0 | T23: =IFERROR(VLOOKUP($A23,Pupils!$A$4:$T$800,12,0),0) -> 0 | U23: =IFERROR(VLOOKUP($A23,'Monthly Statement'!$A$2:$V$800,17,0),0) -> 0 | V23: 0 | W23: =IFERROR(VLOOKUP($A23,Pupils!$A$4:$T$800,13,0),0) -> 0 | X23: =IFERROR(VLOOKUP($A23,'Monthly Statement'!$A$2:$V$800,18,0),0) -> 0 | Y23: 0 | Z23: =IFERROR(VLOOKUP($A23,Pupils!$A$4:$T$800,14,0),0) -> 0 | AA23: =IFERROR(VLOOKUP($A23,'Monthly Statement'!$A$2:$V$800,19,0),0) -> 0 | AB23: 0 | AC23: =IFERROR(VLOOKUP($A23,Pupils!$A$4:$T$800,15,0),0) -> 0 | AD23: =IFERROR(VLOOKUP($A23,'Monthly Statement'!$A$2:$V$800,20,0),0) -> 0 | AE23: 0 | AF23: =IFERROR(VLOOKUP($A23,Pupils!$A$4:$T$800,16,0),0) -> 0 | AG23: =IFERROR(VLOOKUP($A23,'Monthly Statement'!$A$2:$V$800,21,0),0) -> 0 | AH23: 0 | AI23: =IFERROR(VLOOKUP($A23,Pupils!$A$4:$T$800,17,0),0) -> 0 | AJ23: =IFERROR(VLOOKUP($A23,'Monthly Statement'!$A$2:$V$800,22,0),0) -> 0 | AK23: 0 | AL23: =IFERROR(VLOOKUP($A23,Pupils!$A$4:$T$800,18,0),0) -> 0 | AM23: =IFERROR(VLOOKUP($A23,'Monthly Statement'!$A$2:$V$800,23,0),0) -> 0 | AN23: 0 | AO23: =IFERROR(VLOOKUP($A23,Pupils!$A$4:$T$800,19,0),0) -> 0 | AP23: =IFERROR(VLOOKUP($A23,'Monthly Statement'!$A$2:$V$800,24,0),0) -> 0 | AQ23: 0
A24: ='Monthly Statement'!A20 -> 0 | B24: =IFERROR(VLOOKUP(A24,'Monthly Statement'!A:X,4,0),"") ->  | C24: =IFERROR(VLOOKUP(A24,'Monthly Statement'!A:X,5,0),"") ->  | D24: =IFERROR(VLOOKUP(A24,'Monthly Statement'!A:X,7,0),"") ->  | E24: =IFERROR(VLOOKUP(A24,'Monthly Statement'!A:X,9,0),"") ->  | F24: =IFERROR(VLOOKUP(A24,'Monthly Statement'!A:X,10,0),"") ->  | G24: 0 | H24: =IFERROR(VLOOKUP($A24,Pupils!$A$4:$T$800,8,0),0) -> 0 | I24: =IFERROR(VLOOKUP($A24,'Monthly Statement'!$A$2:$V$800,13,0),0) -> 0 | J24: 0 | K24: =IFERROR(VLOOKUP($A24,Pupils!$A$4:$T$800,9,0),0) -> 0 | L24: =IFERROR(VLOOKUP($A24,'Monthly Statement'!$A$2:$V$800,14,0),0) -> 0 | M24: 0 | N24: =IFERROR(VLOOKUP($A24,Pupils!$A$4:$T$800,10,0),0) -> 0 | O24: =IFERROR(VLOOKUP($A24,'Monthly Statement'!$A$2:$V$800,15,0),0) -> 0 | P24: 0 | Q24: =IFERROR(VLOOKUP($A24,Pupils!$A$4:$T$800,11,0),0) -> 0 | R24: =IFERROR(VLOOKUP($A24,'Monthly Statement'!$A$2:$V$800,16,0),0) -> 0 | S24: 0 | T24: =IFERROR(VLOOKUP($A24,Pupils!$A$4:$T$800,12,0),0) -> 0 | U24: =IFERROR(VLOOKUP($A24,'Monthly Statement'!$A$2:$V$800,17,0),0) -> 0 | V24: 0 | W24: =IFERROR(VLOOKUP($A24,Pupils!$A$4:$T$800,13,0),0) -> 0 | X24: =IFERROR(VLOOKUP($A24,'Monthly Statement'!$A$2:$V$800,18,0),0) -> 0 | Y24: 0 | Z24: =IFERROR(VLOOKUP($A24,Pupils!$A$4:$T$800,14,0),0) -> 0 | AA24: =IFERROR(VLOOKUP($A24,'Monthly Statement'!$A$2:$V$800,19,0),0) -> 0 | AB24: 0 | AC24: =IFERROR(VLOOKUP($A24,Pupils!$A$4:$T$800,15,0),0) -> 0 | AD24: =IFERROR(VLOOKUP($A24,'Monthly Statement'!$A$2:$V$800,20,0),0) -> 0 | AE24: 0 | AF24: =IFERROR(VLOOKUP($A24,Pupils!$A$4:$T$800,16,0),0) -> 0 | AG24: =IFERROR(VLOOKUP($A24,'Monthly Statement'!$A$2:$V$800,21,0),0) -> 0 | AH24: 0 | AI24: =IFERROR(VLOOKUP($A24,Pupils!$A$4:$T$800,17,0),0) -> 0 | AJ24: =IFERROR(VLOOKUP($A24,'Monthly Statement'!$A$2:$V$800,22,0),0) -> 0 | AK24: 0 | AL24: =IFERROR(VLOOKUP($A24,Pupils!$A$4:$T$800,18,0),0) -> 0 | AM24: =IFERROR(VLOOKUP($A24,'Monthly Statement'!$A$2:$V$800,23,0),0) -> 0 | AN24: 0 | AO24: =IFERROR(VLOOKUP($A24,Pupils!$A$4:$T$800,19,0),0) -> 0 | AP24: =IFERROR(VLOOKUP($A24,'Monthly Statement'!$A$2:$V$800,24,0),0) -> 0 | AQ24: 0
A25: ='Monthly Statement'!A21 -> 0 | B25: =IFERROR(VLOOKUP(A25,'Monthly Statement'!A:X,4,0),"") ->  | C25: =IFERROR(VLOOKUP(A25,'Monthly Statement'!A:X,5,0),"") ->  | D25: =IFERROR(VLOOKUP(A25,'Monthly Statement'!A:X,7,0),"") ->  | E25: =IFERROR(VLOOKUP(A25,'Monthly Statement'!A:X,9,0),"") ->  | F25: =IFERROR(VLOOKUP(A25,'Monthly Statement'!A:X,10,0),"") ->  | G25: 0 | H25: =IFERROR(VLOOKUP($A25,Pupils!$A$4:$T$800,8,0),0) -> 0 | I25: =IFERROR(VLOOKUP($A25,'Monthly Statement'!$A$2:$V$800,13,0),0) -> 0 | J25: 0 | K25: =IFERROR(VLOOKUP($A25,Pupils!$A$4:$T$800,9,0),0) -> 0 | L25: =IFERROR(VLOOKUP($A25,'Monthly Statement'!$A$2:$V$800,14,0),0) -> 0 | M25: 0 | N25: =IFERROR(VLOOKUP($A25,Pupils!$A$4:$T$800,10,0),0) -> 0 | O25: =IFERROR(VLOOKUP($A25,'Monthly Statement'!$A$2:$V$800,15,0),0) -> 0 | P25: 0 | Q25: =IFERROR(VLOOKUP($A25,Pupils!$A$4:$T$800,11,0),0) -> 0 | R25: =IFERROR(VLOOKUP($A25,'Monthly Statement'!$A$2:$V$800,16,0),0) -> 0 | S25: 0 | T25: =IFERROR(VLOOKUP($A25,Pupils!$A$4:$T$800,12,0),0) -> 0 | U25: =IFERROR(VLOOKUP($A25,'Monthly Statement'!$A$2:$V$800,17,0),0) -> 0 | V25: 0 | W25: =IFERROR(VLOOKUP($A25,Pupils!$A$4:$T$800,13,0),0) -> 0 | X25: =IFERROR(VLOOKUP($A25,'Monthly Statement'!$A$2:$V$800,18,0),0) -> 0 | Y25: 0 | Z25: =IFERROR(VLOOKUP($A25,Pupils!$A$4:$T$800,14,0),0) -> 0 | AA25: =IFERROR(VLOOKUP($A25,'Monthly Statement'!$A$2:$V$800,19,0),0) -> 0 | AB25: 0 | AC25: =IFERROR(VLOOKUP($A25,Pupils!$A$4:$T$800,15,0),0) -> 0 | AD25: =IFERROR(VLOOKUP($A25,'Monthly Statement'!$A$2:$V$800,20,0),0) -> 0 | AE25: 0 | AF25: =IFERROR(VLOOKUP($A25,Pupils!$A$4:$T$800,16,0),0) -> 0 | AG25: =IFERROR(VLOOKUP($A25,'Monthly Statement'!$A$2:$V$800,21,0),0) -> 0 | AH25: 0 | AI25: =IFERROR(VLOOKUP($A25,Pupils!$A$4:$T$800,17,0),0) -> 0 | AJ25: =IFERROR(VLOOKUP($A25,'Monthly Statement'!$A$2:$V$800,22,0),0) -> 0 | AK25: 0 | AL25: =IFERROR(VLOOKUP($A25,Pupils!$A$4:$T$800,18,0),0) -> 0 | AM25: =IFERROR(VLOOKUP($A25,'Monthly Statement'!$A$2:$V$800,23,0),0) -> 0 | AN25: 0 | AO25: =IFERROR(VLOOKUP($A25,Pupils!$A$4:$T$800,19,0),0) -> 0 | AP25: =IFERROR(VLOOKUP($A25,'Monthly Statement'!$A$2:$V$800,24,0),0) -> 0 | AQ25: 0
A26: ='Monthly Statement'!A22 -> 0 | B26: =IFERROR(VLOOKUP(A26,'Monthly Statement'!A:X,4,0),"") ->  | C26: =IFERROR(VLOOKUP(A26,'Monthly Statement'!A:X,5,0),"") ->  | D26: =IFERROR(VLOOKUP(A26,'Monthly Statement'!A:X,7,0),"") ->  | E26: =IFERROR(VLOOKUP(A26,'Monthly Statement'!A:X,9,0),"") ->  | F26: =IFERROR(VLOOKUP(A26,'Monthly Statement'!A:X,10,0),"") ->  | G26: 0 | H26: =IFERROR(VLOOKUP($A26,Pupils!$A$4:$T$800,8,0),0) -> 0 | I26: =IFERROR(VLOOKUP($A26,'Monthly Statement'!$A$2:$V$800,13,0),0) -> 0 | J26: 0 | K26: =IFERROR(VLOOKUP($A26,Pupils!$A$4:$T$800,9,0),0) -> 0 | L26: =IFERROR(VLOOKUP($A26,'Monthly Statement'!$A$2:$V$800,14,0),0) -> 0 | M26: 0 | N26: =IFERROR(VLOOKUP($A26,Pupils!$A$4:$T$800,10,0),0) -> 0 | O26: =IFERROR(VLOOKUP($A26,'Monthly Statement'!$A$2:$V$800,15,0),0) -> 0 | P26: 0 | Q26: =IFERROR(VLOOKUP($A26,Pupils!$A$4:$T$800,11,0),0) -> 0 | R26: =IFERROR(VLOOKUP($A26,'Monthly Statement'!$A$2:$V$800,16,0),0) -> 0 | S26: 0 | T26: =IFERROR(VLOOKUP($A26,Pupils!$A$4:$T$800,12,0),0) -> 0 | U26: =IFERROR(VLOOKUP($A26,'Monthly Statement'!$A$2:$V$800,17,0),0) -> 0 | V26: 0 | W26: =IFERROR(VLOOKUP($A26,Pupils!$A$4:$T$800,13,0),0) -> 0 | X26: =IFERROR(VLOOKUP($A26,'Monthly Statement'!$A$2:$V$800,18,0),0) -> 0 | Y26: 0 | Z26: =IFERROR(VLOOKUP($A26,Pupils!$A$4:$T$800,14,0),0) -> 0 | AA26: =IFERROR(VLOOKUP($A26,'Monthly Statement'!$A$2:$V$800,19,0),0) -> 0 | AB26: 0 | AC26: =IFERROR(VLOOKUP($A26,Pupils!$A$4:$T$800,15,0),0) -> 0 | AD26: =IFERROR(VLOOKUP($A26,'Monthly Statement'!$A$2:$V$800,20,0),0) -> 0 | AE26: 0 | AF26: =IFERROR(VLOOKUP($A26,Pupils!$A$4:$T$800,16,0),0) -> 0 | AG26: =IFERROR(VLOOKUP($A26,'Monthly Statement'!$A$2:$V$800,21,0),0) -> 0 | AH26: 0 | AI26: =IFERROR(VLOOKUP($A26,Pupils!$A$4:$T$800,17,0),0) -> 0 | AJ26: =IFERROR(VLOOKUP($A26,'Monthly Statement'!$A$2:$V$800,22,0),0) -> 0 | AK26: 0 | AL26: =IFERROR(VLOOKUP($A26,Pupils!$A$4:$T$800,18,0),0) -> 0 | AM26: =IFERROR(VLOOKUP($A26,'Monthly Statement'!$A$2:$V$800,23,0),0) -> 0 | AN26: 0 | AO26: =IFERROR(VLOOKUP($A26,Pupils!$A$4:$T$800,19,0),0) -> 0 | AP26: =IFERROR(VLOOKUP($A26,'Monthly Statement'!$A$2:$V$800,24,0),0) -> 0 | AQ26: 0
A27: ='Monthly Statement'!A23 -> 0 | B27: =IFERROR(VLOOKUP(A27,'Monthly Statement'!A:X,4,0),"") ->  | C27: =IFERROR(VLOOKUP(A27,'Monthly Statement'!A:X,5,0),"") ->  | D27: =IFERROR(VLOOKUP(A27,'Monthly Statement'!A:X,7,0),"") ->  | E27: =IFERROR(VLOOKUP(A27,'Monthly Statement'!A:X,9,0),"") ->  | F27: =IFERROR(VLOOKUP(A27,'Monthly Statement'!A:X,10,0),"") ->  | G27: 0 | H27: =IFERROR(VLOOKUP($A27,Pupils!$A$4:$T$800,8,0),0) -> 0 | I27: =IFERROR(VLOOKUP($A27,'Monthly Statement'!$A$2:$V$800,13,0),0) -> 0 | J27: 0 | K27: =IFERROR(VLOOKUP($A27,Pupils!$A$4:$T$800,9,0),0) -> 0 | L27: =IFERROR(VLOOKUP($A27,'Monthly Statement'!$A$2:$V$800,14,0),0) -> 0 | M27: 0 | N27: =IFERROR(VLOOKUP($A27,Pupils!$A$4:$T$800,10,0),0) -> 0 | O27: =IFERROR(VLOOKUP($A27,'Monthly Statement'!$A$2:$V$800,15,0),0) -> 0 | P27: 0 | Q27: =IFERROR(VLOOKUP($A27,Pupils!$A$4:$T$800,11,0),0) -> 0 | R27: =IFERROR(VLOOKUP($A27,'Monthly Statement'!$A$2:$V$800,16,0),0) -> 0 | S27: 0 | T27: =IFERROR(VLOOKUP($A27,Pupils!$A$4:$T$800,12,0),0) -> 0 | U27: =IFERROR(VLOOKUP($A27,'Monthly Statement'!$A$2:$V$800,17,0),0) -> 0 | V27: 0 | W27: =IFERROR(VLOOKUP($A27,Pupils!$A$4:$T$800,13,0),0) -> 0 | X27: =IFERROR(VLOOKUP($A27,'Monthly Statement'!$A$2:$V$800,18,0),0) -> 0 | Y27: 0 | Z27: =IFERROR(VLOOKUP($A27,Pupils!$A$4:$T$800,14,0),0) -> 0 | AA27: =IFERROR(VLOOKUP($A27,'Monthly Statement'!$A$2:$V$800,19,0),0) -> 0 | AB27: 0 | AC27: =IFERROR(VLOOKUP($A27,Pupils!$A$4:$T$800,15,0),0) -> 0 | AD27: =IFERROR(VLOOKUP($A27,'Monthly Statement'!$A$2:$V$800,20,0),0) -> 0 | AE27: 0 | AF27: =IFERROR(VLOOKUP($A27,Pupils!$A$4:$T$800,16,0),0) -> 0 | AG27: =IFERROR(VLOOKUP($A27,'Monthly Statement'!$A$2:$V$800,21,0),0) -> 0 | AH27: 0 | AI27: =IFERROR(VLOOKUP($A27,Pupils!$A$4:$T$800,17,0),0) -> 0 | AJ27: =IFERROR(VLOOKUP($A27,'Monthly Statement'!$A$2:$V$800,22,0),0) -> 0 | AK27: 0 | AL27: =IFERROR(VLOOKUP($A27,Pupils!$A$4:$T$800,18,0),0) -> 0 | AM27: =IFERROR(VLOOKUP($A27,'Monthly Statement'!$A$2:$V$800,23,0),0) -> 0 | AN27: 0 | AO27: =IFERROR(VLOOKUP($A27,Pupils!$A$4:$T$800,19,0),0) -> 0 | AP27: =IFERROR(VLOOKUP($A27,'Monthly Statement'!$A$2:$V$800,24,0),0) -> 0 | AQ27: 0
A28: ='Monthly Statement'!A24 -> 0 | B28: =IFERROR(VLOOKUP(A28,'Monthly Statement'!A:X,4,0),"") ->  | C28: =IFERROR(VLOOKUP(A28,'Monthly Statement'!A:X,5,0),"") ->  | D28: =IFERROR(VLOOKUP(A28,'Monthly Statement'!A:X,7,0),"") ->  | E28: =IFERROR(VLOOKUP(A28,'Monthly Statement'!A:X,9,0),"") ->  | F28: =IFERROR(VLOOKUP(A28,'Monthly Statement'!A:X,10,0),"") ->  | G28: 0 | H28: =IFERROR(VLOOKUP($A28,Pupils!$A$4:$T$800,8,0),0) -> 0 | I28: =IFERROR(VLOOKUP($A28,'Monthly Statement'!$A$2:$V$800,13,0),0) -> 0 | J28: 0 | K28: =IFERROR(VLOOKUP($A28,Pupils!$A$4:$T$800,9,0),0) -> 0 | L28: =IFERROR(VLOOKUP($A28,'Monthly Statement'!$A$2:$V$800,14,0),0) -> 0 | M28: 0 | N28: =IFERROR(VLOOKUP($A28,Pupils!$A$4:$T$800,10,0),0) -> 0 | O28: =IFERROR(VLOOKUP($A28,'Monthly Statement'!$A$2:$V$800,15,0),0) -> 0 | P28: 0 | Q28: =IFERROR(VLOOKUP($A28,Pupils!$A$4:$T$800,11,0),0) -> 0 | R28: =IFERROR(VLOOKUP($A28,'Monthly Statement'!$A$2:$V$800,16,0),0) -> 0 | S28: 0 | T28: =IFERROR(VLOOKUP($A28,Pupils!$A$4:$T$800,12,0),0) -> 0 | U28: =IFERROR(VLOOKUP($A28,'Monthly Statement'!$A$2:$V$800,17,0),0) -> 0 | V28: 0 | W28: =IFERROR(VLOOKUP($A28,Pupils!$A$4:$T$800,13,0),0) -> 0 | X28: =IFERROR(VLOOKUP($A28,'Monthly Statement'!$A$2:$V$800,18,0),0) -> 0 | Y28: 0 | Z28: =IFERROR(VLOOKUP($A28,Pupils!$A$4:$T$800,14,0),0) -> 0 | AA28: =IFERROR(VLOOKUP($A28,'Monthly Statement'!$A$2:$V$800,19,0),0) -> 0 | AB28: 0 | AC28: =IFERROR(VLOOKUP($A28,Pupils!$A$4:$T$800,15,0),0) -> 0 | AD28: =IFERROR(VLOOKUP($A28,'Monthly Statement'!$A$2:$V$800,20,0),0) -> 0 | AE28: 0 | AF28: =IFERROR(VLOOKUP($A28,Pupils!$A$4:$T$800,16,0),0) -> 0 | AG28: =IFERROR(VLOOKUP($A28,'Monthly Statement'!$A$2:$V$800,21,0),0) -> 0 | AH28: 0 | AI28: =IFERROR(VLOOKUP($A28,Pupils!$A$4:$T$800,17,0),0) -> 0 | AJ28: =IFERROR(VLOOKUP($A28,'Monthly Statement'!$A$2:$V$800,22,0),0) -> 0 | AK28: 0 | AL28: =IFERROR(VLOOKUP($A28,Pupils!$A$4:$T$800,18,0),0) -> 0 | AM28: =IFERROR(VLOOKUP($A28,'Monthly Statement'!$A$2:$V$800,23,0),0) -> 0 | AN28: 0 | AO28: =IFERROR(VLOOKUP($A28,Pupils!$A$4:$T$800,19,0),0) -> 0 | AP28: =IFERROR(VLOOKUP($A28,'Monthly Statement'!$A$2:$V$800,24,0),0) -> 0 | AQ28: 0
A29: ='Monthly Statement'!A25 -> 0 | B29: =IFERROR(VLOOKUP(A29,'Monthly Statement'!A:X,4,0),"") ->  | C29: =IFERROR(VLOOKUP(A29,'Monthly Statement'!A:X,5,0),"") ->  | D29: =IFERROR(VLOOKUP(A29,'Monthly Statement'!A:X,7,0),"") ->  | E29: =IFERROR(VLOOKUP(A29,'Monthly Statement'!A:X,9,0),"") ->  | F29: =IFERROR(VLOOKUP(A29,'Monthly Statement'!A:X,10,0),"") ->  | G29: 0 | H29: =IFERROR(VLOOKUP($A29,Pupils!$A$4:$T$800,8,0),0) -> 0 | I29: =IFERROR(VLOOKUP($A29,'Monthly Statement'!$A$2:$V$800,13,0),0) -> 0 | J29: 0 | K29: =IFERROR(VLOOKUP($A29,Pupils!$A$4:$T$800,9,0),0) -> 0 | L29: =IFERROR(VLOOKUP($A29,'Monthly Statement'!$A$2:$V$800,14,0),0) -> 0 | M29: 0 | N29: =IFERROR(VLOOKUP($A29,Pupils!$A$4:$T$800,10,0),0) -> 0 | O29: =IFERROR(VLOOKUP($A29,'Monthly Statement'!$A$2:$V$800,15,0),0) -> 0 | P29: 0 | Q29: =IFERROR(VLOOKUP($A29,Pupils!$A$4:$T$800,11,0),0) -> 0 | R29: =IFERROR(VLOOKUP($A29,'Monthly Statement'!$A$2:$V$800,16,0),0) -> 0 | S29: 0 | T29: =IFERROR(VLOOKUP($A29,Pupils!$A$4:$T$800,12,0),0) -> 0 | U29: =IFERROR(VLOOKUP($A29,'Monthly Statement'!$A$2:$V$800,17,0),0) -> 0 | V29: 0 | W29: =IFERROR(VLOOKUP($A29,Pupils!$A$4:$T$800,13,0),0) -> 0 | X29: =IFERROR(VLOOKUP($A29,'Monthly Statement'!$A$2:$V$800,18,0),0) -> 0 | Y29: 0 | Z29: =IFERROR(VLOOKUP($A29,Pupils!$A$4:$T$800,14,0),0) -> 0 | AA29: =IFERROR(VLOOKUP($A29,'Monthly Statement'!$A$2:$V$800,19,0),0) -> 0 | AB29: 0 | AC29: =IFERROR(VLOOKUP($A29,Pupils!$A$4:$T$800,15,0),0) -> 0 | AD29: =IFERROR(VLOOKUP($A29,'Monthly Statement'!$A$2:$V$800,20,0),0) -> 0 | AE29: 0 | AF29: =IFERROR(VLOOKUP($A29,Pupils!$A$4:$T$800,16,0),0) -> 0 | AG29: =IFERROR(VLOOKUP($A29,'Monthly Statement'!$A$2:$V$800,21,0),0) -> 0 | AH29: 0 | AI29: =IFERROR(VLOOKUP($A29,Pupils!$A$4:$T$800,17,0),0) -> 0 | AJ29: =IFERROR(VLOOKUP($A29,'Monthly Statement'!$A$2:$V$800,22,0),0) -> 0 | AK29: 0 | AL29: =IFERROR(VLOOKUP($A29,Pupils!$A$4:$T$800,18,0),0) -> 0 | AM29: =IFERROR(VLOOKUP($A29,'Monthly Statement'!$A$2:$V$800,23,0),0) -> 0 | AN29: 0 | AO29: =IFERROR(VLOOKUP($A29,Pupils!$A$4:$T$800,19,0),0) -> 0 | AP29: =IFERROR(VLOOKUP($A29,'Monthly Statement'!$A$2:$V$800,24,0),0) -> 0 | AQ29: 0
A30: ='Monthly Statement'!A26 -> 0 | B30: =IFERROR(VLOOKUP(A30,'Monthly Statement'!A:X,4,0),"") ->  | C30: =IFERROR(VLOOKUP(A30,'Monthly Statement'!A:X,5,0),"") ->  | D30: =IFERROR(VLOOKUP(A30,'Monthly Statement'!A:X,7,0),"") ->  | E30: =IFERROR(VLOOKUP(A30,'Monthly Statement'!A:X,9,0),"") ->  | F30: =IFERROR(VLOOKUP(A30,'Monthly Statement'!A:X,10,0),"") ->  | G30: 0 | H30: =IFERROR(VLOOKUP($A30,Pupils!$A$4:$T$800,8,0),0) -> 0 | I30: =IFERROR(VLOOKUP($A30,'Monthly Statement'!$A$2:$V$800,13,0),0) -> 0 | J30: 0 | K30: =IFERROR(VLOOKUP($A30,Pupils!$A$4:$T$800,9,0),0) -> 0 | L30: =IFERROR(VLOOKUP($A30,'Monthly Statement'!$A$2:$V$800,14,0),0) -> 0 | M30: 0 | N30: =IFERROR(VLOOKUP($A30,Pupils!$A$4:$T$800,10,0),0) -> 0 | O30: =IFERROR(VLOOKUP($A30,'Monthly Statement'!$A$2:$V$800,15,0),0) -> 0 | P30: 0 | Q30: =IFERROR(VLOOKUP($A30,Pupils!$A$4:$T$800,11,0),0) -> 0 | R30: =IFERROR(VLOOKUP($A30,'Monthly Statement'!$A$2:$V$800,16,0),0) -> 0 | S30: 0 | T30: =IFERROR(VLOOKUP($A30,Pupils!$A$4:$T$800,12,0),0) -> 0 | U30: =IFERROR(VLOOKUP($A30,'Monthly Statement'!$A$2:$V$800,17,0),0) -> 0 | V30: 0 | W30: =IFERROR(VLOOKUP($A30,Pupils!$A$4:$T$800,13,0),0) -> 0 | X30: =IFERROR(VLOOKUP($A30,'Monthly Statement'!$A$2:$V$800,18,0),0) -> 0 | Y30: 0 | Z30: =IFERROR(VLOOKUP($A30,Pupils!$A$4:$T$800,14,0),0) -> 0 | AA30: =IFERROR(VLOOKUP($A30,'Monthly Statement'!$A$2:$V$800,19,0),0) -> 0 | AB30: 0 | AC30: =IFERROR(VLOOKUP($A30,Pupils!$A$4:$T$800,15,0),0) -> 0 | AD30: =IFERROR(VLOOKUP($A30,'Monthly Statement'!$A$2:$V$800,20,0),0) -> 0 | AE30: 0 | AF30: =IFERROR(VLOOKUP($A30,Pupils!$A$4:$T$800,16,0),0) -> 0 | AG30: =IFERROR(VLOOKUP($A30,'Monthly Statement'!$A$2:$V$800,21,0),0) -> 0 | AH30: 0 | AI30: =IFERROR(VLOOKUP($A30,Pupils!$A$4:$T$800,17,0),0) -> 0 | AJ30: =IFERROR(VLOOKUP($A30,'Monthly Statement'!$A$2:$V$800,22,0),0) -> 0 | AK30: 0 | AL30: =IFERROR(VLOOKUP($A30,Pupils!$A$4:$T$800,18,0),0) -> 0 | AM30: =IFERROR(VLOOKUP($A30,'Monthly Statement'!$A$2:$V$800,23,0),0) -> 0 | AN30: 0 | AO30: =IFERROR(VLOOKUP($A30,Pupils!$A$4:$T$800,19,0),0) -> 0 | AP30: =IFERROR(VLOOKUP($A30,'Monthly Statement'!$A$2:$V$800,24,0),0) -> 0 | AQ30: 0
A31: ='Monthly Statement'!A27 -> 0 | B31: =IFERROR(VLOOKUP(A31,'Monthly Statement'!A:X,4,0),"") ->  | C31: =IFERROR(VLOOKUP(A31,'Monthly Statement'!A:X,5,0),"") ->  | D31: =IFERROR(VLOOKUP(A31,'Monthly Statement'!A:X,7,0),"") ->  | E31: =IFERROR(VLOOKUP(A31,'Monthly Statement'!A:X,9,0),"") ->  | F31: =IFERROR(VLOOKUP(A31,'Monthly Statement'!A:X,10,0),"") ->  | G31: 0 | H31: =IFERROR(VLOOKUP($A31,Pupils!$A$4:$T$800,8,0),0) -> 0 | I31: =IFERROR(VLOOKUP($A31,'Monthly Statement'!$A$2:$V$800,13,0),0) -> 0 | J31: 0 | K31: =IFERROR(VLOOKUP($A31,Pupils!$A$4:$T$800,9,0),0) -> 0 | L31: =IFERROR(VLOOKUP($A31,'Monthly Statement'!$A$2:$V$800,14,0),0) -> 0 | M31: 0 | N31: =IFERROR(VLOOKUP($A31,Pupils!$A$4:$T$800,10,0),0) -> 0 | O31: =IFERROR(VLOOKUP($A31,'Monthly Statement'!$A$2:$V$800,15,0),0) -> 0 | P31: 0 | Q31: =IFERROR(VLOOKUP($A31,Pupils!$A$4:$T$800,11,0),0) -> 0 | R31: =IFERROR(VLOOKUP($A31,'Monthly Statement'!$A$2:$V$800,16,0),0) -> 0 | S31: 0 | T31: =IFERROR(VLOOKUP($A31,Pupils!$A$4:$T$800,12,0),0) -> 0 | U31: =IFERROR(VLOOKUP($A31,'Monthly Statement'!$A$2:$V$800,17,0),0) -> 0 | V31: 0 | W31: =IFERROR(VLOOKUP($A31,Pupils!$A$4:$T$800,13,0),0) -> 0 | X31: =IFERROR(VLOOKUP($A31,'Monthly Statement'!$A$2:$V$800,18,0),0) -> 0 | Y31: 0 | Z31: =IFERROR(VLOOKUP($A31,Pupils!$A$4:$T$800,14,0),0) -> 0 | AA31: =IFERROR(VLOOKUP($A31,'Monthly Statement'!$A$2:$V$800,19,0),0) -> 0 | AB31: 0 | AC31: =IFERROR(VLOOKUP($A31,Pupils!$A$4:$T$800,15,0),0) -> 0 | AD31: =IFERROR(VLOOKUP($A31,'Monthly Statement'!$A$2:$V$800,20,0),0) -> 0 | AE31: 0 | AF31: =IFERROR(VLOOKUP($A31,Pupils!$A$4:$T$800,16,0),0) -> 0 | AG31: =IFERROR(VLOOKUP($A31,'Monthly Statement'!$A$2:$V$800,21,0),0) -> 0 | AH31: 0 | AI31: =IFERROR(VLOOKUP($A31,Pupils!$A$4:$T$800,17,0),0) -> 0 | AJ31: =IFERROR(VLOOKUP($A31,'Monthly Statement'!$A$2:$V$800,22,0),0) -> 0 | AK31: 0 | AL31: =IFERROR(VLOOKUP($A31,Pupils!$A$4:$T$800,18,0),0) -> 0 | AM31: =IFERROR(VLOOKUP($A31,'Monthly Statement'!$A$2:$V$800,23,0),0) -> 0 | AN31: 0 | AO31: =IFERROR(VLOOKUP($A31,Pupils!$A$4:$T$800,19,0),0) -> 0 | AP31: =IFERROR(VLOOKUP($A31,'Monthly Statement'!$A$2:$V$800,24,0),0) -> 0 | AQ31: 0
A32: ='Monthly Statement'!A28 -> 0 | B32: =IFERROR(VLOOKUP(A32,'Monthly Statement'!A:X,4,0),"") ->  | C32: =IFERROR(VLOOKUP(A32,'Monthly Statement'!A:X,5,0),"") ->  | D32: =IFERROR(VLOOKUP(A32,'Monthly Statement'!A:X,7,0),"") ->  | E32: =IFERROR(VLOOKUP(A32,'Monthly Statement'!A:X,9,0),"") ->  | F32: =IFERROR(VLOOKUP(A32,'Monthly Statement'!A:X,10,0),"") ->  | G32: 0 | H32: =IFERROR(VLOOKUP($A32,Pupils!$A$4:$T$800,8,0),0) -> 0 | I32: =IFERROR(VLOOKUP($A32,'Monthly Statement'!$A$2:$V$800,13,0),0) -> 0 | J32: 0 | K32: =IFERROR(VLOOKUP($A32,Pupils!$A$4:$T$800,9,0),0) -> 0 | L32: =IFERROR(VLOOKUP($A32,'Monthly Statement'!$A$2:$V$800,14,0),0) -> 0 | M32: 0 | N32: =IFERROR(VLOOKUP($A32,Pupils!$A$4:$T$800,10,0),0) -> 0 | O32: =IFERROR(VLOOKUP($A32,'Monthly Statement'!$A$2:$V$800,15,0),0) -> 0 | P32: 0 | Q32: =IFERROR(VLOOKUP($A32,Pupils!$A$4:$T$800,11,0),0) -> 0 | R32: =IFERROR(VLOOKUP($A32,'Monthly Statement'!$A$2:$V$800,16,0),0) -> 0 | S32: 0 | T32: =IFERROR(VLOOKUP($A32,Pupils!$A$4:$T$800,12,0),0) -> 0 | U32: =IFERROR(VLOOKUP($A32,'Monthly Statement'!$A$2:$V$800,17,0),0) -> 0 | V32: 0 | W32: =IFERROR(VLOOKUP($A32,Pupils!$A$4:$T$800,13,0),0) -> 0 | X32: =IFERROR(VLOOKUP($A32,'Monthly Statement'!$A$2:$V$800,18,0),0) -> 0 | Y32: 0 | Z32: =IFERROR(VLOOKUP($A32,Pupils!$A$4:$T$800,14,0),0) -> 0 | AA32: =IFERROR(VLOOKUP($A32,'Monthly Statement'!$A$2:$V$800,19,0),0) -> 0 | AB32: 0 | AC32: =IFERROR(VLOOKUP($A32,Pupils!$A$4:$T$800,15,0),0) -> 0 | AD32: =IFERROR(VLOOKUP($A32,'Monthly Statement'!$A$2:$V$800,20,0),0) -> 0 | AE32: 0 | AF32: =IFERROR(VLOOKUP($A32,Pupils!$A$4:$T$800,16,0),0) -> 0 | AG32: =IFERROR(VLOOKUP($A32,'Monthly Statement'!$A$2:$V$800,21,0),0) -> 0 | AH32: 0 | AI32: =IFERROR(VLOOKUP($A32,Pupils!$A$4:$T$800,17,0),0) -> 0 | AJ32: =IFERROR(VLOOKUP($A32,'Monthly Statement'!$A$2:$V$800,22,0),0) -> 0 | AK32: 0 | AL32: =IFERROR(VLOOKUP($A32,Pupils!$A$4:$T$800,18,0),0) -> 0 | AM32: =IFERROR(VLOOKUP($A32,'Monthly Statement'!$A$2:$V$800,23,0),0) -> 0 | AN32: 0 | AO32: =IFERROR(VLOOKUP($A32,Pupils!$A$4:$T$800,19,0),0) -> 0 | AP32: =IFERROR(VLOOKUP($A32,'Monthly Statement'!$A$2:$V$800,24,0),0) -> 0 | AQ32: 0
A33: ='Monthly Statement'!A29 -> 0 | B33: =IFERROR(VLOOKUP(A33,'Monthly Statement'!A:X,4,0),"") ->  | C33: =IFERROR(VLOOKUP(A33,'Monthly Statement'!A:X,5,0),"") ->  | D33: =IFERROR(VLOOKUP(A33,'Monthly Statement'!A:X,7,0),"") ->  | E33: =IFERROR(VLOOKUP(A33,'Monthly Statement'!A:X,9,0),"") ->  | F33: =IFERROR(VLOOKUP(A33,'Monthly Statement'!A:X,10,0),"") ->  | G33: 0 | H33: =IFERROR(VLOOKUP($A33,Pupils!$A$4:$T$800,8,0),0) -> 0 | I33: =IFERROR(VLOOKUP($A33,'Monthly Statement'!$A$2:$V$800,13,0),0) -> 0 | J33: 0 | K33: =IFERROR(VLOOKUP($A33,Pupils!$A$4:$T$800,9,0),0) -> 0 | L33: =IFERROR(VLOOKUP($A33,'Monthly Statement'!$A$2:$V$800,14,0),0) -> 0 | M33: 0 | N33: =IFERROR(VLOOKUP($A33,Pupils!$A$4:$T$800,10,0),0) -> 0 | O33: =IFERROR(VLOOKUP($A33,'Monthly Statement'!$A$2:$V$800,15,0),0) -> 0 | P33: 0 | Q33: =IFERROR(VLOOKUP($A33,Pupils!$A$4:$T$800,11,0),0) -> 0 | R33: =IFERROR(VLOOKUP($A33,'Monthly Statement'!$A$2:$V$800,16,0),0) -> 0 | S33: 0 | T33: =IFERROR(VLOOKUP($A33,Pupils!$A$4:$T$800,12,0),0) -> 0 | U33: =IFERROR(VLOOKUP($A33,'Monthly Statement'!$A$2:$V$800,17,0),0) -> 0 | V33: 0 | W33: =IFERROR(VLOOKUP($A33,Pupils!$A$4:$T$800,13,0),0) -> 0 | X33: =IFERROR(VLOOKUP($A33,'Monthly Statement'!$A$2:$V$800,18,0),0) -> 0 | Y33: 0 | Z33: =IFERROR(VLOOKUP($A33,Pupils!$A$4:$T$800,14,0),0) -> 0 | AA33: =IFERROR(VLOOKUP($A33,'Monthly Statement'!$A$2:$V$800,19,0),0) -> 0 | AB33: 0 | AC33: =IFERROR(VLOOKUP($A33,Pupils!$A$4:$T$800,15,0),0) -> 0 | AD33: =IFERROR(VLOOKUP($A33,'Monthly Statement'!$A$2:$V$800,20,0),0) -> 0 | AE33: 0 | AF33: =IFERROR(VLOOKUP($A33,Pupils!$A$4:$T$800,16,0),0) -> 0 | AG33: =IFERROR(VLOOKUP($A33,'Monthly Statement'!$A$2:$V$800,21,0),0) -> 0 | AH33: 0 | AI33: =IFERROR(VLOOKUP($A33,Pupils!$A$4:$T$800,17,0),0) -> 0 | AJ33: =IFERROR(VLOOKUP($A33,'Monthly Statement'!$A$2:$V$800,22,0),0) -> 0 | AK33: 0 | AL33: =IFERROR(VLOOKUP($A33,Pupils!$A$4:$T$800,18,0),0) -> 0 | AM33: =IFERROR(VLOOKUP($A33,'Monthly Statement'!$A$2:$V$800,23,0),0) -> 0 | AN33: 0 | AO33: =IFERROR(VLOOKUP($A33,Pupils!$A$4:$T$800,19,0),0) -> 0 | AP33: =IFERROR(VLOOKUP($A33,'Monthly Statement'!$A$2:$V$800,24,0),0) -> 0 | AQ33: 0
A34: ='Monthly Statement'!A30 -> 0 | B34: =IFERROR(VLOOKUP(A34,'Monthly Statement'!A:X,4,0),"") ->  | C34: =IFERROR(VLOOKUP(A34,'Monthly Statement'!A:X,5,0),"") ->  | D34: =IFERROR(VLOOKUP(A34,'Monthly Statement'!A:X,7,0),"") ->  | E34: =IFERROR(VLOOKUP(A34,'Monthly Statement'!A:X,9,0),"") ->  | F34: =IFERROR(VLOOKUP(A34,'Monthly Statement'!A:X,10,0),"") ->  | G34: 0 | H34: =IFERROR(VLOOKUP($A34,Pupils!$A$4:$T$800,8,0),0) -> 0 | I34: =IFERROR(VLOOKUP($A34,'Monthly Statement'!$A$2:$V$800,13,0),0) -> 0 | J34: 0 | K34: =IFERROR(VLOOKUP($A34,Pupils!$A$4:$T$800,9,0),0) -> 0 | L34: =IFERROR(VLOOKUP($A34,'Monthly Statement'!$A$2:$V$800,14,0),0) -> 0 | M34: 0 | N34: =IFERROR(VLOOKUP($A34,Pupils!$A$4:$T$800,10,0),0) -> 0 | O34: =IFERROR(VLOOKUP($A34,'Monthly Statement'!$A$2:$V$800,15,0),0) -> 0 | P34: 0 | Q34: =IFERROR(VLOOKUP($A34,Pupils!$A$4:$T$800,11,0),0) -> 0 | R34: =IFERROR(VLOOKUP($A34,'Monthly Statement'!$A$2:$V$800,16,0),0) -> 0 | S34: 0 | T34: =IFERROR(VLOOKUP($A34,Pupils!$A$4:$T$800,12,0),0) -> 0 | U34: =IFERROR(VLOOKUP($A34,'Monthly Statement'!$A$2:$V$800,17,0),0) -> 0 | V34: 0 | W34: =IFERROR(VLOOKUP($A34,Pupils!$A$4:$T$800,13,0),0) -> 0 | X34: =IFERROR(VLOOKUP($A34,'Monthly Statement'!$A$2:$V$800,18,0),0) -> 0 | Y34: 0 | Z34: =IFERROR(VLOOKUP($A34,Pupils!$A$4:$T$800,14,0),0) -> 0 | AA34: =IFERROR(VLOOKUP($A34,'Monthly Statement'!$A$2:$V$800,19,0),0) -> 0 | AB34: 0 | AC34: =IFERROR(VLOOKUP($A34,Pupils!$A$4:$T$800,15,0),0) -> 0 | AD34: =IFERROR(VLOOKUP($A34,'Monthly Statement'!$A$2:$V$800,20,0),0) -> 0 | AE34: 0 | AF34: =IFERROR(VLOOKUP($A34,Pupils!$A$4:$T$800,16,0),0) -> 0 | AG34: =IFERROR(VLOOKUP($A34,'Monthly Statement'!$A$2:$V$800,21,0),0) -> 0 | AH34: 0 | AI34: =IFERROR(VLOOKUP($A34,Pupils!$A$4:$T$800,17,0),0) -> 0 | AJ34: =IFERROR(VLOOKUP($A34,'Monthly Statement'!$A$2:$V$800,22,0),0) -> 0 | AK34: 0 | AL34: =IFERROR(VLOOKUP($A34,Pupils!$A$4:$T$800,18,0),0) -> 0 | AM34: =IFERROR(VLOOKUP($A34,'Monthly Statement'!$A$2:$V$800,23,0),0) -> 0 | AN34: 0 | AO34: =IFERROR(VLOOKUP($A34,Pupils!$A$4:$T$800,19,0),0) -> 0 | AP34: =IFERROR(VLOOKUP($A34,'Monthly Statement'!$A$2:$V$800,24,0),0) -> 0 | AQ34: 0
A35: ='Monthly Statement'!A31 -> 0 | B35: =IFERROR(VLOOKUP(A35,'Monthly Statement'!A:X,4,0),"") ->  | C35: =IFERROR(VLOOKUP(A35,'Monthly Statement'!A:X,5,0),"") ->  | D35: =IFERROR(VLOOKUP(A35,'Monthly Statement'!A:X,7,0),"") ->  | E35: =IFERROR(VLOOKUP(A35,'Monthly Statement'!A:X,9,0),"") ->  | F35: =IFERROR(VLOOKUP(A35,'Monthly Statement'!A:X,10,0),"") ->  | G35: 0 | H35: =IFERROR(VLOOKUP($A35,Pupils!$A$4:$T$800,8,0),0) -> 0 | I35: =IFERROR(VLOOKUP($A35,'Monthly Statement'!$A$2:$V$800,13,0),0) -> 0 | J35: 0 | K35: =IFERROR(VLOOKUP($A35,Pupils!$A$4:$T$800,9,0),0) -> 0 | L35: =IFERROR(VLOOKUP($A35,'Monthly Statement'!$A$2:$V$800,14,0),0) -> 0 | M35: 0 | N35: =IFERROR(VLOOKUP($A35,Pupils!$A$4:$T$800,10,0),0) -> 0 | O35: =IFERROR(VLOOKUP($A35,'Monthly Statement'!$A$2:$V$800,15,0),0) -> 0 | P35: 0 | Q35: =IFERROR(VLOOKUP($A35,Pupils!$A$4:$T$800,11,0),0) -> 0 | R35: =IFERROR(VLOOKUP($A35,'Monthly Statement'!$A$2:$V$800,16,0),0) -> 0 | S35: 0 | T35: =IFERROR(VLOOKUP($A35,Pupils!$A$4:$T$800,12,0),0) -> 0 | U35: =IFERROR(VLOOKUP($A35,'Monthly Statement'!$A$2:$V$800,17,0),0) -> 0 | V35: 0 | W35: =IFERROR(VLOOKUP($A35,Pupils!$A$4:$T$800,13,0),0) -> 0 | X35: =IFERROR(VLOOKUP($A35,'Monthly Statement'!$A$2:$V$800,18,0),0) -> 0 | Y35: 0 | Z35: =IFERROR(VLOOKUP($A35,Pupils!$A$4:$T$800,14,0),0) -> 0 | AA35: =IFERROR(VLOOKUP($A35,'Monthly Statement'!$A$2:$V$800,19,0),0) -> 0 | AB35: 0 | AC35: =IFERROR(VLOOKUP($A35,Pupils!$A$4:$T$800,15,0),0) -> 0 | AD35: =IFERROR(VLOOKUP($A35,'Monthly Statement'!$A$2:$V$800,20,0),0) -> 0 | AE35: 0 | AF35: =IFERROR(VLOOKUP($A35,Pupils!$A$4:$T$800,16,0),0) -> 0 | AG35: =IFERROR(VLOOKUP($A35,'Monthly Statement'!$A$2:$V$800,21,0),0) -> 0 | AH35: 0 | AI35: =IFERROR(VLOOKUP($A35,Pupils!$A$4:$T$800,17,0),0) -> 0 | AJ35: =IFERROR(VLOOKUP($A35,'Monthly Statement'!$A$2:$V$800,22,0),0) -> 0 | AK35: 0 | AL35: =IFERROR(VLOOKUP($A35,Pupils!$A$4:$T$800,18,0),0) -> 0 | AM35: =IFERROR(VLOOKUP($A35,'Monthly Statement'!$A$2:$V$800,23,0),0) -> 0 | AN35: 0 | AO35: =IFERROR(VLOOKUP($A35,Pupils!$A$4:$T$800,19,0),0) -> 0 | AP35: =IFERROR(VLOOKUP($A35,'Monthly Statement'!$A$2:$V$800,24,0),0) -> 0 | AQ35: 0
A36: ='Monthly Statement'!A32 -> 0 | B36: =IFERROR(VLOOKUP(A36,'Monthly Statement'!A:X,4,0),"") ->  | C36: =IFERROR(VLOOKUP(A36,'Monthly Statement'!A:X,5,0),"") ->  | D36: =IFERROR(VLOOKUP(A36,'Monthly Statement'!A:X,7,0),"") ->  | E36: =IFERROR(VLOOKUP(A36,'Monthly Statement'!A:X,9,0),"") ->  | F36: =IFERROR(VLOOKUP(A36,'Monthly Statement'!A:X,10,0),"") ->  | G36: 0 | H36: =IFERROR(VLOOKUP($A36,Pupils!$A$4:$T$800,8,0),0) -> 0 | I36: =IFERROR(VLOOKUP($A36,'Monthly Statement'!$A$2:$V$800,13,0),0) -> 0 | J36: 0 | K36: =IFERROR(VLOOKUP($A36,Pupils!$A$4:$T$800,9,0),0) -> 0 | L36: =IFERROR(VLOOKUP($A36,'Monthly Statement'!$A$2:$V$800,14,0),0) -> 0 | M36: 0 | N36: =IFERROR(VLOOKUP($A36,Pupils!$A$4:$T$800,10,0),0) -> 0 | O36: =IFERROR(VLOOKUP($A36,'Monthly Statement'!$A$2:$V$800,15,0),0) -> 0 | P36: 0 | Q36: =IFERROR(VLOOKUP($A36,Pupils!$A$4:$T$800,11,0),0) -> 0 | R36: =IFERROR(VLOOKUP($A36,'Monthly Statement'!$A$2:$V$800,16,0),0) -> 0 | S36: 0 | T36: =IFERROR(VLOOKUP($A36,Pupils!$A$4:$T$800,12,0),0) -> 0 | U36: =IFERROR(VLOOKUP($A36,'Monthly Statement'!$A$2:$V$800,17,0),0) -> 0 | V36: 0 | W36: =IFERROR(VLOOKUP($A36,Pupils!$A$4:$T$800,13,0),0) -> 0 | X36: =IFERROR(VLOOKUP($A36,'Monthly Statement'!$A$2:$V$800,18,0),0) -> 0 | Y36: 0 | Z36: =IFERROR(VLOOKUP($A36,Pupils!$A$4:$T$800,14,0),0) -> 0 | AA36: =IFERROR(VLOOKUP($A36,'Monthly Statement'!$A$2:$V$800,19,0),0) -> 0 | AB36: 0 | AC36: =IFERROR(VLOOKUP($A36,Pupils!$A$4:$T$800,15,0),0) -> 0 | AD36: =IFERROR(VLOOKUP($A36,'Monthly Statement'!$A$2:$V$800,20,0),0) -> 0 | AE36: 0 | AF36: =IFERROR(VLOOKUP($A36,Pupils!$A$4:$T$800,16,0),0) -> 0 | AG36: =IFERROR(VLOOKUP($A36,'Monthly Statement'!$A$2:$V$800,21,0),0) -> 0 | AH36: 0 | AI36: =IFERROR(VLOOKUP($A36,Pupils!$A$4:$T$800,17,0),0) -> 0 | AJ36: =IFERROR(VLOOKUP($A36,'Monthly Statement'!$A$2:$V$800,22,0),0) -> 0 | AK36: 0 | AL36: =IFERROR(VLOOKUP($A36,Pupils!$A$4:$T$800,18,0),0) -> 0 | AM36: =IFERROR(VLOOKUP($A36,'Monthly Statement'!$A$2:$V$800,23,0),0) -> 0 | AN36: 0 | AO36: =IFERROR(VLOOKUP($A36,Pupils!$A$4:$T$800,19,0),0) -> 0 | AP36: =IFERROR(VLOOKUP($A36,'Monthly Statement'!$A$2:$V$800,24,0),0) -> 0 | AQ36: 0
A37: ='Monthly Statement'!A33 -> 0 | B37: =IFERROR(VLOOKUP(A37,'Monthly Statement'!A:X,4,0),"") ->  | C37: =IFERROR(VLOOKUP(A37,'Monthly Statement'!A:X,5,0),"") ->  | D37: =IFERROR(VLOOKUP(A37,'Monthly Statement'!A:X,7,0),"") ->  | E37: =IFERROR(VLOOKUP(A37,'Monthly Statement'!A:X,9,0),"") ->  | F37: =IFERROR(VLOOKUP(A37,'Monthly Statement'!A:X,10,0),"") ->  | G37: 0 | H37: =IFERROR(VLOOKUP($A37,Pupils!$A$4:$T$800,8,0),0) -> 0 | I37: =IFERROR(VLOOKUP($A37,'Monthly Statement'!$A$2:$V$800,13,0),0) -> 0 | J37: 0 | K37: =IFERROR(VLOOKUP($A37,Pupils!$A$4:$T$800,9,0),0) -> 0 | L37: =IFERROR(VLOOKUP($A37,'Monthly Statement'!$A$2:$V$800,14,0),0) -> 0 | M37: 0 | N37: =IFERROR(VLOOKUP($A37,Pupils!$A$4:$T$800,10,0),0) -> 0 | O37: =IFERROR(VLOOKUP($A37,'Monthly Statement'!$A$2:$V$800,15,0),0) -> 0 | P37: 0 | Q37: =IFERROR(VLOOKUP($A37,Pupils!$A$4:$T$800,11,0),0) -> 0 | R37: =IFERROR(VLOOKUP($A37,'Monthly Statement'!$A$2:$V$800,16,0),0) -> 0 | S37: 0 | T37: =IFERROR(VLOOKUP($A37,Pupils!$A$4:$T$800,12,0),0) -> 0 | U37: =IFERROR(VLOOKUP($A37,'Monthly Statement'!$A$2:$V$800,17,0),0) -> 0 | V37: 0 | W37: =IFERROR(VLOOKUP($A37,Pupils!$A$4:$T$800,13,0),0) -> 0 | X37: =IFERROR(VLOOKUP($A37,'Monthly Statement'!$A$2:$V$800,18,0),0) -> 0 | Y37: 0 | Z37: =IFERROR(VLOOKUP($A37,Pupils!$A$4:$T$800,14,0),0) -> 0 | AA37: =IFERROR(VLOOKUP($A37,'Monthly Statement'!$A$2:$V$800,19,0),0) -> 0 | AB37: 0 | AC37: =IFERROR(VLOOKUP($A37,Pupils!$A$4:$T$800,15,0),0) -> 0 | AD37: =IFERROR(VLOOKUP($A37,'Monthly Statement'!$A$2:$V$800,20,0),0) -> 0 | AE37: 0 | AF37: =IFERROR(VLOOKUP($A37,Pupils!$A$4:$T$800,16,0),0) -> 0 | AG37: =IFERROR(VLOOKUP($A37,'Monthly Statement'!$A$2:$V$800,21,0),0) -> 0 | AH37: 0 | AI37: =IFERROR(VLOOKUP($A37,Pupils!$A$4:$T$800,17,0),0) -> 0 | AJ37: =IFERROR(VLOOKUP($A37,'Monthly Statement'!$A$2:$V$800,22,0),0) -> 0 | AK37: 0 | AL37: =IFERROR(VLOOKUP($A37,Pupils!$A$4:$T$800,18,0),0) -> 0 | AM37: =IFERROR(VLOOKUP($A37,'Monthly Statement'!$A$2:$V$800,23,0),0) -> 0 | AN37: 0 | AO37: =IFERROR(VLOOKUP($A37,Pupils!$A$4:$T$800,19,0),0) -> 0 | AP37: =IFERROR(VLOOKUP($A37,'Monthly Statement'!$A$2:$V$800,24,0),0) -> 0 | AQ37: 0
A38: ='Monthly Statement'!A34 -> 0 | B38: =IFERROR(VLOOKUP(A38,'Monthly Statement'!A:X,4,0),"") ->  | C38: =IFERROR(VLOOKUP(A38,'Monthly Statement'!A:X,5,0),"") ->  | D38: =IFERROR(VLOOKUP(A38,'Monthly Statement'!A:X,7,0),"") ->  | E38: =IFERROR(VLOOKUP(A38,'Monthly Statement'!A:X,9,0),"") ->  | F38: =IFERROR(VLOOKUP(A38,'Monthly Statement'!A:X,10,0),"") ->  | G38: 0 | H38: =IFERROR(VLOOKUP($A38,Pupils!$A$4:$T$800,8,0),0) -> 0 | I38: =IFERROR(VLOOKUP($A38,'Monthly Statement'!$A$2:$V$800,13,0),0) -> 0 | J38: 0 | K38: =IFERROR(VLOOKUP($A38,Pupils!$A$4:$T$800,9,0),0) -> 0 | L38: =IFERROR(VLOOKUP($A38,'Monthly Statement'!$A$2:$V$800,14,0),0) -> 0 | M38: 0 | N38: =IFERROR(VLOOKUP($A38,Pupils!$A$4:$T$800,10,0),0) -> 0 | O38: =IFERROR(VLOOKUP($A38,'Monthly Statement'!$A$2:$V$800,15,0),0) -> 0 | P38: 0 | Q38: =IFERROR(VLOOKUP($A38,Pupils!$A$4:$T$800,11,0),0) -> 0 | R38: =IFERROR(VLOOKUP($A38,'Monthly Statement'!$A$2:$V$800,16,0),0) -> 0 | S38: 0 | T38: =IFERROR(VLOOKUP($A38,Pupils!$A$4:$T$800,12,0),0) -> 0 | U38: =IFERROR(VLOOKUP($A38,'Monthly Statement'!$A$2:$V$800,17,0),0) -> 0 | V38: 0 | W38: =IFERROR(VLOOKUP($A38,Pupils!$A$4:$T$800,13,0),0) -> 0 | X38: =IFERROR(VLOOKUP($A38,'Monthly Statement'!$A$2:$V$800,18,0),0) -> 0 | Y38: 0 | Z38: =IFERROR(VLOOKUP($A38,Pupils!$A$4:$T$800,14,0),0) -> 0 | AA38: =IFERROR(VLOOKUP($A38,'Monthly Statement'!$A$2:$V$800,19,0),0) -> 0 | AB38: 0 | AC38: =IFERROR(VLOOKUP($A38,Pupils!$A$4:$T$800,15,0),0) -> 0 | AD38: =IFERROR(VLOOKUP($A38,'Monthly Statement'!$A$2:$V$800,20,0),0) -> 0 | AE38: 0 | AF38: =IFERROR(VLOOKUP($A38,Pupils!$A$4:$T$800,16,0),0) -> 0 | AG38: =IFERROR(VLOOKUP($A38,'Monthly Statement'!$A$2:$V$800,21,0),0) -> 0 | AH38: 0 | AI38: =IFERROR(VLOOKUP($A38,Pupils!$A$4:$T$800,17,0),0) -> 0 | AJ38: =IFERROR(VLOOKUP($A38,'Monthly Statement'!$A$2:$V$800,22,0),0) -> 0 | AK38: 0 | AL38: =IFERROR(VLOOKUP($A38,Pupils!$A$4:$T$800,18,0),0) -> 0 | AM38: =IFERROR(VLOOKUP($A38,'Monthly Statement'!$A$2:$V$800,23,0),0) -> 0 | AN38: 0 | AO38: =IFERROR(VLOOKUP($A38,Pupils!$A$4:$T$800,19,0),0) -> 0 | AP38: =IFERROR(VLOOKUP($A38,'Monthly Statement'!$A$2:$V$800,24,0),0) -> 0 | AQ38: 0
A39: ='Monthly Statement'!A35 -> 0 | B39: =IFERROR(VLOOKUP(A39,'Monthly Statement'!A:X,4,0),"") ->  | C39: =IFERROR(VLOOKUP(A39,'Monthly Statement'!A:X,5,0),"") ->  | D39: =IFERROR(VLOOKUP(A39,'Monthly Statement'!A:X,7,0),"") ->  | E39: =IFERROR(VLOOKUP(A39,'Monthly Statement'!A:X,9,0),"") ->  | F39: =IFERROR(VLOOKUP(A39,'Monthly Statement'!A:X,10,0),"") ->  | G39: 0 | H39: =IFERROR(VLOOKUP($A39,Pupils!$A$4:$T$800,8,0),0) -> 0 | I39: =IFERROR(VLOOKUP($A39,'Monthly Statement'!$A$2:$V$800,13,0),0) -> 0 | J39: 0 | K39: =IFERROR(VLOOKUP($A39,Pupils!$A$4:$T$800,9,0),0) -> 0 | L39: =IFERROR(VLOOKUP($A39,'Monthly Statement'!$A$2:$V$800,14,0),0) -> 0 | M39: 0 | N39: =IFERROR(VLOOKUP($A39,Pupils!$A$4:$T$800,10,0),0) -> 0 | O39: =IFERROR(VLOOKUP($A39,'Monthly Statement'!$A$2:$V$800,15,0),0) -> 0 | P39: 0 | Q39: =IFERROR(VLOOKUP($A39,Pupils!$A$4:$T$800,11,0),0) -> 0 | R39: =IFERROR(VLOOKUP($A39,'Monthly Statement'!$A$2:$V$800,16,0),0) -> 0 | S39: 0 | T39: =IFERROR(VLOOKUP($A39,Pupils!$A$4:$T$800,12,0),0) -> 0 | U39: =IFERROR(VLOOKUP($A39,'Monthly Statement'!$A$2:$V$800,17,0),0) -> 0 | V39: 0 | W39: =IFERROR(VLOOKUP($A39,Pupils!$A$4:$T$800,13,0),0) -> 0 | X39: =IFERROR(VLOOKUP($A39,'Monthly Statement'!$A$2:$V$800,18,0),0) -> 0 | Y39: 0 | Z39: =IFERROR(VLOOKUP($A39,Pupils!$A$4:$T$800,14,0),0) -> 0 | AA39: =IFERROR(VLOOKUP($A39,'Monthly Statement'!$A$2:$V$800,19,0),0) -> 0 | AB39: 0 | AC39: =IFERROR(VLOOKUP($A39,Pupils!$A$4:$T$800,15,0),0) -> 0 | AD39: =IFERROR(VLOOKUP($A39,'Monthly Statement'!$A$2:$V$800,20,0),0) -> 0 | AE39: 0 | AF39: =IFERROR(VLOOKUP($A39,Pupils!$A$4:$T$800,16,0),0) -> 0 | AG39: =IFERROR(VLOOKUP($A39,'Monthly Statement'!$A$2:$V$800,21,0),0) -> 0 | AH39: 0 | AI39: =IFERROR(VLOOKUP($A39,Pupils!$A$4:$T$800,17,0),0) -> 0 | AJ39: =IFERROR(VLOOKUP($A39,'Monthly Statement'!$A$2:$V$800,22,0),0) -> 0 | AK39: 0 | AL39: =IFERROR(VLOOKUP($A39,Pupils!$A$4:$T$800,18,0),0) -> 0 | AM39: =IFERROR(VLOOKUP($A39,'Monthly Statement'!$A$2:$V$800,23,0),0) -> 0 | AN39: 0 | AO39: =IFERROR(VLOOKUP($A39,Pupils!$A$4:$T$800,19,0),0) -> 0 | AP39: =IFERROR(VLOOKUP($A39,'Monthly Statement'!$A$2:$V$800,24,0),0) -> 0 | AQ39: 0
A40: ='Monthly Statement'!A36 -> 0 | B40: =IFERROR(VLOOKUP(A40,'Monthly Statement'!A:X,4,0),"") ->  | C40: =IFERROR(VLOOKUP(A40,'Monthly Statement'!A:X,5,0),"") ->  | D40: =IFERROR(VLOOKUP(A40,'Monthly Statement'!A:X,7,0),"") ->  | E40: =IFERROR(VLOOKUP(A40,'Monthly Statement'!A:X,9,0),"") ->  | F40: =IFERROR(VLOOKUP(A40,'Monthly Statement'!A:X,10,0),"") ->  | G40: 0 | H40: =IFERROR(VLOOKUP($A40,Pupils!$A$4:$T$800,8,0),0) -> 0 | I40: =IFERROR(VLOOKUP($A40,'Monthly Statement'!$A$2:$V$800,13,0),0) -> 0 | J40: 0 | K40: =IFERROR(VLOOKUP($A40,Pupils!$A$4:$T$800,9,0),0) -> 0 | L40: =IFERROR(VLOOKUP($A40,'Monthly Statement'!$A$2:$V$800,14,0),0) -> 0 | M40: 0 | N40: =IFERROR(VLOOKUP($A40,Pupils!$A$4:$T$800,10,0),0) -> 0 | O40: =IFERROR(VLOOKUP($A40,'Monthly Statement'!$A$2:$V$800,15,0),0) -> 0 | P40: 0 | Q40: =IFERROR(VLOOKUP($A40,Pupils!$A$4:$T$800,11,0),0) -> 0 | R40: =IFERROR(VLOOKUP($A40,'Monthly Statement'!$A$2:$V$800,16,0),0) -> 0 | S40: 0 | T40: =IFERROR(VLOOKUP($A40,Pupils!$A$4:$T$800,12,0),0) -> 0 | U40: =IFERROR(VLOOKUP($A40,'Monthly Statement'!$A$2:$V$800,17,0),0) -> 0 | V40: 0 | W40: =IFERROR(VLOOKUP($A40,Pupils!$A$4:$T$800,13,0),0) -> 0 | X40: =IFERROR(VLOOKUP($A40,'Monthly Statement'!$A$2:$V$800,18,0),0) -> 0 | Y40: 0 | Z40: =IFERROR(VLOOKUP($A40,Pupils!$A$4:$T$800,14,0),0) -> 0 | AA40: =IFERROR(VLOOKUP($A40,'Monthly Statement'!$A$2:$V$800,19,0),0) -> 0 | AB40: 0 | AC40: =IFERROR(VLOOKUP($A40,Pupils!$A$4:$T$800,15,0),0) -> 0 | AD40: =IFERROR(VLOOKUP($A40,'Monthly Statement'!$A$2:$V$800,20,0),0) -> 0 | AE40: 0 | AF40: =IFERROR(VLOOKUP($A40,Pupils!$A$4:$T$800,16,0),0) -> 0 | AG40: =IFERROR(VLOOKUP($A40,'Monthly Statement'!$A$2:$V$800,21,0),0) -> 0 | AH40: 0 | AI40: =IFERROR(VLOOKUP($A40,Pupils!$A$4:$T$800,17,0),0) -> 0 | AJ40: =IFERROR(VLOOKUP($A40,'Monthly Statement'!$A$2:$V$800,22,0),0) -> 0 | AK40: 0 | AL40: =IFERROR(VLOOKUP($A40,Pupils!$A$4:$T$800,18,0),0) -> 0 | AM40: =IFERROR(VLOOKUP($A40,'Monthly Statement'!$A$2:$V$800,23,0),0) -> 0 | AN40: 0 | AO40: =IFERROR(VLOOKUP($A40,Pupils!$A$4:$T$800,19,0),0) -> 0 | AP40: =IFERROR(VLOOKUP($A40,'Monthly Statement'!$A$2:$V$800,24,0),0) -> 0 | AQ40: 0
A41: ='Monthly Statement'!A37 -> 0 | B41: =IFERROR(VLOOKUP(A41,'Monthly Statement'!A:X,4,0),"") ->  | C41: =IFERROR(VLOOKUP(A41,'Monthly Statement'!A:X,5,0),"") ->  | D41: =IFERROR(VLOOKUP(A41,'Monthly Statement'!A:X,7,0),"") ->  | E41: =IFERROR(VLOOKUP(A41,'Monthly Statement'!A:X,9,0),"") ->  | F41: =IFERROR(VLOOKUP(A41,'Monthly Statement'!A:X,10,0),"") ->  | G41: 0 | H41: =IFERROR(VLOOKUP($A41,Pupils!$A$4:$T$800,8,0),0) -> 0 | I41: =IFERROR(VLOOKUP($A41,'Monthly Statement'!$A$2:$V$800,13,0),0) -> 0 | J41: 0 | K41: =IFERROR(VLOOKUP($A41,Pupils!$A$4:$T$800,9,0),0) -> 0 | L41: =IFERROR(VLOOKUP($A41,'Monthly Statement'!$A$2:$V$800,14,0),0) -> 0 | M41: 0 | N41: =IFERROR(VLOOKUP($A41,Pupils!$A$4:$T$800,10,0),0) -> 0 | O41: =IFERROR(VLOOKUP($A41,'Monthly Statement'!$A$2:$V$800,15,0),0) -> 0 | P41: 0 | Q41: =IFERROR(VLOOKUP($A41,Pupils!$A$4:$T$800,11,0),0) -> 0 | R41: =IFERROR(VLOOKUP($A41,'Monthly Statement'!$A$2:$V$800,16,0),0) -> 0 | S41: 0 | T41: =IFERROR(VLOOKUP($A41,Pupils!$A$4:$T$800,12,0),0) -> 0 | U41: =IFERROR(VLOOKUP($A41,'Monthly Statement'!$A$2:$V$800,17,0),0) -> 0 | V41: 0 | W41: =IFERROR(VLOOKUP($A41,Pupils!$A$4:$T$800,13,0),0) -> 0 | X41: =IFERROR(VLOOKUP($A41,'Monthly Statement'!$A$2:$V$800,18,0),0) -> 0 | Y41: 0 | Z41: =IFERROR(VLOOKUP($A41,Pupils!$A$4:$T$800,14,0),0) -> 0 | AA41: =IFERROR(VLOOKUP($A41,'Monthly Statement'!$A$2:$V$800,19,0),0) -> 0 | AB41: 0 | AC41: =IFERROR(VLOOKUP($A41,Pupils!$A$4:$T$800,15,0),0) -> 0 | AD41: =IFERROR(VLOOKUP($A41,'Monthly Statement'!$A$2:$V$800,20,0),0) -> 0 | AE41: 0 | AF41: =IFERROR(VLOOKUP($A41,Pupils!$A$4:$T$800,16,0),0) -> 0 | AG41: =IFERROR(VLOOKUP($A41,'Monthly Statement'!$A$2:$V$800,21,0),0) -> 0 | AH41: 0 | AI41: =IFERROR(VLOOKUP($A41,Pupils!$A$4:$T$800,17,0),0) -> 0 | AJ41: =IFERROR(VLOOKUP($A41,'Monthly Statement'!$A$2:$V$800,22,0),0) -> 0 | AK41: 0 | AL41: =IFERROR(VLOOKUP($A41,Pupils!$A$4:$T$800,18,0),0) -> 0 | AM41: =IFERROR(VLOOKUP($A41,'Monthly Statement'!$A$2:$V$800,23,0),0) -> 0 | AN41: 0 | AO41: =IFERROR(VLOOKUP($A41,Pupils!$A$4:$T$800,19,0),0) -> 0 | AP41: =IFERROR(VLOOKUP($A41,'Monthly Statement'!$A$2:$V$800,24,0),0) -> 0 | AQ41: 0
A42: ='Monthly Statement'!A38 -> 0 | B42: =IFERROR(VLOOKUP(A42,'Monthly Statement'!A:X,4,0),"") ->  | C42: =IFERROR(VLOOKUP(A42,'Monthly Statement'!A:X,5,0),"") ->  | D42: =IFERROR(VLOOKUP(A42,'Monthly Statement'!A:X,7,0),"") ->  | E42: =IFERROR(VLOOKUP(A42,'Monthly Statement'!A:X,9,0),"") ->  | F42: =IFERROR(VLOOKUP(A42,'Monthly Statement'!A:X,10,0),"") ->  | G42: 0 | H42: =IFERROR(VLOOKUP($A42,Pupils!$A$4:$T$800,8,0),0) -> 0 | I42: =IFERROR(VLOOKUP($A42,'Monthly Statement'!$A$2:$V$800,13,0),0) -> 0 | J42: 0 | K42: =IFERROR(VLOOKUP($A42,Pupils!$A$4:$T$800,9,0),0) -> 0 | L42: =IFERROR(VLOOKUP($A42,'Monthly Statement'!$A$2:$V$800,14,0),0) -> 0 | M42: 0 | N42: =IFERROR(VLOOKUP($A42,Pupils!$A$4:$T$800,10,0),0) -> 0 | O42: =IFERROR(VLOOKUP($A42,'Monthly Statement'!$A$2:$V$800,15,0),0) -> 0 | P42: 0 | Q42: =IFERROR(VLOOKUP($A42,Pupils!$A$4:$T$800,11,0),0) -> 0 | R42: =IFERROR(VLOOKUP($A42,'Monthly Statement'!$A$2:$V$800,16,0),0) -> 0 | S42: 0 | T42: =IFERROR(VLOOKUP($A42,Pupils!$A$4:$T$800,12,0),0) -> 0 | U42: =IFERROR(VLOOKUP($A42,'Monthly Statement'!$A$2:$V$800,17,0),0) -> 0 | V42: 0 | W42: =IFERROR(VLOOKUP($A42,Pupils!$A$4:$T$800,13,0),0) -> 0 | X42: =IFERROR(VLOOKUP($A42,'Monthly Statement'!$A$2:$V$800,18,0),0) -> 0 | Y42: 0 | Z42: =IFERROR(VLOOKUP($A42,Pupils!$A$4:$T$800,14,0),0) -> 0 | AA42: =IFERROR(VLOOKUP($A42,'Monthly Statement'!$A$2:$V$800,19,0),0) -> 0 | AB42: 0 | AC42: =IFERROR(VLOOKUP($A42,Pupils!$A$4:$T$800,15,0),0) -> 0 | AD42: =IFERROR(VLOOKUP($A42,'Monthly Statement'!$A$2:$V$800,20,0),0) -> 0 | AE42: 0 | AF42: =IFERROR(VLOOKUP($A42,Pupils!$A$4:$T$800,16,0),0) -> 0 | AG42: =IFERROR(VLOOKUP($A42,'Monthly Statement'!$A$2:$V$800,21,0),0) -> 0 | AH42: 0 | AI42: =IFERROR(VLOOKUP($A42,Pupils!$A$4:$T$800,17,0),0) -> 0 | AJ42: =IFERROR(VLOOKUP($A42,'Monthly Statement'!$A$2:$V$800,22,0),0) -> 0 | AK42: 0 | AL42: =IFERROR(VLOOKUP($A42,Pupils!$A$4:$T$800,18,0),0) -> 0 | AM42: =IFERROR(VLOOKUP($A42,'Monthly Statement'!$A$2:$V$800,23,0),0) -> 0 | AN42: 0 | AO42: =IFERROR(VLOOKUP($A42,Pupils!$A$4:$T$800,19,0),0) -> 0 | AP42: =IFERROR(VLOOKUP($A42,'Monthly Statement'!$A$2:$V$800,24,0),0) -> 0 | AQ42: 0
A43: ='Monthly Statement'!A39 -> 0 | B43: =IFERROR(VLOOKUP(A43,'Monthly Statement'!A:X,4,0),"") ->  | C43: =IFERROR(VLOOKUP(A43,'Monthly Statement'!A:X,5,0),"") ->  | D43: =IFERROR(VLOOKUP(A43,'Monthly Statement'!A:X,7,0),"") ->  | E43: =IFERROR(VLOOKUP(A43,'Monthly Statement'!A:X,9,0),"") ->  | F43: =IFERROR(VLOOKUP(A43,'Monthly Statement'!A:X,10,0),"") ->  | G43: 0 | H43: =IFERROR(VLOOKUP($A43,Pupils!$A$4:$T$800,8,0),0) -> 0 | I43: =IFERROR(VLOOKUP($A43,'Monthly Statement'!$A$2:$V$800,13,0),0) -> 0 | J43: 0 | K43: =IFERROR(VLOOKUP($A43,Pupils!$A$4:$T$800,9,0),0) -> 0 | L43: =IFERROR(VLOOKUP($A43,'Monthly Statement'!$A$2:$V$800,14,0),0) -> 0 | M43: 0 | N43: =IFERROR(VLOOKUP($A43,Pupils!$A$4:$T$800,10,0),0) -> 0 | O43: =IFERROR(VLOOKUP($A43,'Monthly Statement'!$A$2:$V$800,15,0),0) -> 0 | P43: 0 | Q43: =IFERROR(VLOOKUP($A43,Pupils!$A$4:$T$800,11,0),0) -> 0 | R43: =IFERROR(VLOOKUP($A43,'Monthly Statement'!$A$2:$V$800,16,0),0) -> 0 | S43: 0 | T43: =IFERROR(VLOOKUP($A43,Pupils!$A$4:$T$800,12,0),0) -> 0 | U43: =IFERROR(VLOOKUP($A43,'Monthly Statement'!$A$2:$V$800,17,0),0) -> 0 | V43: 0 | W43: =IFERROR(VLOOKUP($A43,Pupils!$A$4:$T$800,13,0),0) -> 0 | X43: =IFERROR(VLOOKUP($A43,'Monthly Statement'!$A$2:$V$800,18,0),0) -> 0 | Y43: 0 | Z43: =IFERROR(VLOOKUP($A43,Pupils!$A$4:$T$800,14,0),0) -> 0 | AA43: =IFERROR(VLOOKUP($A43,'Monthly Statement'!$A$2:$V$800,19,0),0) -> 0 | AB43: 0 | AC43: =IFERROR(VLOOKUP($A43,Pupils!$A$4:$T$800,15,0),0) -> 0 | AD43: =IFERROR(VLOOKUP($A43,'Monthly Statement'!$A$2:$V$800,20,0),0) -> 0 | AE43: 0 | AF43: =IFERROR(VLOOKUP($A43,Pupils!$A$4:$T$800,16,0),0) -> 0 | AG43: =IFERROR(VLOOKUP($A43,'Monthly Statement'!$A$2:$V$800,21,0),0) -> 0 | AH43: 0 | AI43: =IFERROR(VLOOKUP($A43,Pupils!$A$4:$T$800,17,0),0) -> 0 | AJ43: =IFERROR(VLOOKUP($A43,'Monthly Statement'!$A$2:$V$800,22,0),0) -> 0 | AK43: 0 | AL43: =IFERROR(VLOOKUP($A43,Pupils!$A$4:$T$800,18,0),0) -> 0 | AM43: =IFERROR(VLOOKUP($A43,'Monthly Statement'!$A$2:$V$800,23,0),0) -> 0 | AN43: 0 | AO43: =IFERROR(VLOOKUP($A43,Pupils!$A$4:$T$800,19,0),0) -> 0 | AP43: =IFERROR(VLOOKUP($A43,'Monthly Statement'!$A$2:$V$800,24,0),0) -> 0 | AQ43: 0
A44: ='Monthly Statement'!A40 -> 0 | B44: =IFERROR(VLOOKUP(A44,'Monthly Statement'!A:X,4,0),"") ->  | C44: =IFERROR(VLOOKUP(A44,'Monthly Statement'!A:X,5,0),"") ->  | D44: =IFERROR(VLOOKUP(A44,'Monthly Statement'!A:X,7,0),"") ->  | E44: =IFERROR(VLOOKUP(A44,'Monthly Statement'!A:X,9,0),"") ->  | F44: =IFERROR(VLOOKUP(A44,'Monthly Statement'!A:X,10,0),"") ->  | G44: 0 | H44: =IFERROR(VLOOKUP($A44,Pupils!$A$4:$T$800,8,0),0) -> 0 | I44: =IFERROR(VLOOKUP($A44,'Monthly Statement'!$A$2:$V$800,13,0),0) -> 0 | J44: 0 | K44: =IFERROR(VLOOKUP($A44,Pupils!$A$4:$T$800,9,0),0) -> 0 | L44: =IFERROR(VLOOKUP($A44,'Monthly Statement'!$A$2:$V$800,14,0),0) -> 0 | M44: 0 | N44: =IFERROR(VLOOKUP($A44,Pupils!$A$4:$T$800,10,0),0) -> 0 | O44: =IFERROR(VLOOKUP($A44,'Monthly Statement'!$A$2:$V$800,15,0),0) -> 0 | P44: 0 | Q44: =IFERROR(VLOOKUP($A44,Pupils!$A$4:$T$800,11,0),0) -> 0 | R44: =IFERROR(VLOOKUP($A44,'Monthly Statement'!$A$2:$V$800,16,0),0) -> 0 | S44: 0 | T44: =IFERROR(VLOOKUP($A44,Pupils!$A$4:$T$800,12,0),0) -> 0 | U44: =IFERROR(VLOOKUP($A44,'Monthly Statement'!$A$2:$V$800,17,0),0) -> 0 | V44: 0 | W44: =IFERROR(VLOOKUP($A44,Pupils!$A$4:$T$800,13,0),0) -> 0 | X44: =IFERROR(VLOOKUP($A44,'Monthly Statement'!$A$2:$V$800,18,0),0) -> 0 | Y44: 0 | Z44: =IFERROR(VLOOKUP($A44,Pupils!$A$4:$T$800,14,0),0) -> 0 | AA44: =IFERROR(VLOOKUP($A44,'Monthly Statement'!$A$2:$V$800,19,0),0) -> 0 | AB44: 0 | AC44: =IFERROR(VLOOKUP($A44,Pupils!$A$4:$T$800,15,0),0) -> 0 | AD44: =IFERROR(VLOOKUP($A44,'Monthly Statement'!$A$2:$V$800,20,0),0) -> 0 | AE44: 0 | AF44: =IFERROR(VLOOKUP($A44,Pupils!$A$4:$T$800,16,0),0) -> 0 | AG44: =IFERROR(VLOOKUP($A44,'Monthly Statement'!$A$2:$V$800,21,0),0) -> 0 | AH44: 0 | AI44: =IFERROR(VLOOKUP($A44,Pupils!$A$4:$T$800,17,0),0) -> 0 | AJ44: =IFERROR(VLOOKUP($A44,'Monthly Statement'!$A$2:$V$800,22,0),0) -> 0 | AK44: 0 | AL44: =IFERROR(VLOOKUP($A44,Pupils!$A$4:$T$800,18,0),0) -> 0 | AM44: =IFERROR(VLOOKUP($A44,'Monthly Statement'!$A$2:$V$800,23,0),0) -> 0 | AN44: 0 | AO44: =IFERROR(VLOOKUP($A44,Pupils!$A$4:$T$800,19,0),0) -> 0 | AP44: =IFERROR(VLOOKUP($A44,'Monthly Statement'!$A$2:$V$800,24,0),0) -> 0 | AQ44: 0
A45: ='Monthly Statement'!A41 -> 0 | B45: =IFERROR(VLOOKUP(A45,'Monthly Statement'!A:X,4,0),"") ->  | C45: =IFERROR(VLOOKUP(A45,'Monthly Statement'!A:X,5,0),"") ->  | D45: =IFERROR(VLOOKUP(A45,'Monthly Statement'!A:X,7,0),"") ->  | E45: =IFERROR(VLOOKUP(A45,'Monthly Statement'!A:X,9,0),"") ->  | F45: =IFERROR(VLOOKUP(A45,'Monthly Statement'!A:X,10,0),"") ->  | G45: 0 | H45: =IFERROR(VLOOKUP($A45,Pupils!$A$4:$T$800,8,0),0) -> 0 | I45: =IFERROR(VLOOKUP($A45,'Monthly Statement'!$A$2:$V$800,13,0),0) -> 0 | J45: 0 | K45: =IFERROR(VLOOKUP($A45,Pupils!$A$4:$T$800,9,0),0) -> 0 | L45: =IFERROR(VLOOKUP($A45,'Monthly Statement'!$A$2:$V$800,14,0),0) -> 0 | M45: 0 | N45: =IFERROR(VLOOKUP($A45,Pupils!$A$4:$T$800,10,0),0) -> 0 | O45: =IFERROR(VLOOKUP($A45,'Monthly Statement'!$A$2:$V$800,15,0),0) -> 0 | P45: 0 | Q45: =IFERROR(VLOOKUP($A45,Pupils!$A$4:$T$800,11,0),0) -> 0 | R45: =IFERROR(VLOOKUP($A45,'Monthly Statement'!$A$2:$V$800,16,0),0) -> 0 | S45: 0 | T45: =IFERROR(VLOOKUP($A45,Pupils!$A$4:$T$800,12,0),0) -> 0 | U45: =IFERROR(VLOOKUP($A45,'Monthly Statement'!$A$2:$V$800,17,0),0) -> 0 | V45: 0 | W45: =IFERROR(VLOOKUP($A45,Pupils!$A$4:$T$800,13,0),0) -> 0 | X45: =IFERROR(VLOOKUP($A45,'Monthly Statement'!$A$2:$V$800,18,0),0) -> 0 | Y45: 0 | Z45: =IFERROR(VLOOKUP($A45,Pupils!$A$4:$T$800,14,0),0) -> 0 | AA45: =IFERROR(VLOOKUP($A45,'Monthly Statement'!$A$2:$V$800,19,0),0) -> 0 | AB45: 0 | AC45: =IFERROR(VLOOKUP($A45,Pupils!$A$4:$T$800,15,0),0) -> 0 | AD45: =IFERROR(VLOOKUP($A45,'Monthly Statement'!$A$2:$V$800,20,0),0) -> 0 | AE45: 0 | AF45: =IFERROR(VLOOKUP($A45,Pupils!$A$4:$T$800,16,0),0) -> 0 | AG45: =IFERROR(VLOOKUP($A45,'Monthly Statement'!$A$2:$V$800,21,0),0) -> 0 | AH45: 0 | AI45: =IFERROR(VLOOKUP($A45,Pupils!$A$4:$T$800,17,0),0) -> 0 | AJ45: =IFERROR(VLOOKUP($A45,'Monthly Statement'!$A$2:$V$800,22,0),0) -> 0 | AK45: 0 | AL45: =IFERROR(VLOOKUP($A45,Pupils!$A$4:$T$800,18,0),0) -> 0 | AM45: =IFERROR(VLOOKUP($A45,'Monthly Statement'!$A$2:$V$800,23,0),0) -> 0 | AN45: 0 | AO45: =IFERROR(VLOOKUP($A45,Pupils!$A$4:$T$800,19,0),0) -> 0 | AP45: =IFERROR(VLOOKUP($A45,'Monthly Statement'!$A$2:$V$800,24,0),0) -> 0 | AQ45: 0
A46: ='Monthly Statement'!A42 -> 0 | B46: =IFERROR(VLOOKUP(A46,'Monthly Statement'!A:X,4,0),"") ->  | C46: =IFERROR(VLOOKUP(A46,'Monthly Statement'!A:X,5,0),"") ->  | D46: =IFERROR(VLOOKUP(A46,'Monthly Statement'!A:X,7,0),"") ->  | E46: =IFERROR(VLOOKUP(A46,'Monthly Statement'!A:X,9,0),"") ->  | F46: =IFERROR(VLOOKUP(A46,'Monthly Statement'!A:X,10,0),"") ->  | G46: 0 | H46: =IFERROR(VLOOKUP($A46,Pupils!$A$4:$T$800,8,0),0) -> 0 | I46: =IFERROR(VLOOKUP($A46,'Monthly Statement'!$A$2:$V$800,13,0),0) -> 0 | J46: 0 | K46: =IFERROR(VLOOKUP($A46,Pupils!$A$4:$T$800,9,0),0) -> 0 | L46: =IFERROR(VLOOKUP($A46,'Monthly Statement'!$A$2:$V$800,14,0),0) -> 0 | M46: 0 | N46: =IFERROR(VLOOKUP($A46,Pupils!$A$4:$T$800,10,0),0) -> 0 | O46: =IFERROR(VLOOKUP($A46,'Monthly Statement'!$A$2:$V$800,15,0),0) -> 0 | P46: 0 | Q46: =IFERROR(VLOOKUP($A46,Pupils!$A$4:$T$800,11,0),0) -> 0 | R46: =IFERROR(VLOOKUP($A46,'Monthly Statement'!$A$2:$V$800,16,0),0) -> 0 | S46: 0 | T46: =IFERROR(VLOOKUP($A46,Pupils!$A$4:$T$800,12,0),0) -> 0 | U46: =IFERROR(VLOOKUP($A46,'Monthly Statement'!$A$2:$V$800,17,0),0) -> 0 | V46: 0 | W46: =IFERROR(VLOOKUP($A46,Pupils!$A$4:$T$800,13,0),0) -> 0 | X46: =IFERROR(VLOOKUP($A46,'Monthly Statement'!$A$2:$V$800,18,0),0) -> 0 | Y46: 0 | Z46: =IFERROR(VLOOKUP($A46,Pupils!$A$4:$T$800,14,0),0) -> 0 | AA46: =IFERROR(VLOOKUP($A46,'Monthly Statement'!$A$2:$V$800,19,0),0) -> 0 | AB46: 0 | AC46: =IFERROR(VLOOKUP($A46,Pupils!$A$4:$T$800,15,0),0) -> 0 | AD46: =IFERROR(VLOOKUP($A46,'Monthly Statement'!$A$2:$V$800,20,0),0) -> 0 | AE46: 0 | AF46: =IFERROR(VLOOKUP($A46,Pupils!$A$4:$T$800,16,0),0) -> 0 | AG46: =IFERROR(VLOOKUP($A46,'Monthly Statement'!$A$2:$V$800,21,0),0) -> 0 | AH46: 0 | AI46: =IFERROR(VLOOKUP($A46,Pupils!$A$4:$T$800,17,0),0) -> 0 | AJ46: =IFERROR(VLOOKUP($A46,'Monthly Statement'!$A$2:$V$800,22,0),0) -> 0 | AK46: 0 | AL46: =IFERROR(VLOOKUP($A46,Pupils!$A$4:$T$800,18,0),0) -> 0 | AM46: =IFERROR(VLOOKUP($A46,'Monthly Statement'!$A$2:$V$800,23,0),0) -> 0 | AN46: 0 | AO46: =IFERROR(VLOOKUP($A46,Pupils!$A$4:$T$800,19,0),0) -> 0 | AP46: =IFERROR(VLOOKUP($A46,'Monthly Statement'!$A$2:$V$800,24,0),0) -> 0 | AQ46: 0
A47: ='Monthly Statement'!A43 -> 0 | B47: =IFERROR(VLOOKUP(A47,'Monthly Statement'!A:X,4,0),"") ->  | C47: =IFERROR(VLOOKUP(A47,'Monthly Statement'!A:X,5,0),"") ->  | D47: =IFERROR(VLOOKUP(A47,'Monthly Statement'!A:X,7,0),"") ->  | E47: =IFERROR(VLOOKUP(A47,'Monthly Statement'!A:X,9,0),"") ->  | F47: =IFERROR(VLOOKUP(A47,'Monthly Statement'!A:X,10,0),"") ->  | G47: 0 | H47: =IFERROR(VLOOKUP($A47,Pupils!$A$4:$T$800,8,0),0) -> 0 | I47: =IFERROR(VLOOKUP($A47,'Monthly Statement'!$A$2:$V$800,13,0),0) -> 0 | J47: 0 | K47: =IFERROR(VLOOKUP($A47,Pupils!$A$4:$T$800,9,0),0) -> 0 | L47: =IFERROR(VLOOKUP($A47,'Monthly Statement'!$A$2:$V$800,14,0),0) -> 0 | M47: 0 | N47: =IFERROR(VLOOKUP($A47,Pupils!$A$4:$T$800,10,0),0) -> 0 | O47: =IFERROR(VLOOKUP($A47,'Monthly Statement'!$A$2:$V$800,15,0),0) -> 0 | P47: 0 | Q47: =IFERROR(VLOOKUP($A47,Pupils!$A$4:$T$800,11,0),0) -> 0 | R47: =IFERROR(VLOOKUP($A47,'Monthly Statement'!$A$2:$V$800,16,0),0) -> 0 | S47: 0 | T47: =IFERROR(VLOOKUP($A47,Pupils!$A$4:$T$800,12,0),0) -> 0 | U47: =IFERROR(VLOOKUP($A47,'Monthly Statement'!$A$2:$V$800,17,0),0) -> 0 | V47: 0 | W47: =IFERROR(VLOOKUP($A47,Pupils!$A$4:$T$800,13,0),0) -> 0 | X47: =IFERROR(VLOOKUP($A47,'Monthly Statement'!$A$2:$V$800,18,0),0) -> 0 | Y47: 0 | Z47: =IFERROR(VLOOKUP($A47,Pupils!$A$4:$T$800,14,0),0) -> 0 | AA47: =IFERROR(VLOOKUP($A47,'Monthly Statement'!$A$2:$V$800,19,0),0) -> 0 | AB47: 0 | AC47: =IFERROR(VLOOKUP($A47,Pupils!$A$4:$T$800,15,0),0) -> 0 | AD47: =IFERROR(VLOOKUP($A47,'Monthly Statement'!$A$2:$V$800,20,0),0) -> 0 | AE47: 0 | AF47: =IFERROR(VLOOKUP($A47,Pupils!$A$4:$T$800,16,0),0) -> 0 | AG47: =IFERROR(VLOOKUP($A47,'Monthly Statement'!$A$2:$V$800,21,0),0) -> 0 | AH47: 0 | AI47: =IFERROR(VLOOKUP($A47,Pupils!$A$4:$T$800,17,0),0) -> 0 | AJ47: =IFERROR(VLOOKUP($A47,'Monthly Statement'!$A$2:$V$800,22,0),0) -> 0 | AK47: 0 | AL47: =IFERROR(VLOOKUP($A47,Pupils!$A$4:$T$800,18,0),0) -> 0 | AM47: =IFERROR(VLOOKUP($A47,'Monthly Statement'!$A$2:$V$800,23,0),0) -> 0 | AN47: 0 | AO47: =IFERROR(VLOOKUP($A47,Pupils!$A$4:$T$800,19,0),0) -> 0 | AP47: =IFERROR(VLOOKUP($A47,'Monthly Statement'!$A$2:$V$800,24,0),0) -> 0 | AQ47: 0
A48: ='Monthly Statement'!A44 -> 0 | B48: =IFERROR(VLOOKUP(A48,'Monthly Statement'!A:X,4,0),"") ->  | C48: =IFERROR(VLOOKUP(A48,'Monthly Statement'!A:X,5,0),"") ->  | D48: =IFERROR(VLOOKUP(A48,'Monthly Statement'!A:X,7,0),"") ->  | E48: =IFERROR(VLOOKUP(A48,'Monthly Statement'!A:X,9,0),"") ->  | F48: =IFERROR(VLOOKUP(A48,'Monthly Statement'!A:X,10,0),"") ->  | G48: 0 | H48: =IFERROR(VLOOKUP($A48,Pupils!$A$4:$T$800,8,0),0) -> 0 | I48: =IFERROR(VLOOKUP($A48,'Monthly Statement'!$A$2:$V$800,13,0),0) -> 0 | J48: 0 | K48: =IFERROR(VLOOKUP($A48,Pupils!$A$4:$T$800,9,0),0) -> 0 | L48: =IFERROR(VLOOKUP($A48,'Monthly Statement'!$A$2:$V$800,14,0),0) -> 0 | M48: 0 | N48: =IFERROR(VLOOKUP($A48,Pupils!$A$4:$T$800,10,0),0) -> 0 | O48: =IFERROR(VLOOKUP($A48,'Monthly Statement'!$A$2:$V$800,15,0),0) -> 0 | P48: 0 | Q48: =IFERROR(VLOOKUP($A48,Pupils!$A$4:$T$800,11,0),0) -> 0 | R48: =IFERROR(VLOOKUP($A48,'Monthly Statement'!$A$2:$V$800,16,0),0) -> 0 | S48: 0 | T48: =IFERROR(VLOOKUP($A48,Pupils!$A$4:$T$800,12,0),0) -> 0 | U48: =IFERROR(VLOOKUP($A48,'Monthly Statement'!$A$2:$V$800,17,0),0) -> 0 | V48: 0 | W48: =IFERROR(VLOOKUP($A48,Pupils!$A$4:$T$800,13,0),0) -> 0 | X48: =IFERROR(VLOOKUP($A48,'Monthly Statement'!$A$2:$V$800,18,0),0) -> 0 | Y48: 0 | Z48: =IFERROR(VLOOKUP($A48,Pupils!$A$4:$T$800,14,0),0) -> 0 | AA48: =IFERROR(VLOOKUP($A48,'Monthly Statement'!$A$2:$V$800,19,0),0) -> 0 | AB48: 0 | AC48: =IFERROR(VLOOKUP($A48,Pupils!$A$4:$T$800,15,0),0) -> 0 | AD48: =IFERROR(VLOOKUP($A48,'Monthly Statement'!$A$2:$V$800,20,0),0) -> 0 | AE48: 0 | AF48: =IFERROR(VLOOKUP($A48,Pupils!$A$4:$T$800,16,0),0) -> 0 | AG48: =IFERROR(VLOOKUP($A48,'Monthly Statement'!$A$2:$V$800,21,0),0) -> 0 | AH48: 0 | AI48: =IFERROR(VLOOKUP($A48,Pupils!$A$4:$T$800,17,0),0) -> 0 | AJ48: =IFERROR(VLOOKUP($A48,'Monthly Statement'!$A$2:$V$800,22,0),0) -> 0 | AK48: 0 | AL48: =IFERROR(VLOOKUP($A48,Pupils!$A$4:$T$800,18,0),0) -> 0 | AM48: =IFERROR(VLOOKUP($A48,'Monthly Statement'!$A$2:$V$800,23,0),0) -> 0 | AN48: 0 | AO48: =IFERROR(VLOOKUP($A48,Pupils!$A$4:$T$800,19,0),0) -> 0 | AP48: =IFERROR(VLOOKUP($A48,'Monthly Statement'!$A$2:$V$800,24,0),0) -> 0 | AQ48: 0
A49: ='Monthly Statement'!A45 -> 0 | B49: =IFERROR(VLOOKUP(A49,'Monthly Statement'!A:X,4,0),"") ->  | C49: =IFERROR(VLOOKUP(A49,'Monthly Statement'!A:X,5,0),"") ->  | D49: =IFERROR(VLOOKUP(A49,'Monthly Statement'!A:X,7,0),"") ->  | E49: =IFERROR(VLOOKUP(A49,'Monthly Statement'!A:X,9,0),"") ->  | F49: =IFERROR(VLOOKUP(A49,'Monthly Statement'!A:X,10,0),"") ->  | G49: 0 | H49: =IFERROR(VLOOKUP($A49,Pupils!$A$4:$T$800,8,0),0) -> 0 | I49: =IFERROR(VLOOKUP($A49,'Monthly Statement'!$A$2:$V$800,13,0),0) -> 0 | J49: 0 | K49: =IFERROR(VLOOKUP($A49,Pupils!$A$4:$T$800,9,0),0) -> 0 | L49: =IFERROR(VLOOKUP($A49,'Monthly Statement'!$A$2:$V$800,14,0),0) -> 0 | M49: 0 | N49: =IFERROR(VLOOKUP($A49,Pupils!$A$4:$T$800,10,0),0) -> 0 | O49: =IFERROR(VLOOKUP($A49,'Monthly Statement'!$A$2:$V$800,15,0),0) -> 0 | P49: 0 | Q49: =IFERROR(VLOOKUP($A49,Pupils!$A$4:$T$800,11,0),0) -> 0 | R49: =IFERROR(VLOOKUP($A49,'Monthly Statement'!$A$2:$V$800,16,0),0) -> 0 | S49: 0 | T49: =IFERROR(VLOOKUP($A49,Pupils!$A$4:$T$800,12,0),0) -> 0 | U49: =IFERROR(VLOOKUP($A49,'Monthly Statement'!$A$2:$V$800,17,0),0) -> 0 | V49: 0 | W49: =IFERROR(VLOOKUP($A49,Pupils!$A$4:$T$800,13,0),0) -> 0 | X49: =IFERROR(VLOOKUP($A49,'Monthly Statement'!$A$2:$V$800,18,0),0) -> 0 | Y49: 0 | Z49: =IFERROR(VLOOKUP($A49,Pupils!$A$4:$T$800,14,0),0) -> 0 | AA49: =IFERROR(VLOOKUP($A49,'Monthly Statement'!$A$2:$V$800,19,0),0) -> 0 | AB49: 0 | AC49: =IFERROR(VLOOKUP($A49,Pupils!$A$4:$T$800,15,0),0) -> 0 | AD49: =IFERROR(VLOOKUP($A49,'Monthly Statement'!$A$2:$V$800,20,0),0) -> 0 | AE49: 0 | AF49: =IFERROR(VLOOKUP($A49,Pupils!$A$4:$T$800,16,0),0) -> 0 | AG49: =IFERROR(VLOOKUP($A49,'Monthly Statement'!$A$2:$V$800,21,0),0) -> 0 | AH49: 0 | AI49: =IFERROR(VLOOKUP($A49,Pupils!$A$4:$T$800,17,0),0) -> 0 | AJ49: =IFERROR(VLOOKUP($A49,'Monthly Statement'!$A$2:$V$800,22,0),0) -> 0 | AK49: 0 | AL49: =IFERROR(VLOOKUP($A49,Pupils!$A$4:$T$800,18,0),0) -> 0 | AM49: =IFERROR(VLOOKUP($A49,'Monthly Statement'!$A$2:$V$800,23,0),0) -> 0 | AN49: 0 | AO49: =IFERROR(VLOOKUP($A49,Pupils!$A$4:$T$800,19,0),0) -> 0 | AP49: =IFERROR(VLOOKUP($A49,'Monthly Statement'!$A$2:$V$800,24,0),0) -> 0 | AQ49: 0
A50: ='Monthly Statement'!A46 -> 0 | B50: =IFERROR(VLOOKUP(A50,'Monthly Statement'!A:X,4,0),"") ->  | C50: =IFERROR(VLOOKUP(A50,'Monthly Statement'!A:X,5,0),"") ->  | D50: =IFERROR(VLOOKUP(A50,'Monthly Statement'!A:X,7,0),"") ->  | E50: =IFERROR(VLOOKUP(A50,'Monthly Statement'!A:X,9,0),"") ->  | F50: =IFERROR(VLOOKUP(A50,'Monthly Statement'!A:X,10,0),"") ->  | G50: 0 | H50: =IFERROR(VLOOKUP($A50,Pupils!$A$4:$T$800,8,0),0) -> 0 | I50: =IFERROR(VLOOKUP($A50,'Monthly Statement'!$A$2:$V$800,13,0),0) -> 0 | J50: 0 | K50: =IFERROR(VLOOKUP($A50,Pupils!$A$4:$T$800,9,0),0) -> 0 | L50: =IFERROR(VLOOKUP($A50,'Monthly Statement'!$A$2:$V$800,14,0),0) -> 0 | M50: 0 | N50: =IFERROR(VLOOKUP($A50,Pupils!$A$4:$T$800,10,0),0) -> 0 | O50: =IFERROR(VLOOKUP($A50,'Monthly Statement'!$A$2:$V$800,15,0),0) -> 0 | P50: 0 | Q50: =IFERROR(VLOOKUP($A50,Pupils!$A$4:$T$800,11,0),0) -> 0 | R50: =IFERROR(VLOOKUP($A50,'Monthly Statement'!$A$2:$V$800,16,0),0) -> 0 | S50: 0 | T50: =IFERROR(VLOOKUP($A50,Pupils!$A$4:$T$800,12,0),0) -> 0 | U50: =IFERROR(VLOOKUP($A50,'Monthly Statement'!$A$2:$V$800,17,0),0) -> 0 | V50: 0 | W50: =IFERROR(VLOOKUP($A50,Pupils!$A$4:$T$800,13,0),0) -> 0 | X50: =IFERROR(VLOOKUP($A50,'Monthly Statement'!$A$2:$V$800,18,0),0) -> 0 | Y50: 0 | Z50: =IFERROR(VLOOKUP($A50,Pupils!$A$4:$T$800,14,0),0) -> 0 | AA50: =IFERROR(VLOOKUP($A50,'Monthly Statement'!$A$2:$V$800,19,0),0) -> 0 | AB50: 0 | AC50: =IFERROR(VLOOKUP($A50,Pupils!$A$4:$T$800,15,0),0) -> 0 | AD50: =IFERROR(VLOOKUP($A50,'Monthly Statement'!$A$2:$V$800,20,0),0) -> 0 | AE50: 0 | AF50: =IFERROR(VLOOKUP($A50,Pupils!$A$4:$T$800,16,0),0) -> 0 | AG50: =IFERROR(VLOOKUP($A50,'Monthly Statement'!$A$2:$V$800,21,0),0) -> 0 | AH50: 0 | AI50: =IFERROR(VLOOKUP($A50,Pupils!$A$4:$T$800,17,0),0) -> 0 | AJ50: =IFERROR(VLOOKUP($A50,'Monthly Statement'!$A$2:$V$800,22,0),0) -> 0 | AK50: 0 | AL50: =IFERROR(VLOOKUP($A50,Pupils!$A$4:$T$800,18,0),0) -> 0 | AM50: =IFERROR(VLOOKUP($A50,'Monthly Statement'!$A$2:$V$800,23,0),0) -> 0 | AN50: 0 | AO50: =IFERROR(VLOOKUP($A50,Pupils!$A$4:$T$800,19,0),0) -> 0 | AP50: =IFERROR(VLOOKUP($A50,'Monthly Statement'!$A$2:$V$800,24,0),0) -> 0 | AQ50: 0
A51: ='Monthly Statement'!A47 -> 0 | B51: =IFERROR(VLOOKUP(A51,'Monthly Statement'!A:X,4,0),"") ->  | C51: =IFERROR(VLOOKUP(A51,'Monthly Statement'!A:X,5,0),"") ->  | D51: =IFERROR(VLOOKUP(A51,'Monthly Statement'!A:X,7,0),"") ->  | E51: =IFERROR(VLOOKUP(A51,'Monthly Statement'!A:X,9,0),"") ->  | F51: =IFERROR(VLOOKUP(A51,'Monthly Statement'!A:X,10,0),"") ->  | G51: 0 | H51: =IFERROR(VLOOKUP($A51,Pupils!$A$4:$T$800,8,0),0) -> 0 | I51: =IFERROR(VLOOKUP($A51,'Monthly Statement'!$A$2:$V$800,13,0),0) -> 0 | J51: 0 | K51: =IFERROR(VLOOKUP($A51,Pupils!$A$4:$T$800,9,0),0) -> 0 | L51: =IFERROR(VLOOKUP($A51,'Monthly Statement'!$A$2:$V$800,14,0),0) -> 0 | M51: 0 | N51: =IFERROR(VLOOKUP($A51,Pupils!$A$4:$T$800,10,0),0) -> 0 | O51: =IFERROR(VLOOKUP($A51,'Monthly Statement'!$A$2:$V$800,15,0),0) -> 0 | P51: 0 | Q51: =IFERROR(VLOOKUP($A51,Pupils!$A$4:$T$800,11,0),0) -> 0 | R51: =IFERROR(VLOOKUP($A51,'Monthly Statement'!$A$2:$V$800,16,0),0) -> 0 | S51: 0 | T51: =IFERROR(VLOOKUP($A51,Pupils!$A$4:$T$800,12,0),0) -> 0 | U51: =IFERROR(VLOOKUP($A51,'Monthly Statement'!$A$2:$V$800,17,0),0) -> 0 | V51: 0 | W51: =IFERROR(VLOOKUP($A51,Pupils!$A$4:$T$800,13,0),0) -> 0 | X51: =IFERROR(VLOOKUP($A51,'Monthly Statement'!$A$2:$V$800,18,0),0) -> 0 | Y51: 0 | Z51: =IFERROR(VLOOKUP($A51,Pupils!$A$4:$T$800,14,0),0) -> 0 | AA51: =IFERROR(VLOOKUP($A51,'Monthly Statement'!$A$2:$V$800,19,0),0) -> 0 | AB51: 0 | AC51: =IFERROR(VLOOKUP($A51,Pupils!$A$4:$T$800,15,0),0) -> 0 | AD51: =IFERROR(VLOOKUP($A51,'Monthly Statement'!$A$2:$V$800,20,0),0) -> 0 | AE51: 0 | AF51: =IFERROR(VLOOKUP($A51,Pupils!$A$4:$T$800,16,0),0) -> 0 | AG51: =IFERROR(VLOOKUP($A51,'Monthly Statement'!$A$2:$V$800,21,0),0) -> 0 | AH51: 0 | AI51: =IFERROR(VLOOKUP($A51,Pupils!$A$4:$T$800,17,0),0) -> 0 | AJ51: =IFERROR(VLOOKUP($A51,'Monthly Statement'!$A$2:$V$800,22,0),0) -> 0 | AK51: 0 | AL51: =IFERROR(VLOOKUP($A51,Pupils!$A$4:$T$800,18,0),0) -> 0 | AM51: =IFERROR(VLOOKUP($A51,'Monthly Statement'!$A$2:$V$800,23,0),0) -> 0 | AN51: 0 | AO51: =IFERROR(VLOOKUP($A51,Pupils!$A$4:$T$800,19,0),0) -> 0 | AP51: =IFERROR(VLOOKUP($A51,'Monthly Statement'!$A$2:$V$800,24,0),0) -> 0 | AQ51: 0
A52: ='Monthly Statement'!A48 -> 0 | B52: =IFERROR(VLOOKUP(A52,'Monthly Statement'!A:X,4,0),"") ->  | C52: =IFERROR(VLOOKUP(A52,'Monthly Statement'!A:X,5,0),"") ->  | D52: =IFERROR(VLOOKUP(A52,'Monthly Statement'!A:X,7,0),"") ->  | E52: =IFERROR(VLOOKUP(A52,'Monthly Statement'!A:X,9,0),"") ->  | F52: =IFERROR(VLOOKUP(A52,'Monthly Statement'!A:X,10,0),"") ->  | G52: 0 | H52: =IFERROR(VLOOKUP($A52,Pupils!$A$4:$T$800,8,0),0) -> 0 | I52: =IFERROR(VLOOKUP($A52,'Monthly Statement'!$A$2:$V$800,13,0),0) -> 0 | J52: 0 | K52: =IFERROR(VLOOKUP($A52,Pupils!$A$4:$T$800,9,0),0) -> 0 | L52: =IFERROR(VLOOKUP($A52,'Monthly Statement'!$A$2:$V$800,14,0),0) -> 0 | M52: 0 | N52: =IFERROR(VLOOKUP($A52,Pupils!$A$4:$T$800,10,0),0) -> 0 | O52: =IFERROR(VLOOKUP($A52,'Monthly Statement'!$A$2:$V$800,15,0),0) -> 0 | P52: 0 | Q52: =IFERROR(VLOOKUP($A52,Pupils!$A$4:$T$800,11,0),0) -> 0 | R52: =IFERROR(VLOOKUP($A52,'Monthly Statement'!$A$2:$V$800,16,0),0) -> 0 | S52: 0 | T52: =IFERROR(VLOOKUP($A52,Pupils!$A$4:$T$800,12,0),0) -> 0 | U52: =IFERROR(VLOOKUP($A52,'Monthly Statement'!$A$2:$V$800,17,0),0) -> 0 | V52: 0 | W52: =IFERROR(VLOOKUP($A52,Pupils!$A$4:$T$800,13,0),0) -> 0 | X52: =IFERROR(VLOOKUP($A52,'Monthly Statement'!$A$2:$V$800,18,0),0) -> 0 | Y52: 0 | Z52: =IFERROR(VLOOKUP($A52,Pupils!$A$4:$T$800,14,0),0) -> 0 | AA52: =IFERROR(VLOOKUP($A52,'Monthly Statement'!$A$2:$V$800,19,0),0) -> 0 | AB52: 0 | AC52: =IFERROR(VLOOKUP($A52,Pupils!$A$4:$T$800,15,0),0) -> 0 | AD52: =IFERROR(VLOOKUP($A52,'Monthly Statement'!$A$2:$V$800,20,0),0) -> 0 | AE52: 0 | AF52: =IFERROR(VLOOKUP($A52,Pupils!$A$4:$T$800,16,0),0) -> 0 | AG52: =IFERROR(VLOOKUP($A52,'Monthly Statement'!$A$2:$V$800,21,0),0) -> 0 | AH52: 0 | AI52: =IFERROR(VLOOKUP($A52,Pupils!$A$4:$T$800,17,0),0) -> 0 | AJ52: =IFERROR(VLOOKUP($A52,'Monthly Statement'!$A$2:$V$800,22,0),0) -> 0 | AK52: 0 | AL52: =IFERROR(VLOOKUP($A52,Pupils!$A$4:$T$800,18,0),0) -> 0 | AM52: =IFERROR(VLOOKUP($A52,'Monthly Statement'!$A$2:$V$800,23,0),0) -> 0 | AN52: 0 | AO52: =IFERROR(VLOOKUP($A52,Pupils!$A$4:$T$800,19,0),0) -> 0 | AP52: =IFERROR(VLOOKUP($A52,'Monthly Statement'!$A$2:$V$800,24,0),0) -> 0 | AQ52: 0
A53: ='Monthly Statement'!A49 -> 0 | B53: =IFERROR(VLOOKUP(A53,'Monthly Statement'!A:X,4,0),"") ->  | C53: =IFERROR(VLOOKUP(A53,'Monthly Statement'!A:X,5,0),"") ->  | D53: =IFERROR(VLOOKUP(A53,'Monthly Statement'!A:X,7,0),"") ->  | E53: =IFERROR(VLOOKUP(A53,'Monthly Statement'!A:X,9,0),"") ->  | F53: =IFERROR(VLOOKUP(A53,'Monthly Statement'!A:X,10,0),"") ->  | G53: 0 | H53: =IFERROR(VLOOKUP($A53,Pupils!$A$4:$T$800,8,0),0) -> 0 | I53: =IFERROR(VLOOKUP($A53,'Monthly Statement'!$A$2:$V$800,13,0),0) -> 0 | J53: 0 | K53: =IFERROR(VLOOKUP($A53,Pupils!$A$4:$T$800,9,0),0) -> 0 | L53: =IFERROR(VLOOKUP($A53,'Monthly Statement'!$A$2:$V$800,14,0),0) -> 0 | M53: 0 | N53: =IFERROR(VLOOKUP($A53,Pupils!$A$4:$T$800,10,0),0) -> 0 | O53: =IFERROR(VLOOKUP($A53,'Monthly Statement'!$A$2:$V$800,15,0),0) -> 0 | P53: 0 | Q53: =IFERROR(VLOOKUP($A53,Pupils!$A$4:$T$800,11,0),0) -> 0 | R53: =IFERROR(VLOOKUP($A53,'Monthly Statement'!$A$2:$V$800,16,0),0) -> 0 | S53: 0 | T53: =IFERROR(VLOOKUP($A53,Pupils!$A$4:$T$800,12,0),0) -> 0 | U53: =IFERROR(VLOOKUP($A53,'Monthly Statement'!$A$2:$V$800,17,0),0) -> 0 | V53: 0 | W53: =IFERROR(VLOOKUP($A53,Pupils!$A$4:$T$800,13,0),0) -> 0 | X53: =IFERROR(VLOOKUP($A53,'Monthly Statement'!$A$2:$V$800,18,0),0) -> 0 | Y53: 0 | Z53: =IFERROR(VLOOKUP($A53,Pupils!$A$4:$T$800,14,0),0) -> 0 | AA53: =IFERROR(VLOOKUP($A53,'Monthly Statement'!$A$2:$V$800,19,0),0) -> 0 | AB53: 0 | AC53: =IFERROR(VLOOKUP($A53,Pupils!$A$4:$T$800,15,0),0) -> 0 | AD53: =IFERROR(VLOOKUP($A53,'Monthly Statement'!$A$2:$V$800,20,0),0) -> 0 | AE53: 0 | AF53: =IFERROR(VLOOKUP($A53,Pupils!$A$4:$T$800,16,0),0) -> 0 | AG53: =IFERROR(VLOOKUP($A53,'Monthly Statement'!$A$2:$V$800,21,0),0) -> 0 | AH53: 0 | AI53: =IFERROR(VLOOKUP($A53,Pupils!$A$4:$T$800,17,0),0) -> 0 | AJ53: =IFERROR(VLOOKUP($A53,'Monthly Statement'!$A$2:$V$800,22,0),0) -> 0 | AK53: 0 | AL53: =IFERROR(VLOOKUP($A53,Pupils!$A$4:$T$800,18,0),0) -> 0 | AM53: =IFERROR(VLOOKUP($A53,'Monthly Statement'!$A$2:$V$800,23,0),0) -> 0 | AN53: 0 | AO53: =IFERROR(VLOOKUP($A53,Pupils!$A$4:$T$800,19,0),0) -> 0 | AP53: =IFERROR(VLOOKUP($A53,'Monthly Statement'!$A$2:$V$800,24,0),0) -> 0 | AQ53: 0
A54: ='Monthly Statement'!A50 -> 0 | B54: =IFERROR(VLOOKUP(A54,'Monthly Statement'!A:X,4,0),"") ->  | C54: =IFERROR(VLOOKUP(A54,'Monthly Statement'!A:X,5,0),"") ->  | D54: =IFERROR(VLOOKUP(A54,'Monthly Statement'!A:X,7,0),"") ->  | E54: =IFERROR(VLOOKUP(A54,'Monthly Statement'!A:X,9,0),"") ->  | F54: =IFERROR(VLOOKUP(A54,'Monthly Statement'!A:X,10,0),"") ->  | G54: 0 | H54: =IFERROR(VLOOKUP($A54,Pupils!$A$4:$T$800,8,0),0) -> 0 | I54: =IFERROR(VLOOKUP($A54,'Monthly Statement'!$A$2:$V$800,13,0),0) -> 0 | J54: 0 | K54: =IFERROR(VLOOKUP($A54,Pupils!$A$4:$T$800,9,0),0) -> 0 | L54: =IFERROR(VLOOKUP($A54,'Monthly Statement'!$A$2:$V$800,14,0),0) -> 0 | M54: 0 | N54: =IFERROR(VLOOKUP($A54,Pupils!$A$4:$T$800,10,0),0) -> 0 | O54: =IFERROR(VLOOKUP($A54,'Monthly Statement'!$A$2:$V$800,15,0),0) -> 0 | P54: 0 | Q54: =IFERROR(VLOOKUP($A54,Pupils!$A$4:$T$800,11,0),0) -> 0 | R54: =IFERROR(VLOOKUP($A54,'Monthly Statement'!$A$2:$V$800,16,0),0) -> 0 | S54: 0 | T54: =IFERROR(VLOOKUP($A54,Pupils!$A$4:$T$800,12,0),0) -> 0 | U54: =IFERROR(VLOOKUP($A54,'Monthly Statement'!$A$2:$V$800,17,0),0) -> 0 | V54: 0 | W54: =IFERROR(VLOOKUP($A54,Pupils!$A$4:$T$800,13,0),0) -> 0 | X54: =IFERROR(VLOOKUP($A54,'Monthly Statement'!$A$2:$V$800,18,0),0) -> 0 | Y54: 0 | Z54: =IFERROR(VLOOKUP($A54,Pupils!$A$4:$T$800,14,0),0) -> 0 | AA54: =IFERROR(VLOOKUP($A54,'Monthly Statement'!$A$2:$V$800,19,0),0) -> 0 | AB54: 0 | AC54: =IFERROR(VLOOKUP($A54,Pupils!$A$4:$T$800,15,0),0) -> 0 | AD54: =IFERROR(VLOOKUP($A54,'Monthly Statement'!$A$2:$V$800,20,0),0) -> 0 | AE54: 0 | AF54: =IFERROR(VLOOKUP($A54,Pupils!$A$4:$T$800,16,0),0) -> 0 | AG54: =IFERROR(VLOOKUP($A54,'Monthly Statement'!$A$2:$V$800,21,0),0) -> 0 | AH54: 0 | AI54: =IFERROR(VLOOKUP($A54,Pupils!$A$4:$T$800,17,0),0) -> 0 | AJ54: =IFERROR(VLOOKUP($A54,'Monthly Statement'!$A$2:$V$800,22,0),0) -> 0 | AK54: 0 | AL54: =IFERROR(VLOOKUP($A54,Pupils!$A$4:$T$800,18,0),0) -> 0 | AM54: =IFERROR(VLOOKUP($A54,'Monthly Statement'!$A$2:$V$800,23,0),0) -> 0 | AN54: 0 | AO54: =IFERROR(VLOOKUP($A54,Pupils!$A$4:$T$800,19,0),0) -> 0 | AP54: =IFERROR(VLOOKUP($A54,'Monthly Statement'!$A$2:$V$800,24,0),0) -> 0 | AQ54: 0
A55: ='Monthly Statement'!A51 -> 0 | B55: =IFERROR(VLOOKUP(A55,'Monthly Statement'!A:X,4,0),"") ->  | C55: =IFERROR(VLOOKUP(A55,'Monthly Statement'!A:X,5,0),"") ->  | D55: =IFERROR(VLOOKUP(A55,'Monthly Statement'!A:X,7,0),"") ->  | E55: =IFERROR(VLOOKUP(A55,'Monthly Statement'!A:X,9,0),"") ->  | F55: =IFERROR(VLOOKUP(A55,'Monthly Statement'!A:X,10,0),"") ->  | G55: 0 | H55: =IFERROR(VLOOKUP($A55,Pupils!$A$4:$T$800,8,0),0) -> 0 | I55: =IFERROR(VLOOKUP($A55,'Monthly Statement'!$A$2:$V$800,13,0),0) -> 0 | J55: 0 | K55: =IFERROR(VLOOKUP($A55,Pupils!$A$4:$T$800,9,0),0) -> 0 | L55: =IFERROR(VLOOKUP($A55,'Monthly Statement'!$A$2:$V$800,14,0),0) -> 0 | M55: 0 | N55: =IFERROR(VLOOKUP($A55,Pupils!$A$4:$T$800,10,0),0) -> 0 | O55: =IFERROR(VLOOKUP($A55,'Monthly Statement'!$A$2:$V$800,15,0),0) -> 0 | P55: 0 | Q55: =IFERROR(VLOOKUP($A55,Pupils!$A$4:$T$800,11,0),0) -> 0 | R55: =IFERROR(VLOOKUP($A55,'Monthly Statement'!$A$2:$V$800,16,0),0) -> 0 | S55: 0 | T55: =IFERROR(VLOOKUP($A55,Pupils!$A$4:$T$800,12,0),0) -> 0 | U55: =IFERROR(VLOOKUP($A55,'Monthly Statement'!$A$2:$V$800,17,0),0) -> 0 | V55: 0 | W55: =IFERROR(VLOOKUP($A55,Pupils!$A$4:$T$800,13,0),0) -> 0 | X55: =IFERROR(VLOOKUP($A55,'Monthly Statement'!$A$2:$V$800,18,0),0) -> 0 | Y55: 0 | Z55: =IFERROR(VLOOKUP($A55,Pupils!$A$4:$T$800,14,0),0) -> 0 | AA55: =IFERROR(VLOOKUP($A55,'Monthly Statement'!$A$2:$V$800,19,0),0) -> 0 | AB55: 0 | AC55: =IFERROR(VLOOKUP($A55,Pupils!$A$4:$T$800,15,0),0) -> 0 | AD55: =IFERROR(VLOOKUP($A55,'Monthly Statement'!$A$2:$V$800,20,0),0) -> 0 | AE55: 0 | AF55: =IFERROR(VLOOKUP($A55,Pupils!$A$4:$T$800,16,0),0) -> 0 | AG55: =IFERROR(VLOOKUP($A55,'Monthly Statement'!$A$2:$V$800,21,0),0) -> 0 | AH55: 0 | AI55: =IFERROR(VLOOKUP($A55,Pupils!$A$4:$T$800,17,0),0) -> 0 | AJ55: =IFERROR(VLOOKUP($A55,'Monthly Statement'!$A$2:$V$800,22,0),0) -> 0 | AK55: 0 | AL55: =IFERROR(VLOOKUP($A55,Pupils!$A$4:$T$800,18,0),0) -> 0 | AM55: =IFERROR(VLOOKUP($A55,'Monthly Statement'!$A$2:$V$800,23,0),0) -> 0 | AN55: 0 | AO55: =IFERROR(VLOOKUP($A55,Pupils!$A$4:$T$800,19,0),0) -> 0 | AP55: =IFERROR(VLOOKUP($A55,'Monthly Statement'!$A$2:$V$800,24,0),0) -> 0 | AQ55: 0
A56: ='Monthly Statement'!A52 -> 0 | B56: =IFERROR(VLOOKUP(A56,'Monthly Statement'!A:X,4,0),"") ->  | C56: =IFERROR(VLOOKUP(A56,'Monthly Statement'!A:X,5,0),"") ->  | D56: =IFERROR(VLOOKUP(A56,'Monthly Statement'!A:X,7,0),"") ->  | E56: =IFERROR(VLOOKUP(A56,'Monthly Statement'!A:X,9,0),"") ->  | F56: =IFERROR(VLOOKUP(A56,'Monthly Statement'!A:X,10,0),"") ->  | G56: 0 | H56: =IFERROR(VLOOKUP($A56,Pupils!$A$4:$T$800,8,0),0) -> 0 | I56: =IFERROR(VLOOKUP($A56,'Monthly Statement'!$A$2:$V$800,13,0),0) -> 0 | J56: 0 | K56: =IFERROR(VLOOKUP($A56,Pupils!$A$4:$T$800,9,0),0) -> 0 | L56: =IFERROR(VLOOKUP($A56,'Monthly Statement'!$A$2:$V$800,14,0),0) -> 0 | M56: 0 | N56: =IFERROR(VLOOKUP($A56,Pupils!$A$4:$T$800,10,0),0) -> 0 | O56: =IFERROR(VLOOKUP($A56,'Monthly Statement'!$A$2:$V$800,15,0),0) -> 0 | P56: 0 | Q56: =IFERROR(VLOOKUP($A56,Pupils!$A$4:$T$800,11,0),0) -> 0 | R56: =IFERROR(VLOOKUP($A56,'Monthly Statement'!$A$2:$V$800,16,0),0) -> 0 | S56: 0 | T56: =IFERROR(VLOOKUP($A56,Pupils!$A$4:$T$800,12,0),0) -> 0 | U56: =IFERROR(VLOOKUP($A56,'Monthly Statement'!$A$2:$V$800,17,0),0) -> 0 | V56: 0 | W56: =IFERROR(VLOOKUP($A56,Pupils!$A$4:$T$800,13,0),0) -> 0 | X56: =IFERROR(VLOOKUP($A56,'Monthly Statement'!$A$2:$V$800,18,0),0) -> 0 | Y56: 0 | Z56: =IFERROR(VLOOKUP($A56,Pupils!$A$4:$T$800,14,0),0) -> 0 | AA56: =IFERROR(VLOOKUP($A56,'Monthly Statement'!$A$2:$V$800,19,0),0) -> 0 | AB56: 0 | AC56: =IFERROR(VLOOKUP($A56,Pupils!$A$4:$T$800,15,0),0) -> 0 | AD56: =IFERROR(VLOOKUP($A56,'Monthly Statement'!$A$2:$V$800,20,0),0) -> 0 | AE56: 0 | AF56: =IFERROR(VLOOKUP($A56,Pupils!$A$4:$T$800,16,0),0) -> 0 | AG56: =IFERROR(VLOOKUP($A56,'Monthly Statement'!$A$2:$V$800,21,0),0) -> 0 | AH56: 0 | AI56: =IFERROR(VLOOKUP($A56,Pupils!$A$4:$T$800,17,0),0) -> 0 | AJ56: =IFERROR(VLOOKUP($A56,'Monthly Statement'!$A$2:$V$800,22,0),0) -> 0 | AK56: 0 | AL56: =IFERROR(VLOOKUP($A56,Pupils!$A$4:$T$800,18,0),0) -> 0 | AM56: =IFERROR(VLOOKUP($A56,'Monthly Statement'!$A$2:$V$800,23,0),0) -> 0 | AN56: 0 | AO56: =IFERROR(VLOOKUP($A56,Pupils!$A$4:$T$800,19,0),0) -> 0 | AP56: =IFERROR(VLOOKUP($A56,'Monthly Statement'!$A$2:$V$800,24,0),0) -> 0 | AQ56: 0
A57: ='Monthly Statement'!A53 -> 0 | B57: =IFERROR(VLOOKUP(A57,'Monthly Statement'!A:X,4,0),"") ->  | C57: =IFERROR(VLOOKUP(A57,'Monthly Statement'!A:X,5,0),"") ->  | D57: =IFERROR(VLOOKUP(A57,'Monthly Statement'!A:X,7,0),"") ->  | E57: =IFERROR(VLOOKUP(A57,'Monthly Statement'!A:X,9,0),"") ->  | F57: =IFERROR(VLOOKUP(A57,'Monthly Statement'!A:X,10,0),"") ->  | G57: 0 | H57: =IFERROR(VLOOKUP($A57,Pupils!$A$4:$T$800,8,0),0) -> 0 | I57: =IFERROR(VLOOKUP($A57,'Monthly Statement'!$A$2:$V$800,13,0),0) -> 0 | J57: 0 | K57: =IFERROR(VLOOKUP($A57,Pupils!$A$4:$T$800,9,0),0) -> 0 | L57: =IFERROR(VLOOKUP($A57,'Monthly Statement'!$A$2:$V$800,14,0),0) -> 0 | M57: 0 | N57: =IFERROR(VLOOKUP($A57,Pupils!$A$4:$T$800,10,0),0) -> 0 | O57: =IFERROR(VLOOKUP($A57,'Monthly Statement'!$A$2:$V$800,15,0),0) -> 0 | P57: 0 | Q57: =IFERROR(VLOOKUP($A57,Pupils!$A$4:$T$800,11,0),0) -> 0 | R57: =IFERROR(VLOOKUP($A57,'Monthly Statement'!$A$2:$V$800,16,0),0) -> 0 | S57: 0 | T57: =IFERROR(VLOOKUP($A57,Pupils!$A$4:$T$800,12,0),0) -> 0 | U57: =IFERROR(VLOOKUP($A57,'Monthly Statement'!$A$2:$V$800,17,0),0) -> 0 | V57: 0 | W57: =IFERROR(VLOOKUP($A57,Pupils!$A$4:$T$800,13,0),0) -> 0 | X57: =IFERROR(VLOOKUP($A57,'Monthly Statement'!$A$2:$V$800,18,0),0) -> 0 | Y57: 0 | Z57: =IFERROR(VLOOKUP($A57,Pupils!$A$4:$T$800,14,0),0) -> 0 | AA57: =IFERROR(VLOOKUP($A57,'Monthly Statement'!$A$2:$V$800,19,0),0) -> 0 | AB57: 0 | AC57: =IFERROR(VLOOKUP($A57,Pupils!$A$4:$T$800,15,0),0) -> 0 | AD57: =IFERROR(VLOOKUP($A57,'Monthly Statement'!$A$2:$V$800,20,0),0) -> 0 | AE57: 0 | AF57: =IFERROR(VLOOKUP($A57,Pupils!$A$4:$T$800,16,0),0) -> 0 | AG57: =IFERROR(VLOOKUP($A57,'Monthly Statement'!$A$2:$V$800,21,0),0) -> 0 | AH57: 0 | AI57: =IFERROR(VLOOKUP($A57,Pupils!$A$4:$T$800,17,0),0) -> 0 | AJ57: =IFERROR(VLOOKUP($A57,'Monthly Statement'!$A$2:$V$800,22,0),0) -> 0 | AK57: 0 | AL57: =IFERROR(VLOOKUP($A57,Pupils!$A$4:$T$800,18,0),0) -> 0 | AM57: =IFERROR(VLOOKUP($A57,'Monthly Statement'!$A$2:$V$800,23,0),0) -> 0 | AN57: 0 | AO57: =IFERROR(VLOOKUP($A57,Pupils!$A$4:$T$800,19,0),0) -> 0 | AP57: =IFERROR(VLOOKUP($A57,'Monthly Statement'!$A$2:$V$800,24,0),0) -> 0 | AQ57: 0
A58: ='Monthly Statement'!A54 -> 0 | B58: =IFERROR(VLOOKUP(A58,'Monthly Statement'!A:X,4,0),"") ->  | C58: =IFERROR(VLOOKUP(A58,'Monthly Statement'!A:X,5,0),"") ->  | D58: =IFERROR(VLOOKUP(A58,'Monthly Statement'!A:X,7,0),"") ->  | E58: =IFERROR(VLOOKUP(A58,'Monthly Statement'!A:X,9,0),"") ->  | F58: =IFERROR(VLOOKUP(A58,'Monthly Statement'!A:X,10,0),"") ->  | G58: 0 | H58: =IFERROR(VLOOKUP($A58,Pupils!$A$4:$T$800,8,0),0) -> 0 | I58: =IFERROR(VLOOKUP($A58,'Monthly Statement'!$A$2:$V$800,13,0),0) -> 0 | J58: 0 | K58: =IFERROR(VLOOKUP($A58,Pupils!$A$4:$T$800,9,0),0) -> 0 | L58: =IFERROR(VLOOKUP($A58,'Monthly Statement'!$A$2:$V$800,14,0),0) -> 0 | M58: 0 | N58: =IFERROR(VLOOKUP($A58,Pupils!$A$4:$T$800,10,0),0) -> 0 | O58: =IFERROR(VLOOKUP($A58,'Monthly Statement'!$A$2:$V$800,15,0),0) -> 0 | P58: 0 | Q58: =IFERROR(VLOOKUP($A58,Pupils!$A$4:$T$800,11,0),0) -> 0 | R58: =IFERROR(VLOOKUP($A58,'Monthly Statement'!$A$2:$V$800,16,0),0) -> 0 | S58: 0 | T58: =IFERROR(VLOOKUP($A58,Pupils!$A$4:$T$800,12,0),0) -> 0 | U58: =IFERROR(VLOOKUP($A58,'Monthly Statement'!$A$2:$V$800,17,0),0) -> 0 | V58: 0 | W58: =IFERROR(VLOOKUP($A58,Pupils!$A$4:$T$800,13,0),0) -> 0 | X58: =IFERROR(VLOOKUP($A58,'Monthly Statement'!$A$2:$V$800,18,0),0) -> 0 | Y58: 0 | Z58: =IFERROR(VLOOKUP($A58,Pupils!$A$4:$T$800,14,0),0) -> 0 | AA58: =IFERROR(VLOOKUP($A58,'Monthly Statement'!$A$2:$V$800,19,0),0) -> 0 | AB58: 0 | AC58: =IFERROR(VLOOKUP($A58,Pupils!$A$4:$T$800,15,0),0) -> 0 | AD58: =IFERROR(VLOOKUP($A58,'Monthly Statement'!$A$2:$V$800,20,0),0) -> 0 | AE58: 0 | AF58: =IFERROR(VLOOKUP($A58,Pupils!$A$4:$T$800,16,0),0) -> 0 | AG58: =IFERROR(VLOOKUP($A58,'Monthly Statement'!$A$2:$V$800,21,0),0) -> 0 | AH58: 0 | AI58: =IFERROR(VLOOKUP($A58,Pupils!$A$4:$T$800,17,0),0) -> 0 | AJ58: =IFERROR(VLOOKUP($A58,'Monthly Statement'!$A$2:$V$800,22,0),0) -> 0 | AK58: 0 | AL58: =IFERROR(VLOOKUP($A58,Pupils!$A$4:$T$800,18,0),0) -> 0 | AM58: =IFERROR(VLOOKUP($A58,'Monthly Statement'!$A$2:$V$800,23,0),0) -> 0 | AN58: 0 | AO58: =IFERROR(VLOOKUP($A58,Pupils!$A$4:$T$800,19,0),0) -> 0 | AP58: =IFERROR(VLOOKUP($A58,'Monthly Statement'!$A$2:$V$800,24,0),0) -> 0 | AQ58: 0
A59: ='Monthly Statement'!A55 -> 0 | B59: =IFERROR(VLOOKUP(A59,'Monthly Statement'!A:X,4,0),"") ->  | C59: =IFERROR(VLOOKUP(A59,'Monthly Statement'!A:X,5,0),"") ->  | D59: =IFERROR(VLOOKUP(A59,'Monthly Statement'!A:X,7,0),"") ->  | E59: =IFERROR(VLOOKUP(A59,'Monthly Statement'!A:X,9,0),"") ->  | F59: =IFERROR(VLOOKUP(A59,'Monthly Statement'!A:X,10,0),"") ->  | G59: 0 | H59: =IFERROR(VLOOKUP($A59,Pupils!$A$4:$T$800,8,0),0) -> 0 | I59: =IFERROR(VLOOKUP($A59,'Monthly Statement'!$A$2:$V$800,13,0),0) -> 0 | J59: 0 | K59: =IFERROR(VLOOKUP($A59,Pupils!$A$4:$T$800,9,0),0) -> 0 | L59: =IFERROR(VLOOKUP($A59,'Monthly Statement'!$A$2:$V$800,14,0),0) -> 0 | M59: 0 | N59: =IFERROR(VLOOKUP($A59,Pupils!$A$4:$T$800,10,0),0) -> 0 | O59: =IFERROR(VLOOKUP($A59,'Monthly Statement'!$A$2:$V$800,15,0),0) -> 0 | P59: 0 | Q59: =IFERROR(VLOOKUP($A59,Pupils!$A$4:$T$800,11,0),0) -> 0 | R59: =IFERROR(VLOOKUP($A59,'Monthly Statement'!$A$2:$V$800,16,0),0) -> 0 | S59: 0 | T59: =IFERROR(VLOOKUP($A59,Pupils!$A$4:$T$800,12,0),0) -> 0 | U59: =IFERROR(VLOOKUP($A59,'Monthly Statement'!$A$2:$V$800,17,0),0) -> 0 | V59: 0 | W59: =IFERROR(VLOOKUP($A59,Pupils!$A$4:$T$800,13,0),0) -> 0 | X59: =IFERROR(VLOOKUP($A59,'Monthly Statement'!$A$2:$V$800,18,0),0) -> 0 | Y59: 0 | Z59: =IFERROR(VLOOKUP($A59,Pupils!$A$4:$T$800,14,0),0) -> 0 | AA59: =IFERROR(VLOOKUP($A59,'Monthly Statement'!$A$2:$V$800,19,0),0) -> 0 | AB59: 0 | AC59: =IFERROR(VLOOKUP($A59,Pupils!$A$4:$T$800,15,0),0) -> 0 | AD59: =IFERROR(VLOOKUP($A59,'Monthly Statement'!$A$2:$V$800,20,0),0) -> 0 | AE59: 0 | AF59: =IFERROR(VLOOKUP($A59,Pupils!$A$4:$T$800,16,0),0) -> 0 | AG59: =IFERROR(VLOOKUP($A59,'Monthly Statement'!$A$2:$V$800,21,0),0) -> 0 | AH59: 0 | AI59: =IFERROR(VLOOKUP($A59,Pupils!$A$4:$T$800,17,0),0) -> 0 | AJ59: =IFERROR(VLOOKUP($A59,'Monthly Statement'!$A$2:$V$800,22,0),0) -> 0 | AK59: 0 | AL59: =IFERROR(VLOOKUP($A59,Pupils!$A$4:$T$800,18,0),0) -> 0 | AM59: =IFERROR(VLOOKUP($A59,'Monthly Statement'!$A$2:$V$800,23,0),0) -> 0 | AN59: 0 | AO59: =IFERROR(VLOOKUP($A59,Pupils!$A$4:$T$800,19,0),0) -> 0 | AP59: =IFERROR(VLOOKUP($A59,'Monthly Statement'!$A$2:$V$800,24,0),0) -> 0 | AQ59: 0
A60: ='Monthly Statement'!A56 -> 0 | B60: =IFERROR(VLOOKUP(A60,'Monthly Statement'!A:X,4,0),"") ->  | C60: =IFERROR(VLOOKUP(A60,'Monthly Statement'!A:X,5,0),"") ->  | D60: =IFERROR(VLOOKUP(A60,'Monthly Statement'!A:X,7,0),"") ->  | E60: =IFERROR(VLOOKUP(A60,'Monthly Statement'!A:X,9,0),"") ->  | F60: =IFERROR(VLOOKUP(A60,'Monthly Statement'!A:X,10,0),"") ->  | G60: 0 | H60: =IFERROR(VLOOKUP($A60,Pupils!$A$4:$T$800,8,0),0) -> 0 | I60: =IFERROR(VLOOKUP($A60,'Monthly Statement'!$A$2:$V$800,13,0),0) -> 0 | J60: 0 | K60: =IFERROR(VLOOKUP($A60,Pupils!$A$4:$T$800,9,0),0) -> 0 | L60: =IFERROR(VLOOKUP($A60,'Monthly Statement'!$A$2:$V$800,14,0),0) -> 0 | M60: 0 | N60: =IFERROR(VLOOKUP($A60,Pupils!$A$4:$T$800,10,0),0) -> 0 | O60: =IFERROR(VLOOKUP($A60,'Monthly Statement'!$A$2:$V$800,15,0),0) -> 0 | P60: 0 | Q60: =IFERROR(VLOOKUP($A60,Pupils!$A$4:$T$800,11,0),0) -> 0 | R60: =IFERROR(VLOOKUP($A60,'Monthly Statement'!$A$2:$V$800,16,0),0) -> 0 | S60: 0 | T60: =IFERROR(VLOOKUP($A60,Pupils!$A$4:$T$800,12,0),0) -> 0 | U60: =IFERROR(VLOOKUP($A60,'Monthly Statement'!$A$2:$V$800,17,0),0) -> 0 | V60: 0 | W60: =IFERROR(VLOOKUP($A60,Pupils!$A$4:$T$800,13,0),0) -> 0 | X60: =IFERROR(VLOOKUP($A60,'Monthly Statement'!$A$2:$V$800,18,0),0) -> 0 | Y60: 0 | Z60: =IFERROR(VLOOKUP($A60,Pupils!$A$4:$T$800,14,0),0) -> 0 | AA60: =IFERROR(VLOOKUP($A60,'Monthly Statement'!$A$2:$V$800,19,0),0) -> 0 | AB60: 0 | AC60: =IFERROR(VLOOKUP($A60,Pupils!$A$4:$T$800,15,0),0) -> 0 | AD60: =IFERROR(VLOOKUP($A60,'Monthly Statement'!$A$2:$V$800,20,0),0) -> 0 | AE60: 0 | AF60: =IFERROR(VLOOKUP($A60,Pupils!$A$4:$T$800,16,0),0) -> 0 | AG60: =IFERROR(VLOOKUP($A60,'Monthly Statement'!$A$2:$V$800,21,0),0) -> 0 | AH60: 0 | AI60: =IFERROR(VLOOKUP($A60,Pupils!$A$4:$T$800,17,0),0) -> 0 | AJ60: =IFERROR(VLOOKUP($A60,'Monthly Statement'!$A$2:$V$800,22,0),0) -> 0 | AK60: 0 | AL60: =IFERROR(VLOOKUP($A60,Pupils!$A$4:$T$800,18,0),0) -> 0 | AM60: =IFERROR(VLOOKUP($A60,'Monthly Statement'!$A$2:$V$800,23,0),0) -> 0 | AN60: 0 | AO60: =IFERROR(VLOOKUP($A60,Pupils!$A$4:$T$800,19,0),0) -> 0 | AP60: =IFERROR(VLOOKUP($A60,'Monthly Statement'!$A$2:$V$800,24,0),0) -> 0 | AQ60: 0
A61: ='Monthly Statement'!A57 -> 0 | B61: =IFERROR(VLOOKUP(A61,'Monthly Statement'!A:X,4,0),"") ->  | C61: =IFERROR(VLOOKUP(A61,'Monthly Statement'!A:X,5,0),"") ->  | D61: =IFERROR(VLOOKUP(A61,'Monthly Statement'!A:X,7,0),"") ->  | E61: =IFERROR(VLOOKUP(A61,'Monthly Statement'!A:X,9,0),"") ->  | F61: =IFERROR(VLOOKUP(A61,'Monthly Statement'!A:X,10,0),"") ->  | G61: 0 | H61: =IFERROR(VLOOKUP($A61,Pupils!$A$4:$T$800,8,0),0) -> 0 | I61: =IFERROR(VLOOKUP($A61,'Monthly Statement'!$A$2:$V$800,13,0),0) -> 0 | J61: 0 | K61: =IFERROR(VLOOKUP($A61,Pupils!$A$4:$T$800,9,0),0) -> 0 | L61: =IFERROR(VLOOKUP($A61,'Monthly Statement'!$A$2:$V$800,14,0),0) -> 0 | M61: 0 | N61: =IFERROR(VLOOKUP($A61,Pupils!$A$4:$T$800,10,0),0) -> 0 | O61: =IFERROR(VLOOKUP($A61,'Monthly Statement'!$A$2:$V$800,15,0),0) -> 0 | P61: 0 | Q61: =IFERROR(VLOOKUP($A61,Pupils!$A$4:$T$800,11,0),0) -> 0 | R61: =IFERROR(VLOOKUP($A61,'Monthly Statement'!$A$2:$V$800,16,0),0) -> 0 | S61: 0 | T61: =IFERROR(VLOOKUP($A61,Pupils!$A$4:$T$800,12,0),0) -> 0 | U61: =IFERROR(VLOOKUP($A61,'Monthly Statement'!$A$2:$V$800,17,0),0) -> 0 | V61: 0 | W61: =IFERROR(VLOOKUP($A61,Pupils!$A$4:$T$800,13,0),0) -> 0 | X61: =IFERROR(VLOOKUP($A61,'Monthly Statement'!$A$2:$V$800,18,0),0) -> 0 | Y61: 0 | Z61: =IFERROR(VLOOKUP($A61,Pupils!$A$4:$T$800,14,0),0) -> 0 | AA61: =IFERROR(VLOOKUP($A61,'Monthly Statement'!$A$2:$V$800,19,0),0) -> 0 | AB61: 0 | AC61: =IFERROR(VLOOKUP($A61,Pupils!$A$4:$T$800,15,0),0) -> 0 | AD61: =IFERROR(VLOOKUP($A61,'Monthly Statement'!$A$2:$V$800,20,0),0) -> 0 | AE61: 0 | AF61: =IFERROR(VLOOKUP($A61,Pupils!$A$4:$T$800,16,0),0) -> 0 | AG61: =IFERROR(VLOOKUP($A61,'Monthly Statement'!$A$2:$V$800,21,0),0) -> 0 | AH61: 0 | AI61: =IFERROR(VLOOKUP($A61,Pupils!$A$4:$T$800,17,0),0) -> 0 | AJ61: =IFERROR(VLOOKUP($A61,'Monthly Statement'!$A$2:$V$800,22,0),0) -> 0 | AK61: 0 | AL61: =IFERROR(VLOOKUP($A61,Pupils!$A$4:$T$800,18,0),0) -> 0 | AM61: =IFERROR(VLOOKUP($A61,'Monthly Statement'!$A$2:$V$800,23,0),0) -> 0 | AN61: 0 | AO61: =IFERROR(VLOOKUP($A61,Pupils!$A$4:$T$800,19,0),0) -> 0 | AP61: =IFERROR(VLOOKUP($A61,'Monthly Statement'!$A$2:$V$800,24,0),0) -> 0 | AQ61: 0
A62: ='Monthly Statement'!A58 -> 0 | B62: =IFERROR(VLOOKUP(A62,'Monthly Statement'!A:X,4,0),"") ->  | C62: =IFERROR(VLOOKUP(A62,'Monthly Statement'!A:X,5,0),"") ->  | D62: =IFERROR(VLOOKUP(A62,'Monthly Statement'!A:X,7,0),"") ->  | E62: =IFERROR(VLOOKUP(A62,'Monthly Statement'!A:X,9,0),"") ->  | F62: =IFERROR(VLOOKUP(A62,'Monthly Statement'!A:X,10,0),"") ->  | G62: 0 | H62: =IFERROR(VLOOKUP($A62,Pupils!$A$4:$T$800,8,0),0) -> 0 | I62: =IFERROR(VLOOKUP($A62,'Monthly Statement'!$A$2:$V$800,13,0),0) -> 0 | J62: 0 | K62: =IFERROR(VLOOKUP($A62,Pupils!$A$4:$T$800,9,0),0) -> 0 | L62: =IFERROR(VLOOKUP($A62,'Monthly Statement'!$A$2:$V$800,14,0),0) -> 0 | M62: 0 | N62: =IFERROR(VLOOKUP($A62,Pupils!$A$4:$T$800,10,0),0) -> 0 | O62: =IFERROR(VLOOKUP($A62,'Monthly Statement'!$A$2:$V$800,15,0),0) -> 0 | P62: 0 | Q62: =IFERROR(VLOOKUP($A62,Pupils!$A$4:$T$800,11,0),0) -> 0 | R62: =IFERROR(VLOOKUP($A62,'Monthly Statement'!$A$2:$V$800,16,0),0) -> 0 | S62: 0 | T62: =IFERROR(VLOOKUP($A62,Pupils!$A$4:$T$800,12,0),0) -> 0 | U62: =IFERROR(VLOOKUP($A62,'Monthly Statement'!$A$2:$V$800,17,0),0) -> 0 | V62: 0 | W62: =IFERROR(VLOOKUP($A62,Pupils!$A$4:$T$800,13,0),0) -> 0 | X62: =IFERROR(VLOOKUP($A62,'Monthly Statement'!$A$2:$V$800,18,0),0) -> 0 | Y62: 0 | Z62: =IFERROR(VLOOKUP($A62,Pupils!$A$4:$T$800,14,0),0) -> 0 | AA62: =IFERROR(VLOOKUP($A62,'Monthly Statement'!$A$2:$V$800,19,0),0) -> 0 | AB62: 0 | AC62: =IFERROR(VLOOKUP($A62,Pupils!$A$4:$T$800,15,0),0) -> 0 | AD62: =IFERROR(VLOOKUP($A62,'Monthly Statement'!$A$2:$V$800,20,0),0) -> 0 | AE62: 0 | AF62: =IFERROR(VLOOKUP($A62,Pupils!$A$4:$T$800,16,0),0) -> 0 | AG62: =IFERROR(VLOOKUP($A62,'Monthly Statement'!$A$2:$V$800,21,0),0) -> 0 | AH62: 0 | AI62: =IFERROR(VLOOKUP($A62,Pupils!$A$4:$T$800,17,0),0) -> 0 | AJ62: =IFERROR(VLOOKUP($A62,'Monthly Statement'!$A$2:$V$800,22,0),0) -> 0 | AK62: 0 | AL62: =IFERROR(VLOOKUP($A62,Pupils!$A$4:$T$800,18,0),0) -> 0 | AM62: =IFERROR(VLOOKUP($A62,'Monthly Statement'!$A$2:$V$800,23,0),0) -> 0 | AN62: 0 | AO62: =IFERROR(VLOOKUP($A62,Pupils!$A$4:$T$800,19,0),0) -> 0 | AP62: =IFERROR(VLOOKUP($A62,'Monthly Statement'!$A$2:$V$800,24,0),0) -> 0 | AQ62: 0
A63: ='Monthly Statement'!A59 -> 0 | B63: =IFERROR(VLOOKUP(A63,'Monthly Statement'!A:X,4,0),"") ->  | C63: =IFERROR(VLOOKUP(A63,'Monthly Statement'!A:X,5,0),"") ->  | D63: =IFERROR(VLOOKUP(A63,'Monthly Statement'!A:X,7,0),"") ->  | E63: =IFERROR(VLOOKUP(A63,'Monthly Statement'!A:X,9,0),"") ->  | F63: =IFERROR(VLOOKUP(A63,'Monthly Statement'!A:X,10,0),"") ->  | G63: 0 | H63: =IFERROR(VLOOKUP($A63,Pupils!$A$4:$T$800,8,0),0) -> 0 | I63: =IFERROR(VLOOKUP($A63,'Monthly Statement'!$A$2:$V$800,13,0),0) -> 0 | J63: 0 | K63: =IFERROR(VLOOKUP($A63,Pupils!$A$4:$T$800,9,0),0) -> 0 | L63: =IFERROR(VLOOKUP($A63,'Monthly Statement'!$A$2:$V$800,14,0),0) -> 0 | M63: 0 | N63: =IFERROR(VLOOKUP($A63,Pupils!$A$4:$T$800,10,0),0) -> 0 | O63: =IFERROR(VLOOKUP($A63,'Monthly Statement'!$A$2:$V$800,15,0),0) -> 0 | P63: 0 | Q63: =IFERROR(VLOOKUP($A63,Pupils!$A$4:$T$800,11,0),0) -> 0 | R63: =IFERROR(VLOOKUP($A63,'Monthly Statement'!$A$2:$V$800,16,0),0) -> 0 | S63: 0 | T63: =IFERROR(VLOOKUP($A63,Pupils!$A$4:$T$800,12,0),0) -> 0 | U63: =IFERROR(VLOOKUP($A63,'Monthly Statement'!$A$2:$V$800,17,0),0) -> 0 | V63: 0 | W63: =IFERROR(VLOOKUP($A63,Pupils!$A$4:$T$800,13,0),0) -> 0 | X63: =IFERROR(VLOOKUP($A63,'Monthly Statement'!$A$2:$V$800,18,0),0) -> 0 | Y63: 0 | Z63: =IFERROR(VLOOKUP($A63,Pupils!$A$4:$T$800,14,0),0) -> 0 | AA63: =IFERROR(VLOOKUP($A63,'Monthly Statement'!$A$2:$V$800,19,0),0) -> 0 | AB63: 0 | AC63: =IFERROR(VLOOKUP($A63,Pupils!$A$4:$T$800,15,0),0) -> 0 | AD63: =IFERROR(VLOOKUP($A63,'Monthly Statement'!$A$2:$V$800,20,0),0) -> 0 | AE63: 0 | AF63: =IFERROR(VLOOKUP($A63,Pupils!$A$4:$T$800,16,0),0) -> 0 | AG63: =IFERROR(VLOOKUP($A63,'Monthly Statement'!$A$2:$V$800,21,0),0) -> 0 | AH63: 0 | AI63: =IFERROR(VLOOKUP($A63,Pupils!$A$4:$T$800,17,0),0) -> 0 | AJ63: =IFERROR(VLOOKUP($A63,'Monthly Statement'!$A$2:$V$800,22,0),0) -> 0 | AK63: 0 | AL63: =IFERROR(VLOOKUP($A63,Pupils!$A$4:$T$800,18,0),0) -> 0 | AM63: =IFERROR(VLOOKUP($A63,'Monthly Statement'!$A$2:$V$800,23,0),0) -> 0 | AN63: 0 | AO63: =IFERROR(VLOOKUP($A63,Pupils!$A$4:$T$800,19,0),0) -> 0 | AP63: =IFERROR(VLOOKUP($A63,'Monthly Statement'!$A$2:$V$800,24,0),0) -> 0 | AQ63: 0
A64: ='Monthly Statement'!A60 -> 0 | B64: =IFERROR(VLOOKUP(A64,'Monthly Statement'!A:X,4,0),"") ->  | C64: =IFERROR(VLOOKUP(A64,'Monthly Statement'!A:X,5,0),"") ->  | D64: =IFERROR(VLOOKUP(A64,'Monthly Statement'!A:X,7,0),"") ->  | E64: =IFERROR(VLOOKUP(A64,'Monthly Statement'!A:X,9,0),"") ->  | F64: =IFERROR(VLOOKUP(A64,'Monthly Statement'!A:X,10,0),"") ->  | G64: 0 | H64: =IFERROR(VLOOKUP($A64,Pupils!$A$4:$T$800,8,0),0) -> 0 | I64: =IFERROR(VLOOKUP($A64,'Monthly Statement'!$A$2:$V$800,13,0),0) -> 0 | J64: 0 | K64: =IFERROR(VLOOKUP($A64,Pupils!$A$4:$T$800,9,0),0) -> 0 | L64: =IFERROR(VLOOKUP($A64,'Monthly Statement'!$A$2:$V$800,14,0),0) -> 0 | M64: 0 | N64: =IFERROR(VLOOKUP($A64,Pupils!$A$4:$T$800,10,0),0) -> 0 | O64: =IFERROR(VLOOKUP($A64,'Monthly Statement'!$A$2:$V$800,15,0),0) -> 0 | P64: 0 | Q64: =IFERROR(VLOOKUP($A64,Pupils!$A$4:$T$800,11,0),0) -> 0 | R64: =IFERROR(VLOOKUP($A64,'Monthly Statement'!$A$2:$V$800,16,0),0) -> 0 | S64: 0 | T64: =IFERROR(VLOOKUP($A64,Pupils!$A$4:$T$800,12,0),0) -> 0 | U64: =IFERROR(VLOOKUP($A64,'Monthly Statement'!$A$2:$V$800,17,0),0) -> 0 | V64: 0 | W64: =IFERROR(VLOOKUP($A64,Pupils!$A$4:$T$800,13,0),0) -> 0 | X64: =IFERROR(VLOOKUP($A64,'Monthly Statement'!$A$2:$V$800,18,0),0) -> 0 | Y64: 0 | Z64: =IFERROR(VLOOKUP($A64,Pupils!$A$4:$T$800,14,0),0) -> 0 | AA64: =IFERROR(VLOOKUP($A64,'Monthly Statement'!$A$2:$V$800,19,0),0) -> 0 | AB64: 0 | AC64: =IFERROR(VLOOKUP($A64,Pupils!$A$4:$T$800,15,0),0) -> 0 | AD64: =IFERROR(VLOOKUP($A64,'Monthly Statement'!$A$2:$V$800,20,0),0) -> 0 | AE64: 0 | AF64: =IFERROR(VLOOKUP($A64,Pupils!$A$4:$T$800,16,0),0) -> 0 | AG64: =IFERROR(VLOOKUP($A64,'Monthly Statement'!$A$2:$V$800,21,0),0) -> 0 | AH64: 0 | AI64: =IFERROR(VLOOKUP($A64,Pupils!$A$4:$T$800,17,0),0) -> 0 | AJ64: =IFERROR(VLOOKUP($A64,'Monthly Statement'!$A$2:$V$800,22,0),0) -> 0 | AK64: 0 | AL64: =IFERROR(VLOOKUP($A64,Pupils!$A$4:$T$800,18,0),0) -> 0 | AM64: =IFERROR(VLOOKUP($A64,'Monthly Statement'!$A$2:$V$800,23,0),0) -> 0 | AN64: 0 | AO64: =IFERROR(VLOOKUP($A64,Pupils!$A$4:$T$800,19,0),0) -> 0 | AP64: =IFERROR(VLOOKUP($A64,'Monthly Statement'!$A$2:$V$800,24,0),0) -> 0 | AQ64: 0
A65: ='Monthly Statement'!A61 -> 0 | B65: =IFERROR(VLOOKUP(A65,'Monthly Statement'!A:X,4,0),"") ->  | C65: =IFERROR(VLOOKUP(A65,'Monthly Statement'!A:X,5,0),"") ->  | D65: =IFERROR(VLOOKUP(A65,'Monthly Statement'!A:X,7,0),"") ->  | E65: =IFERROR(VLOOKUP(A65,'Monthly Statement'!A:X,9,0),"") ->  | F65: =IFERROR(VLOOKUP(A65,'Monthly Statement'!A:X,10,0),"") ->  | G65: 0 | H65: =IFERROR(VLOOKUP($A65,Pupils!$A$4:$T$800,8,0),0) -> 0 | I65: =IFERROR(VLOOKUP($A65,'Monthly Statement'!$A$2:$V$800,13,0),0) -> 0 | J65: 0 | K65: =IFERROR(VLOOKUP($A65,Pupils!$A$4:$T$800,9,0),0) -> 0 | L65: =IFERROR(VLOOKUP($A65,'Monthly Statement'!$A$2:$V$800,14,0),0) -> 0 | M65: 0 | N65: =IFERROR(VLOOKUP($A65,Pupils!$A$4:$T$800,10,0),0) -> 0 | O65: =IFERROR(VLOOKUP($A65,'Monthly Statement'!$A$2:$V$800,15,0),0) -> 0 | P65: 0 | Q65: =IFERROR(VLOOKUP($A65,Pupils!$A$4:$T$800,11,0),0) -> 0 | R65: =IFERROR(VLOOKUP($A65,'Monthly Statement'!$A$2:$V$800,16,0),0) -> 0 | S65: 0 | T65: =IFERROR(VLOOKUP($A65,Pupils!$A$4:$T$800,12,0),0) -> 0 | U65: =IFERROR(VLOOKUP($A65,'Monthly Statement'!$A$2:$V$800,17,0),0) -> 0 | V65: 0 | W65: =IFERROR(VLOOKUP($A65,Pupils!$A$4:$T$800,13,0),0) -> 0 | X65: =IFERROR(VLOOKUP($A65,'Monthly Statement'!$A$2:$V$800,18,0),0) -> 0 | Y65: 0 | Z65: =IFERROR(VLOOKUP($A65,Pupils!$A$4:$T$800,14,0),0) -> 0 | AA65: =IFERROR(VLOOKUP($A65,'Monthly Statement'!$A$2:$V$800,19,0),0) -> 0 | AB65: 0 | AC65: =IFERROR(VLOOKUP($A65,Pupils!$A$4:$T$800,15,0),0) -> 0 | AD65: =IFERROR(VLOOKUP($A65,'Monthly Statement'!$A$2:$V$800,20,0),0) -> 0 | AE65: 0 | AF65: =IFERROR(VLOOKUP($A65,Pupils!$A$4:$T$800,16,0),0) -> 0 | AG65: =IFERROR(VLOOKUP($A65,'Monthly Statement'!$A$2:$V$800,21,0),0) -> 0 | AH65: 0 | AI65: =IFERROR(VLOOKUP($A65,Pupils!$A$4:$T$800,17,0),0) -> 0 | AJ65: =IFERROR(VLOOKUP($A65,'Monthly Statement'!$A$2:$V$800,22,0),0) -> 0 | AK65: 0 | AL65: =IFERROR(VLOOKUP($A65,Pupils!$A$4:$T$800,18,0),0) -> 0 | AM65: =IFERROR(VLOOKUP($A65,'Monthly Statement'!$A$2:$V$800,23,0),0) -> 0 | AN65: 0 | AO65: =IFERROR(VLOOKUP($A65,Pupils!$A$4:$T$800,19,0),0) -> 0 | AP65: =IFERROR(VLOOKUP($A65,'Monthly Statement'!$A$2:$V$800,24,0),0) -> 0 | AQ65: 0
A66: ='Monthly Statement'!A62 -> 0 | B66: =IFERROR(VLOOKUP(A66,'Monthly Statement'!A:X,4,0),"") ->  | C66: =IFERROR(VLOOKUP(A66,'Monthly Statement'!A:X,5,0),"") ->  | D66: =IFERROR(VLOOKUP(A66,'Monthly Statement'!A:X,7,0),"") ->  | E66: =IFERROR(VLOOKUP(A66,'Monthly Statement'!A:X,9,0),"") ->  | F66: =IFERROR(VLOOKUP(A66,'Monthly Statement'!A:X,10,0),"") ->  | G66: 0 | H66: =IFERROR(VLOOKUP($A66,Pupils!$A$4:$T$800,8,0),0) -> 0 | I66: =IFERROR(VLOOKUP($A66,'Monthly Statement'!$A$2:$V$800,13,0),0) -> 0 | J66: 0 | K66: =IFERROR(VLOOKUP($A66,Pupils!$A$4:$T$800,9,0),0) -> 0 | L66: =IFERROR(VLOOKUP($A66,'Monthly Statement'!$A$2:$V$800,14,0),0) -> 0 | M66: 0 | N66: =IFERROR(VLOOKUP($A66,Pupils!$A$4:$T$800,10,0),0) -> 0 | O66: =IFERROR(VLOOKUP($A66,'Monthly Statement'!$A$2:$V$800,15,0),0) -> 0 | P66: 0 | Q66: =IFERROR(VLOOKUP($A66,Pupils!$A$4:$T$800,11,0),0) -> 0 | R66: =IFERROR(VLOOKUP($A66,'Monthly Statement'!$A$2:$V$800,16,0),0) -> 0 | S66: 0 | T66: =IFERROR(VLOOKUP($A66,Pupils!$A$4:$T$800,12,0),0) -> 0 | U66: =IFERROR(VLOOKUP($A66,'Monthly Statement'!$A$2:$V$800,17,0),0) -> 0 | V66: 0 | W66: =IFERROR(VLOOKUP($A66,Pupils!$A$4:$T$800,13,0),0) -> 0 | X66: =IFERROR(VLOOKUP($A66,'Monthly Statement'!$A$2:$V$800,18,0),0) -> 0 | Y66: 0 | Z66: =IFERROR(VLOOKUP($A66,Pupils!$A$4:$T$800,14,0),0) -> 0 | AA66: =IFERROR(VLOOKUP($A66,'Monthly Statement'!$A$2:$V$800,19,0),0) -> 0 | AB66: 0 | AC66: =IFERROR(VLOOKUP($A66,Pupils!$A$4:$T$800,15,0),0) -> 0 | AD66: =IFERROR(VLOOKUP($A66,'Monthly Statement'!$A$2:$V$800,20,0),0) -> 0 | AE66: 0 | AF66: =IFERROR(VLOOKUP($A66,Pupils!$A$4:$T$800,16,0),0) -> 0 | AG66: =IFERROR(VLOOKUP($A66,'Monthly Statement'!$A$2:$V$800,21,0),0) -> 0 | AH66: 0 | AI66: =IFERROR(VLOOKUP($A66,Pupils!$A$4:$T$800,17,0),0) -> 0 | AJ66: =IFERROR(VLOOKUP($A66,'Monthly Statement'!$A$2:$V$800,22,0),0) -> 0 | AK66: 0 | AL66: =IFERROR(VLOOKUP($A66,Pupils!$A$4:$T$800,18,0),0) -> 0 | AM66: =IFERROR(VLOOKUP($A66,'Monthly Statement'!$A$2:$V$800,23,0),0) -> 0 | AN66: 0 | AO66: =IFERROR(VLOOKUP($A66,Pupils!$A$4:$T$800,19,0),0) -> 0 | AP66: =IFERROR(VLOOKUP($A66,'Monthly Statement'!$A$2:$V$800,24,0),0) -> 0 | AQ66: 0
A67: ='Monthly Statement'!A63 -> 0 | B67: =IFERROR(VLOOKUP(A67,'Monthly Statement'!A:X,4,0),"") ->  | C67: =IFERROR(VLOOKUP(A67,'Monthly Statement'!A:X,5,0),"") ->  | D67: =IFERROR(VLOOKUP(A67,'Monthly Statement'!A:X,7,0),"") ->  | E67: =IFERROR(VLOOKUP(A67,'Monthly Statement'!A:X,9,0),"") ->  | F67: =IFERROR(VLOOKUP(A67,'Monthly Statement'!A:X,10,0),"") ->  | G67: 0 | H67: =IFERROR(VLOOKUP($A67,Pupils!$A$4:$T$800,8,0),0) -> 0 | I67: =IFERROR(VLOOKUP($A67,'Monthly Statement'!$A$2:$V$800,13,0),0) -> 0 | J67: 0 | K67: =IFERROR(VLOOKUP($A67,Pupils!$A$4:$T$800,9,0),0) -> 0 | L67: =IFERROR(VLOOKUP($A67,'Monthly Statement'!$A$2:$V$800,14,0),0) -> 0 | M67: 0 | N67: =IFERROR(VLOOKUP($A67,Pupils!$A$4:$T$800,10,0),0) -> 0 | O67: =IFERROR(VLOOKUP($A67,'Monthly Statement'!$A$2:$V$800,15,0),0) -> 0 | P67: 0 | Q67: =IFERROR(VLOOKUP($A67,Pupils!$A$4:$T$800,11,0),0) -> 0 | R67: =IFERROR(VLOOKUP($A67,'Monthly Statement'!$A$2:$V$800,16,0),0) -> 0 | S67: 0 | T67: =IFERROR(VLOOKUP($A67,Pupils!$A$4:$T$800,12,0),0) -> 0 | U67: =IFERROR(VLOOKUP($A67,'Monthly Statement'!$A$2:$V$800,17,0),0) -> 0 | V67: 0 | W67: =IFERROR(VLOOKUP($A67,Pupils!$A$4:$T$800,13,0),0) -> 0 | X67: =IFERROR(VLOOKUP($A67,'Monthly Statement'!$A$2:$V$800,18,0),0) -> 0 | Y67: 0 | Z67: =IFERROR(VLOOKUP($A67,Pupils!$A$4:$T$800,14,0),0) -> 0 | AA67: =IFERROR(VLOOKUP($A67,'Monthly Statement'!$A$2:$V$800,19,0),0) -> 0 | AB67: 0 | AC67: =IFERROR(VLOOKUP($A67,Pupils!$A$4:$T$800,15,0),0) -> 0 | AD67: =IFERROR(VLOOKUP($A67,'Monthly Statement'!$A$2:$V$800,20,0),0) -> 0 | AE67: 0 | AF67: =IFERROR(VLOOKUP($A67,Pupils!$A$4:$T$800,16,0),0) -> 0 | AG67: =IFERROR(VLOOKUP($A67,'Monthly Statement'!$A$2:$V$800,21,0),0) -> 0 | AH67: 0 | AI67: =IFERROR(VLOOKUP($A67,Pupils!$A$4:$T$800,17,0),0) -> 0 | AJ67: =IFERROR(VLOOKUP($A67,'Monthly Statement'!$A$2:$V$800,22,0),0) -> 0 | AK67: 0 | AL67: =IFERROR(VLOOKUP($A67,Pupils!$A$4:$T$800,18,0),0) -> 0 | AM67: =IFERROR(VLOOKUP($A67,'Monthly Statement'!$A$2:$V$800,23,0),0) -> 0 | AN67: 0 | AO67: =IFERROR(VLOOKUP($A67,Pupils!$A$4:$T$800,19,0),0) -> 0 | AP67: =IFERROR(VLOOKUP($A67,'Monthly Statement'!$A$2:$V$800,24,0),0) -> 0 | AQ67: 0
A68: ='Monthly Statement'!A64 -> 0 | B68: =IFERROR(VLOOKUP(A68,'Monthly Statement'!A:X,4,0),"") ->  | C68: =IFERROR(VLOOKUP(A68,'Monthly Statement'!A:X,5,0),"") ->  | D68: =IFERROR(VLOOKUP(A68,'Monthly Statement'!A:X,7,0),"") ->  | E68: =IFERROR(VLOOKUP(A68,'Monthly Statement'!A:X,9,0),"") ->  | F68: =IFERROR(VLOOKUP(A68,'Monthly Statement'!A:X,10,0),"") ->  | G68: 0 | H68: =IFERROR(VLOOKUP($A68,Pupils!$A$4:$T$800,8,0),0) -> 0 | I68: =IFERROR(VLOOKUP($A68,'Monthly Statement'!$A$2:$V$800,13,0),0) -> 0 | J68: 0 | K68: =IFERROR(VLOOKUP($A68,Pupils!$A$4:$T$800,9,0),0) -> 0 | L68: =IFERROR(VLOOKUP($A68,'Monthly Statement'!$A$2:$V$800,14,0),0) -> 0 | M68: 0 | N68: =IFERROR(VLOOKUP($A68,Pupils!$A$4:$T$800,10,0),0) -> 0 | O68: =IFERROR(VLOOKUP($A68,'Monthly Statement'!$A$2:$V$800,15,0),0) -> 0 | P68: 0 | Q68: =IFERROR(VLOOKUP($A68,Pupils!$A$4:$T$800,11,0),0) -> 0 | R68: =IFERROR(VLOOKUP($A68,'Monthly Statement'!$A$2:$V$800,16,0),0) -> 0 | S68: 0 | T68: =IFERROR(VLOOKUP($A68,Pupils!$A$4:$T$800,12,0),0) -> 0 | U68: =IFERROR(VLOOKUP($A68,'Monthly Statement'!$A$2:$V$800,17,0),0) -> 0 | V68: 0 | W68: =IFERROR(VLOOKUP($A68,Pupils!$A$4:$T$800,13,0),0) -> 0 | X68: =IFERROR(VLOOKUP($A68,'Monthly Statement'!$A$2:$V$800,18,0),0) -> 0 | Y68: 0 | Z68: =IFERROR(VLOOKUP($A68,Pupils!$A$4:$T$800,14,0),0) -> 0 | AA68: =IFERROR(VLOOKUP($A68,'Monthly Statement'!$A$2:$V$800,19,0),0) -> 0 | AB68: 0 | AC68: =IFERROR(VLOOKUP($A68,Pupils!$A$4:$T$800,15,0),0) -> 0 | AD68: =IFERROR(VLOOKUP($A68,'Monthly Statement'!$A$2:$V$800,20,0),0) -> 0 | AE68: 0 | AF68: =IFERROR(VLOOKUP($A68,Pupils!$A$4:$T$800,16,0),0) -> 0 | AG68: =IFERROR(VLOOKUP($A68,'Monthly Statement'!$A$2:$V$800,21,0),0) -> 0 | AH68: 0 | AI68: =IFERROR(VLOOKUP($A68,Pupils!$A$4:$T$800,17,0),0) -> 0 | AJ68: =IFERROR(VLOOKUP($A68,'Monthly Statement'!$A$2:$V$800,22,0),0) -> 0 | AK68: 0 | AL68: =IFERROR(VLOOKUP($A68,Pupils!$A$4:$T$800,18,0),0) -> 0 | AM68: =IFERROR(VLOOKUP($A68,'Monthly Statement'!$A$2:$V$800,23,0),0) -> 0 | AN68: 0 | AO68: =IFERROR(VLOOKUP($A68,Pupils!$A$4:$T$800,19,0),0) -> 0 | AP68: =IFERROR(VLOOKUP($A68,'Monthly Statement'!$A$2:$V$800,24,0),0) -> 0 | AQ68: 0
A69: ='Monthly Statement'!A65 -> 0 | B69: =IFERROR(VLOOKUP(A69,'Monthly Statement'!A:X,4,0),"") ->  | C69: =IFERROR(VLOOKUP(A69,'Monthly Statement'!A:X,5,0),"") ->  | D69: =IFERROR(VLOOKUP(A69,'Monthly Statement'!A:X,7,0),"") ->  | E69: =IFERROR(VLOOKUP(A69,'Monthly Statement'!A:X,9,0),"") ->  | F69: =IFERROR(VLOOKUP(A69,'Monthly Statement'!A:X,10,0),"") ->  | G69: 0 | H69: =IFERROR(VLOOKUP($A69,Pupils!$A$4:$T$800,8,0),0) -> 0 | I69: =IFERROR(VLOOKUP($A69,'Monthly Statement'!$A$2:$V$800,13,0),0) -> 0 | J69: 0 | K69: =IFERROR(VLOOKUP($A69,Pupils!$A$4:$T$800,9,0),0) -> 0 | L69: =IFERROR(VLOOKUP($A69,'Monthly Statement'!$A$2:$V$800,14,0),0) -> 0 | M69: 0 | N69: =IFERROR(VLOOKUP($A69,Pupils!$A$4:$T$800,10,0),0) -> 0 | O69: =IFERROR(VLOOKUP($A69,'Monthly Statement'!$A$2:$V$800,15,0),0) -> 0 | P69: 0 | Q69: =IFERROR(VLOOKUP($A69,Pupils!$A$4:$T$800,11,0),0) -> 0 | R69: =IFERROR(VLOOKUP($A69,'Monthly Statement'!$A$2:$V$800,16,0),0) -> 0 | S69: 0 | T69: =IFERROR(VLOOKUP($A69,Pupils!$A$4:$T$800,12,0),0) -> 0 | U69: =IFERROR(VLOOKUP($A69,'Monthly Statement'!$A$2:$V$800,17,0),0) -> 0 | V69: 0 | W69: =IFERROR(VLOOKUP($A69,Pupils!$A$4:$T$800,13,0),0) -> 0 | X69: =IFERROR(VLOOKUP($A69,'Monthly Statement'!$A$2:$V$800,18,0),0) -> 0 | Y69: 0 | Z69: =IFERROR(VLOOKUP($A69,Pupils!$A$4:$T$800,14,0),0) -> 0 | AA69: =IFERROR(VLOOKUP($A69,'Monthly Statement'!$A$2:$V$800,19,0),0) -> 0 | AB69: 0 | AC69: =IFERROR(VLOOKUP($A69,Pupils!$A$4:$T$800,15,0),0) -> 0 | AD69: =IFERROR(VLOOKUP($A69,'Monthly Statement'!$A$2:$V$800,20,0),0) -> 0 | AE69: 0 | AF69: =IFERROR(VLOOKUP($A69,Pupils!$A$4:$T$800,16,0),0) -> 0 | AG69: =IFERROR(VLOOKUP($A69,'Monthly Statement'!$A$2:$V$800,21,0),0) -> 0 | AH69: 0 | AI69: =IFERROR(VLOOKUP($A69,Pupils!$A$4:$T$800,17,0),0) -> 0 | AJ69: =IFERROR(VLOOKUP($A69,'Monthly Statement'!$A$2:$V$800,22,0),0) -> 0 | AK69: 0 | AL69: =IFERROR(VLOOKUP($A69,Pupils!$A$4:$T$800,18,0),0) -> 0 | AM69: =IFERROR(VLOOKUP($A69,'Monthly Statement'!$A$2:$V$800,23,0),0) -> 0 | AN69: 0 | AO69: =IFERROR(VLOOKUP($A69,Pupils!$A$4:$T$800,19,0),0) -> 0 | AP69: =IFERROR(VLOOKUP($A69,'Monthly Statement'!$A$2:$V$800,24,0),0) -> 0 | AQ69: 0
A70: ='Monthly Statement'!A66 -> 0 | B70: =IFERROR(VLOOKUP(A70,'Monthly Statement'!A:X,4,0),"") ->  | C70: =IFERROR(VLOOKUP(A70,'Monthly Statement'!A:X,5,0),"") ->  | D70: =IFERROR(VLOOKUP(A70,'Monthly Statement'!A:X,7,0),"") ->  | E70: =IFERROR(VLOOKUP(A70,'Monthly Statement'!A:X,9,0),"") ->  | F70: =IFERROR(VLOOKUP(A70,'Monthly Statement'!A:X,10,0),"") ->  | G70: 0 | H70: =IFERROR(VLOOKUP($A70,Pupils!$A$4:$T$800,8,0),0) -> 0 | I70: =IFERROR(VLOOKUP($A70,'Monthly Statement'!$A$2:$V$800,13,0),0) -> 0 | J70: 0 | K70: =IFERROR(VLOOKUP($A70,Pupils!$A$4:$T$800,9,0),0) -> 0 | L70: =IFERROR(VLOOKUP($A70,'Monthly Statement'!$A$2:$V$800,14,0),0) -> 0 | M70: 0 | N70: =IFERROR(VLOOKUP($A70,Pupils!$A$4:$T$800,10,0),0) -> 0 | O70: =IFERROR(VLOOKUP($A70,'Monthly Statement'!$A$2:$V$800,15,0),0) -> 0 | P70: 0 | Q70: =IFERROR(VLOOKUP($A70,Pupils!$A$4:$T$800,11,0),0) -> 0 | R70: =IFERROR(VLOOKUP($A70,'Monthly Statement'!$A$2:$V$800,16,0),0) -> 0 | S70: 0 | T70: =IFERROR(VLOOKUP($A70,Pupils!$A$4:$T$800,12,0),0) -> 0 | U70: =IFERROR(VLOOKUP($A70,'Monthly Statement'!$A$2:$V$800,17,0),0) -> 0 | V70: 0 | W70: =IFERROR(VLOOKUP($A70,Pupils!$A$4:$T$800,13,0),0) -> 0 | X70: =IFERROR(VLOOKUP($A70,'Monthly Statement'!$A$2:$V$800,18,0),0) -> 0 | Y70: 0 | Z70: =IFERROR(VLOOKUP($A70,Pupils!$A$4:$T$800,14,0),0) -> 0 | AA70: =IFERROR(VLOOKUP($A70,'Monthly Statement'!$A$2:$V$800,19,0),0) -> 0 | AB70: 0 | AC70: =IFERROR(VLOOKUP($A70,Pupils!$A$4:$T$800,15,0),0) -> 0 | AD70: =IFERROR(VLOOKUP($A70,'Monthly Statement'!$A$2:$V$800,20,0),0) -> 0 | AE70: 0 | AF70: =IFERROR(VLOOKUP($A70,Pupils!$A$4:$T$800,16,0),0) -> 0 | AG70: =IFERROR(VLOOKUP($A70,'Monthly Statement'!$A$2:$V$800,21,0),0) -> 0 | AH70: 0 | AI70: =IFERROR(VLOOKUP($A70,Pupils!$A$4:$T$800,17,0),0) -> 0 | AJ70: =IFERROR(VLOOKUP($A70,'Monthly Statement'!$A$2:$V$800,22,0),0) -> 0 | AK70: 0 | AL70: =IFERROR(VLOOKUP($A70,Pupils!$A$4:$T$800,18,0),0) -> 0 | AM70: =IFERROR(VLOOKUP($A70,'Monthly Statement'!$A$2:$V$800,23,0),0) -> 0 | AN70: 0 | AO70: =IFERROR(VLOOKUP($A70,Pupils!$A$4:$T$800,19,0),0) -> 0 | AP70: =IFERROR(VLOOKUP($A70,'Monthly Statement'!$A$2:$V$800,24,0),0) -> 0 | AQ70: 0
A71: ='Monthly Statement'!A67 -> 0 | B71: =IFERROR(VLOOKUP(A71,'Monthly Statement'!A:X,4,0),"") ->  | C71: =IFERROR(VLOOKUP(A71,'Monthly Statement'!A:X,5,0),"") ->  | D71: =IFERROR(VLOOKUP(A71,'Monthly Statement'!A:X,7,0),"") ->  | E71: =IFERROR(VLOOKUP(A71,'Monthly Statement'!A:X,9,0),"") ->  | F71: =IFERROR(VLOOKUP(A71,'Monthly Statement'!A:X,10,0),"") ->  | G71: =J71+M71+P71+S71+V71+Y71+AB71+AE71+AH71+AK71+AN71+AQ71 -> 0 | H71: =IFERROR(VLOOKUP($A71,Pupils!$A$4:$T$800,8,0),0) -> 0 | I71: =IFERROR(VLOOKUP($A71,'Monthly Statement'!$A$2:$V$800,13,0),0) -> 0 | J71: =IF($C$3>0,ROUND(SUM(I71-H71),2),0) -> 0 | K71: =IFERROR(VLOOKUP($A71,Pupils!$A$4:$T$800,9,0),0) -> 0 | L71: =IFERROR(VLOOKUP($A71,'Monthly Statement'!$A$2:$V$800,14,0),0) -> 0 | M71: =IF($C$3>1,ROUND(SUM(L71-K71),2),0) -> 0 | N71: =IFERROR(VLOOKUP($A71,Pupils!$A$4:$T$800,10,0),0) -> 0 | O71: =IFERROR(VLOOKUP($A71,'Monthly Statement'!$A$2:$V$800,15,0),0) -> 0 | P71: =IF($C$3>2,ROUND(SUM(O71-N71),2),0) -> 0 | Q71: =IFERROR(VLOOKUP($A71,Pupils!$A$4:$T$800,11,0),0) -> 0 | R71: =IFERROR(VLOOKUP($A71,'Monthly Statement'!$A$2:$V$800,16,0),0) -> 0 | S71: =IF($C$3>3,ROUND(SUM(R71-Q71),2),0) -> 0 | T71: =IFERROR(VLOOKUP($A71,Pupils!$A$4:$T$800,12,0),0) -> 0 | U71: =IFERROR(VLOOKUP($A71,'Monthly Statement'!$A$2:$V$800,17,0),0) -> 0 | V71: =IF($C$3>4,ROUND(SUM(U71-T71),2),0) -> 0 | W71: =IFERROR(VLOOKUP($A71,Pupils!$A$4:$T$800,13,0),0) -> 0 | X71: =IFERROR(VLOOKUP($A71,'Monthly Statement'!$A$2:$V$800,18,0),0) -> 0 | Y71: =IF($C$3>5,ROUND(SUM(X71-W71),2),0) -> 0 | Z71: =IFERROR(VLOOKUP($A71,Pupils!$A$4:$T$800,14,0),0) -> 0 | AA71: =IFERROR(VLOOKUP($A71,'Monthly Statement'!$A$2:$V$800,19,0),0) -> 0 | AB71: =IF($C$3>6,ROUND(SUM(AA71-Z71),2),0) -> 0 | AC71: =IFERROR(VLOOKUP($A71,Pupils!$A$4:$T$800,15,0),0) -> 0 | AD71: =IFERROR(VLOOKUP($A71,'Monthly Statement'!$A$2:$V$800,20,0),0) -> 0 | AE71: =IF($C$3>7,ROUND(SUM(AD71-AC71),2),0) -> 0 | AF71: =IFERROR(VLOOKUP($A71,Pupils!$A$4:$T$800,16,0),0) -> 0 | AG71: =IFERROR(VLOOKUP($A71,'Monthly Statement'!$A$2:$V$800,21,0),0) -> 0 | AH71: =IF($C$3>8,ROUND(SUM(AG71-AF71),2),0) -> 0 | AI71: =IFERROR(VLOOKUP($A71,Pupils!$A$4:$T$800,17,0),0) -> 0 | AJ71: =IFERROR(VLOOKUP($A71,'Monthly Statement'!$A$2:$V$800,22,0),0) -> 0 | AK71: =IF($C$3>9,ROUND(SUM(AJ71-AI71),2),0) -> 0 | AL71: =IFERROR(VLOOKUP($A71,Pupils!$A$4:$T$800,18,0),0) -> 0 | AM71: =IFERROR(VLOOKUP($A71,'Monthly Statement'!$A$2:$V$800,23,0),0) -> 0 | AN71: =IF($C$3>10,ROUND(SUM(AM71-AL71),2),0) -> 0 | AO71: =IFERROR(VLOOKUP($A71,Pupils!$A$4:$T$800,19,0),0) -> 0 | AP71: =IFERROR(VLOOKUP($A71,'Monthly Statement'!$A$2:$V$800,24,0),0) -> 0 | AQ71: =IF($C$3>11,ROUND(SUM(AP71-AO71),2),0) -> 0
A72: ='Monthly Statement'!A68 -> 0 | B72: =IFERROR(VLOOKUP(A72,'Monthly Statement'!A:X,4,0),"") ->  | C72: =IFERROR(VLOOKUP(A72,'Monthly Statement'!A:X,5,0),"") ->  | D72: =IFERROR(VLOOKUP(A72,'Monthly Statement'!A:X,7,0),"") ->  | E72: =IFERROR(VLOOKUP(A72,'Monthly Statement'!A:X,9,0),"") ->  | F72: =IFERROR(VLOOKUP(A72,'Monthly Statement'!A:X,10,0),"") ->  | G72: 0 | H72: =IFERROR(VLOOKUP($A72,Pupils!$A$4:$T$800,8,0),0) -> 0 | I72: =IFERROR(VLOOKUP($A72,'Monthly Statement'!$A$2:$V$800,13,0),0) -> 0 | J72: 0 | K72: =IFERROR(VLOOKUP($A72,Pupils!$A$4:$T$800,9,0),0) -> 0 | L72: =IFERROR(VLOOKUP($A72,'Monthly Statement'!$A$2:$V$800,14,0),0) -> 0 | M72: 0 | N72: =IFERROR(VLOOKUP($A72,Pupils!$A$4:$T$800,10,0),0) -> 0 | O72: =IFERROR(VLOOKUP($A72,'Monthly Statement'!$A$2:$V$800,15,0),0) -> 0 | P72: 0 | Q72: =IFERROR(VLOOKUP($A72,Pupils!$A$4:$T$800,11,0),0) -> 0 | R72: =IFERROR(VLOOKUP($A72,'Monthly Statement'!$A$2:$V$800,16,0),0) -> 0 | S72: 0 | T72: =IFERROR(VLOOKUP($A72,Pupils!$A$4:$T$800,12,0),0) -> 0 | U72: =IFERROR(VLOOKUP($A72,'Monthly Statement'!$A$2:$V$800,17,0),0) -> 0 | V72: 0 | W72: =IFERROR(VLOOKUP($A72,Pupils!$A$4:$T$800,13,0),0) -> 0 | X72: =IFERROR(VLOOKUP($A72,'Monthly Statement'!$A$2:$V$800,18,0),0) -> 0 | Y72: 0 | Z72: =IFERROR(VLOOKUP($A72,Pupils!$A$4:$T$800,14,0),0) -> 0 | AA72: =IFERROR(VLOOKUP($A72,'Monthly Statement'!$A$2:$V$800,19,0),0) -> 0 | AB72: 0 | AC72: =IFERROR(VLOOKUP($A72,Pupils!$A$4:$T$800,15,0),0) -> 0 | AD72: =IFERROR(VLOOKUP($A72,'Monthly Statement'!$A$2:$V$800,20,0),0) -> 0 | AE72: 0 | AF72: =IFERROR(VLOOKUP($A72,Pupils!$A$4:$T$800,16,0),0) -> 0 | AG72: =IFERROR(VLOOKUP($A72,'Monthly Statement'!$A$2:$V$800,21,0),0) -> 0 | AH72: 0 | AI72: =IFERROR(VLOOKUP($A72,Pupils!$A$4:$T$800,17,0),0) -> 0 | AJ72: =IFERROR(VLOOKUP($A72,'Monthly Statement'!$A$2:$V$800,22,0),0) -> 0 | AK72: 0 | AL72: =IFERROR(VLOOKUP($A72,Pupils!$A$4:$T$800,18,0),0) -> 0 | AM72: =IFERROR(VLOOKUP($A72,'Monthly Statement'!$A$2:$V$800,23,0),0) -> 0 | AN72: 0 | AO72: =IFERROR(VLOOKUP($A72,Pupils!$A$4:$T$800,19,0),0) -> 0 | AP72: =IFERROR(VLOOKUP($A72,'Monthly Statement'!$A$2:$V$800,24,0),0) -> 0 | AQ72: 0
A73: ='Monthly Statement'!A69 -> 0 | B73: =IFERROR(VLOOKUP(A73,'Monthly Statement'!A:X,4,0),"") ->  | C73: =IFERROR(VLOOKUP(A73,'Monthly Statement'!A:X,5,0),"") ->  | D73: =IFERROR(VLOOKUP(A73,'Monthly Statement'!A:X,7,0),"") ->  | E73: =IFERROR(VLOOKUP(A73,'Monthly Statement'!A:X,9,0),"") ->  | F73: =IFERROR(VLOOKUP(A73,'Monthly Statement'!A:X,10,0),"") ->  | G73: 0 | H73: =IFERROR(VLOOKUP($A73,Pupils!$A$4:$T$800,8,0),0) -> 0 | I73: =IFERROR(VLOOKUP($A73,'Monthly Statement'!$A$2:$V$800,13,0),0) -> 0 | J73: 0 | K73: =IFERROR(VLOOKUP($A73,Pupils!$A$4:$T$800,9,0),0) -> 0 | L73: =IFERROR(VLOOKUP($A73,'Monthly Statement'!$A$2:$V$800,14,0),0) -> 0 | M73: 0 | N73: =IFERROR(VLOOKUP($A73,Pupils!$A$4:$T$800,10,0),0) -> 0 | O73: =IFERROR(VLOOKUP($A73,'Monthly Statement'!$A$2:$V$800,15,0),0) -> 0 | P73: 0 | Q73: =IFERROR(VLOOKUP($A73,Pupils!$A$4:$T$800,11,0),0) -> 0 | R73: =IFERROR(VLOOKUP($A73,'Monthly Statement'!$A$2:$V$800,16,0),0) -> 0 | S73: 0 | T73: =IFERROR(VLOOKUP($A73,Pupils!$A$4:$T$800,12,0),0) -> 0 | U73: =IFERROR(VLOOKUP($A73,'Monthly Statement'!$A$2:$V$800,17,0),0) -> 0 | V73: 0 | W73: =IFERROR(VLOOKUP($A73,Pupils!$A$4:$T$800,13,0),0) -> 0 | X73: =IFERROR(VLOOKUP($A73,'Monthly Statement'!$A$2:$V$800,18,0),0) -> 0 | Y73: 0 | Z73: =IFERROR(VLOOKUP($A73,Pupils!$A$4:$T$800,14,0),0) -> 0 | AA73: =IFERROR(VLOOKUP($A73,'Monthly Statement'!$A$2:$V$800,19,0),0) -> 0 | AB73: 0 | AC73: =IFERROR(VLOOKUP($A73,Pupils!$A$4:$T$800,15,0),0) -> 0 | AD73: =IFERROR(VLOOKUP($A73,'Monthly Statement'!$A$2:$V$800,20,0),0) -> 0 | AE73: 0 | AF73: =IFERROR(VLOOKUP($A73,Pupils!$A$4:$T$800,16,0),0) -> 0 | AG73: =IFERROR(VLOOKUP($A73,'Monthly Statement'!$A$2:$V$800,21,0),0) -> 0 | AH73: 0 | AI73: =IFERROR(VLOOKUP($A73,Pupils!$A$4:$T$800,17,0),0) -> 0 | AJ73: =IFERROR(VLOOKUP($A73,'Monthly Statement'!$A$2:$V$800,22,0),0) -> 0 | AK73: 0 | AL73: =IFERROR(VLOOKUP($A73,Pupils!$A$4:$T$800,18,0),0) -> 0 | AM73: =IFERROR(VLOOKUP($A73,'Monthly Statement'!$A$2:$V$800,23,0),0) -> 0 | AN73: 0 | AO73: =IFERROR(VLOOKUP($A73,Pupils!$A$4:$T$800,19,0),0) -> 0 | AP73: =IFERROR(VLOOKUP($A73,'Monthly Statement'!$A$2:$V$800,24,0),0) -> 0 | AQ73: 0
A74: ='Monthly Statement'!A70 -> 0 | B74: =IFERROR(VLOOKUP(A74,'Monthly Statement'!A:X,4,0),"") ->  | C74: =IFERROR(VLOOKUP(A74,'Monthly Statement'!A:X,5,0),"") ->  | D74: =IFERROR(VLOOKUP(A74,'Monthly Statement'!A:X,7,0),"") ->  | E74: =IFERROR(VLOOKUP(A74,'Monthly Statement'!A:X,9,0),"") ->  | F74: =IFERROR(VLOOKUP(A74,'Monthly Statement'!A:X,10,0),"") ->  | G74: 0 | H74: =IFERROR(VLOOKUP($A74,Pupils!$A$4:$T$800,8,0),0) -> 0 | I74: =IFERROR(VLOOKUP($A74,'Monthly Statement'!$A$2:$V$800,13,0),0) -> 0 | J74: 0 | K74: =IFERROR(VLOOKUP($A74,Pupils!$A$4:$T$800,9,0),0) -> 0 | L74: =IFERROR(VLOOKUP($A74,'Monthly Statement'!$A$2:$V$800,14,0),0) -> 0 | M74: 0 | N74: =IFERROR(VLOOKUP($A74,Pupils!$A$4:$T$800,10,0),0) -> 0 | O74: =IFERROR(VLOOKUP($A74,'Monthly Statement'!$A$2:$V$800,15,0),0) -> 0 | P74: 0 | Q74: =IFERROR(VLOOKUP($A74,Pupils!$A$4:$T$800,11,0),0) -> 0 | R74: =IFERROR(VLOOKUP($A74,'Monthly Statement'!$A$2:$V$800,16,0),0) -> 0 | S74: 0 | T74: =IFERROR(VLOOKUP($A74,Pupils!$A$4:$T$800,12,0),0) -> 0 | U74: =IFERROR(VLOOKUP($A74,'Monthly Statement'!$A$2:$V$800,17,0),0) -> 0 | V74: 0 | W74: =IFERROR(VLOOKUP($A74,Pupils!$A$4:$T$800,13,0),0) -> 0 | X74: =IFERROR(VLOOKUP($A74,'Monthly Statement'!$A$2:$V$800,18,0),0) -> 0 | Y74: 0 | Z74: =IFERROR(VLOOKUP($A74,Pupils!$A$4:$T$800,14,0),0) -> 0 | AA74: =IFERROR(VLOOKUP($A74,'Monthly Statement'!$A$2:$V$800,19,0),0) -> 0 | AB74: 0 | AC74: =IFERROR(VLOOKUP($A74,Pupils!$A$4:$T$800,15,0),0) -> 0 | AD74: =IFERROR(VLOOKUP($A74,'Monthly Statement'!$A$2:$V$800,20,0),0) -> 0 | AE74: 0 | AF74: =IFERROR(VLOOKUP($A74,Pupils!$A$4:$T$800,16,0),0) -> 0 | AG74: =IFERROR(VLOOKUP($A74,'Monthly Statement'!$A$2:$V$800,21,0),0) -> 0 | AH74: 0 | AI74: =IFERROR(VLOOKUP($A74,Pupils!$A$4:$T$800,17,0),0) -> 0 | AJ74: =IFERROR(VLOOKUP($A74,'Monthly Statement'!$A$2:$V$800,22,0),0) -> 0 | AK74: 0 | AL74: =IFERROR(VLOOKUP($A74,Pupils!$A$4:$T$800,18,0),0) -> 0 | AM74: =IFERROR(VLOOKUP($A74,'Monthly Statement'!$A$2:$V$800,23,0),0) -> 0 | AN74: 0 | AO74: =IFERROR(VLOOKUP($A74,Pupils!$A$4:$T$800,19,0),0) -> 0 | AP74: =IFERROR(VLOOKUP($A74,'Monthly Statement'!$A$2:$V$800,24,0),0) -> 0 | AQ74: 0
A75: ='Monthly Statement'!A71 -> 0 | B75: =IFERROR(VLOOKUP(A75,'Monthly Statement'!A:X,4,0),"") ->  | C75: =IFERROR(VLOOKUP(A75,'Monthly Statement'!A:X,5,0),"") ->  | D75: =IFERROR(VLOOKUP(A75,'Monthly Statement'!A:X,7,0),"") ->  | E75: =IFERROR(VLOOKUP(A75,'Monthly Statement'!A:X,9,0),"") ->  | F75: =IFERROR(VLOOKUP(A75,'Monthly Statement'!A:X,10,0),"") ->  | G75: 0 | H75: =IFERROR(VLOOKUP($A75,Pupils!$A$4:$T$800,8,0),0) -> 0 | I75: =IFERROR(VLOOKUP($A75,'Monthly Statement'!$A$2:$V$800,13,0),0) -> 0 | J75: 0 | K75: =IFERROR(VLOOKUP($A75,Pupils!$A$4:$T$800,9,0),0) -> 0 | L75: =IFERROR(VLOOKUP($A75,'Monthly Statement'!$A$2:$V$800,14,0),0) -> 0 | M75: 0 | N75: =IFERROR(VLOOKUP($A75,Pupils!$A$4:$T$800,10,0),0) -> 0 | O75: =IFERROR(VLOOKUP($A75,'Monthly Statement'!$A$2:$V$800,15,0),0) -> 0 | P75: 0 | Q75: =IFERROR(VLOOKUP($A75,Pupils!$A$4:$T$800,11,0),0) -> 0 | R75: =IFERROR(VLOOKUP($A75,'Monthly Statement'!$A$2:$V$800,16,0),0) -> 0 | S75: 0 | T75: =IFERROR(VLOOKUP($A75,Pupils!$A$4:$T$800,12,0),0) -> 0 | U75: =IFERROR(VLOOKUP($A75,'Monthly Statement'!$A$2:$V$800,17,0),0) -> 0 | V75: 0 | W75: =IFERROR(VLOOKUP($A75,Pupils!$A$4:$T$800,13,0),0) -> 0 | X75: =IFERROR(VLOOKUP($A75,'Monthly Statement'!$A$2:$V$800,18,0),0) -> 0 | Y75: 0 | Z75: =IFERROR(VLOOKUP($A75,Pupils!$A$4:$T$800,14,0),0) -> 0 | AA75: =IFERROR(VLOOKUP($A75,'Monthly Statement'!$A$2:$V$800,19,0),0) -> 0 | AB75: 0 | AC75: =IFERROR(VLOOKUP($A75,Pupils!$A$4:$T$800,15,0),0) -> 0 | AD75: =IFERROR(VLOOKUP($A75,'Monthly Statement'!$A$2:$V$800,20,0),0) -> 0 | AE75: 0 | AF75: =IFERROR(VLOOKUP($A75,Pupils!$A$4:$T$800,16,0),0) -> 0 | AG75: =IFERROR(VLOOKUP($A75,'Monthly Statement'!$A$2:$V$800,21,0),0) -> 0 | AH75: 0 | AI75: =IFERROR(VLOOKUP($A75,Pupils!$A$4:$T$800,17,0),0) -> 0 | AJ75: =IFERROR(VLOOKUP($A75,'Monthly Statement'!$A$2:$V$800,22,0),0) -> 0 | AK75: 0 | AL75: =IFERROR(VLOOKUP($A75,Pupils!$A$4:$T$800,18,0),0) -> 0 | AM75: =IFERROR(VLOOKUP($A75,'Monthly Statement'!$A$2:$V$800,23,0),0) -> 0 | AN75: 0 | AO75: =IFERROR(VLOOKUP($A75,Pupils!$A$4:$T$800,19,0),0) -> 0 | AP75: =IFERROR(VLOOKUP($A75,'Monthly Statement'!$A$2:$V$800,24,0),0) -> 0 | AQ75: 0
A76: ='Monthly Statement'!A72 -> 0 | B76: =IFERROR(VLOOKUP(A76,'Monthly Statement'!A:X,4,0),"") ->  | C76: =IFERROR(VLOOKUP(A76,'Monthly Statement'!A:X,5,0),"") ->  | D76: =IFERROR(VLOOKUP(A76,'Monthly Statement'!A:X,7,0),"") ->  | E76: =IFERROR(VLOOKUP(A76,'Monthly Statement'!A:X,9,0),"") ->  | F76: =IFERROR(VLOOKUP(A76,'Monthly Statement'!A:X,10,0),"") ->  | G76: 0 | H76: =IFERROR(VLOOKUP($A76,Pupils!$A$4:$T$800,8,0),0) -> 0 | I76: =IFERROR(VLOOKUP($A76,'Monthly Statement'!$A$2:$V$800,13,0),0) -> 0 | J76: 0 | K76: =IFERROR(VLOOKUP($A76,Pupils!$A$4:$T$800,9,0),0) -> 0 | L76: =IFERROR(VLOOKUP($A76,'Monthly Statement'!$A$2:$V$800,14,0),0) -> 0 | M76: 0 | N76: =IFERROR(VLOOKUP($A76,Pupils!$A$4:$T$800,10,0),0) -> 0 | O76: =IFERROR(VLOOKUP($A76,'Monthly Statement'!$A$2:$V$800,15,0),0) -> 0 | P76: 0 | Q76: =IFERROR(VLOOKUP($A76,Pupils!$A$4:$T$800,11,0),0) -> 0 | R76: =IFERROR(VLOOKUP($A76,'Monthly Statement'!$A$2:$V$800,16,0),0) -> 0 | S76: 0 | T76: =IFERROR(VLOOKUP($A76,Pupils!$A$4:$T$800,12,0),0) -> 0 | U76: =IFERROR(VLOOKUP($A76,'Monthly Statement'!$A$2:$V$800,17,0),0) -> 0 | V76: 0 | W76: =IFERROR(VLOOKUP($A76,Pupils!$A$4:$T$800,13,0),0) -> 0 | X76: =IFERROR(VLOOKUP($A76,'Monthly Statement'!$A$2:$V$800,18,0),0) -> 0 | Y76: 0 | Z76: =IFERROR(VLOOKUP($A76,Pupils!$A$4:$T$800,14,0),0) -> 0 | AA76: =IFERROR(VLOOKUP($A76,'Monthly Statement'!$A$2:$V$800,19,0),0) -> 0 | AB76: 0 | AC76: =IFERROR(VLOOKUP($A76,Pupils!$A$4:$T$800,15,0),0) -> 0 | AD76: =IFERROR(VLOOKUP($A76,'Monthly Statement'!$A$2:$V$800,20,0),0) -> 0 | AE76: 0 | AF76: =IFERROR(VLOOKUP($A76,Pupils!$A$4:$T$800,16,0),0) -> 0 | AG76: =IFERROR(VLOOKUP($A76,'Monthly Statement'!$A$2:$V$800,21,0),0) -> 0 | AH76: 0 | AI76: =IFERROR(VLOOKUP($A76,Pupils!$A$4:$T$800,17,0),0) -> 0 | AJ76: =IFERROR(VLOOKUP($A76,'Monthly Statement'!$A$2:$V$800,22,0),0) -> 0 | AK76: 0 | AL76: =IFERROR(VLOOKUP($A76,Pupils!$A$4:$T$800,18,0),0) -> 0 | AM76: =IFERROR(VLOOKUP($A76,'Monthly Statement'!$A$2:$V$800,23,0),0) -> 0 | AN76: 0 | AO76: =IFERROR(VLOOKUP($A76,Pupils!$A$4:$T$800,19,0),0) -> 0 | AP76: =IFERROR(VLOOKUP($A76,'Monthly Statement'!$A$2:$V$800,24,0),0) -> 0 | AQ76: 0
A77: ='Monthly Statement'!A73 -> 0 | B77: =IFERROR(VLOOKUP(A77,'Monthly Statement'!A:X,4,0),"") ->  | C77: =IFERROR(VLOOKUP(A77,'Monthly Statement'!A:X,5,0),"") ->  | D77: =IFERROR(VLOOKUP(A77,'Monthly Statement'!A:X,7,0),"") ->  | E77: =IFERROR(VLOOKUP(A77,'Monthly Statement'!A:X,9,0),"") ->  | F77: =IFERROR(VLOOKUP(A77,'Monthly Statement'!A:X,10,0),"") ->  | G77: 0 | H77: =IFERROR(VLOOKUP($A77,Pupils!$A$4:$T$800,8,0),0) -> 0 | I77: =IFERROR(VLOOKUP($A77,'Monthly Statement'!$A$2:$V$800,13,0),0) -> 0 | J77: 0 | K77: =IFERROR(VLOOKUP($A77,Pupils!$A$4:$T$800,9,0),0) -> 0 | L77: =IFERROR(VLOOKUP($A77,'Monthly Statement'!$A$2:$V$800,14,0),0) -> 0 | M77: 0 | N77: =IFERROR(VLOOKUP($A77,Pupils!$A$4:$T$800,10,0),0) -> 0 | O77: =IFERROR(VLOOKUP($A77,'Monthly Statement'!$A$2:$V$800,15,0),0) -> 0 | P77: 0 | Q77: =IFERROR(VLOOKUP($A77,Pupils!$A$4:$T$800,11,0),0) -> 0 | R77: =IFERROR(VLOOKUP($A77,'Monthly Statement'!$A$2:$V$800,16,0),0) -> 0 | S77: 0 | T77: =IFERROR(VLOOKUP($A77,Pupils!$A$4:$T$800,12,0),0) -> 0 | U77: =IFERROR(VLOOKUP($A77,'Monthly Statement'!$A$2:$V$800,17,0),0) -> 0 | V77: 0 | W77: =IFERROR(VLOOKUP($A77,Pupils!$A$4:$T$800,13,0),0) -> 0 | X77: =IFERROR(VLOOKUP($A77,'Monthly Statement'!$A$2:$V$800,18,0),0) -> 0 | Y77: 0 | Z77: =IFERROR(VLOOKUP($A77,Pupils!$A$4:$T$800,14,0),0) -> 0 | AA77: =IFERROR(VLOOKUP($A77,'Monthly Statement'!$A$2:$V$800,19,0),0) -> 0 | AB77: 0 | AC77: =IFERROR(VLOOKUP($A77,Pupils!$A$4:$T$800,15,0),0) -> 0 | AD77: =IFERROR(VLOOKUP($A77,'Monthly Statement'!$A$2:$V$800,20,0),0) -> 0 | AE77: 0 | AF77: =IFERROR(VLOOKUP($A77,Pupils!$A$4:$T$800,16,0),0) -> 0 | AG77: =IFERROR(VLOOKUP($A77,'Monthly Statement'!$A$2:$V$800,21,0),0) -> 0 | AH77: 0 | AI77: =IFERROR(VLOOKUP($A77,Pupils!$A$4:$T$800,17,0),0) -> 0 | AJ77: =IFERROR(VLOOKUP($A77,'Monthly Statement'!$A$2:$V$800,22,0),0) -> 0 | AK77: 0 | AL77: =IFERROR(VLOOKUP($A77,Pupils!$A$4:$T$800,18,0),0) -> 0 | AM77: =IFERROR(VLOOKUP($A77,'Monthly Statement'!$A$2:$V$800,23,0),0) -> 0 | AN77: 0 | AO77: =IFERROR(VLOOKUP($A77,Pupils!$A$4:$T$800,19,0),0) -> 0 | AP77: =IFERROR(VLOOKUP($A77,'Monthly Statement'!$A$2:$V$800,24,0),0) -> 0 | AQ77: 0
A78: ='Monthly Statement'!A74 -> 0 | B78: =IFERROR(VLOOKUP(A78,'Monthly Statement'!A:X,4,0),"") ->  | C78: =IFERROR(VLOOKUP(A78,'Monthly Statement'!A:X,5,0),"") ->  | D78: =IFERROR(VLOOKUP(A78,'Monthly Statement'!A:X,7,0),"") ->  | E78: =IFERROR(VLOOKUP(A78,'Monthly Statement'!A:X,9,0),"") ->  | F78: =IFERROR(VLOOKUP(A78,'Monthly Statement'!A:X,10,0),"") ->  | G78: 0 | H78: =IFERROR(VLOOKUP($A78,Pupils!$A$4:$T$800,8,0),0) -> 0 | I78: =IFERROR(VLOOKUP($A78,'Monthly Statement'!$A$2:$V$800,13,0),0) -> 0 | J78: 0 | K78: =IFERROR(VLOOKUP($A78,Pupils!$A$4:$T$800,9,0),0) -> 0 | L78: =IFERROR(VLOOKUP($A78,'Monthly Statement'!$A$2:$V$800,14,0),0) -> 0 | M78: 0 | N78: =IFERROR(VLOOKUP($A78,Pupils!$A$4:$T$800,10,0),0) -> 0 | O78: =IFERROR(VLOOKUP($A78,'Monthly Statement'!$A$2:$V$800,15,0),0) -> 0 | P78: 0 | Q78: =IFERROR(VLOOKUP($A78,Pupils!$A$4:$T$800,11,0),0) -> 0 | R78: =IFERROR(VLOOKUP($A78,'Monthly Statement'!$A$2:$V$800,16,0),0) -> 0 | S78: 0 | T78: =IFERROR(VLOOKUP($A78,Pupils!$A$4:$T$800,12,0),0) -> 0 | U78: =IFERROR(VLOOKUP($A78,'Monthly Statement'!$A$2:$V$800,17,0),0) -> 0 | V78: 0 | W78: =IFERROR(VLOOKUP($A78,Pupils!$A$4:$T$800,13,0),0) -> 0 | X78: =IFERROR(VLOOKUP($A78,'Monthly Statement'!$A$2:$V$800,18,0),0) -> 0 | Y78: 0 | Z78: =IFERROR(VLOOKUP($A78,Pupils!$A$4:$T$800,14,0),0) -> 0 | AA78: =IFERROR(VLOOKUP($A78,'Monthly Statement'!$A$2:$V$800,19,0),0) -> 0 | AB78: 0 | AC78: =IFERROR(VLOOKUP($A78,Pupils!$A$4:$T$800,15,0),0) -> 0 | AD78: =IFERROR(VLOOKUP($A78,'Monthly Statement'!$A$2:$V$800,20,0),0) -> 0 | AE78: 0 | AF78: =IFERROR(VLOOKUP($A78,Pupils!$A$4:$T$800,16,0),0) -> 0 | AG78: =IFERROR(VLOOKUP($A78,'Monthly Statement'!$A$2:$V$800,21,0),0) -> 0 | AH78: 0 | AI78: =IFERROR(VLOOKUP($A78,Pupils!$A$4:$T$800,17,0),0) -> 0 | AJ78: =IFERROR(VLOOKUP($A78,'Monthly Statement'!$A$2:$V$800,22,0),0) -> 0 | AK78: 0 | AL78: =IFERROR(VLOOKUP($A78,Pupils!$A$4:$T$800,18,0),0) -> 0 | AM78: =IFERROR(VLOOKUP($A78,'Monthly Statement'!$A$2:$V$800,23,0),0) -> 0 | AN78: 0 | AO78: =IFERROR(VLOOKUP($A78,Pupils!$A$4:$T$800,19,0),0) -> 0 | AP78: =IFERROR(VLOOKUP($A78,'Monthly Statement'!$A$2:$V$800,24,0),0) -> 0 | AQ78: 0
A79: ='Monthly Statement'!A75 -> 0 | B79: =IFERROR(VLOOKUP(A79,'Monthly Statement'!A:X,4,0),"") ->  | C79: =IFERROR(VLOOKUP(A79,'Monthly Statement'!A:X,5,0),"") ->  | D79: =IFERROR(VLOOKUP(A79,'Monthly Statement'!A:X,7,0),"") ->  | E79: =IFERROR(VLOOKUP(A79,'Monthly Statement'!A:X,9,0),"") ->  | F79: =IFERROR(VLOOKUP(A79,'Monthly Statement'!A:X,10,0),"") ->  | G79: 0 | H79: =IFERROR(VLOOKUP($A79,Pupils!$A$4:$T$800,8,0),0) -> 0 | I79: =IFERROR(VLOOKUP($A79,'Monthly Statement'!$A$2:$V$800,13,0),0) -> 0 | J79: 0 | K79: =IFERROR(VLOOKUP($A79,Pupils!$A$4:$T$800,9,0),0) -> 0 | L79: =IFERROR(VLOOKUP($A79,'Monthly Statement'!$A$2:$V$800,14,0),0) -> 0 | M79: 0 | N79: =IFERROR(VLOOKUP($A79,Pupils!$A$4:$T$800,10,0),0) -> 0 | O79: =IFERROR(VLOOKUP($A79,'Monthly Statement'!$A$2:$V$800,15,0),0) -> 0 | P79: 0 | Q79: =IFERROR(VLOOKUP($A79,Pupils!$A$4:$T$800,11,0),0) -> 0 | R79: =IFERROR(VLOOKUP($A79,'Monthly Statement'!$A$2:$V$800,16,0),0) -> 0 | S79: 0 | T79: =IFERROR(VLOOKUP($A79,Pupils!$A$4:$T$800,12,0),0) -> 0 | U79: =IFERROR(VLOOKUP($A79,'Monthly Statement'!$A$2:$V$800,17,0),0) -> 0 | V79: 0 | W79: =IFERROR(VLOOKUP($A79,Pupils!$A$4:$T$800,13,0),0) -> 0 | X79: =IFERROR(VLOOKUP($A79,'Monthly Statement'!$A$2:$V$800,18,0),0) -> 0 | Y79: 0 | Z79: =IFERROR(VLOOKUP($A79,Pupils!$A$4:$T$800,14,0),0) -> 0 | AA79: =IFERROR(VLOOKUP($A79,'Monthly Statement'!$A$2:$V$800,19,0),0) -> 0 | AB79: 0 | AC79: =IFERROR(VLOOKUP($A79,Pupils!$A$4:$T$800,15,0),0) -> 0 | AD79: =IFERROR(VLOOKUP($A79,'Monthly Statement'!$A$2:$V$800,20,0),0) -> 0 | AE79: 0 | AF79: =IFERROR(VLOOKUP($A79,Pupils!$A$4:$T$800,16,0),0) -> 0 | AG79: =IFERROR(VLOOKUP($A79,'Monthly Statement'!$A$2:$V$800,21,0),0) -> 0 | AH79: 0 | AI79: =IFERROR(VLOOKUP($A79,Pupils!$A$4:$T$800,17,0),0) -> 0 | AJ79: =IFERROR(VLOOKUP($A79,'Monthly Statement'!$A$2:$V$800,22,0),0) -> 0 | AK79: 0 | AL79: =IFERROR(VLOOKUP($A79,Pupils!$A$4:$T$800,18,0),0) -> 0 | AM79: =IFERROR(VLOOKUP($A79,'Monthly Statement'!$A$2:$V$800,23,0),0) -> 0 | AN79: 0 | AO79: =IFERROR(VLOOKUP($A79,Pupils!$A$4:$T$800,19,0),0) -> 0 | AP79: =IFERROR(VLOOKUP($A79,'Monthly Statement'!$A$2:$V$800,24,0),0) -> 0 | AQ79: 0
A80: ='Monthly Statement'!A76 -> 0 | B80: =IFERROR(VLOOKUP(A80,'Monthly Statement'!A:X,4,0),"") ->  | C80: =IFERROR(VLOOKUP(A80,'Monthly Statement'!A:X,5,0),"") ->  | D80: =IFERROR(VLOOKUP(A80,'Monthly Statement'!A:X,7,0),"") ->  | E80: =IFERROR(VLOOKUP(A80,'Monthly Statement'!A:X,9,0),"") ->  | F80: =IFERROR(VLOOKUP(A80,'Monthly Statement'!A:X,10,0),"") ->  | G80: 0 | H80: =IFERROR(VLOOKUP($A80,Pupils!$A$4:$T$800,8,0),0) -> 0 | I80: =IFERROR(VLOOKUP($A80,'Monthly Statement'!$A$2:$V$800,13,0),0) -> 0 | J80: 0 | K80: =IFERROR(VLOOKUP($A80,Pupils!$A$4:$T$800,9,0),0) -> 0 | L80: =IFERROR(VLOOKUP($A80,'Monthly Statement'!$A$2:$V$800,14,0),0) -> 0 | M80: 0 | N80: =IFERROR(VLOOKUP($A80,Pupils!$A$4:$T$800,10,0),0) -> 0 | O80: =IFERROR(VLOOKUP($A80,'Monthly Statement'!$A$2:$V$800,15,0),0) -> 0 | P80: 0 | Q80: =IFERROR(VLOOKUP($A80,Pupils!$A$4:$T$800,11,0),0) -> 0 | R80: =IFERROR(VLOOKUP($A80,'Monthly Statement'!$A$2:$V$800,16,0),0) -> 0 | S80: 0 | T80: =IFERROR(VLOOKUP($A80,Pupils!$A$4:$T$800,12,0),0) -> 0 | U80: =IFERROR(VLOOKUP($A80,'Monthly Statement'!$A$2:$V$800,17,0),0) -> 0 | V80: 0 | W80: =IFERROR(VLOOKUP($A80,Pupils!$A$4:$T$800,13,0),0) -> 0 | X80: =IFERROR(VLOOKUP($A80,'Monthly Statement'!$A$2:$V$800,18,0),0) -> 0 | Y80: 0 | Z80: =IFERROR(VLOOKUP($A80,Pupils!$A$4:$T$800,14,0),0) -> 0 | AA80: =IFERROR(VLOOKUP($A80,'Monthly Statement'!$A$2:$V$800,19,0),0) -> 0 | AB80: 0 | AC80: =IFERROR(VLOOKUP($A80,Pupils!$A$4:$T$800,15,0),0) -> 0 | AD80: =IFERROR(VLOOKUP($A80,'Monthly Statement'!$A$2:$V$800,20,0),0) -> 0 | AE80: 0 | AF80: =IFERROR(VLOOKUP($A80,Pupils!$A$4:$T$800,16,0),0) -> 0 | AG80: =IFERROR(VLOOKUP($A80,'Monthly Statement'!$A$2:$V$800,21,0),0) -> 0 | AH80: 0 | AI80: =IFERROR(VLOOKUP($A80,Pupils!$A$4:$T$800,17,0),0) -> 0 | AJ80: =IFERROR(VLOOKUP($A80,'Monthly Statement'!$A$2:$V$800,22,0),0) -> 0 | AK80: 0 | AL80: =IFERROR(VLOOKUP($A80,Pupils!$A$4:$T$800,18,0),0) -> 0 | AM80: =IFERROR(VLOOKUP($A80,'Monthly Statement'!$A$2:$V$800,23,0),0) -> 0 | AN80: 0 | AO80: =IFERROR(VLOOKUP($A80,Pupils!$A$4:$T$800,19,0),0) -> 0 | AP80: =IFERROR(VLOOKUP($A80,'Monthly Statement'!$A$2:$V$800,24,0),0) -> 0 | AQ80: 0
A81: ='Monthly Statement'!A77 -> 0 | B81: =IFERROR(VLOOKUP(A81,'Monthly Statement'!A:X,4,0),"") ->  | C81: =IFERROR(VLOOKUP(A81,'Monthly Statement'!A:X,5,0),"") ->  | D81: =IFERROR(VLOOKUP(A81,'Monthly Statement'!A:X,7,0),"") ->  | E81: =IFERROR(VLOOKUP(A81,'Monthly Statement'!A:X,9,0),"") ->  | F81: =IFERROR(VLOOKUP(A81,'Monthly Statement'!A:X,10,0),"") ->  | G81: 0 | H81: =IFERROR(VLOOKUP($A81,Pupils!$A$4:$T$800,8,0),0) -> 0 | I81: =IFERROR(VLOOKUP($A81,'Monthly Statement'!$A$2:$V$800,13,0),0) -> 0 | J81: 0 | K81: =IFERROR(VLOOKUP($A81,Pupils!$A$4:$T$800,9,0),0) -> 0 | L81: =IFERROR(VLOOKUP($A81,'Monthly Statement'!$A$2:$V$800,14,0),0) -> 0 | M81: 0 | N81: =IFERROR(VLOOKUP($A81,Pupils!$A$4:$T$800,10,0),0) -> 0 | O81: =IFERROR(VLOOKUP($A81,'Monthly Statement'!$A$2:$V$800,15,0),0) -> 0 | P81: 0 | Q81: =IFERROR(VLOOKUP($A81,Pupils!$A$4:$T$800,11,0),0) -> 0 | R81: =IFERROR(VLOOKUP($A81,'Monthly Statement'!$A$2:$V$800,16,0),0) -> 0 | S81: 0 | T81: =IFERROR(VLOOKUP($A81,Pupils!$A$4:$T$800,12,0),0) -> 0 | U81: =IFERROR(VLOOKUP($A81,'Monthly Statement'!$A$2:$V$800,17,0),0) -> 0 | V81: 0 | W81: =IFERROR(VLOOKUP($A81,Pupils!$A$4:$T$800,13,0),0) -> 0 | X81: =IFERROR(VLOOKUP($A81,'Monthly Statement'!$A$2:$V$800,18,0),0) -> 0 | Y81: 0 | Z81: =IFERROR(VLOOKUP($A81,Pupils!$A$4:$T$800,14,0),0) -> 0 | AA81: =IFERROR(VLOOKUP($A81,'Monthly Statement'!$A$2:$V$800,19,0),0) -> 0 | AB81: 0 | AC81: =IFERROR(VLOOKUP($A81,Pupils!$A$4:$T$800,15,0),0) -> 0 | AD81: =IFERROR(VLOOKUP($A81,'Monthly Statement'!$A$2:$V$800,20,0),0) -> 0 | AE81: 0 | AF81: =IFERROR(VLOOKUP($A81,Pupils!$A$4:$T$800,16,0),0) -> 0 | AG81: =IFERROR(VLOOKUP($A81,'Monthly Statement'!$A$2:$V$800,21,0),0) -> 0 | AH81: 0 | AI81: =IFERROR(VLOOKUP($A81,Pupils!$A$4:$T$800,17,0),0) -> 0 | AJ81: =IFERROR(VLOOKUP($A81,'Monthly Statement'!$A$2:$V$800,22,0),0) -> 0 | AK81: 0 | AL81: =IFERROR(VLOOKUP($A81,Pupils!$A$4:$T$800,18,0),0) -> 0 | AM81: =IFERROR(VLOOKUP($A81,'Monthly Statement'!$A$2:$V$800,23,0),0) -> 0 | AN81: 0 | AO81: =IFERROR(VLOOKUP($A81,Pupils!$A$4:$T$800,19,0),0) -> 0 | AP81: =IFERROR(VLOOKUP($A81,'Monthly Statement'!$A$2:$V$800,24,0),0) -> 0 | AQ81: 0
A82: ='Monthly Statement'!A78 -> 0 | B82: =IFERROR(VLOOKUP(A82,'Monthly Statement'!A:X,4,0),"") ->  | C82: =IFERROR(VLOOKUP(A82,'Monthly Statement'!A:X,5,0),"") ->  | D82: =IFERROR(VLOOKUP(A82,'Monthly Statement'!A:X,7,0),"") ->  | E82: =IFERROR(VLOOKUP(A82,'Monthly Statement'!A:X,9,0),"") ->  | F82: =IFERROR(VLOOKUP(A82,'Monthly Statement'!A:X,10,0),"") ->  | G82: 0 | H82: =IFERROR(VLOOKUP($A82,Pupils!$A$4:$T$800,8,0),0) -> 0 | I82: =IFERROR(VLOOKUP($A82,'Monthly Statement'!$A$2:$V$800,13,0),0) -> 0 | J82: 0 | K82: =IFERROR(VLOOKUP($A82,Pupils!$A$4:$T$800,9,0),0) -> 0 | L82: =IFERROR(VLOOKUP($A82,'Monthly Statement'!$A$2:$V$800,14,0),0) -> 0 | M82: 0 | N82: =IFERROR(VLOOKUP($A82,Pupils!$A$4:$T$800,10,0),0) -> 0 | O82: =IFERROR(VLOOKUP($A82,'Monthly Statement'!$A$2:$V$800,15,0),0) -> 0 | P82: 0 | Q82: =IFERROR(VLOOKUP($A82,Pupils!$A$4:$T$800,11,0),0) -> 0 | R82: =IFERROR(VLOOKUP($A82,'Monthly Statement'!$A$2:$V$800,16,0),0) -> 0 | S82: 0 | T82: =IFERROR(VLOOKUP($A82,Pupils!$A$4:$T$800,12,0),0) -> 0 | U82: =IFERROR(VLOOKUP($A82,'Monthly Statement'!$A$2:$V$800,17,0),0) -> 0 | V82: 0 | W82: =IFERROR(VLOOKUP($A82,Pupils!$A$4:$T$800,13,0),0) -> 0 | X82: =IFERROR(VLOOKUP($A82,'Monthly Statement'!$A$2:$V$800,18,0),0) -> 0 | Y82: 0 | Z82: =IFERROR(VLOOKUP($A82,Pupils!$A$4:$T$800,14,0),0) -> 0 | AA82: =IFERROR(VLOOKUP($A82,'Monthly Statement'!$A$2:$V$800,19,0),0) -> 0 | AB82: 0 | AC82: =IFERROR(VLOOKUP($A82,Pupils!$A$4:$T$800,15,0),0) -> 0 | AD82: =IFERROR(VLOOKUP($A82,'Monthly Statement'!$A$2:$V$800,20,0),0) -> 0 | AE82: 0 | AF82: =IFERROR(VLOOKUP($A82,Pupils!$A$4:$T$800,16,0),0) -> 0 | AG82: =IFERROR(VLOOKUP($A82,'Monthly Statement'!$A$2:$V$800,21,0),0) -> 0 | AH82: 0 | AI82: =IFERROR(VLOOKUP($A82,Pupils!$A$4:$T$800,17,0),0) -> 0 | AJ82: =IFERROR(VLOOKUP($A82,'Monthly Statement'!$A$2:$V$800,22,0),0) -> 0 | AK82: 0 | AL82: =IFERROR(VLOOKUP($A82,Pupils!$A$4:$T$800,18,0),0) -> 0 | AM82: =IFERROR(VLOOKUP($A82,'Monthly Statement'!$A$2:$V$800,23,0),0) -> 0 | AN82: 0 | AO82: =IFERROR(VLOOKUP($A82,Pupils!$A$4:$T$800,19,0),0) -> 0 | AP82: =IFERROR(VLOOKUP($A82,'Monthly Statement'!$A$2:$V$800,24,0),0) -> 0 | AQ82: 0
A83: ='Monthly Statement'!A79 -> 0 | B83: =IFERROR(VLOOKUP(A83,'Monthly Statement'!A:X,4,0),"") ->  | C83: =IFERROR(VLOOKUP(A83,'Monthly Statement'!A:X,5,0),"") ->  | D83: =IFERROR(VLOOKUP(A83,'Monthly Statement'!A:X,7,0),"") ->  | E83: =IFERROR(VLOOKUP(A83,'Monthly Statement'!A:X,9,0),"") ->  | F83: =IFERROR(VLOOKUP(A83,'Monthly Statement'!A:X,10,0),"") ->  | G83: 0 | H83: =IFERROR(VLOOKUP($A83,Pupils!$A$4:$T$800,8,0),0) -> 0 | I83: =IFERROR(VLOOKUP($A83,'Monthly Statement'!$A$2:$V$800,13,0),0) -> 0 | J83: 0 | K83: =IFERROR(VLOOKUP($A83,Pupils!$A$4:$T$800,9,0),0) -> 0 | L83: =IFERROR(VLOOKUP($A83,'Monthly Statement'!$A$2:$V$800,14,0),0) -> 0 | M83: 0 | N83: =IFERROR(VLOOKUP($A83,Pupils!$A$4:$T$800,10,0),0) -> 0 | O83: =IFERROR(VLOOKUP($A83,'Monthly Statement'!$A$2:$V$800,15,0),0) -> 0 | P83: 0 | Q83: =IFERROR(VLOOKUP($A83,Pupils!$A$4:$T$800,11,0),0) -> 0 | R83: =IFERROR(VLOOKUP($A83,'Monthly Statement'!$A$2:$V$800,16,0),0) -> 0 | S83: 0 | T83: =IFERROR(VLOOKUP($A83,Pupils!$A$4:$T$800,12,0),0) -> 0 | U83: =IFERROR(VLOOKUP($A83,'Monthly Statement'!$A$2:$V$800,17,0),0) -> 0 | V83: 0 | W83: =IFERROR(VLOOKUP($A83,Pupils!$A$4:$T$800,13,0),0) -> 0 | X83: =IFERROR(VLOOKUP($A83,'Monthly Statement'!$A$2:$V$800,18,0),0) -> 0 | Y83: 0 | Z83: =IFERROR(VLOOKUP($A83,Pupils!$A$4:$T$800,14,0),0) -> 0 | AA83: =IFERROR(VLOOKUP($A83,'Monthly Statement'!$A$2:$V$800,19,0),0) -> 0 | AB83: 0 | AC83: =IFERROR(VLOOKUP($A83,Pupils!$A$4:$T$800,15,0),0) -> 0 | AD83: =IFERROR(VLOOKUP($A83,'Monthly Statement'!$A$2:$V$800,20,0),0) -> 0 | AE83: 0 | AF83: =IFERROR(VLOOKUP($A83,Pupils!$A$4:$T$800,16,0),0) -> 0 | AG83: =IFERROR(VLOOKUP($A83,'Monthly Statement'!$A$2:$V$800,21,0),0) -> 0 | AH83: 0 | AI83: =IFERROR(VLOOKUP($A83,Pupils!$A$4:$T$800,17,0),0) -> 0 | AJ83: =IFERROR(VLOOKUP($A83,'Monthly Statement'!$A$2:$V$800,22,0),0) -> 0 | AK83: 0 | AL83: =IFERROR(VLOOKUP($A83,Pupils!$A$4:$T$800,18,0),0) -> 0 | AM83: =IFERROR(VLOOKUP($A83,'Monthly Statement'!$A$2:$V$800,23,0),0) -> 0 | AN83: 0 | AO83: =IFERROR(VLOOKUP($A83,Pupils!$A$4:$T$800,19,0),0) -> 0 | AP83: =IFERROR(VLOOKUP($A83,'Monthly Statement'!$A$2:$V$800,24,0),0) -> 0 | AQ83: 0
A84: ='Monthly Statement'!A80 -> 0 | B84: =IFERROR(VLOOKUP(A84,'Monthly Statement'!A:X,4,0),"") ->  | C84: =IFERROR(VLOOKUP(A84,'Monthly Statement'!A:X,5,0),"") ->  | D84: =IFERROR(VLOOKUP(A84,'Monthly Statement'!A:X,7,0),"") ->  | E84: =IFERROR(VLOOKUP(A84,'Monthly Statement'!A:X,9,0),"") ->  | F84: =IFERROR(VLOOKUP(A84,'Monthly Statement'!A:X,10,0),"") ->  | G84: 0 | H84: =IFERROR(VLOOKUP($A84,Pupils!$A$4:$T$800,8,0),0) -> 0 | I84: =IFERROR(VLOOKUP($A84,'Monthly Statement'!$A$2:$V$800,13,0),0) -> 0 | J84: 0 | K84: =IFERROR(VLOOKUP($A84,Pupils!$A$4:$T$800,9,0),0) -> 0 | L84: =IFERROR(VLOOKUP($A84,'Monthly Statement'!$A$2:$V$800,14,0),0) -> 0 | M84: 0 | N84: =IFERROR(VLOOKUP($A84,Pupils!$A$4:$T$800,10,0),0) -> 0 | O84: =IFERROR(VLOOKUP($A84,'Monthly Statement'!$A$2:$V$800,15,0),0) -> 0 | P84: 0 | Q84: =IFERROR(VLOOKUP($A84,Pupils!$A$4:$T$800,11,0),0) -> 0 | R84: =IFERROR(VLOOKUP($A84,'Monthly Statement'!$A$2:$V$800,16,0),0) -> 0 | S84: 0 | T84: =IFERROR(VLOOKUP($A84,Pupils!$A$4:$T$800,12,0),0) -> 0 | U84: =IFERROR(VLOOKUP($A84,'Monthly Statement'!$A$2:$V$800,17,0),0) -> 0 | V84: 0 | W84: =IFERROR(VLOOKUP($A84,Pupils!$A$4:$T$800,13,0),0) -> 0 | X84: =IFERROR(VLOOKUP($A84,'Monthly Statement'!$A$2:$V$800,18,0),0) -> 0 | Y84: 0 | Z84: =IFERROR(VLOOKUP($A84,Pupils!$A$4:$T$800,14,0),0) -> 0 | AA84: =IFERROR(VLOOKUP($A84,'Monthly Statement'!$A$2:$V$800,19,0),0) -> 0 | AB84: 0 | AC84: =IFERROR(VLOOKUP($A84,Pupils!$A$4:$T$800,15,0),0) -> 0 | AD84: =IFERROR(VLOOKUP($A84,'Monthly Statement'!$A$2:$V$800,20,0),0) -> 0 | AE84: 0 | AF84: =IFERROR(VLOOKUP($A84,Pupils!$A$4:$T$800,16,0),0) -> 0 | AG84: =IFERROR(VLOOKUP($A84,'Monthly Statement'!$A$2:$V$800,21,0),0) -> 0 | AH84: 0 | AI84: =IFERROR(VLOOKUP($A84,Pupils!$A$4:$T$800,17,0),0) -> 0 | AJ84: =IFERROR(VLOOKUP($A84,'Monthly Statement'!$A$2:$V$800,22,0),0) -> 0 | AK84: 0 | AL84: =IFERROR(VLOOKUP($A84,Pupils!$A$4:$T$800,18,0),0) -> 0 | AM84: =IFERROR(VLOOKUP($A84,'Monthly Statement'!$A$2:$V$800,23,0),0) -> 0 | AN84: 0 | AO84: =IFERROR(VLOOKUP($A84,Pupils!$A$4:$T$800,19,0),0) -> 0 | AP84: =IFERROR(VLOOKUP($A84,'Monthly Statement'!$A$2:$V$800,24,0),0) -> 0 | AQ84: 0
A85: ='Monthly Statement'!A81 -> 0 | B85: =IFERROR(VLOOKUP(A85,'Monthly Statement'!A:X,4,0),"") ->  | C85: =IFERROR(VLOOKUP(A85,'Monthly Statement'!A:X,5,0),"") ->  | D85: =IFERROR(VLOOKUP(A85,'Monthly Statement'!A:X,7,0),"") ->  | E85: =IFERROR(VLOOKUP(A85,'Monthly Statement'!A:X,9,0),"") ->  | F85: =IFERROR(VLOOKUP(A85,'Monthly Statement'!A:X,10,0),"") ->  | G85: 0 | H85: =IFERROR(VLOOKUP($A85,Pupils!$A$4:$T$800,8,0),0) -> 0 | I85: =IFERROR(VLOOKUP($A85,'Monthly Statement'!$A$2:$V$800,13,0),0) -> 0 | J85: 0 | K85: =IFERROR(VLOOKUP($A85,Pupils!$A$4:$T$800,9,0),0) -> 0 | L85: =IFERROR(VLOOKUP($A85,'Monthly Statement'!$A$2:$V$800,14,0),0) -> 0 | M85: 0 | N85: =IFERROR(VLOOKUP($A85,Pupils!$A$4:$T$800,10,0),0) -> 0 | O85: =IFERROR(VLOOKUP($A85,'Monthly Statement'!$A$2:$V$800,15,0),0) -> 0 | P85: 0 | Q85: =IFERROR(VLOOKUP($A85,Pupils!$A$4:$T$800,11,0),0) -> 0 | R85: =IFERROR(VLOOKUP($A85,'Monthly Statement'!$A$2:$V$800,16,0),0) -> 0 | S85: 0 | T85: =IFERROR(VLOOKUP($A85,Pupils!$A$4:$T$800,12,0),0) -> 0 | U85: =IFERROR(VLOOKUP($A85,'Monthly Statement'!$A$2:$V$800,17,0),0) -> 0 | V85: 0 | W85: =IFERROR(VLOOKUP($A85,Pupils!$A$4:$T$800,13,0),0) -> 0 | X85: =IFERROR(VLOOKUP($A85,'Monthly Statement'!$A$2:$V$800,18,0),0) -> 0 | Y85: 0 | Z85: =IFERROR(VLOOKUP($A85,Pupils!$A$4:$T$800,14,0),0) -> 0 | AA85: =IFERROR(VLOOKUP($A85,'Monthly Statement'!$A$2:$V$800,19,0),0) -> 0 | AB85: 0 | AC85: =IFERROR(VLOOKUP($A85,Pupils!$A$4:$T$800,15,0),0) -> 0 | AD85: =IFERROR(VLOOKUP($A85,'Monthly Statement'!$A$2:$V$800,20,0),0) -> 0 | AE85: 0 | AF85: =IFERROR(VLOOKUP($A85,Pupils!$A$4:$T$800,16,0),0) -> 0 | AG85: =IFERROR(VLOOKUP($A85,'Monthly Statement'!$A$2:$V$800,21,0),0) -> 0 | AH85: 0 | AI85: =IFERROR(VLOOKUP($A85,Pupils!$A$4:$T$800,17,0),0) -> 0 | AJ85: =IFERROR(VLOOKUP($A85,'Monthly Statement'!$A$2:$V$800,22,0),0) -> 0 | AK85: 0 | AL85: =IFERROR(VLOOKUP($A85,Pupils!$A$4:$T$800,18,0),0) -> 0 | AM85: =IFERROR(VLOOKUP($A85,'Monthly Statement'!$A$2:$V$800,23,0),0) -> 0 | AN85: 0 | AO85: =IFERROR(VLOOKUP($A85,Pupils!$A$4:$T$800,19,0),0) -> 0 | AP85: =IFERROR(VLOOKUP($A85,'Monthly Statement'!$A$2:$V$800,24,0),0) -> 0 | AQ85: 0
A86: ='Monthly Statement'!A82 -> 0 | B86: =IFERROR(VLOOKUP(A86,'Monthly Statement'!A:X,4,0),"") ->  | C86: =IFERROR(VLOOKUP(A86,'Monthly Statement'!A:X,5,0),"") ->  | D86: =IFERROR(VLOOKUP(A86,'Monthly Statement'!A:X,7,0),"") ->  | E86: =IFERROR(VLOOKUP(A86,'Monthly Statement'!A:X,9,0),"") ->  | F86: =IFERROR(VLOOKUP(A86,'Monthly Statement'!A:X,10,0),"") ->  | G86: 0 | H86: =IFERROR(VLOOKUP($A86,Pupils!$A$4:$T$800,8,0),0) -> 0 | I86: =IFERROR(VLOOKUP($A86,'Monthly Statement'!$A$2:$V$800,13,0),0) -> 0 | J86: 0 | K86: =IFERROR(VLOOKUP($A86,Pupils!$A$4:$T$800,9,0),0) -> 0 | L86: =IFERROR(VLOOKUP($A86,'Monthly Statement'!$A$2:$V$800,14,0),0) -> 0 | M86: 0 | N86: =IFERROR(VLOOKUP($A86,Pupils!$A$4:$T$800,10,0),0) -> 0 | O86: =IFERROR(VLOOKUP($A86,'Monthly Statement'!$A$2:$V$800,15,0),0) -> 0 | P86: 0 | Q86: =IFERROR(VLOOKUP($A86,Pupils!$A$4:$T$800,11,0),0) -> 0 | R86: =IFERROR(VLOOKUP($A86,'Monthly Statement'!$A$2:$V$800,16,0),0) -> 0 | S86: 0 | T86: =IFERROR(VLOOKUP($A86,Pupils!$A$4:$T$800,12,0),0) -> 0 | U86: =IFERROR(VLOOKUP($A86,'Monthly Statement'!$A$2:$V$800,17,0),0) -> 0 | V86: 0 | W86: =IFERROR(VLOOKUP($A86,Pupils!$A$4:$T$800,13,0),0) -> 0 | X86: =IFERROR(VLOOKUP($A86,'Monthly Statement'!$A$2:$V$800,18,0),0) -> 0 | Y86: 0 | Z86: =IFERROR(VLOOKUP($A86,Pupils!$A$4:$T$800,14,0),0) -> 0 | AA86: =IFERROR(VLOOKUP($A86,'Monthly Statement'!$A$2:$V$800,19,0),0) -> 0 | AB86: 0 | AC86: =IFERROR(VLOOKUP($A86,Pupils!$A$4:$T$800,15,0),0) -> 0 | AD86: =IFERROR(VLOOKUP($A86,'Monthly Statement'!$A$2:$V$800,20,0),0) -> 0 | AE86: 0 | AF86: =IFERROR(VLOOKUP($A86,Pupils!$A$4:$T$800,16,0),0) -> 0 | AG86: =IFERROR(VLOOKUP($A86,'Monthly Statement'!$A$2:$V$800,21,0),0) -> 0 | AH86: 0 | AI86: =IFERROR(VLOOKUP($A86,Pupils!$A$4:$T$800,17,0),0) -> 0 | AJ86: =IFERROR(VLOOKUP($A86,'Monthly Statement'!$A$2:$V$800,22,0),0) -> 0 | AK86: 0 | AL86: =IFERROR(VLOOKUP($A86,Pupils!$A$4:$T$800,18,0),0) -> 0 | AM86: =IFERROR(VLOOKUP($A86,'Monthly Statement'!$A$2:$V$800,23,0),0) -> 0 | AN86: 0 | AO86: =IFERROR(VLOOKUP($A86,Pupils!$A$4:$T$800,19,0),0) -> 0 | AP86: =IFERROR(VLOOKUP($A86,'Monthly Statement'!$A$2:$V$800,24,0),0) -> 0 | AQ86: 0
A87: ='Monthly Statement'!A83 -> 0 | B87: =IFERROR(VLOOKUP(A87,'Monthly Statement'!A:X,4,0),"") ->  | C87: =IFERROR(VLOOKUP(A87,'Monthly Statement'!A:X,5,0),"") ->  | D87: =IFERROR(VLOOKUP(A87,'Monthly Statement'!A:X,7,0),"") ->  | E87: =IFERROR(VLOOKUP(A87,'Monthly Statement'!A:X,9,0),"") ->  | F87: =IFERROR(VLOOKUP(A87,'Monthly Statement'!A:X,10,0),"") ->  | G87: 0 | H87: =IFERROR(VLOOKUP($A87,Pupils!$A$4:$T$800,8,0),0) -> 0 | I87: =IFERROR(VLOOKUP($A87,'Monthly Statement'!$A$2:$V$800,13,0),0) -> 0 | J87: 0 | K87: =IFERROR(VLOOKUP($A87,Pupils!$A$4:$T$800,9,0),0) -> 0 | L87: =IFERROR(VLOOKUP($A87,'Monthly Statement'!$A$2:$V$800,14,0),0) -> 0 | M87: 0 | N87: =IFERROR(VLOOKUP($A87,Pupils!$A$4:$T$800,10,0),0) -> 0 | O87: =IFERROR(VLOOKUP($A87,'Monthly Statement'!$A$2:$V$800,15,0),0) -> 0 | P87: 0 | Q87: =IFERROR(VLOOKUP($A87,Pupils!$A$4:$T$800,11,0),0) -> 0 | R87: =IFERROR(VLOOKUP($A87,'Monthly Statement'!$A$2:$V$800,16,0),0) -> 0 | S87: 0 | T87: =IFERROR(VLOOKUP($A87,Pupils!$A$4:$T$800,12,0),0) -> 0 | U87: =IFERROR(VLOOKUP($A87,'Monthly Statement'!$A$2:$V$800,17,0),0) -> 0 | V87: 0 | W87: =IFERROR(VLOOKUP($A87,Pupils!$A$4:$T$800,13,0),0) -> 0 | X87: =IFERROR(VLOOKUP($A87,'Monthly Statement'!$A$2:$V$800,18,0),0) -> 0 | Y87: 0 | Z87: =IFERROR(VLOOKUP($A87,Pupils!$A$4:$T$800,14,0),0) -> 0 | AA87: =IFERROR(VLOOKUP($A87,'Monthly Statement'!$A$2:$V$800,19,0),0) -> 0 | AB87: 0 | AC87: =IFERROR(VLOOKUP($A87,Pupils!$A$4:$T$800,15,0),0) -> 0 | AD87: =IFERROR(VLOOKUP($A87,'Monthly Statement'!$A$2:$V$800,20,0),0) -> 0 | AE87: 0 | AF87: =IFERROR(VLOOKUP($A87,Pupils!$A$4:$T$800,16,0),0) -> 0 | AG87: =IFERROR(VLOOKUP($A87,'Monthly Statement'!$A$2:$V$800,21,0),0) -> 0 | AH87: 0 | AI87: =IFERROR(VLOOKUP($A87,Pupils!$A$4:$T$800,17,0),0) -> 0 | AJ87: =IFERROR(VLOOKUP($A87,'Monthly Statement'!$A$2:$V$800,22,0),0) -> 0 | AK87: 0 | AL87: =IFERROR(VLOOKUP($A87,Pupils!$A$4:$T$800,18,0),0) -> 0 | AM87: =IFERROR(VLOOKUP($A87,'Monthly Statement'!$A$2:$V$800,23,0),0) -> 0 | AN87: 0 | AO87: =IFERROR(VLOOKUP($A87,Pupils!$A$4:$T$800,19,0),0) -> 0 | AP87: =IFERROR(VLOOKUP($A87,'Monthly Statement'!$A$2:$V$800,24,0),0) -> 0 | AQ87: 0
A88: ='Monthly Statement'!A84 -> 0 | B88: =IFERROR(VLOOKUP(A88,'Monthly Statement'!A:X,4,0),"") ->  | C88: =IFERROR(VLOOKUP(A88,'Monthly Statement'!A:X,5,0),"") ->  | D88: =IFERROR(VLOOKUP(A88,'Monthly Statement'!A:X,7,0),"") ->  | E88: =IFERROR(VLOOKUP(A88,'Monthly Statement'!A:X,9,0),"") ->  | F88: =IFERROR(VLOOKUP(A88,'Monthly Statement'!A:X,10,0),"") ->  | G88: 0 | H88: =IFERROR(VLOOKUP($A88,Pupils!$A$4:$T$800,8,0),0) -> 0 | I88: =IFERROR(VLOOKUP($A88,'Monthly Statement'!$A$2:$V$800,13,0),0) -> 0 | J88: 0 | K88: =IFERROR(VLOOKUP($A88,Pupils!$A$4:$T$800,9,0),0) -> 0 | L88: =IFERROR(VLOOKUP($A88,'Monthly Statement'!$A$2:$V$800,14,0),0) -> 0 | M88: 0 | N88: =IFERROR(VLOOKUP($A88,Pupils!$A$4:$T$800,10,0),0) -> 0 | O88: =IFERROR(VLOOKUP($A88,'Monthly Statement'!$A$2:$V$800,15,0),0) -> 0 | P88: 0 | Q88: =IFERROR(VLOOKUP($A88,Pupils!$A$4:$T$800,11,0),0) -> 0 | R88: =IFERROR(VLOOKUP($A88,'Monthly Statement'!$A$2:$V$800,16,0),0) -> 0 | S88: 0 | T88: =IFERROR(VLOOKUP($A88,Pupils!$A$4:$T$800,12,0),0) -> 0 | U88: =IFERROR(VLOOKUP($A88,'Monthly Statement'!$A$2:$V$800,17,0),0) -> 0 | V88: 0 | W88: =IFERROR(VLOOKUP($A88,Pupils!$A$4:$T$800,13,0),0) -> 0 | X88: =IFERROR(VLOOKUP($A88,'Monthly Statement'!$A$2:$V$800,18,0),0) -> 0 | Y88: 0 | Z88: =IFERROR(VLOOKUP($A88,Pupils!$A$4:$T$800,14,0),0) -> 0 | AA88: =IFERROR(VLOOKUP($A88,'Monthly Statement'!$A$2:$V$800,19,0),0) -> 0 | AB88: 0 | AC88: =IFERROR(VLOOKUP($A88,Pupils!$A$4:$T$800,15,0),0) -> 0 | AD88: =IFERROR(VLOOKUP($A88,'Monthly Statement'!$A$2:$V$800,20,0),0) -> 0 | AE88: 0 | AF88: =IFERROR(VLOOKUP($A88,Pupils!$A$4:$T$800,16,0),0) -> 0 | AG88: =IFERROR(VLOOKUP($A88,'Monthly Statement'!$A$2:$V$800,21,0),0) -> 0 | AH88: 0 | AI88: =IFERROR(VLOOKUP($A88,Pupils!$A$4:$T$800,17,0),0) -> 0 | AJ88: =IFERROR(VLOOKUP($A88,'Monthly Statement'!$A$2:$V$800,22,0),0) -> 0 | AK88: 0 | AL88: =IFERROR(VLOOKUP($A88,Pupils!$A$4:$T$800,18,0),0) -> 0 | AM88: =IFERROR(VLOOKUP($A88,'Monthly Statement'!$A$2:$V$800,23,0),0) -> 0 | AN88: 0 | AO88: =IFERROR(VLOOKUP($A88,Pupils!$A$4:$T$800,19,0),0) -> 0 | AP88: =IFERROR(VLOOKUP($A88,'Monthly Statement'!$A$2:$V$800,24,0),0) -> 0 | AQ88: 0
A89: ='Monthly Statement'!A85 -> 0 | B89: =IFERROR(VLOOKUP(A89,'Monthly Statement'!A:X,4,0),"") ->  | C89: =IFERROR(VLOOKUP(A89,'Monthly Statement'!A:X,5,0),"") ->  | D89: =IFERROR(VLOOKUP(A89,'Monthly Statement'!A:X,7,0),"") ->  | E89: =IFERROR(VLOOKUP(A89,'Monthly Statement'!A:X,9,0),"") ->  | F89: =IFERROR(VLOOKUP(A89,'Monthly Statement'!A:X,10,0),"") ->  | G89: 0 | H89: =IFERROR(VLOOKUP($A89,Pupils!$A$4:$T$800,8,0),0) -> 0 | I89: =IFERROR(VLOOKUP($A89,'Monthly Statement'!$A$2:$V$800,13,0),0) -> 0 | J89: 0 | K89: =IFERROR(VLOOKUP($A89,Pupils!$A$4:$T$800,9,0),0) -> 0 | L89: =IFERROR(VLOOKUP($A89,'Monthly Statement'!$A$2:$V$800,14,0),0) -> 0 | M89: 0 | N89: =IFERROR(VLOOKUP($A89,Pupils!$A$4:$T$800,10,0),0) -> 0 | O89: =IFERROR(VLOOKUP($A89,'Monthly Statement'!$A$2:$V$800,15,0),0) -> 0 | P89: 0 | Q89: =IFERROR(VLOOKUP($A89,Pupils!$A$4:$T$800,11,0),0) -> 0 | R89: =IFERROR(VLOOKUP($A89,'Monthly Statement'!$A$2:$V$800,16,0),0) -> 0 | S89: 0 | T89: =IFERROR(VLOOKUP($A89,Pupils!$A$4:$T$800,12,0),0) -> 0 | U89: =IFERROR(VLOOKUP($A89,'Monthly Statement'!$A$2:$V$800,17,0),0) -> 0 | V89: 0 | W89: =IFERROR(VLOOKUP($A89,Pupils!$A$4:$T$800,13,0),0) -> 0 | X89: =IFERROR(VLOOKUP($A89,'Monthly Statement'!$A$2:$V$800,18,0),0) -> 0 | Y89: 0 | Z89: =IFERROR(VLOOKUP($A89,Pupils!$A$4:$T$800,14,0),0) -> 0 | AA89: =IFERROR(VLOOKUP($A89,'Monthly Statement'!$A$2:$V$800,19,0),0) -> 0 | AB89: 0 | AC89: =IFERROR(VLOOKUP($A89,Pupils!$A$4:$T$800,15,0),0) -> 0 | AD89: =IFERROR(VLOOKUP($A89,'Monthly Statement'!$A$2:$V$800,20,0),0) -> 0 | AE89: 0 | AF89: =IFERROR(VLOOKUP($A89,Pupils!$A$4:$T$800,16,0),0) -> 0 | AG89: =IFERROR(VLOOKUP($A89,'Monthly Statement'!$A$2:$V$800,21,0),0) -> 0 | AH89: 0 | AI89: =IFERROR(VLOOKUP($A89,Pupils!$A$4:$T$800,17,0),0) -> 0 | AJ89: =IFERROR(VLOOKUP($A89,'Monthly Statement'!$A$2:$V$800,22,0),0) -> 0 | AK89: 0 | AL89: =IFERROR(VLOOKUP($A89,Pupils!$A$4:$T$800,18,0),0) -> 0 | AM89: =IFERROR(VLOOKUP($A89,'Monthly Statement'!$A$2:$V$800,23,0),0) -> 0 | AN89: 0 | AO89: =IFERROR(VLOOKUP($A89,Pupils!$A$4:$T$800,19,0),0) -> 0 | AP89: =IFERROR(VLOOKUP($A89,'Monthly Statement'!$A$2:$V$800,24,0),0) -> 0 | AQ89: 0
A90: ='Monthly Statement'!A86 -> 0 | B90: =IFERROR(VLOOKUP(A90,'Monthly Statement'!A:X,4,0),"") ->  | C90: =IFERROR(VLOOKUP(A90,'Monthly Statement'!A:X,5,0),"") ->  | D90: =IFERROR(VLOOKUP(A90,'Monthly Statement'!A:X,7,0),"") ->  | E90: =IFERROR(VLOOKUP(A90,'Monthly Statement'!A:X,9,0),"") ->  | F90: =IFERROR(VLOOKUP(A90,'Monthly Statement'!A:X,10,0),"") ->  | G90: 0 | H90: =IFERROR(VLOOKUP($A90,Pupils!$A$4:$T$800,8,0),0) -> 0 | I90: =IFERROR(VLOOKUP($A90,'Monthly Statement'!$A$2:$V$800,13,0),0) -> 0 | J90: 0 | K90: =IFERROR(VLOOKUP($A90,Pupils!$A$4:$T$800,9,0),0) -> 0 | L90: =IFERROR(VLOOKUP($A90,'Monthly Statement'!$A$2:$V$800,14,0),0) -> 0 | M90: 0 | N90: =IFERROR(VLOOKUP($A90,Pupils!$A$4:$T$800,10,0),0) -> 0 | O90: =IFERROR(VLOOKUP($A90,'Monthly Statement'!$A$2:$V$800,15,0),0) -> 0 | P90: 0 | Q90: =IFERROR(VLOOKUP($A90,Pupils!$A$4:$T$800,11,0),0) -> 0 | R90: =IFERROR(VLOOKUP($A90,'Monthly Statement'!$A$2:$V$800,16,0),0) -> 0 | S90: 0 | T90: =IFERROR(VLOOKUP($A90,Pupils!$A$4:$T$800,12,0),0) -> 0 | U90: =IFERROR(VLOOKUP($A90,'Monthly Statement'!$A$2:$V$800,17,0),0) -> 0 | V90: 0 | W90: =IFERROR(VLOOKUP($A90,Pupils!$A$4:$T$800,13,0),0) -> 0 | X90: =IFERROR(VLOOKUP($A90,'Monthly Statement'!$A$2:$V$800,18,0),0) -> 0 | Y90: 0 | Z90: =IFERROR(VLOOKUP($A90,Pupils!$A$4:$T$800,14,0),0) -> 0 | AA90: =IFERROR(VLOOKUP($A90,'Monthly Statement'!$A$2:$V$800,19,0),0) -> 0 | AB90: 0 | AC90: =IFERROR(VLOOKUP($A90,Pupils!$A$4:$T$800,15,0),0) -> 0 | AD90: =IFERROR(VLOOKUP($A90,'Monthly Statement'!$A$2:$V$800,20,0),0) -> 0 | AE90: 0 | AF90: =IFERROR(VLOOKUP($A90,Pupils!$A$4:$T$800,16,0),0) -> 0 | AG90: =IFERROR(VLOOKUP($A90,'Monthly Statement'!$A$2:$V$800,21,0),0) -> 0 | AH90: 0 | AI90: =IFERROR(VLOOKUP($A90,Pupils!$A$4:$T$800,17,0),0) -> 0 | AJ90: =IFERROR(VLOOKUP($A90,'Monthly Statement'!$A$2:$V$800,22,0),0) -> 0 | AK90: 0 | AL90: =IFERROR(VLOOKUP($A90,Pupils!$A$4:$T$800,18,0),0) -> 0 | AM90: =IFERROR(VLOOKUP($A90,'Monthly Statement'!$A$2:$V$800,23,0),0) -> 0 | AN90: 0 | AO90: =IFERROR(VLOOKUP($A90,Pupils!$A$4:$T$800,19,0),0) -> 0 | AP90: =IFERROR(VLOOKUP($A90,'Monthly Statement'!$A$2:$V$800,24,0),0) -> 0 | AQ90: 0
A91: ='Monthly Statement'!A87 -> 0 | B91: =IFERROR(VLOOKUP(A91,'Monthly Statement'!A:X,4,0),"") ->  | C91: =IFERROR(VLOOKUP(A91,'Monthly Statement'!A:X,5,0),"") ->  | D91: =IFERROR(VLOOKUP(A91,'Monthly Statement'!A:X,7,0),"") ->  | E91: =IFERROR(VLOOKUP(A91,'Monthly Statement'!A:X,9,0),"") ->  | F91: =IFERROR(VLOOKUP(A91,'Monthly Statement'!A:X,10,0),"") ->  | G91: 0 | H91: =IFERROR(VLOOKUP($A91,Pupils!$A$4:$T$800,8,0),0) -> 0 | I91: =IFERROR(VLOOKUP($A91,'Monthly Statement'!$A$2:$V$800,13,0),0) -> 0 | J91: 0 | K91: =IFERROR(VLOOKUP($A91,Pupils!$A$4:$T$800,9,0),0) -> 0 | L91: =IFERROR(VLOOKUP($A91,'Monthly Statement'!$A$2:$V$800,14,0),0) -> 0 | M91: 0 | N91: =IFERROR(VLOOKUP($A91,Pupils!$A$4:$T$800,10,0),0) -> 0 | O91: =IFERROR(VLOOKUP($A91,'Monthly Statement'!$A$2:$V$800,15,0),0) -> 0 | P91: 0 | Q91: =IFERROR(VLOOKUP($A91,Pupils!$A$4:$T$800,11,0),0) -> 0 | R91: =IFERROR(VLOOKUP($A91,'Monthly Statement'!$A$2:$V$800,16,0),0) -> 0 | S91: 0 | T91: =IFERROR(VLOOKUP($A91,Pupils!$A$4:$T$800,12,0),0) -> 0 | U91: =IFERROR(VLOOKUP($A91,'Monthly Statement'!$A$2:$V$800,17,0),0) -> 0 | V91: 0 | W91: =IFERROR(VLOOKUP($A91,Pupils!$A$4:$T$800,13,0),0) -> 0 | X91: =IFERROR(VLOOKUP($A91,'Monthly Statement'!$A$2:$V$800,18,0),0) -> 0 | Y91: 0 | Z91: =IFERROR(VLOOKUP($A91,Pupils!$A$4:$T$800,14,0),0) -> 0 | AA91: =IFERROR(VLOOKUP($A91,'Monthly Statement'!$A$2:$V$800,19,0),0) -> 0 | AB91: 0 | AC91: =IFERROR(VLOOKUP($A91,Pupils!$A$4:$T$800,15,0),0) -> 0 | AD91: =IFERROR(VLOOKUP($A91,'Monthly Statement'!$A$2:$V$800,20,0),0) -> 0 | AE91: 0 | AF91: =IFERROR(VLOOKUP($A91,Pupils!$A$4:$T$800,16,0),0) -> 0 | AG91: =IFERROR(VLOOKUP($A91,'Monthly Statement'!$A$2:$V$800,21,0),0) -> 0 | AH91: 0 | AI91: =IFERROR(VLOOKUP($A91,Pupils!$A$4:$T$800,17,0),0) -> 0 | AJ91: =IFERROR(VLOOKUP($A91,'Monthly Statement'!$A$2:$V$800,22,0),0) -> 0 | AK91: 0 | AL91: =IFERROR(VLOOKUP($A91,Pupils!$A$4:$T$800,18,0),0) -> 0 | AM91: =IFERROR(VLOOKUP($A91,'Monthly Statement'!$A$2:$V$800,23,0),0) -> 0 | AN91: 0 | AO91: =IFERROR(VLOOKUP($A91,Pupils!$A$4:$T$800,19,0),0) -> 0 | AP91: =IFERROR(VLOOKUP($A91,'Monthly Statement'!$A$2:$V$800,24,0),0) -> 0 | AQ91: 0
A92: ='Monthly Statement'!A88 -> 0 | B92: =IFERROR(VLOOKUP(A92,'Monthly Statement'!A:X,4,0),"") ->  | C92: =IFERROR(VLOOKUP(A92,'Monthly Statement'!A:X,5,0),"") ->  | D92: =IFERROR(VLOOKUP(A92,'Monthly Statement'!A:X,7,0),"") ->  | E92: =IFERROR(VLOOKUP(A92,'Monthly Statement'!A:X,9,0),"") ->  | F92: =IFERROR(VLOOKUP(A92,'Monthly Statement'!A:X,10,0),"") ->  | G92: 0 | H92: =IFERROR(VLOOKUP($A92,Pupils!$A$4:$T$800,8,0),0) -> 0 | I92: =IFERROR(VLOOKUP($A92,'Monthly Statement'!$A$2:$V$800,13,0),0) -> 0 | J92: 0 | K92: =IFERROR(VLOOKUP($A92,Pupils!$A$4:$T$800,9,0),0) -> 0 | L92: =IFERROR(VLOOKUP($A92,'Monthly Statement'!$A$2:$V$800,14,0),0) -> 0 | M92: 0 | N92: =IFERROR(VLOOKUP($A92,Pupils!$A$4:$T$800,10,0),0) -> 0 | O92: =IFERROR(VLOOKUP($A92,'Monthly Statement'!$A$2:$V$800,15,0),0) -> 0 | P92: 0 | Q92: =IFERROR(VLOOKUP($A92,Pupils!$A$4:$T$800,11,0),0) -> 0 | R92: =IFERROR(VLOOKUP($A92,'Monthly Statement'!$A$2:$V$800,16,0),0) -> 0 | S92: 0 | T92: =IFERROR(VLOOKUP($A92,Pupils!$A$4:$T$800,12,0),0) -> 0 | U92: =IFERROR(VLOOKUP($A92,'Monthly Statement'!$A$2:$V$800,17,0),0) -> 0 | V92: 0 | W92: =IFERROR(VLOOKUP($A92,Pupils!$A$4:$T$800,13,0),0) -> 0 | X92: =IFERROR(VLOOKUP($A92,'Monthly Statement'!$A$2:$V$800,18,0),0) -> 0 | Y92: 0 | Z92: =IFERROR(VLOOKUP($A92,Pupils!$A$4:$T$800,14,0),0) -> 0 | AA92: =IFERROR(VLOOKUP($A92,'Monthly Statement'!$A$2:$V$800,19,0),0) -> 0 | AB92: 0 | AC92: =IFERROR(VLOOKUP($A92,Pupils!$A$4:$T$800,15,0),0) -> 0 | AD92: =IFERROR(VLOOKUP($A92,'Monthly Statement'!$A$2:$V$800,20,0),0) -> 0 | AE92: 0 | AF92: =IFERROR(VLOOKUP($A92,Pupils!$A$4:$T$800,16,0),0) -> 0 | AG92: =IFERROR(VLOOKUP($A92,'Monthly Statement'!$A$2:$V$800,21,0),0) -> 0 | AH92: 0 | AI92: =IFERROR(VLOOKUP($A92,Pupils!$A$4:$T$800,17,0),0) -> 0 | AJ92: =IFERROR(VLOOKUP($A92,'Monthly Statement'!$A$2:$V$800,22,0),0) -> 0 | AK92: 0 | AL92: =IFERROR(VLOOKUP($A92,Pupils!$A$4:$T$800,18,0),0) -> 0 | AM92: =IFERROR(VLOOKUP($A92,'Monthly Statement'!$A$2:$V$800,23,0),0) -> 0 | AN92: 0 | AO92: =IFERROR(VLOOKUP($A92,Pupils!$A$4:$T$800,19,0),0) -> 0 | AP92: =IFERROR(VLOOKUP($A92,'Monthly Statement'!$A$2:$V$800,24,0),0) -> 0 | AQ92: 0
A93: ='Monthly Statement'!A89 -> 0 | B93: =IFERROR(VLOOKUP(A93,'Monthly Statement'!A:X,4,0),"") ->  | C93: =IFERROR(VLOOKUP(A93,'Monthly Statement'!A:X,5,0),"") ->  | D93: =IFERROR(VLOOKUP(A93,'Monthly Statement'!A:X,7,0),"") ->  | E93: =IFERROR(VLOOKUP(A93,'Monthly Statement'!A:X,9,0),"") ->  | F93: =IFERROR(VLOOKUP(A93,'Monthly Statement'!A:X,10,0),"") ->  | G93: 0 | H93: =IFERROR(VLOOKUP($A93,Pupils!$A$4:$T$800,8,0),0) -> 0 | I93: =IFERROR(VLOOKUP($A93,'Monthly Statement'!$A$2:$V$800,13,0),0) -> 0 | J93: 0 | K93: =IFERROR(VLOOKUP($A93,Pupils!$A$4:$T$800,9,0),0) -> 0 | L93: =IFERROR(VLOOKUP($A93,'Monthly Statement'!$A$2:$V$800,14,0),0) -> 0 | M93: 0 | N93: =IFERROR(VLOOKUP($A93,Pupils!$A$4:$T$800,10,0),0) -> 0 | O93: =IFERROR(VLOOKUP($A93,'Monthly Statement'!$A$2:$V$800,15,0),0) -> 0 | P93: 0 | Q93: =IFERROR(VLOOKUP($A93,Pupils!$A$4:$T$800,11,0),0) -> 0 | R93: =IFERROR(VLOOKUP($A93,'Monthly Statement'!$A$2:$V$800,16,0),0) -> 0 | S93: 0 | T93: =IFERROR(VLOOKUP($A93,Pupils!$A$4:$T$800,12,0),0) -> 0 | U93: =IFERROR(VLOOKUP($A93,'Monthly Statement'!$A$2:$V$800,17,0),0) -> 0 | V93: 0 | W93: =IFERROR(VLOOKUP($A93,Pupils!$A$4:$T$800,13,0),0) -> 0 | X93: =IFERROR(VLOOKUP($A93,'Monthly Statement'!$A$2:$V$800,18,0),0) -> 0 | Y93: 0 | Z93: =IFERROR(VLOOKUP($A93,Pupils!$A$4:$T$800,14,0),0) -> 0 | AA93: =IFERROR(VLOOKUP($A93,'Monthly Statement'!$A$2:$V$800,19,0),0) -> 0 | AB93: 0 | AC93: =IFERROR(VLOOKUP($A93,Pupils!$A$4:$T$800,15,0),0) -> 0 | AD93: =IFERROR(VLOOKUP($A93,'Monthly Statement'!$A$2:$V$800,20,0),0) -> 0 | AE93: 0 | AF93: =IFERROR(VLOOKUP($A93,Pupils!$A$4:$T$800,16,0),0) -> 0 | AG93: =IFERROR(VLOOKUP($A93,'Monthly Statement'!$A$2:$V$800,21,0),0) -> 0 | AH93: 0 | AI93: =IFERROR(VLOOKUP($A93,Pupils!$A$4:$T$800,17,0),0) -> 0 | AJ93: =IFERROR(VLOOKUP($A93,'Monthly Statement'!$A$2:$V$800,22,0),0) -> 0 | AK93: 0 | AL93: =IFERROR(VLOOKUP($A93,Pupils!$A$4:$T$800,18,0),0) -> 0 | AM93: =IFERROR(VLOOKUP($A93,'Monthly Statement'!$A$2:$V$800,23,0),0) -> 0 | AN93: 0 | AO93: =IFERROR(VLOOKUP($A93,Pupils!$A$4:$T$800,19,0),0) -> 0 | AP93: =IFERROR(VLOOKUP($A93,'Monthly Statement'!$A$2:$V$800,24,0),0) -> 0 | AQ93: 0
A94: ='Monthly Statement'!A90 -> 0 | B94: =IFERROR(VLOOKUP(A94,'Monthly Statement'!A:X,4,0),"") ->  | C94: =IFERROR(VLOOKUP(A94,'Monthly Statement'!A:X,5,0),"") ->  | D94: =IFERROR(VLOOKUP(A94,'Monthly Statement'!A:X,7,0),"") ->  | E94: =IFERROR(VLOOKUP(A94,'Monthly Statement'!A:X,9,0),"") ->  | F94: =IFERROR(VLOOKUP(A94,'Monthly Statement'!A:X,10,0),"") ->  | G94: 0 | H94: =IFERROR(VLOOKUP($A94,Pupils!$A$4:$T$800,8,0),0) -> 0 | I94: =IFERROR(VLOOKUP($A94,'Monthly Statement'!$A$2:$V$800,13,0),0) -> 0 | J94: 0 | K94: =IFERROR(VLOOKUP($A94,Pupils!$A$4:$T$800,9,0),0) -> 0 | L94: =IFERROR(VLOOKUP($A94,'Monthly Statement'!$A$2:$V$800,14,0),0) -> 0 | M94: 0 | N94: =IFERROR(VLOOKUP($A94,Pupils!$A$4:$T$800,10,0),0) -> 0 | O94: =IFERROR(VLOOKUP($A94,'Monthly Statement'!$A$2:$V$800,15,0),0) -> 0 | P94: 0 | Q94: =IFERROR(VLOOKUP($A94,Pupils!$A$4:$T$800,11,0),0) -> 0 | R94: =IFERROR(VLOOKUP($A94,'Monthly Statement'!$A$2:$V$800,16,0),0) -> 0 | S94: 0 | T94: =IFERROR(VLOOKUP($A94,Pupils!$A$4:$T$800,12,0),0) -> 0 | U94: =IFERROR(VLOOKUP($A94,'Monthly Statement'!$A$2:$V$800,17,0),0) -> 0 | V94: 0 | W94: =IFERROR(VLOOKUP($A94,Pupils!$A$4:$T$800,13,0),0) -> 0 | X94: =IFERROR(VLOOKUP($A94,'Monthly Statement'!$A$2:$V$800,18,0),0) -> 0 | Y94: 0 | Z94: =IFERROR(VLOOKUP($A94,Pupils!$A$4:$T$800,14,0),0) -> 0 | AA94: =IFERROR(VLOOKUP($A94,'Monthly Statement'!$A$2:$V$800,19,0),0) -> 0 | AB94: 0 | AC94: =IFERROR(VLOOKUP($A94,Pupils!$A$4:$T$800,15,0),0) -> 0 | AD94: =IFERROR(VLOOKUP($A94,'Monthly Statement'!$A$2:$V$800,20,0),0) -> 0 | AE94: 0 | AF94: =IFERROR(VLOOKUP($A94,Pupils!$A$4:$T$800,16,0),0) -> 0 | AG94: =IFERROR(VLOOKUP($A94,'Monthly Statement'!$A$2:$V$800,21,0),0) -> 0 | AH94: 0 | AI94: =IFERROR(VLOOKUP($A94,Pupils!$A$4:$T$800,17,0),0) -> 0 | AJ94: =IFERROR(VLOOKUP($A94,'Monthly Statement'!$A$2:$V$800,22,0),0) -> 0 | AK94: 0 | AL94: =IFERROR(VLOOKUP($A94,Pupils!$A$4:$T$800,18,0),0) -> 0 | AM94: =IFERROR(VLOOKUP($A94,'Monthly Statement'!$A$2:$V$800,23,0),0) -> 0 | AN94: 0 | AO94: =IFERROR(VLOOKUP($A94,Pupils!$A$4:$T$800,19,0),0) -> 0 | AP94: =IFERROR(VLOOKUP($A94,'Monthly Statement'!$A$2:$V$800,24,0),0) -> 0 | AQ94: 0
A95: ='Monthly Statement'!A91 -> 0 | B95: =IFERROR(VLOOKUP(A95,'Monthly Statement'!A:X,4,0),"") ->  | C95: =IFERROR(VLOOKUP(A95,'Monthly Statement'!A:X,5,0),"") ->  | D95: =IFERROR(VLOOKUP(A95,'Monthly Statement'!A:X,7,0),"") ->  | E95: =IFERROR(VLOOKUP(A95,'Monthly Statement'!A:X,9,0),"") ->  | F95: =IFERROR(VLOOKUP(A95,'Monthly Statement'!A:X,10,0),"") ->  | G95: 0 | H95: =IFERROR(VLOOKUP($A95,Pupils!$A$4:$T$800,8,0),0) -> 0 | I95: =IFERROR(VLOOKUP($A95,'Monthly Statement'!$A$2:$V$800,13,0),0) -> 0 | J95: 0 | K95: =IFERROR(VLOOKUP($A95,Pupils!$A$4:$T$800,9,0),0) -> 0 | L95: =IFERROR(VLOOKUP($A95,'Monthly Statement'!$A$2:$V$800,14,0),0) -> 0 | M95: 0 | N95: =IFERROR(VLOOKUP($A95,Pupils!$A$4:$T$800,10,0),0) -> 0 | O95: =IFERROR(VLOOKUP($A95,'Monthly Statement'!$A$2:$V$800,15,0),0) -> 0 | P95: 0 | Q95: =IFERROR(VLOOKUP($A95,Pupils!$A$4:$T$800,11,0),0) -> 0 | R95: =IFERROR(VLOOKUP($A95,'Monthly Statement'!$A$2:$V$800,16,0),0) -> 0 | S95: 0 | T95: =IFERROR(VLOOKUP($A95,Pupils!$A$4:$T$800,12,0),0) -> 0 | U95: =IFERROR(VLOOKUP($A95,'Monthly Statement'!$A$2:$V$800,17,0),0) -> 0 | V95: 0 | W95: =IFERROR(VLOOKUP($A95,Pupils!$A$4:$T$800,13,0),0) -> 0 | X95: =IFERROR(VLOOKUP($A95,'Monthly Statement'!$A$2:$V$800,18,0),0) -> 0 | Y95: 0 | Z95: =IFERROR(VLOOKUP($A95,Pupils!$A$4:$T$800,14,0),0) -> 0 | AA95: =IFERROR(VLOOKUP($A95,'Monthly Statement'!$A$2:$V$800,19,0),0) -> 0 | AB95: 0 | AC95: =IFERROR(VLOOKUP($A95,Pupils!$A$4:$T$800,15,0),0) -> 0 | AD95: =IFERROR(VLOOKUP($A95,'Monthly Statement'!$A$2:$V$800,20,0),0) -> 0 | AE95: 0 | AF95: =IFERROR(VLOOKUP($A95,Pupils!$A$4:$T$800,16,0),0) -> 0 | AG95: =IFERROR(VLOOKUP($A95,'Monthly Statement'!$A$2:$V$800,21,0),0) -> 0 | AH95: 0 | AI95: =IFERROR(VLOOKUP($A95,Pupils!$A$4:$T$800,17,0),0) -> 0 | AJ95: =IFERROR(VLOOKUP($A95,'Monthly Statement'!$A$2:$V$800,22,0),0) -> 0 | AK95: 0 | AL95: =IFERROR(VLOOKUP($A95,Pupils!$A$4:$T$800,18,0),0) -> 0 | AM95: =IFERROR(VLOOKUP($A95,'Monthly Statement'!$A$2:$V$800,23,0),0) -> 0 | AN95: 0 | AO95: =IFERROR(VLOOKUP($A95,Pupils!$A$4:$T$800,19,0),0) -> 0 | AP95: =IFERROR(VLOOKUP($A95,'Monthly Statement'!$A$2:$V$800,24,0),0) -> 0 | AQ95: 0
A96: ='Monthly Statement'!A92 -> 0 | B96: =IFERROR(VLOOKUP(A96,'Monthly Statement'!A:X,4,0),"") ->  | C96: =IFERROR(VLOOKUP(A96,'Monthly Statement'!A:X,5,0),"") ->  | D96: =IFERROR(VLOOKUP(A96,'Monthly Statement'!A:X,7,0),"") ->  | E96: =IFERROR(VLOOKUP(A96,'Monthly Statement'!A:X,9,0),"") ->  | F96: =IFERROR(VLOOKUP(A96,'Monthly Statement'!A:X,10,0),"") ->  | G96: 0 | H96: =IFERROR(VLOOKUP($A96,Pupils!$A$4:$T$800,8,0),0) -> 0 | I96: =IFERROR(VLOOKUP($A96,'Monthly Statement'!$A$2:$V$800,13,0),0) -> 0 | J96: 0 | K96: =IFERROR(VLOOKUP($A96,Pupils!$A$4:$T$800,9,0),0) -> 0 | L96: =IFERROR(VLOOKUP($A96,'Monthly Statement'!$A$2:$V$800,14,0),0) -> 0 | M96: 0 | N96: =IFERROR(VLOOKUP($A96,Pupils!$A$4:$T$800,10,0),0) -> 0 | O96: =IFERROR(VLOOKUP($A96,'Monthly Statement'!$A$2:$V$800,15,0),0) -> 0 | P96: 0 | Q96: =IFERROR(VLOOKUP($A96,Pupils!$A$4:$T$800,11,0),0) -> 0 | R96: =IFERROR(VLOOKUP($A96,'Monthly Statement'!$A$2:$V$800,16,0),0) -> 0 | S96: 0 | T96: =IFERROR(VLOOKUP($A96,Pupils!$A$4:$T$800,12,0),0) -> 0 | U96: =IFERROR(VLOOKUP($A96,'Monthly Statement'!$A$2:$V$800,17,0),0) -> 0 | V96: 0 | W96: =IFERROR(VLOOKUP($A96,Pupils!$A$4:$T$800,13,0),0) -> 0 | X96: =IFERROR(VLOOKUP($A96,'Monthly Statement'!$A$2:$V$800,18,0),0) -> 0 | Y96: 0 | Z96: =IFERROR(VLOOKUP($A96,Pupils!$A$4:$T$800,14,0),0) -> 0 | AA96: =IFERROR(VLOOKUP($A96,'Monthly Statement'!$A$2:$V$800,19,0),0) -> 0 | AB96: 0 | AC96: =IFERROR(VLOOKUP($A96,Pupils!$A$4:$T$800,15,0),0) -> 0 | AD96: =IFERROR(VLOOKUP($A96,'Monthly Statement'!$A$2:$V$800,20,0),0) -> 0 | AE96: 0 | AF96: =IFERROR(VLOOKUP($A96,Pupils!$A$4:$T$800,16,0),0) -> 0 | AG96: =IFERROR(VLOOKUP($A96,'Monthly Statement'!$A$2:$V$800,21,0),0) -> 0 | AH96: 0 | AI96: =IFERROR(VLOOKUP($A96,Pupils!$A$4:$T$800,17,0),0) -> 0 | AJ96: =IFERROR(VLOOKUP($A96,'Monthly Statement'!$A$2:$V$800,22,0),0) -> 0 | AK96: 0 | AL96: =IFERROR(VLOOKUP($A96,Pupils!$A$4:$T$800,18,0),0) -> 0 | AM96: =IFERROR(VLOOKUP($A96,'Monthly Statement'!$A$2:$V$800,23,0),0) -> 0 | AN96: 0 | AO96: =IFERROR(VLOOKUP($A96,Pupils!$A$4:$T$800,19,0),0) -> 0 | AP96: =IFERROR(VLOOKUP($A96,'Monthly Statement'!$A$2:$V$800,24,0),0) -> 0 | AQ96: 0
A97: ='Monthly Statement'!A93 -> 0 | B97: =IFERROR(VLOOKUP(A97,'Monthly Statement'!A:X,4,0),"") ->  | C97: =IFERROR(VLOOKUP(A97,'Monthly Statement'!A:X,5,0),"") ->  | D97: =IFERROR(VLOOKUP(A97,'Monthly Statement'!A:X,7,0),"") ->  | E97: =IFERROR(VLOOKUP(A97,'Monthly Statement'!A:X,9,0),"") ->  | F97: =IFERROR(VLOOKUP(A97,'Monthly Statement'!A:X,10,0),"") ->  | G97: 0 | H97: =IFERROR(VLOOKUP($A97,Pupils!$A$4:$T$800,8,0),0) -> 0 | I97: =IFERROR(VLOOKUP($A97,'Monthly Statement'!$A$2:$V$800,13,0),0) -> 0 | J97: 0 | K97: =IFERROR(VLOOKUP($A97,Pupils!$A$4:$T$800,9,0),0) -> 0 | L97: =IFERROR(VLOOKUP($A97,'Monthly Statement'!$A$2:$V$800,14,0),0) -> 0 | M97: 0 | N97: =IFERROR(VLOOKUP($A97,Pupils!$A$4:$T$800,10,0),0) -> 0 | O97: =IFERROR(VLOOKUP($A97,'Monthly Statement'!$A$2:$V$800,15,0),0) -> 0 | P97: 0 | Q97: =IFERROR(VLOOKUP($A97,Pupils!$A$4:$T$800,11,0),0) -> 0 | R97: =IFERROR(VLOOKUP($A97,'Monthly Statement'!$A$2:$V$800,16,0),0) -> 0 | S97: 0 | T97: =IFERROR(VLOOKUP($A97,Pupils!$A$4:$T$800,12,0),0) -> 0 | U97: =IFERROR(VLOOKUP($A97,'Monthly Statement'!$A$2:$V$800,17,0),0) -> 0 | V97: 0 | W97: =IFERROR(VLOOKUP($A97,Pupils!$A$4:$T$800,13,0),0) -> 0 | X97: =IFERROR(VLOOKUP($A97,'Monthly Statement'!$A$2:$V$800,18,0),0) -> 0 | Y97: 0 | Z97: =IFERROR(VLOOKUP($A97,Pupils!$A$4:$T$800,14,0),0) -> 0 | AA97: =IFERROR(VLOOKUP($A97,'Monthly Statement'!$A$2:$V$800,19,0),0) -> 0 | AB97: 0 | AC97: =IFERROR(VLOOKUP($A97,Pupils!$A$4:$T$800,15,0),0) -> 0 | AD97: =IFERROR(VLOOKUP($A97,'Monthly Statement'!$A$2:$V$800,20,0),0) -> 0 | AE97: 0 | AF97: =IFERROR(VLOOKUP($A97,Pupils!$A$4:$T$800,16,0),0) -> 0 | AG97: =IFERROR(VLOOKUP($A97,'Monthly Statement'!$A$2:$V$800,21,0),0) -> 0 | AH97: 0 | AI97: =IFERROR(VLOOKUP($A97,Pupils!$A$4:$T$800,17,0),0) -> 0 | AJ97: =IFERROR(VLOOKUP($A97,'Monthly Statement'!$A$2:$V$800,22,0),0) -> 0 | AK97: 0 | AL97: =IFERROR(VLOOKUP($A97,Pupils!$A$4:$T$800,18,0),0) -> 0 | AM97: =IFERROR(VLOOKUP($A97,'Monthly Statement'!$A$2:$V$800,23,0),0) -> 0 | AN97: 0 | AO97: =IFERROR(VLOOKUP($A97,Pupils!$A$4:$T$800,19,0),0) -> 0 | AP97: =IFERROR(VLOOKUP($A97,'Monthly Statement'!$A$2:$V$800,24,0),0) -> 0 | AQ97: 0
A98: ='Monthly Statement'!A94 -> 0 | B98: =IFERROR(VLOOKUP(A98,'Monthly Statement'!A:X,4,0),"") ->  | C98: =IFERROR(VLOOKUP(A98,'Monthly Statement'!A:X,5,0),"") ->  | D98: =IFERROR(VLOOKUP(A98,'Monthly Statement'!A:X,7,0),"") ->  | E98: =IFERROR(VLOOKUP(A98,'Monthly Statement'!A:X,9,0),"") ->  | F98: =IFERROR(VLOOKUP(A98,'Monthly Statement'!A:X,10,0),"") ->  | G98: 0 | H98: =IFERROR(VLOOKUP($A98,Pupils!$A$4:$T$800,8,0),0) -> 0 | I98: =IFERROR(VLOOKUP($A98,'Monthly Statement'!$A$2:$V$800,13,0),0) -> 0 | J98: 0 | K98: =IFERROR(VLOOKUP($A98,Pupils!$A$4:$T$800,9,0),0) -> 0 | L98: =IFERROR(VLOOKUP($A98,'Monthly Statement'!$A$2:$V$800,14,0),0) -> 0 | M98: 0 | N98: =IFERROR(VLOOKUP($A98,Pupils!$A$4:$T$800,10,0),0) -> 0 | O98: =IFERROR(VLOOKUP($A98,'Monthly Statement'!$A$2:$V$800,15,0),0) -> 0 | P98: 0 | Q98: =IFERROR(VLOOKUP($A98,Pupils!$A$4:$T$800,11,0),0) -> 0 | R98: =IFERROR(VLOOKUP($A98,'Monthly Statement'!$A$2:$V$800,16,0),0) -> 0 | S98: 0 | T98: =IFERROR(VLOOKUP($A98,Pupils!$A$4:$T$800,12,0),0) -> 0 | U98: =IFERROR(VLOOKUP($A98,'Monthly Statement'!$A$2:$V$800,17,0),0) -> 0 | V98: 0 | W98: =IFERROR(VLOOKUP($A98,Pupils!$A$4:$T$800,13,0),0) -> 0 | X98: =IFERROR(VLOOKUP($A98,'Monthly Statement'!$A$2:$V$800,18,0),0) -> 0 | Y98: 0 | Z98: =IFERROR(VLOOKUP($A98,Pupils!$A$4:$T$800,14,0),0) -> 0 | AA98: =IFERROR(VLOOKUP($A98,'Monthly Statement'!$A$2:$V$800,19,0),0) -> 0 | AB98: 0 | AC98: =IFERROR(VLOOKUP($A98,Pupils!$A$4:$T$800,15,0),0) -> 0 | AD98: =IFERROR(VLOOKUP($A98,'Monthly Statement'!$A$2:$V$800,20,0),0) -> 0 | AE98: 0 | AF98: =IFERROR(VLOOKUP($A98,Pupils!$A$4:$T$800,16,0),0) -> 0 | AG98: =IFERROR(VLOOKUP($A98,'Monthly Statement'!$A$2:$V$800,21,0),0) -> 0 | AH98: 0 | AI98: =IFERROR(VLOOKUP($A98,Pupils!$A$4:$T$800,17,0),0) -> 0 | AJ98: =IFERROR(VLOOKUP($A98,'Monthly Statement'!$A$2:$V$800,22,0),0) -> 0 | AK98: 0 | AL98: =IFERROR(VLOOKUP($A98,Pupils!$A$4:$T$800,18,0),0) -> 0 | AM98: =IFERROR(VLOOKUP($A98,'Monthly Statement'!$A$2:$V$800,23,0),0) -> 0 | AN98: 0 | AO98: =IFERROR(VLOOKUP($A98,Pupils!$A$4:$T$800,19,0),0) -> 0 | AP98: =IFERROR(VLOOKUP($A98,'Monthly Statement'!$A$2:$V$800,24,0),0) -> 0 | AQ98: 0
A99: ='Monthly Statement'!A95 -> 0 | B99: =IFERROR(VLOOKUP(A99,'Monthly Statement'!A:X,4,0),"") ->  | C99: =IFERROR(VLOOKUP(A99,'Monthly Statement'!A:X,5,0),"") ->  | D99: =IFERROR(VLOOKUP(A99,'Monthly Statement'!A:X,7,0),"") ->  | E99: =IFERROR(VLOOKUP(A99,'Monthly Statement'!A:X,9,0),"") ->  | F99: =IFERROR(VLOOKUP(A99,'Monthly Statement'!A:X,10,0),"") ->  | G99: 0 | H99: =IFERROR(VLOOKUP($A99,Pupils!$A$4:$T$800,8,0),0) -> 0 | I99: =IFERROR(VLOOKUP($A99,'Monthly Statement'!$A$2:$V$800,13,0),0) -> 0 | J99: 0 | K99: =IFERROR(VLOOKUP($A99,Pupils!$A$4:$T$800,9,0),0) -> 0 | L99: =IFERROR(VLOOKUP($A99,'Monthly Statement'!$A$2:$V$800,14,0),0) -> 0 | M99: 0 | N99: =IFERROR(VLOOKUP($A99,Pupils!$A$4:$T$800,10,0),0) -> 0 | O99: =IFERROR(VLOOKUP($A99,'Monthly Statement'!$A$2:$V$800,15,0),0) -> 0 | P99: 0 | Q99: =IFERROR(VLOOKUP($A99,Pupils!$A$4:$T$800,11,0),0) -> 0 | R99: =IFERROR(VLOOKUP($A99,'Monthly Statement'!$A$2:$V$800,16,0),0) -> 0 | S99: 0 | T99: =IFERROR(VLOOKUP($A99,Pupils!$A$4:$T$800,12,0),0) -> 0 | U99: =IFERROR(VLOOKUP($A99,'Monthly Statement'!$A$2:$V$800,17,0),0) -> 0 | V99: 0 | W99: =IFERROR(VLOOKUP($A99,Pupils!$A$4:$T$800,13,0),0) -> 0 | X99: =IFERROR(VLOOKUP($A99,'Monthly Statement'!$A$2:$V$800,18,0),0) -> 0 | Y99: 0 | Z99: =IFERROR(VLOOKUP($A99,Pupils!$A$4:$T$800,14,0),0) -> 0 | AA99: =IFERROR(VLOOKUP($A99,'Monthly Statement'!$A$2:$V$800,19,0),0) -> 0 | AB99: 0 | AC99: =IFERROR(VLOOKUP($A99,Pupils!$A$4:$T$800,15,0),0) -> 0 | AD99: =IFERROR(VLOOKUP($A99,'Monthly Statement'!$A$2:$V$800,20,0),0) -> 0 | AE99: 0 | AF99: =IFERROR(VLOOKUP($A99,Pupils!$A$4:$T$800,16,0),0) -> 0 | AG99: =IFERROR(VLOOKUP($A99,'Monthly Statement'!$A$2:$V$800,21,0),0) -> 0 | AH99: 0 | AI99: =IFERROR(VLOOKUP($A99,Pupils!$A$4:$T$800,17,0),0) -> 0 | AJ99: =IFERROR(VLOOKUP($A99,'Monthly Statement'!$A$2:$V$800,22,0),0) -> 0 | AK99: 0 | AL99: =IFERROR(VLOOKUP($A99,Pupils!$A$4:$T$800,18,0),0) -> 0 | AM99: =IFERROR(VLOOKUP($A99,'Monthly Statement'!$A$2:$V$800,23,0),0) -> 0 | AN99: 0 | AO99: =IFERROR(VLOOKUP($A99,Pupils!$A$4:$T$800,19,0),0) -> 0 | AP99: =IFERROR(VLOOKUP($A99,'Monthly Statement'!$A$2:$V$800,24,0),0) -> 0 | AQ99: 0
A100: ='Monthly Statement'!A96 -> 0 | B100: =IFERROR(VLOOKUP(A100,'Monthly Statement'!A:X,4,0),"") ->  | C100: =IFERROR(VLOOKUP(A100,'Monthly Statement'!A:X,5,0),"") ->  | D100: =IFERROR(VLOOKUP(A100,'Monthly Statement'!A:X,7,0),"") ->  | E100: =IFERROR(VLOOKUP(A100,'Monthly Statement'!A:X,9,0),"") ->  | F100: =IFERROR(VLOOKUP(A100,'Monthly Statement'!A:X,10,0),"") ->  | G100: 0 | H100: =IFERROR(VLOOKUP($A100,Pupils!$A$4:$T$800,8,0),0) -> 0 | I100: =IFERROR(VLOOKUP($A100,'Monthly Statement'!$A$2:$V$800,13,0),0) -> 0 | J100: 0 | K100: =IFERROR(VLOOKUP($A100,Pupils!$A$4:$T$800,9,0),0) -> 0 | L100: =IFERROR(VLOOKUP($A100,'Monthly Statement'!$A$2:$V$800,14,0),0) -> 0 | M100: 0 | N100: =IFERROR(VLOOKUP($A100,Pupils!$A$4:$T$800,10,0),0) -> 0 | O100: =IFERROR(VLOOKUP($A100,'Monthly Statement'!$A$2:$V$800,15,0),0) -> 0 | P100: 0 | Q100: =IFERROR(VLOOKUP($A100,Pupils!$A$4:$T$800,11,0),0) -> 0 | R100: =IFERROR(VLOOKUP($A100,'Monthly Statement'!$A$2:$V$800,16,0),0) -> 0 | S100: 0 | T100: =IFERROR(VLOOKUP($A100,Pupils!$A$4:$T$800,12,0),0) -> 0 | U100: =IFERROR(VLOOKUP($A100,'Monthly Statement'!$A$2:$V$800,17,0),0) -> 0 | V100: 0 | W100: =IFERROR(VLOOKUP($A100,Pupils!$A$4:$T$800,13,0),0) -> 0 | X100: =IFERROR(VLOOKUP($A100,'Monthly Statement'!$A$2:$V$800,18,0),0) -> 0 | Y100: 0 | Z100: =IFERROR(VLOOKUP($A100,Pupils!$A$4:$T$800,14,0),0) -> 0 | AA100: =IFERROR(VLOOKUP($A100,'Monthly Statement'!$A$2:$V$800,19,0),0) -> 0 | AB100: 0 | AC100: =IFERROR(VLOOKUP($A100,Pupils!$A$4:$T$800,15,0),0) -> 0 | AD100: =IFERROR(VLOOKUP($A100,'Monthly Statement'!$A$2:$V$800,20,0),0) -> 0 | AE100: 0 | AF100: =IFERROR(VLOOKUP($A100,Pupils!$A$4:$T$800,16,0),0) -> 0 | AG100: =IFERROR(VLOOKUP($A100,'Monthly Statement'!$A$2:$V$800,21,0),0) -> 0 | AH100: 0 | AI100: =IFERROR(VLOOKUP($A100,Pupils!$A$4:$T$800,17,0),0) -> 0 | AJ100: =IFERROR(VLOOKUP($A100,'Monthly Statement'!$A$2:$V$800,22,0),0) -> 0 | AK100: 0 | AL100: =IFERROR(VLOOKUP($A100,Pupils!$A$4:$T$800,18,0),0) -> 0 | AM100: =IFERROR(VLOOKUP($A100,'Monthly Statement'!$A$2:$V$800,23,0),0) -> 0 | AN100: 0 | AO100: =IFERROR(VLOOKUP($A100,Pupils!$A$4:$T$800,19,0),0) -> 0 | AP100: =IFERROR(VLOOKUP($A100,'Monthly Statement'!$A$2:$V$800,24,0),0) -> 0 | AQ100: 0
A101: ='Monthly Statement'!A97 -> 0 | B101: =IFERROR(VLOOKUP(A101,'Monthly Statement'!A:X,4,0),"") ->  | C101: =IFERROR(VLOOKUP(A101,'Monthly Statement'!A:X,5,0),"") ->  | D101: =IFERROR(VLOOKUP(A101,'Monthly Statement'!A:X,7,0),"") ->  | E101: =IFERROR(VLOOKUP(A101,'Monthly Statement'!A:X,9,0),"") ->  | F101: =IFERROR(VLOOKUP(A101,'Monthly Statement'!A:X,10,0),"") ->  | G101: 0 | H101: =IFERROR(VLOOKUP($A101,Pupils!$A$4:$T$800,8,0),0) -> 0 | I101: =IFERROR(VLOOKUP($A101,'Monthly Statement'!$A$2:$V$800,13,0),0) -> 0 | J101: 0 | K101: =IFERROR(VLOOKUP($A101,Pupils!$A$4:$T$800,9,0),0) -> 0 | L101: =IFERROR(VLOOKUP($A101,'Monthly Statement'!$A$2:$V$800,14,0),0) -> 0 | M101: 0 | N101: =IFERROR(VLOOKUP($A101,Pupils!$A$4:$T$800,10,0),0) -> 0 | O101: =IFERROR(VLOOKUP($A101,'Monthly Statement'!$A$2:$V$800,15,0),0) -> 0 | P101: 0 | Q101: =IFERROR(VLOOKUP($A101,Pupils!$A$4:$T$800,11,0),0) -> 0 | R101: =IFERROR(VLOOKUP($A101,'Monthly Statement'!$A$2:$V$800,16,0),0) -> 0 | S101: 0 | T101: =IFERROR(VLOOKUP($A101,Pupils!$A$4:$T$800,12,0),0) -> 0 | U101: =IFERROR(VLOOKUP($A101,'Monthly Statement'!$A$2:$V$800,17,0),0) -> 0 | V101: 0 | W101: =IFERROR(VLOOKUP($A101,Pupils!$A$4:$T$800,13,0),0) -> 0 | X101: =IFERROR(VLOOKUP($A101,'Monthly Statement'!$A$2:$V$800,18,0),0) -> 0 | Y101: 0 | Z101: =IFERROR(VLOOKUP($A101,Pupils!$A$4:$T$800,14,0),0) -> 0 | AA101: =IFERROR(VLOOKUP($A101,'Monthly Statement'!$A$2:$V$800,19,0),0) -> 0 | AB101: 0 | AC101: =IFERROR(VLOOKUP($A101,Pupils!$A$4:$T$800,15,0),0) -> 0 | AD101: =IFERROR(VLOOKUP($A101,'Monthly Statement'!$A$2:$V$800,20,0),0) -> 0 | AE101: 0 | AF101: =IFERROR(VLOOKUP($A101,Pupils!$A$4:$T$800,16,0),0) -> 0 | AG101: =IFERROR(VLOOKUP($A101,'Monthly Statement'!$A$2:$V$800,21,0),0) -> 0 | AH101: 0 | AI101: =IFERROR(VLOOKUP($A101,Pupils!$A$4:$T$800,17,0),0) -> 0 | AJ101: =IFERROR(VLOOKUP($A101,'Monthly Statement'!$A$2:$V$800,22,0),0) -> 0 | AK101: 0 | AL101: =IFERROR(VLOOKUP($A101,Pupils!$A$4:$T$800,18,0),0) -> 0 | AM101: =IFERROR(VLOOKUP($A101,'Monthly Statement'!$A$2:$V$800,23,0),0) -> 0 | AN101: 0 | AO101: =IFERROR(VLOOKUP($A101,Pupils!$A$4:$T$800,19,0),0) -> 0 | AP101: =IFERROR(VLOOKUP($A101,'Monthly Statement'!$A$2:$V$800,24,0),0) -> 0 | AQ101: 0
A102: ='Monthly Statement'!A98 -> 0 | B102: =IFERROR(VLOOKUP(A102,'Monthly Statement'!A:X,4,0),"") ->  | C102: =IFERROR(VLOOKUP(A102,'Monthly Statement'!A:X,5,0),"") ->  | D102: =IFERROR(VLOOKUP(A102,'Monthly Statement'!A:X,7,0),"") ->  | E102: =IFERROR(VLOOKUP(A102,'Monthly Statement'!A:X,9,0),"") ->  | F102: =IFERROR(VLOOKUP(A102,'Monthly Statement'!A:X,10,0),"") ->  | G102: 0 | H102: =IFERROR(VLOOKUP($A102,Pupils!$A$4:$T$800,8,0),0) -> 0 | I102: =IFERROR(VLOOKUP($A102,'Monthly Statement'!$A$2:$V$800,13,0),0) -> 0 | J102: 0 | K102: =IFERROR(VLOOKUP($A102,Pupils!$A$4:$T$800,9,0),0) -> 0 | L102: =IFERROR(VLOOKUP($A102,'Monthly Statement'!$A$2:$V$800,14,0),0) -> 0 | M102: 0 | N102: =IFERROR(VLOOKUP($A102,Pupils!$A$4:$T$800,10,0),0) -> 0 | O102: =IFERROR(VLOOKUP($A102,'Monthly Statement'!$A$2:$V$800,15,0),0) -> 0 | P102: 0 | Q102: =IFERROR(VLOOKUP($A102,Pupils!$A$4:$T$800,11,0),0) -> 0 | R102: =IFERROR(VLOOKUP($A102,'Monthly Statement'!$A$2:$V$800,16,0),0) -> 0 | S102: 0 | T102: =IFERROR(VLOOKUP($A102,Pupils!$A$4:$T$800,12,0),0) -> 0 | U102: =IFERROR(VLOOKUP($A102,'Monthly Statement'!$A$2:$V$800,17,0),0) -> 0 | V102: 0 | W102: =IFERROR(VLOOKUP($A102,Pupils!$A$4:$T$800,13,0),0) -> 0 | X102: =IFERROR(VLOOKUP($A102,'Monthly Statement'!$A$2:$V$800,18,0),0) -> 0 | Y102: 0 | Z102: =IFERROR(VLOOKUP($A102,Pupils!$A$4:$T$800,14,0),0) -> 0 | AA102: =IFERROR(VLOOKUP($A102,'Monthly Statement'!$A$2:$V$800,19,0),0) -> 0 | AB102: 0 | AC102: =IFERROR(VLOOKUP($A102,Pupils!$A$4:$T$800,15,0),0) -> 0 | AD102: =IFERROR(VLOOKUP($A102,'Monthly Statement'!$A$2:$V$800,20,0),0) -> 0 | AE102: 0 | AF102: =IFERROR(VLOOKUP($A102,Pupils!$A$4:$T$800,16,0),0) -> 0 | AG102: =IFERROR(VLOOKUP($A102,'Monthly Statement'!$A$2:$V$800,21,0),0) -> 0 | AH102: 0 | AI102: =IFERROR(VLOOKUP($A102,Pupils!$A$4:$T$800,17,0),0) -> 0 | AJ102: =IFERROR(VLOOKUP($A102,'Monthly Statement'!$A$2:$V$800,22,0),0) -> 0 | AK102: 0 | AL102: =IFERROR(VLOOKUP($A102,Pupils!$A$4:$T$800,18,0),0) -> 0 | AM102: =IFERROR(VLOOKUP($A102,'Monthly Statement'!$A$2:$V$800,23,0),0) -> 0 | AN102: 0 | AO102: =IFERROR(VLOOKUP($A102,Pupils!$A$4:$T$800,19,0),0) -> 0 | AP102: =IFERROR(VLOOKUP($A102,'Monthly Statement'!$A$2:$V$800,24,0),0) -> 0 | AQ102: 0
A103: ='Monthly Statement'!A99 -> 0 | B103: =IFERROR(VLOOKUP(A103,'Monthly Statement'!A:X,4,0),"") ->  | C103: =IFERROR(VLOOKUP(A103,'Monthly Statement'!A:X,5,0),"") ->  | D103: =IFERROR(VLOOKUP(A103,'Monthly Statement'!A:X,7,0),"") ->  | E103: =IFERROR(VLOOKUP(A103,'Monthly Statement'!A:X,9,0),"") ->  | F103: =IFERROR(VLOOKUP(A103,'Monthly Statement'!A:X,10,0),"") ->  | G103: 0 | H103: =IFERROR(VLOOKUP($A103,Pupils!$A$4:$T$800,8,0),0) -> 0 | I103: =IFERROR(VLOOKUP($A103,'Monthly Statement'!$A$2:$V$800,13,0),0) -> 0 | J103: 0 | K103: =IFERROR(VLOOKUP($A103,Pupils!$A$4:$T$800,9,0),0) -> 0 | L103: =IFERROR(VLOOKUP($A103,'Monthly Statement'!$A$2:$V$800,14,0),0) -> 0 | M103: 0 | N103: =IFERROR(VLOOKUP($A103,Pupils!$A$4:$T$800,10,0),0) -> 0 | O103: =IFERROR(VLOOKUP($A103,'Monthly Statement'!$A$2:$V$800,15,0),0) -> 0 | P103: 0 | Q103: =IFERROR(VLOOKUP($A103,Pupils!$A$4:$T$800,11,0),0) -> 0 | R103: =IFERROR(VLOOKUP($A103,'Monthly Statement'!$A$2:$V$800,16,0),0) -> 0 | S103: 0 | T103: =IFERROR(VLOOKUP($A103,Pupils!$A$4:$T$800,12,0),0) -> 0 | U103: =IFERROR(VLOOKUP($A103,'Monthly Statement'!$A$2:$V$800,17,0),0) -> 0 | V103: 0 | W103: =IFERROR(VLOOKUP($A103,Pupils!$A$4:$T$800,13,0),0) -> 0 | X103: =IFERROR(VLOOKUP($A103,'Monthly Statement'!$A$2:$V$800,18,0),0) -> 0 | Y103: 0 | Z103: =IFERROR(VLOOKUP($A103,Pupils!$A$4:$T$800,14,0),0) -> 0 | AA103: =IFERROR(VLOOKUP($A103,'Monthly Statement'!$A$2:$V$800,19,0),0) -> 0 | AB103: 0 | AC103: =IFERROR(VLOOKUP($A103,Pupils!$A$4:$T$800,15,0),0) -> 0 | AD103: =IFERROR(VLOOKUP($A103,'Monthly Statement'!$A$2:$V$800,20,0),0) -> 0 | AE103: 0 | AF103: =IFERROR(VLOOKUP($A103,Pupils!$A$4:$T$800,16,0),0) -> 0 | AG103: =IFERROR(VLOOKUP($A103,'Monthly Statement'!$A$2:$V$800,21,0),0) -> 0 | AH103: 0 | AI103: =IFERROR(VLOOKUP($A103,Pupils!$A$4:$T$800,17,0),0) -> 0 | AJ103: =IFERROR(VLOOKUP($A103,'Monthly Statement'!$A$2:$V$800,22,0),0) -> 0 | AK103: 0 | AL103: =IFERROR(VLOOKUP($A103,Pupils!$A$4:$T$800,18,0),0) -> 0 | AM103: =IFERROR(VLOOKUP($A103,'Monthly Statement'!$A$2:$V$800,23,0),0) -> 0 | AN103: 0 | AO103: =IFERROR(VLOOKUP($A103,Pupils!$A$4:$T$800,19,0),0) -> 0 | AP103: =IFERROR(VLOOKUP($A103,'Monthly Statement'!$A$2:$V$800,24,0),0) -> 0 | AQ103: 0
A104: ='Monthly Statement'!A100 -> 0 | B104: =IFERROR(VLOOKUP(A104,'Monthly Statement'!A:X,4,0),"") ->  | C104: =IFERROR(VLOOKUP(A104,'Monthly Statement'!A:X,5,0),"") ->  | D104: =IFERROR(VLOOKUP(A104,'Monthly Statement'!A:X,7,0),"") ->  | E104: =IFERROR(VLOOKUP(A104,'Monthly Statement'!A:X,9,0),"") ->  | F104: =IFERROR(VLOOKUP(A104,'Monthly Statement'!A:X,10,0),"") ->  | G104: 0 | H104: =IFERROR(VLOOKUP($A104,Pupils!$A$4:$T$800,8,0),0) -> 0 | I104: =IFERROR(VLOOKUP($A104,'Monthly Statement'!$A$2:$V$800,13,0),0) -> 0 | J104: 0 | K104: =IFERROR(VLOOKUP($A104,Pupils!$A$4:$T$800,9,0),0) -> 0 | L104: =IFERROR(VLOOKUP($A104,'Monthly Statement'!$A$2:$V$800,14,0),0) -> 0 | M104: 0 | N104: =IFERROR(VLOOKUP($A104,Pupils!$A$4:$T$800,10,0),0) -> 0 | O104: =IFERROR(VLOOKUP($A104,'Monthly Statement'!$A$2:$V$800,15,0),0) -> 0 | P104: 0 | Q104: =IFERROR(VLOOKUP($A104,Pupils!$A$4:$T$800,11,0),0) -> 0 | R104: =IFERROR(VLOOKUP($A104,'Monthly Statement'!$A$2:$V$800,16,0),0) -> 0 | S104: 0 | T104: =IFERROR(VLOOKUP($A104,Pupils!$A$4:$T$800,12,0),0) -> 0 | U104: =IFERROR(VLOOKUP($A104,'Monthly Statement'!$A$2:$V$800,17,0),0) -> 0 | V104: 0 | W104: =IFERROR(VLOOKUP($A104,Pupils!$A$4:$T$800,13,0),0) -> 0 | X104: =IFERROR(VLOOKUP($A104,'Monthly Statement'!$A$2:$V$800,18,0),0) -> 0 | Y104: 0 | Z104: =IFERROR(VLOOKUP($A104,Pupils!$A$4:$T$800,14,0),0) -> 0 | AA104: =IFERROR(VLOOKUP($A104,'Monthly Statement'!$A$2:$V$800,19,0),0) -> 0 | AB104: 0 | AC104: =IFERROR(VLOOKUP($A104,Pupils!$A$4:$T$800,15,0),0) -> 0 | AD104: =IFERROR(VLOOKUP($A104,'Monthly Statement'!$A$2:$V$800,20,0),0) -> 0 | AE104: 0 | AF104: =IFERROR(VLOOKUP($A104,Pupils!$A$4:$T$800,16,0),0) -> 0 | AG104: =IFERROR(VLOOKUP($A104,'Monthly Statement'!$A$2:$V$800,21,0),0) -> 0 | AH104: 0 | AI104: =IFERROR(VLOOKUP($A104,Pupils!$A$4:$T$800,17,0),0) -> 0 | AJ104: =IFERROR(VLOOKUP($A104,'Monthly Statement'!$A$2:$V$800,22,0),0) -> 0 | AK104: 0 | AL104: =IFERROR(VLOOKUP($A104,Pupils!$A$4:$T$800,18,0),0) -> 0 | AM104: =IFERROR(VLOOKUP($A104,'Monthly Statement'!$A$2:$V$800,23,0),0) -> 0 | AN104: 0 | AO104: =IFERROR(VLOOKUP($A104,Pupils!$A$4:$T$800,19,0),0) -> 0 | AP104: =IFERROR(VLOOKUP($A104,'Monthly Statement'!$A$2:$V$800,24,0),0) -> 0 | AQ104: 0
A105: ='Monthly Statement'!A101 -> 0 | B105: =IFERROR(VLOOKUP(A105,'Monthly Statement'!A:X,4,0),"") ->  | C105: =IFERROR(VLOOKUP(A105,'Monthly Statement'!A:X,5,0),"") ->  | D105: =IFERROR(VLOOKUP(A105,'Monthly Statement'!A:X,7,0),"") ->  | E105: =IFERROR(VLOOKUP(A105,'Monthly Statement'!A:X,9,0),"") ->  | F105: =IFERROR(VLOOKUP(A105,'Monthly Statement'!A:X,10,0),"") ->  | G105: 0 | H105: =IFERROR(VLOOKUP($A105,Pupils!$A$4:$T$800,8,0),0) -> 0 | I105: =IFERROR(VLOOKUP($A105,'Monthly Statement'!$A$2:$V$800,13,0),0) -> 0 | J105: 0 | K105: =IFERROR(VLOOKUP($A105,Pupils!$A$4:$T$800,9,0),0) -> 0 | L105: =IFERROR(VLOOKUP($A105,'Monthly Statement'!$A$2:$V$800,14,0),0) -> 0 | M105: 0 | N105: =IFERROR(VLOOKUP($A105,Pupils!$A$4:$T$800,10,0),0) -> 0 | O105: =IFERROR(VLOOKUP($A105,'Monthly Statement'!$A$2:$V$800,15,0),0) -> 0 | P105: 0 | Q105: =IFERROR(VLOOKUP($A105,Pupils!$A$4:$T$800,11,0),0) -> 0 | R105: =IFERROR(VLOOKUP($A105,'Monthly Statement'!$A$2:$V$800,16,0),0) -> 0 | S105: 0 | T105: =IFERROR(VLOOKUP($A105,Pupils!$A$4:$T$800,12,0),0) -> 0 | U105: =IFERROR(VLOOKUP($A105,'Monthly Statement'!$A$2:$V$800,17,0),0) -> 0 | V105: 0 | W105: =IFERROR(VLOOKUP($A105,Pupils!$A$4:$T$800,13,0),0) -> 0 | X105: =IFERROR(VLOOKUP($A105,'Monthly Statement'!$A$2:$V$800,18,0),0) -> 0 | Y105: 0 | Z105: =IFERROR(VLOOKUP($A105,Pupils!$A$4:$T$800,14,0),0) -> 0 | AA105: =IFERROR(VLOOKUP($A105,'Monthly Statement'!$A$2:$V$800,19,0),0) -> 0 | AB105: 0 | AC105: =IFERROR(VLOOKUP($A105,Pupils!$A$4:$T$800,15,0),0) -> 0 | AD105: =IFERROR(VLOOKUP($A105,'Monthly Statement'!$A$2:$V$800,20,0),0) -> 0 | AE105: 0 | AF105: =IFERROR(VLOOKUP($A105,Pupils!$A$4:$T$800,16,0),0) -> 0 | AG105: =IFERROR(VLOOKUP($A105,'Monthly Statement'!$A$2:$V$800,21,0),0) -> 0 | AH105: 0 | AI105: =IFERROR(VLOOKUP($A105,Pupils!$A$4:$T$800,17,0),0) -> 0 | AJ105: =IFERROR(VLOOKUP($A105,'Monthly Statement'!$A$2:$V$800,22,0),0) -> 0 | AK105: 0 | AL105: =IFERROR(VLOOKUP($A105,Pupils!$A$4:$T$800,18,0),0) -> 0 | AM105: =IFERROR(VLOOKUP($A105,'Monthly Statement'!$A$2:$V$800,23,0),0) -> 0 | AN105: 0 | AO105: =IFERROR(VLOOKUP($A105,Pupils!$A$4:$T$800,19,0),0) -> 0 | AP105: =IFERROR(VLOOKUP($A105,'Monthly Statement'!$A$2:$V$800,24,0),0) -> 0 | AQ105: 0
